Workbook

Sheet Cover
A2: RIIO-3 Business Plan Financial Model (BPFM)
B3: Electricity Transmission
C4: Model Version | G4: =MID(CELL("filename"),SEARCH("[",CELL("filename"))+1,SEARCH("]",CELL("filename"))-SEARCH("[",CELL("filename"))-1) -> 
B7: Model key
E9: Sample | G9: Calculated value | I9: Sample | K9: Information and interface
E10: Sample | G10: Import | I10: Sample | K10: Fixed input value
E11: Sample | G11: Export | I11: Sample | K11: Ofgem annual update input (outturn value)
E12: Sample | G12: Named range | I12: Sample | K12: Ofgem annual update input (forecasted value)
E13: Sample | G13: Formula change in cells to the right | I13: Sample | K13: Other annual update input (outturn value)
I14: Sample | K14: Other annual update input (forecasted value)
I15: Sample | K15: Input linked from annual update
I16: Sample | K16: Notes and instructions
I17: Sample | K17: Check
B19: Contents
E21: INTERFACE > | I21: GENERAL INPUT SHEETS >
E22: Cover | G22: Model key and content directory | I22: Annual Inflation | K22: Derivation of annual inflation rates and price indices
E23: UserInterface | G23: Model operation | I23: Monthly Inflation | K23: Dataset and derivation of monthly inflation rates and price indices
E25: INPUT SELECTION > | I25: COMPANY SPECIFIC INPUT SHEETS >
E26: Extension | G26: Controls for timeline extension macro
E27: Scenarios | G27: Inputs for selected licensee | I27: SHET | K27: Inputs for SHET
E28: InputSummary | G28: Mirroring company specific input sheet for selected company | I28: SPTL | K28: Inputs for SPTL
E29: MainInputs | G29: Arranging inputs for use in model | I29: NGET | K29: Inputs for NGET
E31: CALCULATION > | I31: DEBT SHEETS >
E32: Totex | G32: Totex allowance and actuals | I32: F1 - Debt for BPFM | K32: Outputs for actual debt data, mirrored from BPDT
E33: TIM | G33: Totex Incentive Mechanism and capitalisation | I33: F2a - Financial Summary (TWA) | K33: Summary of information on actual debt and equity, mirrored from BPDT
E34: Depn | G34: Gas distribution regulatory depreciation | I34: F2b - Financial Summary (YE) | K34: Derives embedded and new debt volumes at the start and end of each year, mirrored from BPDT
E35: Return&RAV | G35: RAV and return calculations | I35: F3 - Fixed Rate Debt | K35: Aggregates fixed rate debt instruments from F6, mirrored from BPDT
E36: TaxPools | G36: Tax pools and capital allowances | I36: F4 - Floating Rate Debt | K36: Aggregates floating rate debt instruments from F6, mirrored from BPDT
E37: Finance&Tax | G37: Net debt, equity issuance, financing costs and tax | I37: F5 - Inflation Linked Debt | K37: Aggregates inflation linked debt instruments from F6, mirrored from BPDT
E38: NonCore | G38: Calculation of NonCore RAV | I38: F6 - Debt Dataset | K38: Inputs for actual debt data, mirrored from BPDT
E39: Revenue | G39: Summary of calculated revenue | I39: F7 - Data Validation | K39: Stores definitions of drop-down validation lists in F6, mirrored from BPDT
E41: FINANCIAL & OUTPUT ANALYSIS SHEETS > | I41: SHEETS NOT USED IN BPFM>
E42: FinInput | G42: Arranging inputs for use in financeability tabs | I42: TaxTrigger Deadbands | K42: For calculating Tax Trigger Deadbands - unused in BPFM
E43: RevenueSummary | G43: Revenue buildup for notional and actual companies | I43: ReturnAdj | K43: Calculations for the Return Adjustment - unused in BPFM
E44: Finance&Tax(actual) | G44: Net debt, equity issuance, financing costs and tax for actual company | I44: AR | K44: Derivation of allowed revenue - unused in BPFM
E45: FinancialStatements | G45: Financial statements for selected company | I45: LiveResults | K45: Results for selected company - unused in BPFM
E46: FinancialRatios | G46: Financial ratios for selected company | I46: SavedResults | K46: Saved results for all companies - unused in BPFM
E47: FinRatios RoRE decomposition | G47: Decomposition of RoRE, as derived in the FinancialRatios tab | I47: RIIO-1 | K47: RIIO-1 revenue & domestic charges input data - unused in BPFM
E48: RatingSimulator | G48: Credit rating estimation tool
E49: PowerQuery | G49: Tabulating data for OutputSummary's use
E50: OutputSummary | G50: For use in exporting dashboard data
E51: ScenarioRun_AllOutputData | G51: For use in exporting scenario modelling outputs
E52: FBPOutputs | G52: Outputs for use in FBPs
E53: Bills | G53: Calculation of approximated bills
B56: End of sheet

Sheet UserInterface
A1: User Interface
B3: Model operation
C5: PCFM year t
C6: Instruction: Use the following drop-down list to identify year t in the model. Year t is identified here by its end date.
E8: Year t selection:
E10: Year t selected: | G10: =INDEX(NumberofYear,m_PCFM_year_t) -> 2025-03-31
C12: Active company
C13: Instruction: Use the following drop-down list to select the active company in the model.
E15: Company selection:
E17: Selected company: | G17: =INDEX(E51:E53, E54) -> SHET
C19: RIIO extension
C20: Instruction: Use the following drop-down list to select the RIIO period to extend the model.
E22: RIIO period selection:
E24: Selected company: | G24: =INDEX(RIIO, E72) -> RIIO4
C26: Run scenario output
C27: Instruction: Run an export to a new sheet for all licensees and scenarios selected on ScenarioRun_AllOutpuData tab
C32: Align model calculation debt with actual debt for selected licensee
C33: Instruction: Align actual debt data for the selected licensee based on BPDT values, for output on Finance&Tax(actual) tab
C38: Run RIIO extension
C39: Instruction: Extend the timeline of the model based on parameters set on Extension tab
B44: User selection lists
B45: Note: The lists below drive the drop-down lists above.
B46: Using the drop-down lists above returns an integer in the "cell link" positioned below their "source list."
B47: The number returned in the cell link corresponds to the position of the selected item in the source list.
B48: The company selection output is set as a "named range." This gives a stable anchor point for the "RunForAll" macro to change the company.
E50: ="Source for ''"&C12&"'' drop-down list" -> Source for ''Active company'' drop-down list | G50: ="Source for ''"&C5&"'' drop-down list" -> Source for ''PCFM year t'' drop-down list
E51: SHET | G51: 2022-03-31
E52: SPTL | G52: 2023-03-31
E53: NGET | G53: 2024-03-31
E54: 1 | G54: 2025-03-31
E55: Adjacent named range: m_identity | G55: 2026-03-31
E56: =INDEX(NumberofOperators,m_identity) -> SHET | G56: 2027-03-31
E57: Adjacent named range: n_identity | G57: 2028-03-31
G58: 4
G59: Adjacent named range: m_PCFM_year_t
E61: ="Source for ''"&C19&"'' drop-down list" -> Source for ''RIIO extension'' drop-down list
E62: =RIIO -> RIIO4
E63: RIIO5
E64: RIIO6
E65: RIIO7
E66: RIIO8
E67: RIIO9
E68: RIIO10
E69: RIIO11
E70: RIIO12
E71: RIIO13
E72: 1
E75: 1
B76: End of sheet

Sheet Checks
A1: Model checks | I1: Checks not met:
B2: =UserInterface!G17 -> SHET | I2: =SUMPRODUCT(($I$8:$I$70 <> TRUE) * 1) - SUMPRODUCT(($I$8:$I$70 = "") * 1) -> 3
E3: Parameter | G3: Units | I3: Constant | AP3: Annual values
E4: PCFM year ending | I4: =UserInterface!$G$10 -> 2025-03-31 | K4: 1991-03-31 | L4: 1992-03-31 | M4: 1993-03-31 | N4: 1994-03-31 | O4: 1995-03-31 | P4: 1996-03-31 | Q4: 1997-03-31 | R4: 1998-03-31 | S4: 1999-03-31 | T4: 2000-03-31 | U4: 2001-03-31 | V4: 2002-03-31 | W4: 2003-03-31 | X4: 2004-03-31 | Y4: 2005-03-31 | Z4: 2006-03-31 | AA4: 2007-03-31 | AB4: 2008-03-31 | AC4: 2009-03-31 | AD4: 2010-03-31 | AE4: 2011-03-31 | AF4: 2012-03-31 | AG4: 2013-03-31 | AH4: 2014-03-31 | AI4: 2015-03-31 | AJ4: 2016-03-31 | AK4: 2017-03-31 | AL4: 2018-03-31 | AM4: 2019-03-31 | AN4: 2020-03-31 | AO4: 2021-03-31 | AP4: 2022-03-31 | AQ4: 2023-03-31 | AR4: 2024-03-31 | AS4: 2025-03-31 | AT4: 2026-03-31 | AU4: 2027-03-31 | AV4: 2028-03-31 | AW4: 2029-03-31 | AX4: 2030-03-31 | AY4: =EOMONTH(AX4,12) -> 2031-03-31
AP5: 2 | AQ5: 2 | AR5: 2 | AS5: 2 | AT5: 2 | AU5: 3 | AV5: 3 | AW5: 3 | AX5: 3 | AY5: 3
B6: Financial statements - checks are not balanced if Revenue Profiling scenario option set to "Revenues"
E8: Equity | I8: =ABS(SUM(AP8:AY8) - 0) < 0.00000001 -> TRUE | AU8: =FinancialStatements!AU49 -> 0 | AV8: =FinancialStatements!AV49 -> 0 | AW8: =FinancialStatements!AW49 -> 0 | AX8: =FinancialStatements!AX49 -> 0 | AY8: =FinancialStatements!AY49 -> 0
E9: Closing RAV | I9: TRUE | AP9: =FinancialStatements!AP63 -> 0 | AQ9: =FinancialStatements!AQ63 -> 0 | AR9: =FinancialStatements!AR63 -> 0 | AS9: =FinancialStatements!AS63 -> 0 | AT9: =FinancialStatements!AT63 -> 0 | AU9: =FinancialStatements!AU63 -> 0 | AV9: =FinancialStatements!AV63 -> 0 | AW9: =FinancialStatements!AW63 -> 0 | AX9: =FinancialStatements!AX63 -> 0 | AY9: =FinancialStatements!AY63 -> 0
E10: Net cash flow | I10: TRUE | AP10: =FinancialStatements!AP93 -> 0 | AQ10: =FinancialStatements!AQ93 -> -4.263256415e-13 | AR10: =FinancialStatements!AR93 -> 0 | AS10: =FinancialStatements!AS93 -> 0 | AT10: =FinancialStatements!AT93 -> 1.818989404e-12 | AU10: =FinancialStatements!AU93 -> 0 | AV10: =FinancialStatements!AV93 -> 0 | AW10: =FinancialStatements!AW93 -> 0 | AX10: =FinancialStatements!AX93 -> 0 | AY10: =FinancialStatements!AY93 -> 0
E11: Change in net debt | I11: TRUE | AP11: =FinancialStatements!AP158 -> 0 | AQ11: =FinancialStatements!AQ158 -> 0 | AR11: =FinancialStatements!AR158 -> 0 | AS11: =FinancialStatements!AS158 -> 0 | AT11: =FinancialStatements!AT158 -> 0 | AU11: =FinancialStatements!AU158 -> 0 | AV11: =FinancialStatements!AV158 -> 0 | AW11: =FinancialStatements!AW158 -> 0 | AX11: =FinancialStatements!AX158 -> 0 | AY11: =FinancialStatements!AY158 -> 0
B13: FinRatios RoRE decomposition - checks are not balanced if Revenue Profiling scenario option set to "Revenues"
E15: Total revenue | I15: =ABS(SUM(AP15:AY15) - 0) < 0.00000001 -> TRUE | AP15: ='FinRatios RoRE decomposition'!AP54 -> 0 | AQ15: ='FinRatios RoRE decomposition'!AQ54 -> 0 | AR15: ='FinRatios RoRE decomposition'!AR54 -> 0 | AS15: ='FinRatios RoRE decomposition'!AS54 -> 0 | AT15: ='FinRatios RoRE decomposition'!AT54 -> 0 | AU15: ='FinRatios RoRE decomposition'!AU54 -> 0 | AV15: ='FinRatios RoRE decomposition'!AV54 -> 0 | AW15: ='FinRatios RoRE decomposition'!AW54 -> 0 | AX15: ='FinRatios RoRE decomposition'!AX54 -> 0 | AY15: ='FinRatios RoRE decomposition'!AY54 -> 0
E16: Retained earnings | I16: TRUE | AP16: ='FinRatios RoRE decomposition'!AP55 -> 7.815970093e-14 | AQ16: ='FinRatios RoRE decomposition'!AQ55 -> 5.684341886e-14 | AR16: ='FinRatios RoRE decomposition'!AR55 -> 1.207922651e-13 | AS16: ='FinRatios RoRE decomposition'!AS55 -> -1.563194019e-13 | AT16: ='FinRatios RoRE decomposition'!AT55 -> 0 | AU16: ='FinRatios RoRE decomposition'!AU55 -> 0 | AV16: ='FinRatios RoRE decomposition'!AV55 -> 0 | AW16: ='FinRatios RoRE decomposition'!AW55 -> 0 | AX16: ='FinRatios RoRE decomposition'!AX55 -> 0 | AY16: ='FinRatios RoRE decomposition'!AY55 -> 0
E17: EBITDA | I17: TRUE | AP17: ='FinRatios RoRE decomposition'!AP56 -> 0 | AQ17: ='FinRatios RoRE decomposition'!AQ56 -> 0 | AR17: ='FinRatios RoRE decomposition'!AR56 -> 0 | AS17: ='FinRatios RoRE decomposition'!AS56 -> 0 | AT17: ='FinRatios RoRE decomposition'!AT56 -> 0 | AU17: ='FinRatios RoRE decomposition'!AU56 -> 0 | AV17: ='FinRatios RoRE decomposition'!AV56 -> 0 | AW17: ='FinRatios RoRE decomposition'!AW56 -> 0 | AX17: ='FinRatios RoRE decomposition'!AX56 -> 0 | AY17: ='FinRatios RoRE decomposition'!AY56 -> 0
E18: PAT | I18: TRUE | AP18: ='FinRatios RoRE decomposition'!AP57 -> 0 | AQ18: ='FinRatios RoRE decomposition'!AQ57 -> 7.460698725e-14 | AR18: ='FinRatios RoRE decomposition'!AR57 -> 0 | AS18: ='FinRatios RoRE decomposition'!AS57 -> 0 | AT18: ='FinRatios RoRE decomposition'!AT57 -> 0 | AU18: ='FinRatios RoRE decomposition'!AU57 -> 0 | AV18: ='FinRatios RoRE decomposition'!AV57 -> 0 | AW18: ='FinRatios RoRE decomposition'!AW57 -> 0 | AX18: ='FinRatios RoRE decomposition'!AX57 -> 0 | AY18: ='FinRatios RoRE decomposition'!AY57 -> 0
E19: FFO | I19: TRUE | AP19: ='FinRatios RoRE decomposition'!AP58 -> 0 | AQ19: ='FinRatios RoRE decomposition'!AQ58 -> 0 | AR19: ='FinRatios RoRE decomposition'!AR58 -> 0 | AS19: ='FinRatios RoRE decomposition'!AS58 -> 0 | AT19: ='FinRatios RoRE decomposition'!AT58 -> 0 | AU19: ='FinRatios RoRE decomposition'!AU58 -> 0 | AV19: ='FinRatios RoRE decomposition'!AV58 -> 0 | AW19: ='FinRatios RoRE decomposition'!AW58 -> 0 | AX19: ='FinRatios RoRE decomposition'!AX58 -> 0 | AY19: ='FinRatios RoRE decomposition'!AY58 -> 0
E20: RCF | I20: TRUE | AP20: ='FinRatios RoRE decomposition'!AP59 -> 0 | AQ20: ='FinRatios RoRE decomposition'!AQ59 -> 0 | AR20: ='FinRatios RoRE decomposition'!AR59 -> 0 | AS20: ='FinRatios RoRE decomposition'!AS59 -> 0 | AT20: ='FinRatios RoRE decomposition'!AT59 -> 0 | AU20: ='FinRatios RoRE decomposition'!AU59 -> 0 | AV20: ='FinRatios RoRE decomposition'!AV59 -> 0 | AW20: ='FinRatios RoRE decomposition'!AW59 -> 0 | AX20: ='FinRatios RoRE decomposition'!AX59 -> 0 | AY20: ='FinRatios RoRE decomposition'!AY59 -> 0
E21: RoRE (NPV-neutral equity) | I21: TRUE | AP21: ='FinRatios RoRE decomposition'!AP123 -> 0 | AQ21: ='FinRatios RoRE decomposition'!AQ123 -> 8.326672685e-17 | AR21: ='FinRatios RoRE decomposition'!AR123 -> 0 | AS21: ='FinRatios RoRE decomposition'!AS123 -> 0 | AT21: ='FinRatios RoRE decomposition'!AT123 -> 0 | AU21: ='FinRatios RoRE decomposition'!AU123 -> 0 | AV21: ='FinRatios RoRE decomposition'!AV123 -> 0 | AW21: ='FinRatios RoRE decomposition'!AW123 -> 0 | AX21: ='FinRatios RoRE decomposition'!AX123 -> 0 | AY21: ='FinRatios RoRE decomposition'!AY123 -> 0
E22: RoRE (closing equity) | I22: TRUE | AP22: ='FinRatios RoRE decomposition'!AP142 -> 0 | AQ22: ='FinRatios RoRE decomposition'!AQ142 -> 7.632783294e-17 | AR22: ='FinRatios RoRE decomposition'!AR142 -> 0 | AS22: ='FinRatios RoRE decomposition'!AS142 -> 0 | AT22: ='FinRatios RoRE decomposition'!AT142 -> 0 | AU22: ='FinRatios RoRE decomposition'!AU142 -> 0 | AV22: ='FinRatios RoRE decomposition'!AV142 -> 0 | AW22: ='FinRatios RoRE decomposition'!AW142 -> 0 | AX22: ='FinRatios RoRE decomposition'!AX142 -> 0 | AY22: ='FinRatios RoRE decomposition'!AY142 -> 0
E23: PAT | I23: TRUE | AP23: ='FinRatios RoRE decomposition'!AP147 -> 0 | AQ23: ='FinRatios RoRE decomposition'!AQ147 -> 9.414691249e-14 | AR23: ='FinRatios RoRE decomposition'!AR147 -> 9.237055565e-14 | AS23: ='FinRatios RoRE decomposition'!AS147 -> 0 | AT23: ='FinRatios RoRE decomposition'!AT147 -> 0 | AU23: ='FinRatios RoRE decomposition'!AU147 -> 0 | AV23: ='FinRatios RoRE decomposition'!AV147 -> 0 | AW23: ='FinRatios RoRE decomposition'!AW147 -> 0 | AX23: ='FinRatios RoRE decomposition'!AX147 -> 0 | AY23: ='FinRatios RoRE decomposition'!AY147 -> 0
E24: PAT / Regulated equity | I24: TRUE | AP24: ='FinRatios RoRE decomposition'!AP164 -> 0 | AQ24: ='FinRatios RoRE decomposition'!AQ164 -> 0 | AR24: ='FinRatios RoRE decomposition'!AR164 -> 0 | AS24: ='FinRatios RoRE decomposition'!AS164 -> 0 | AT24: ='FinRatios RoRE decomposition'!AT164 -> 0 | AU24: ='FinRatios RoRE decomposition'!AU164 -> 0 | AV24: ='FinRatios RoRE decomposition'!AV164 -> 0 | AW24: ='FinRatios RoRE decomposition'!AW164 -> 0 | AX24: ='FinRatios RoRE decomposition'!AX164 -> 0 | AY24: ='FinRatios RoRE decomposition'!AY164 -> 0
B26: FinInput
E28: BPDT gearing target import in base case | I28: =ABS(SUM(AP28:AY28) - 0) < 0.05 -> TRUE | AP28: =FinInput!AP98 -> 0 | AQ28: =FinInput!AQ98 -> 0 | AR28: =FinInput!AR98 -> 0 | AS28: =FinInput!AS98 -> 0 | AT28: =FinInput!AT98 -> 0 | AU28: =FinInput!AU98 -> 0 | AV28: =FinInput!AV98 -> 0 | AW28: =FinInput!AW98 -> 0 | AX28: =FinInput!AX98 -> 0 | AY28: =FinInput!AY98 -> 0
B30: Totex and TIM
E32: Actual totex | I32: =ABS(SUM(AP32:AY32) - 0) < 0.00000001 -> TRUE | AP32: =(Totex!AP88 - SUM(MainInputs!AP372,MainInputs!AP381))*Totex!AP56 -> 1.136868377e-13 | AQ32: =(Totex!AQ88 - SUM(MainInputs!AQ372,MainInputs!AQ381))*Totex!AQ56 -> 1.136868377e-13 | AR32: =(Totex!AR88 - SUM(MainInputs!AR372,MainInputs!AR381))*Totex!AR56 -> -2.273736754e-13 | AS32: =(Totex!AS88 - SUM(MainInputs!AS372,MainInputs!AS381))*Totex!AS56 -> -2.273736754e-13 | AT32: =(Totex!AT88 - SUM(MainInputs!AT372,MainInputs!AT381))*Totex!AT56 -> 0 | AU32: =(Totex!AU88 - SUM(MainInputs!AU372,MainInputs!AU381))*Totex!AU56 -> 0 | AV32: =(Totex!AV88 - SUM(MainInputs!AV372,MainInputs!AV381))*Totex!AV56 -> 0 | AW32: =(Totex!AW88 - SUM(MainInputs!AW372,MainInputs!AW381))*Totex!AW56 -> 0 | AX32: =(Totex!AX88 - SUM(MainInputs!AX372,MainInputs!AX381))*Totex!AX56 -> 0 | AY32: =(Totex!AY88 - SUM(MainInputs!AY372,MainInputs!AY381))*Totex!AY56 -> 0
E33: Actual totex (from totex summary) | I33: TRUE | AP33: =TIM!AP137 -> 0 | AQ33: =TIM!AQ137 -> 0 | AR33: =TIM!AR137 -> 0 | AS33: =TIM!AS137 -> 0 | AT33: =TIM!AT137 -> 0 | AU33: =TIM!AU137 -> 0 | AV33: =TIM!AV137 -> 0 | AW33: =TIM!AW137 -> 0 | AX33: =TIM!AX137 -> 0 | AY33: =TIM!AY137 -> 0
E34: Allowed totex | I34: TRUE | AP34: =Totex!AP49 - SUM(MainInputs!AP46, MainInputs!AP680) -> 0 | AQ34: =Totex!AQ49 - SUM(MainInputs!AQ46, MainInputs!AQ680) -> 0 | AR34: =Totex!AR49 - SUM(MainInputs!AR46, MainInputs!AR680) -> 0 | AS34: =Totex!AS49 - SUM(MainInputs!AS46, MainInputs!AS680) -> 0 | AT34: =Totex!AT49 - SUM(MainInputs!AT46, MainInputs!AT680) -> 0 | AU34: =Totex!AU49 - SUM(MainInputs!AU46, MainInputs!AU680) -> 0 | AV34: =Totex!AV49 - SUM(MainInputs!AV46, MainInputs!AV680) -> 0 | AW34: =Totex!AW49 - SUM(MainInputs!AW46, MainInputs!AW680) -> 0 | AX34: =Totex!AX49 - SUM(MainInputs!AX46, MainInputs!AX680) -> 0 | AY34: =Totex!AY49 - SUM(MainInputs!AY46, MainInputs!AY680) -> 0
E35: Actual totex (from capitalisation buckets) | I35: TRUE | AP35: =SUM(TIM!AP49, TIM!AP60) - Totex!AP88 -> 0 | AQ35: =SUM(TIM!AQ49, TIM!AQ60) - Totex!AQ88 -> 0 | AR35: =SUM(TIM!AR49, TIM!AR60) - Totex!AR88 -> 0 | AS35: =SUM(TIM!AS49, TIM!AS60) - Totex!AS88 -> 0 | AT35: =SUM(TIM!AT49, TIM!AT60) - Totex!AT88 -> 0 | AU35: =SUM(TIM!AU49, TIM!AU60) - Totex!AU88 -> 0 | AV35: =SUM(TIM!AV49, TIM!AV60) - Totex!AV88 -> 0 | AW35: =SUM(TIM!AW49, TIM!AW60) - Totex!AW88 -> 0 | AX35: =SUM(TIM!AX49, TIM!AX60) - Totex!AX88 -> 0 | AY35: =SUM(TIM!AY49, TIM!AY60) - Totex!AY88 -> 0
E36: Allowed totex (from capitalisation buckets) | I36: TRUE | AP36: =SUM(TIM!AP50, TIM!AP61) + SUM(MainInputs!AP46, MainInputs!AP680) -> 0 | AQ36: =SUM(TIM!AQ50, TIM!AQ61) + SUM(MainInputs!AQ46, MainInputs!AQ680) -> 0 | AR36: =SUM(TIM!AR50, TIM!AR61) + SUM(MainInputs!AR46, MainInputs!AR680) -> 0 | AS36: =SUM(TIM!AS50, TIM!AS61) + SUM(MainInputs!AS46, MainInputs!AS680) -> 0 | AT36: =SUM(TIM!AT50, TIM!AT61) + SUM(MainInputs!AT46, MainInputs!AT680) -> 0 | AU36: =SUM(TIM!AU50, TIM!AU61) + SUM(MainInputs!AU46, MainInputs!AU680) -> 0 | AV36: =SUM(TIM!AV50, TIM!AV61) + SUM(MainInputs!AV46, MainInputs!AV680) -> 0 | AW36: =SUM(TIM!AW50, TIM!AW61) + SUM(MainInputs!AW46, MainInputs!AW680) -> 0 | AX36: =SUM(TIM!AX50, TIM!AX61) + SUM(MainInputs!AX46, MainInputs!AX680) -> 0 | AY36: =SUM(TIM!AY50, TIM!AY61) + SUM(MainInputs!AY46, MainInputs!AY680) -> 0
B38: Return & RAV
E40: Inflation options' calculation of real WACC equal to MainInputs | I40: =ABS(SUM(AP40:AY40) - 0) < 0.00000001 -> TRUE | AP40: ='Return&RAV'!AP38 -> 0 | AQ40: ='Return&RAV'!AQ38 -> 0 | AR40: ='Return&RAV'!AR38 -> 0 | AS40: ='Return&RAV'!AS38 -> 0 | AT40: ='Return&RAV'!AT38 -> 0 | AU40: ='Return&RAV'!AU38 -> 0 | AV40: ='Return&RAV'!AV38 -> 0 | AW40: ='Return&RAV'!AW38 -> 0 | AX40: ='Return&RAV'!AX38 -> 0 | AY40: ='Return&RAV'!AY38 -> 0
B42: Depreciation
E44: Post-vesting assets fully depreciated
B46: Input
E48: Variant allowed totex | I48: =ABS(SUM(AP48:AY48) - 0) < 0.00000001 -> TRUE | AP48: =MainInputs!AP681 -> 0 | AQ48: =MainInputs!AQ681 -> 0 | AR48: =MainInputs!AR681 -> 0 | AS48: =MainInputs!AS681 -> 0 | AT48: =MainInputs!AT681 -> 0 | AU48: =MainInputs!AU681 -> 0 | AV48: =MainInputs!AV681 -> 0 | AW48: =MainInputs!AW681 -> 0 | AX48: =MainInputs!AX681 -> 0 | AY48: =MainInputs!AY681 -> 0
E49: Variant allowed totex subcategory allocations | I49: =ABS(SUM(AP49:AY49) - 0) < 0.00000001 -> FALSE | AP49: =MainInputs!AP682 -> 0 | AQ49: =MainInputs!AQ682 -> 0 | AR49: =MainInputs!AR682 -> 0 | AS49: =MainInputs!AS682 -> 0 | AT49: =MainInputs!AT682 -> 0 | AU49: =MainInputs!AU682 -> 0 | AV49: =MainInputs!AV682 -> 0 | AW49: =MainInputs!AW682 -> 0 | AX49: =MainInputs!AX682 -> -0.01791 | AY49: =MainInputs!AY682 -> -0.01791
E50: RPE non-variant allowances
E51: RPE PCDs
E52: RPE UMs
B54: Company tabs
E56: Totex allocations to tax pools | G56: SHET | I56: =SUMPRODUCT((AP56:AY56 = 1) * 1) = 10 -> FALSE | AP56: =INDIRECT("'"&$G56&"'!"&ADDRESS($BA56, $BC56 + YEAR(AP$4) - YEAR($AP$4))) + INDIRECT("'"&$G56&"'!"&ADDRESS($BB56, $BC56 + YEAR(AP$4) - YEAR($AP$4))) -> 0.9999 | AQ56: =INDIRECT("'"&$G56&"'!"&ADDRESS($BA56, $BC56 + YEAR(AQ$4) - YEAR($AP$4))) + INDIRECT("'"&$G56&"'!"&ADDRESS($BB56, $BC56 + YEAR(AQ$4) - YEAR($AP$4))) -> 1 | AR56: =INDIRECT("'"&$G56&"'!"&ADDRESS($BA56, $BC56 + YEAR(AR$4) - YEAR($AP$4))) + INDIRECT("'"&$G56&"'!"&ADDRESS($BB56, $BC56 + YEAR(AR$4) - YEAR($AP$4))) -> 0.9999 | AS56: =INDIRECT("'"&$G56&"'!"&ADDRESS($BA56, $BC56 + YEAR(AS$4) - YEAR($AP$4))) + INDIRECT("'"&$G56&"'!"&ADDRESS($BB56, $BC56 + YEAR(AS$4) - YEAR($AP$4))) -> 0.9999 | AT56: =INDIRECT("'"&$G56&"'!"&ADDRESS($BA56, $BC56 + YEAR(AT$4) - YEAR($AP$4))) + INDIRECT("'"&$G56&"'!"&ADDRESS($BB56, $BC56 + YEAR(AT$4) - YEAR($AP$4))) -> 1.0001 | AU56: =INDIRECT("'"&$G56&"'!"&ADDRESS($BA56, $BC56 + YEAR(AU$4) - YEAR($AP$4))) + INDIRECT("'"&$G56&"'!"&ADDRESS($BB56, $BC56 + YEAR(AU$4) - YEAR($AP$4))) -> 1 | AV56: =INDIRECT("'"&$G56&"'!"&ADDRESS($BA56, $BC56 + YEAR(AV$4) - YEAR($AP$4))) + INDIRECT("'"&$G56&"'!"&ADDRESS($BB56, $BC56 + YEAR(AV$4) - YEAR($AP$4))) -> 1 | AW56: =INDIRECT("'"&$G56&"'!"&ADDRESS($BA56, $BC56 + YEAR(AW$4) - YEAR($AP$4))) + INDIRECT("'"&$G56&"'!"&ADDRESS($BB56, $BC56 + YEAR(AW$4) - YEAR($AP$4))) -> 1 | AX56: =INDIRECT("'"&$G56&"'!"&ADDRESS($BA56, $BC56 + YEAR(AX$4) - YEAR($AP$4))) + INDIRECT("'"&$G56&"'!"&ADDRESS($BB56, $BC56 + YEAR(AX$4) - YEAR($AP$4))) -> 1 | AY56: =INDIRECT("'"&$G56&"'!"&ADDRESS($BA56, $BC56 + YEAR(AY$4) - YEAR($AP$4))) + INDIRECT("'"&$G56&"'!"&ADDRESS($BB56, $BC56 + YEAR(AY$4) - YEAR($AP$4))) -> 1 | BA56: =ROW(SHET!$AP$1804) -> 1804 | BB56: =ROW(SHET!$AU$1257) -> 1257 | BC56: =COLUMN(SHET!$AP$1804) -> 42
E57: Totex allocations to tax pools | G57: SPTL | I57: =SUMPRODUCT((AP57:AY57 = 1) * 1) = 10 -> TRUE | AP57: =INDIRECT("'"&$G57&"'!"&ADDRESS($BA57, $BC57 + YEAR(AP$4) - YEAR($AP$4))) + INDIRECT("'"&$G57&"'!"&ADDRESS($BB57, $BC57 + YEAR(AP$4) - YEAR($AP$4))) -> 1 | AQ57: =INDIRECT("'"&$G57&"'!"&ADDRESS($BA57, $BC57 + YEAR(AQ$4) - YEAR($AP$4))) + INDIRECT("'"&$G57&"'!"&ADDRESS($BB57, $BC57 + YEAR(AQ$4) - YEAR($AP$4))) -> 1 | AR57: =INDIRECT("'"&$G57&"'!"&ADDRESS($BA57, $BC57 + YEAR(AR$4) - YEAR($AP$4))) + INDIRECT("'"&$G57&"'!"&ADDRESS($BB57, $BC57 + YEAR(AR$4) - YEAR($AP$4))) -> 1 | AS57: =INDIRECT("'"&$G57&"'!"&ADDRESS($BA57, $BC57 + YEAR(AS$4) - YEAR($AP$4))) + INDIRECT("'"&$G57&"'!"&ADDRESS($BB57, $BC57 + YEAR(AS$4) - YEAR($AP$4))) -> 1 | AT57: =INDIRECT("'"&$G57&"'!"&ADDRESS($BA57, $BC57 + YEAR(AT$4) - YEAR($AP$4))) + INDIRECT("'"&$G57&"'!"&ADDRESS($BB57, $BC57 + YEAR(AT$4) - YEAR($AP$4))) -> 1 | AU57: =INDIRECT("'"&$G57&"'!"&ADDRESS($BA57, $BC57 + YEAR(AU$4) - YEAR($AP$4))) + INDIRECT("'"&$G57&"'!"&ADDRESS($BB57, $BC57 + YEAR(AU$4) - YEAR($AP$4))) -> 1 | AV57: =INDIRECT("'"&$G57&"'!"&ADDRESS($BA57, $BC57 + YEAR(AV$4) - YEAR($AP$4))) + INDIRECT("'"&$G57&"'!"&ADDRESS($BB57, $BC57 + YEAR(AV$4) - YEAR($AP$4))) -> 1 | AW57: =INDIRECT("'"&$G57&"'!"&ADDRESS($BA57, $BC57 + YEAR(AW$4) - YEAR($AP$4))) + INDIRECT("'"&$G57&"'!"&ADDRESS($BB57, $BC57 + YEAR(AW$4) - YEAR($AP$4))) -> 1 | AX57: =INDIRECT("'"&$G57&"'!"&ADDRESS($BA57, $BC57 + YEAR(AX$4) - YEAR($AP$4))) + INDIRECT("'"&$G57&"'!"&ADDRESS($BB57, $BC57 + YEAR(AX$4) - YEAR($AP$4))) -> 1 | AY57: =INDIRECT("'"&$G57&"'!"&ADDRESS($BA57, $BC57 + YEAR(AY$4) - YEAR($AP$4))) + INDIRECT("'"&$G57&"'!"&ADDRESS($BB57, $BC57 + YEAR(AY$4) - YEAR($AP$4))) -> 1 | BA57: =ROW(SPTL!$AP$1804) -> 1804 | BB57: =ROW(SPTL!$AU$1257) -> 1257 | BC57: =COLUMN(SPTL!$AP$1804) -> 42
E58: Totex allocations to tax pools | G58: NGET | I58: =SUMPRODUCT((AP58:AY58 = 1) * 1) = 10 -> FALSE | AP58: =INDIRECT("'"&$G58&"'!"&ADDRESS($BA58, $BC58 + YEAR(AP$4) - YEAR($AP$4))) + INDIRECT("'"&$G58&"'!"&ADDRESS($BB58, $BC58 + YEAR(AP$4) - YEAR($AP$4))) -> 1 | AQ58: =INDIRECT("'"&$G58&"'!"&ADDRESS($BA58, $BC58 + YEAR(AQ$4) - YEAR($AP$4))) + INDIRECT("'"&$G58&"'!"&ADDRESS($BB58, $BC58 + YEAR(AQ$4) - YEAR($AP$4))) -> 1 | AR58: =INDIRECT("'"&$G58&"'!"&ADDRESS($BA58, $BC58 + YEAR(AR$4) - YEAR($AP$4))) + INDIRECT("'"&$G58&"'!"&ADDRESS($BB58, $BC58 + YEAR(AR$4) - YEAR($AP$4))) -> 1 | AS58: =INDIRECT("'"&$G58&"'!"&ADDRESS($BA58, $BC58 + YEAR(AS$4) - YEAR($AP$4))) + INDIRECT("'"&$G58&"'!"&ADDRESS($BB58, $BC58 + YEAR(AS$4) - YEAR($AP$4))) -> 1 | AT58: =INDIRECT("'"&$G58&"'!"&ADDRESS($BA58, $BC58 + YEAR(AT$4) - YEAR($AP$4))) + INDIRECT("'"&$G58&"'!"&ADDRESS($BB58, $BC58 + YEAR(AT$4) - YEAR($AP$4))) -> 1 | AU58: =INDIRECT("'"&$G58&"'!"&ADDRESS($BA58, $BC58 + YEAR(AU$4) - YEAR($AP$4))) + INDIRECT("'"&$G58&"'!"&ADDRESS($BB58, $BC58 + YEAR(AU$4) - YEAR($AP$4))) -> 1 | AV58: =INDIRECT("'"&$G58&"'!"&ADDRESS($BA58, $BC58 + YEAR(AV$4) - YEAR($AP$4))) + INDIRECT("'"&$G58&"'!"&ADDRESS($BB58, $BC58 + YEAR(AV$4) - YEAR($AP$4))) -> 1.008664376 | AW58: =INDIRECT("'"&$G58&"'!"&ADDRESS($BA58, $BC58 + YEAR(AW$4) - YEAR($AP$4))) + INDIRECT("'"&$G58&"'!"&ADDRESS($BB58, $BC58 + YEAR(AW$4) - YEAR($AP$4))) -> 1.008855842 | AX58: =INDIRECT("'"&$G58&"'!"&ADDRESS($BA58, $BC58 + YEAR(AX$4) - YEAR($AP$4))) + INDIRECT("'"&$G58&"'!"&ADDRESS($BB58, $BC58 + YEAR(AX$4) - YEAR($AP$4))) -> 1.008998293 | AY58: =INDIRECT("'"&$G58&"'!"&ADDRESS($BA58, $BC58 + YEAR(AY$4) - YEAR($AP$4))) + INDIRECT("'"&$G58&"'!"&ADDRESS($BB58, $BC58 + YEAR(AY$4) - YEAR($AP$4))) -> 1.008963472 | BA58: =ROW(NGET!$AP$1804) -> 1804 | BB58: =ROW(NGET!$AU$1257) -> 1257 | BC58: =COLUMN(NGET!$AP$1804) -> 42
E59: Total non-baseline totex (in "Cost Assessment interface") | G59: SHET
E60: Total non-baseline totex (in "Cost Assessment interface") | G60: SPTL
E61: Total non-baseline totex (in "Cost Assessment interface") | G61: NGET
B63: Tax trigger deadbands
E65: Final proposals base revenue - live operator
E66: Impact of corporation tax rate change - live operator
E67: Tax trigger deadbands in operator tabs | G67: SHET | I67: =ABS(SUM(AP67:AT67) - 0) < 0.00000001 -> TRUE | AP67: ='TaxTrigger Deadbands'!AP50 -> 0 | AQ67: ='TaxTrigger Deadbands'!AQ50 -> 0 | AR67: ='TaxTrigger Deadbands'!AR50 -> 0 | AS67: ='TaxTrigger Deadbands'!AS50 -> 0 | AT67: ='TaxTrigger Deadbands'!AT50 -> 0
E68: Tax trigger deadbands in operator tabs | G68: SPTL | I68: TRUE | AP68: ='TaxTrigger Deadbands'!AP51 -> 0 | AQ68: ='TaxTrigger Deadbands'!AQ51 -> 0 | AR68: ='TaxTrigger Deadbands'!AR51 -> 0 | AS68: ='TaxTrigger Deadbands'!AS51 -> 0 | AT68: ='TaxTrigger Deadbands'!AT51 -> 0
E69: Tax trigger deadbands in operator tabs | G69: NGET | I69: TRUE | AP69: ='TaxTrigger Deadbands'!AP52 -> 0 | AQ69: ='TaxTrigger Deadbands'!AQ52 -> 0 | AR69: ='TaxTrigger Deadbands'!AR52 -> 0 | AS69: ='TaxTrigger Deadbands'!AS52 -> 0 | AT69: ='TaxTrigger Deadbands'!AT52 -> 0
B72: End of sheet

Sheet Scenarios
A1: Scenarios
B2: =UserInterface!G17 -> SHET | AP2: =AP10 -> Base case | AQ2: =AQ10 -> High interest rate | AR2: =AR10 -> Low interest rate | AS2: High inflation | AT2: Low inflation | AU2: High CPIH inflation divergence | AV2: Low CPIH inflation divergence | AW2: High RPI inflation divergence | AX2: Low RPI inflation divergence | AY2: Totex outperformance | AZ2: Totex underperformance | BA2: High RoRE | BB2: Low RoRE | BC2: High index-linked debt | BD2: Low index-linked debt | BE2: 1.5% dividend case | BF2: Financeability example: BPDT | BG2: Financeability example: % dividend | BH2: Financeability example: cash flow dividend | BI2: Financeability example: User defined | BJ2: No financeability action | BK2: Option 1 off | BL2: Low CPIH + low RPI inflation | BM2: High totex + RoRE-2% | BN2: High totex + overspend | BO2: High totex + low CPIH | BP2: Scenario 27 | BQ2: Scenario 28 | BR2: Scenario 29 | BS2: =BS10 -> Scenario 30
E3: Parameter | F3: Licence condition | G3: Units | H3: Term | I3: Constant | AP3: Annual values
E4: PCFM year ending | F4: =Cover!C4 -> Model Version | I4: =UserInterface!$G$10 -> 2025-03-31 | K4: 1991-03-31 | L4: 1992-03-31 | M4: 1993-03-31 | N4: 1994-03-31 | O4: 1995-03-31 | P4: 1996-03-31 | Q4: 1997-03-31 | R4: 1998-03-31 | S4: 1999-03-31 | T4: 2000-03-31 | U4: 2001-03-31 | V4: 2002-03-31 | W4: 2003-03-31 | X4: 2004-03-31 | Y4: 2005-03-31 | Z4: 2006-03-31 | AA4: 2007-03-31 | AB4: 2008-03-31 | AC4: 2009-03-31 | AD4: 2010-03-31 | AE4: 2011-03-31 | AF4: 2012-03-31 | AG4: 2013-03-31 | AH4: 2014-03-31 | AI4: 2015-03-31 | AJ4: 2016-03-31 | AK4: 2017-03-31 | AL4: 2018-03-31 | AM4: 2019-03-31 | AN4: 2020-03-31 | AO4: 2021-03-31 | AP4: 2022-03-31 | AQ4: 2023-03-31 | AR4: 2024-03-31 | AS4: 2025-03-31 | AT4: 2026-03-31 | AU4: 2027-03-31 | AV4: 2028-03-31 | AW4: 2029-03-31 | AX4: 2030-03-31 | AY4: =EOMONTH(AX4,12) -> 2031-03-31
AP5: 2 | AQ5: 2 | AR5: 2 | AS5: 2 | AT5: 2 | AU5: 3 | AV5: 3 | AW5: 3 | AX5: 3 | AY5: 3
B7: Scenario definition
E9: Scenario number | AP9: 1 | AQ9: =AP9+1 -> 2 | AR9: =AQ9+1 -> 3 | AS9: 4 | AT9: 5 | AU9: 6 | AV9: 7 | AW9: 8 | AX9: 9 | AY9: 10 | AZ9: 11 | BA9: 12 | BB9: 13 | BC9: 14 | BD9: 15 | BE9: 16 | BF9: 17 | BG9: 18 | BH9: 19 | BI9: 20 | BJ9: 21 | BK9: 22 | BL9: 23 | BM9: 24 | BN9: 25 | BO9: 26 | BP9: 27 | BQ9: 28 | BR9: 29 | BS9: 30
E10: Scenario name | AP10: Base case | AQ10: High interest rate | AR10: Low interest rate | AS10: High inflation | AT10: Low inflation | AU10: High CPIH inflation divergence | AV10: Low CPIH inflation divergence | AW10: High RPI inflation divergence | AX10: Low RPI inflation divergence | AY10: Totex outperformance | AZ10: Totex underperformance | BA10: High RoRE | BB10: Low RoRE | BC10: High index-linked debt | BD10: Low index-linked debt | BE10: 1.5% dividend case | BF10: Financeability example: BPDT | BG10: Financeability example: % dividend | BH10: Financeability example: cash flow dividend | BI10: Financeability example: User defined | BJ10: No financeability action | BK10: Option 1 off | BL10: Low CPIH + low RPI inflation | BM10: High totex + RoRE-2% | BN10: High totex + overspend | BO10: High totex + low CPIH | BP10: Scenario 27 | BQ10: Scenario 28 | BR10: Scenario 29 | BS10: Scenario 30
C12: Notional modelling
D13: Input data selection
E14: Price base year (2024 for RIIO3, 2019 for RIIO2) | F14: =INDEX(AP14:BS14,,m_scenario) -> 2024 | G14: ="£m "&F14-2001&"/"&F14-2000&" prices" -> £m 23/24 prices | AP14: 2024 | AQ14: 2024 | AR14: 2024 | AS14: 2024 | AT14: 2024 | AU14: 2024 | AV14: 2024 | AW14: 2024 | AX14: 2024 | AY14: 2024 | AZ14: 2024 | BA14: 2024 | BB14: 2024 | BC14: 2024 | BD14: 2024 | BE14: 2024 | BF14: 2024 | BG14: 2024 | BH14: 2024 | BI14: 2024 | BJ14: 2024 | BK14: 2024 | BL14: 2024 | BM14: 2024 | BN14: 2024
D16: Totex, TIM and capitalisation
E17: User multiplier for allowed totex | F17: =INDEX(AP17:BS17,,m_scenario) -> 1 | AP17: 1 | AQ17: 1 | AR17: 1 | AS17: 1 | AT17: 1 | AU17: 1 | AV17: 1 | AW17: 1 | AX17: 1 | AY17: 1 | AZ17: 1 | BA17: 1 | BB17: 1 | BC17: 1 | BD17: 1 | BE17: 1 | BJ17: 1 | BK17: 1 | BL17: 1 | BM17: 1.05 | BN17: 1.05 | BO17: 1.05
E18: User multiplier for actual totex (applied on top of allowed totex) | F18: =INDEX(AP18:BS18,,m_scenario) -> 1 | AP18: 1 | AQ18: 1 | AR18: 1 | AS18: 1 | AT18: 1 | AU18: 1 | AV18: 1 | AW18: 1 | AX18: 1 | AY18: 0.9 | AZ18: 1.1 | BA18: 1 | BB18: 1 | BC18: 1 | BD18: 1 | BE18: 1 | BJ18: 1 | BK18: 1 | BL18: 1 | BM18: 1 | BN18: 1.1 | BO18: 1
E19: TIM incentive rate: Scenarios or Stepped? | F19: =INDEX(AP19:BS19,,m_scenario) -> Stepped | AP19: Stepped | AQ19: Stepped | AR19: Stepped | AS19: Stepped | AT19: Stepped | AU19: Stepped | AV19: Stepped | AW19: Stepped | AX19: Stepped | AY19: Stepped | AZ19: Stepped | BA19: Stepped | BB19: Stepped | BC19: Stepped | BD19: Stepped | BE19: Stepped | BJ19: Stepped | BK19: Stepped | BL19: Stepped | BM19: Stepped | BN19: Stepped | BO19: Stepped
E20: If Scenarios , TIM incentive rate | F20: =INDEX(AP20:BS20,,m_scenario) -> 0.25 | AP20: 0.25 | AQ20: 0.25 | AR20: 0.25 | AS20: 0.25 | AT20: 0.25 | AU20: 0.25 | AV20: 0.25 | AW20: 0.25 | AX20: 0.25 | AY20: 0.25 | AZ20: 0.25 | BA20: 0.25 | BB20: 0.25 | BC20: 0.25 | BD20: 0.25 | BE20: 0.25 | BJ20: 0.25 | BK20: 0.25 | BL20: 0.25 | BM20: 0.25 | BN20: 0.25 | BO20: 0.25
E21: RIIO-3 cap rates: Scenarios, Licensee inputs, or Natural? | F21: =INDEX(AP21:BS21,,m_scenario) -> Licensee inputs | AP21: Licensee inputs | AQ21: Licensee inputs | AR21: Licensee inputs | AS21: Licensee inputs | AT21: Licensee inputs | AU21: Licensee inputs | AV21: Licensee inputs | AW21: Licensee inputs | AX21: Licensee inputs | AY21: Licensee inputs | AZ21: Licensee inputs | BA21: Licensee inputs | BB21: Licensee inputs | BC21: Licensee inputs | BD21: Licensee inputs | BE21: Licensee inputs | BJ21: Scenarios | BK21: Licensee inputs | BL21: Licensee inputs | BM21: Licensee inputs | BN21: Licensee inputs | BO21: Licensee inputs
E22: If Scenarios, Bucket 1 cap rate | F22: =INDEX(AP22:BS22,,m_scenario) -> 0.5769797851 | AP22: =AVERAGE(TIM!$AU$144:$AY$144) -> 0.5769797851 | AQ22: =AVERAGE(TIM!$AU$144:$AY$144) -> 0.5769797851 | AR22: =AVERAGE(TIM!$AU$144:$AY$144) -> 0.5769797851 | AS22: =AVERAGE(TIM!$AU$144:$AY$144) -> 0.5769797851 | AT22: =AVERAGE(TIM!$AU$144:$AY$144) -> 0.5769797851 | AU22: =AVERAGE(TIM!$AU$144:$AY$144) -> 0.5769797851 | AV22: =AVERAGE(TIM!$AU$144:$AY$144) -> 0.5769797851 | AW22: =AVERAGE(TIM!$AU$144:$AY$144) -> 0.5769797851 | AX22: =AVERAGE(TIM!$AU$144:$AY$144) -> 0.5769797851 | AY22: =AVERAGE(TIM!$AU$144:$AY$144) -> 0.5769797851 | AZ22: =AVERAGE(TIM!$AU$144:$AY$144) -> 0.5769797851 | BA22: =AVERAGE(TIM!$AU$144:$AY$144) -> 0.5769797851 | BB22: =AVERAGE(TIM!$AU$144:$AY$144) -> 0.5769797851 | BC22: =AVERAGE(TIM!$AU$144:$AY$144) -> 0.5769797851 | BD22: =AVERAGE(TIM!$AU$144:$AY$144) -> 0.5769797851 | BE22: =AVERAGE(TIM!$AU$144:$AY$144) -> 0.5769797851 | BJ22: =AVERAGE(TIM!$AU$144:$AY$144) -> 0.5769797851 | BK22: =AVERAGE(TIM!$AU$144:$AY$144) -> 0.5769797851 | BL22: =AVERAGE(TIM!$AU$144:$AY$144) -> 0.5769797851 | BM22: =AVERAGE(TIM!$AU$144:$AY$144) -> 0.5769797851 | BN22: =AVERAGE(TIM!$AU$144:$AY$144) -> 0.5769797851 | BO22: =AVERAGE(TIM!$AU$144:$AY$144) -> 0.5769797851
E23: If Scenarios, Bucket 2 cap rate | F23: =INDEX(AP23:BS23,,m_scenario) -> 0.85 | AP23: 0.85 | AQ23: 0.85 | AR23: 0.85 | AS23: 0.85 | AT23: 0.85 | AU23: 0.85 | AV23: 0.85 | AW23: 0.85 | AX23: 0.85 | AY23: 0.85 | AZ23: 0.85 | BA23: 0.85 | BB23: 0.85 | BC23: 0.85 | BD23: 0.85 | BE23: 0.85 | BJ23: 0.85 | BK23: 0.85 | BL23: 0.85 | BM23: 0.85 | BN23: 0.85 | BO23: 0.85
D26: Depreciation
E27: RIIO3 depreciation lifetime override | F27: =INDEX(AP27:BS27,,m_scenario) -> 0
E28: Accelerated pre-vesting depreciation smoothing in RIIO3 override | F28: =INDEX(AP28:BS28,,m_scenario) -> 0
D37: Allowed Cost of capital
E38: Allowed cost of Debt input: scenario input or Licensee inputs? | F38: =INDEX(AP38:BS38,,m_scenario) -> Licensee inputs | AP38: Licensee inputs | AQ38: Scenario iBoxx profile | AR38: Scenario iBoxx profile | AS38: Licensee inputs | AT38: Licensee inputs | AU38: Licensee inputs | AV38: Licensee inputs | AW38: Licensee inputs | AX38: Licensee inputs | AY38: Licensee inputs | AZ38: Licensee inputs | BA38: Licensee inputs | BB38: Licensee inputs | BC38: Licensee inputs | BD38: Licensee inputs | BE38: Licensee inputs | BJ38: Licensee inputs | BK38: Licensee inputs | BL38: Licensee inputs | BM38: Licensee inputs | BN38: Licensee inputs | BO38: Licensee inputs
E39: If scenario input, CoD figures to use | F39: =INDEX(AP39:BS39,,m_scenario) -> Base | AP39: Base | AQ39: High (+2%) | AR39: Low (-2%) | AS39: Base | AT39: Base | AU39: Base | AV39: Base | AW39: Base | AX39: Base | AY39: Base | AZ39: Base | BA39: Base | BB39: Base | BC39: Base | BD39: Base | BE39: Base | BJ39: Base | BK39: Base | BL39: Base | BM39: Base | BN39: Base | BO39: Base
E40: Allowed cost of Equity input: scenario input or Licensee inputs? | F40: =INDEX(AP40:BS40,,m_scenario) -> Licensee inputs | AP40: Licensee inputs | AQ40: Scenario input | AR40: Scenario input | AS40: Licensee inputs | AT40: Licensee inputs | AU40: Licensee inputs | AV40: Licensee inputs | AW40: Licensee inputs | AX40: Licensee inputs | AY40: Licensee inputs | AZ40: Licensee inputs | BA40: Licensee inputs | BB40: Licensee inputs | BC40: Licensee inputs | BD40: Licensee inputs | BE40: Licensee inputs | BJ40: Licensee inputs | BK40: Licensee inputs | BL40: Licensee inputs | BM40: Licensee inputs | BN40: Licensee inputs | BO40: Licensee inputs
E41: If scenario input, CoE figures to use | F41: =INDEX(AP41:BS41,,m_scenario) -> Base | AP41: Base | AQ41: High (+2%) | AR41: Low (-2%) | AS41: Base | AT41: Base | AU41: Base | AV41: Base | AW41: Base | AX41: Base | AY41: Base | AZ41: Base | BA41: Base | BB41: Base | BC41: Base | BD41: Base | BE41: Base | BJ41: Base | BK41: Base | BL41: Base | BM41: Base | BN41: Base | BO41: Base
E42: Notional gearing | F42: =INDEX(AP42:BS42,,m_scenario) -> 0.55 | AP42: 0.55 | AQ42: 0.55 | AR42: 0.55 | AS42: 0.55 | AT42: 0.55 | AU42: 0.55 | AV42: 0.55 | AW42: 0.55 | AX42: 0.55 | AY42: 0.55 | AZ42: 0.55 | BA42: 0.55 | BB42: 0.55 | BC42: 0.55 | BD42: 0.55 | BE42: 0.55 | BJ42: 0.55 | BK42: 0.55 | BL42: 0.55 | BM42: 0.55 | BN42: 0.55 | BO42: 0.55
E43: Non-Flat WACC? | F43: =INDEX(AP43:BS43,,m_scenario) -> TRUE | AP43: TRUE | AQ43: TRUE | AR43: TRUE | AS43: TRUE | AT43: TRUE | AU43: TRUE | AV43: TRUE | AW43: TRUE | AX43: TRUE | AY43: TRUE | AZ43: TRUE | BA43: TRUE | BB43: TRUE | BC43: TRUE | BD43: TRUE | BE43: TRUE | BJ43: TRUE | BK43: TRUE | BL43: TRUE | BM43: TRUE | BN43: TRUE | BO43: TRUE
D44: Finance
E45: Forecast near-term RPI debt inflation | F45: =INDEX(AP45:BS45,,m_scenario) -> Mar'25 OBR (financial year) | AP45: Mar'25 OBR (financial year) | AQ45: Mar'25 OBR (financial year) | AR45: Mar'25 OBR (financial year) | AS45: High additional increment (FY) | AT45: Low additional increment (FY) | AU45: Mar'25 OBR (financial year) | AV45: Mar'25 OBR (financial year) | AW45: High diverg +0.5% additional increment (FY) | AX45: Low diverg -0.5% additional increment (FY) | AY45: Mar'25 OBR (financial year) | AZ45: Mar'25 OBR (financial year) | BA45: Mar'25 OBR (financial year) | BB45: Mar'25 OBR (financial year) | BC45: Mar'25 OBR (financial year) | BD45: Mar'25 OBR (financial year) | BE45: Mar'25 OBR (financial year) | BJ45: Mar'25 OBR (financial year) | BK45: Mar'25 OBR (financial year) | BL45: Low additional increment (FY) | BM45: Mar'25 OBR (financial year) | BN45: Mar'25 OBR (financial year) | BO45: Mar'25 OBR (financial year)
E46: Forecast near-term CPIH debt inflation | F46: =INDEX(AP46:BS46,,m_scenario) -> Mar'25 OBR (financial year) | AP46: Mar'25 OBR (financial year) | AQ46: Mar'25 OBR (financial year) | AR46: Mar'25 OBR (financial year) | AS46: High additional increment (FY) | AT46: Low additional increment (FY) | AU46: High diverg -0.5% additional increment (FY) | AV46: Low diverg +0.5% additional increment (FY) | AW46: Mar'25 OBR (financial year) | AX46: Mar'25 OBR (financial year) | AY46: Mar'25 OBR (financial year) | AZ46: Mar'25 OBR (financial year) | BA46: Mar'25 OBR (financial year) | BB46: Mar'25 OBR (financial year) | BC46: Mar'25 OBR (financial year) | BD46: Mar'25 OBR (financial year) | BE46: Mar'25 OBR (financial year) | BJ46: Mar'25 OBR (financial year) | BK46: Mar'25 OBR (financial year) | BL46: Low additional increment (FY) | BM46: Mar'25 OBR (financial year) | BN46: Mar'25 OBR (financial year) | BO46: Low additional increment (FY)
E47: Minimum equity issuance threshold | F47: =INDEX(AP47:BS47,,m_scenario) -> Zero | AP47: Zero | AQ47: Zero | AR47: Zero | AS47: Zero | AT47: Zero | AU47: Zero | AV47: Zero | AW47: Zero | AX47: Zero | AY47: Zero | AZ47: Zero | BA47: Zero | BB47: Zero | BC47: Zero | BD47: Zero | BE47: Zero | BJ47: Zero | BK47: Zero | BL47: Zero | BM47: Zero | BN47: Zero | BO47: Zero
E48: Equity issuance costs | F48: =INDEX(AP48:BS48,,m_scenario) -> 0.05 | AP48: 0.05 | AQ48: 0.05 | AR48: 0.05 | AS48: 0.05 | AT48: 0.05 | AU48: 0.05 | AV48: 0.05 | AW48: 0.05 | AX48: 0.05 | AY48: 0.05 | AZ48: 0.05 | BA48: 0.05 | BB48: 0.05 | BC48: 0.05 | BD48: 0.05 | BE48: 0.05 | BJ48: 0.05 | BK48: 0.05 | BL48: 0.05 | BM48: 0.05 | BN48: 0.05 | BO48: 0.05
E49: Assumed dividends as % of equity | F49: =INDEX(AP49:BS49,,m_scenario) -> 0.03 | AP49: 0.03 | AQ49: 0.03 | AR49: 0.03 | AS49: 0.03 | AT49: 0.03 | AU49: 0.03 | AV49: 0.03 | AW49: 0.03 | AX49: 0.03 | AY49: 0.03 | AZ49: 0.03 | BA49: 0.03 | BB49: 0.03 | BC49: 0.03 | BD49: 0.03 | BE49: 0.015 | BJ49: 0.03 | BK49: 0.03 | BL49: 0.03 | BM49: 0.03 | BN49: 0.03 | BO49: 0.03
E50: Equity issuance gearing target | F50: =INDEX(AP50:BS50,,m_scenario) -> 0.55 | AP50: 0.55 | AQ50: 0.55 | AR50: 0.55 | AS50: 0.55 | AT50: 0.55 | AU50: 0.55 | AV50: 0.55 | AW50: 0.55 | AX50: 0.55 | AY50: 0.55 | AZ50: 0.55 | BA50: 0.55 | BB50: 0.55 | BC50: 0.55 | BD50: 0.55 | BE50: 0.55 | BJ50: 0.55 | BK50: 0.55 | BL50: 0.55 | BM50: 0.55 | BN50: 0.55 | BO50: 0.55
E51: CPIH index-linked debt as a percentage of net debt | F51: =INDEX(AP51:BS51,,m_scenario) -> 0.1 | AP51: 0.1 | AQ51: 0.1 | AR51: 0.1 | AS51: 0.1 | AT51: 0.1 | AU51: 0.1 | AV51: 0.1 | AW51: 0.1 | AX51: 0.1 | AY51: 0.1 | AZ51: 0.1 | BA51: 0.1 | BB51: 0.1 | BC51: 0.2 | BD51: 0 | BE51: 0.1 | BJ51: 0.1 | BK51: 0.1 | BL51: 0.1 | BM51: 0.1 | BN51: 0.1 | BO51: 0.1
E52: Annual interest rate inputs for actual debt | F52: =INDEX(AP52:BS52,,m_scenario) -> Base case | AP52: Base case | AQ52: High case (+2%) | AR52: Low case (-2%) | AS52: Base case | AT52: Base case | AU52: Base case | AV52: Base case | AW52: Base case | AX52: Base case | AY52: Base case | AZ52: Base case | BA52: Base case | BB52: Base case | BC52: Base case | BD52: Base case | BE52: Base case | BJ52: Base case | BK52: Base case | BL52: Base case | BM52: Base case | BN52: Base case | BO52: Base case
E53: SSMD cost of debt inflation approach | F53: =INDEX(AP53:BS53,,m_scenario) -> Option 1 | AP53: Option 1 | AQ53: Option 1 | AR53: Option 1 | AS53: Option 1 | AT53: Option 1 | AU53: Option 1 | AV53: Option 1 | AW53: Option 1 | AX53: Option 1 | AY53: Option 1 | AZ53: Option 1 | BA53: Option 1 | BB53: Option 1 | BC53: Option 1 | BD53: Option 1 | BE53: Option 1 | BJ53: Option 1 | BK53: Status quo | BL53: Option 1 | BM53: Option 1 | BN53: Option 1 | BO53: Option 1
E54: RPE Included? | F54: =INDEX(AP54:BS54,,m_scenario) -> TRUE | AP54: TRUE | AQ54: TRUE | AR54: TRUE | AS54: TRUE | AT54: TRUE | AU54: TRUE | AV54: TRUE | AW54: TRUE | AX54: TRUE | AY54: TRUE | AZ54: TRUE | BA54: TRUE | BB54: TRUE | BC54: TRUE | BD54: TRUE | BE54: TRUE | BJ54: TRUE | BK54: TRUE | BL54: TRUE | BM54: TRUE | BN54: TRUE | BO54: TRUE
E55: Equity issuance timing | F55: =INDEX(AP55:BS55,,m_scenario) -> Late | AP55: Late | AQ55: Late | AR55: Late | AS55: Late | AT55: Late | AU55: Late | AV55: Late | AW55: Late | AX55: Late | AY55: Late | AZ55: Late | BA55: Late | BB55: Late | BC55: Late | BD55: Late | BE55: Late | BJ55: Late | BK55: Late | BL55: Late | BM55: Late | BN55: Late | BO55: Late
E56: Constant gearing dividends | F56: =INDEX(AP56:BS56,,m_scenario) -> TRUE | AP56: TRUE | AQ56: TRUE | AR56: TRUE | AS56: TRUE | AT56: TRUE | AU56: TRUE | AV56: TRUE | AW56: TRUE | AX56: TRUE | AY56: TRUE | AZ56: TRUE | BA56: TRUE | BB56: TRUE | BC56: TRUE | BD56: TRUE | BE56: TRUE | BJ56: TRUE | BK56: TRUE | BL56: TRUE | BM56: TRUE | BN56: TRUE | BO56: TRUE
E57: Net off debt headroom from notional interest (delete to switch off) | F57: =INDEX(AP57:BS57,,m_scenario) -> 0
E58: Apply revenue profiling adjustments for revenues or financeability | F58: =INDEX(AP58:BS58,,m_scenario) -> Revenues | AP58: Revenues | AQ58: Off | AR58: Off | AS58: Off | AT58: Off | AU58: Off | AV58: Off | AW58: Off | AX58: Off | AY58: Off | AZ58: Off | BA58: Off | BB58: Off | BC58: Off | BD58: Off | BE58: Off
D59: Tax
E60: Corporation tax rate | F60: =INDEX(AP60:BS60,,m_scenario) -> 0.25 | AP60: 0.25 | AQ60: 0.25 | AR60: 0.25 | AS60: 0.25 | AT60: 0.25 | AU60: 0.25 | AV60: 0.25 | AW60: 0.25 | AX60: 0.25 | AY60: 0.25 | AZ60: 0.25 | BA60: 0.25 | BB60: 0.25 | BC60: 0.25 | BD60: 0.25 | BE60: 0.25 | BJ60: 0.25 | BK60: 0.25 | BL60: 0.25 | BM60: 0.25 | BN60: 0.25 | BO60: 0.25
E61: Include tax clawback revenue impact? | F61: =INDEX(AP61:BS61,,m_scenario) -> Exclude | AP61: Exclude | AQ61: Exclude | AR61: Exclude | AS61: Exclude | AT61: Exclude | AU61: Exclude | AV61: Exclude | AW61: Exclude | AX61: Exclude | AY61: Exclude | AZ61: Exclude | BA61: Exclude | BB61: Exclude | BC61: Exclude | BD61: Exclude | BE61: Exclude | BJ61: Exclude | BK61: Exclude | BL61: Exclude | BM61: Exclude | BN61: Exclude | BO61: Exclude
... 57 more rows

Sheet Extension
A1: Extension Dashboard
B2: Disclaimer: The calculations for RIIO4 and beyond are intended solely for analytical purposes. Ofgem provides no assurance of the extended model outputs.
B3: Extension
G4: Note: Please wait 30 mins after clicking the "Run RIIO Extension to New Workbook" button
C5: End Period
C6: End Year | D6: =INDEX(RIIO_End_Period,MATCH(UserInterface!$G$24,RIIO,0)) -> 2036-03-31
B9: Totex Declining Factor
C11: Scenario Model | E11: RIIO3
C13: Totex Profile | E13: Base
C15: Increase/Decrease value | E15: -0.05
C16: End Year for steady decline | E16: 2028
B22: RAV Chart
B47: Source for drop-down lists
C49: Source for "Extension Year" drop-down list
I50: Source for "Scenario RIIO Selection" drop-down list
D51: 2036-03-31 | E51: RIIO4
D52: 2041-03-31 | E52: RIIO5 | J52: ScenarioModel | K52: =INDEX(K53:K54,MATCH(E11,ModelRIIO,0)) -> 3
D53: 2046-03-31 | E53: RIIO6 | J53: RIIO3 | K53: 3
D54: 2051-03-31 | E54: RIIO7 | J54: RIIO4 | K54: 4
D55: 2056-03-31 | E55: RIIO8
D56: 2061-03-31 | E56: RIIO9
D57: 2066-03-31 | E57: RIIO10
D58: 2071-03-31 | E58: RIIO11
D59: 2076-03-31 | E59: RIIO12
D60: 2081-03-31 | E60: RIIO13 | I60: Source for "Totex Profile" drop-down list
J61: Totex Profile | L61: =INDEX(L62:L64,MATCH(E13,J62:J64,0)) -> 1
J62: Base | L62: 1
C63: Year Calculation | J63: Increase/Decrease | L63: 2
D64: No. of Years | F64: =YEAR($D$6)-2031 -> 5 | J64: Steady Decline | L64: 3

Sheet InputSummary
A1: Input
B2: =UserInterface!G17 -> SHET
E3: Parameter | F3: Licence condition | G3: Units | H3: Term | I3: Constant | AP3: Annual values
E4: PCFM year ending | F4: =Cover!C4 -> Model Version | I4: =UserInterface!$G$10 -> 2025-03-31 | K4: 1991-03-31 | L4: 1992-03-31 | M4: 1993-03-31 | N4: 1994-03-31 | O4: 1995-03-31 | P4: 1996-03-31 | Q4: 1997-03-31 | R4: 1998-03-31 | S4: 1999-03-31 | T4: 2000-03-31 | U4: 2001-03-31 | V4: 2002-03-31 | W4: 2003-03-31 | X4: 2004-03-31 | Y4: 2005-03-31 | Z4: 2006-03-31 | AA4: 2007-03-31 | AB4: 2008-03-31 | AC4: 2009-03-31 | AD4: 2010-03-31 | AE4: 2011-03-31 | AF4: 2012-03-31 | AG4: 2013-03-31 | AH4: 2014-03-31 | AI4: 2015-03-31 | AJ4: 2016-03-31 | AK4: 2017-03-31 | AL4: 2018-03-31 | AM4: 2019-03-31 | AN4: 2020-03-31 | AO4: 2021-03-31 | AP4: 2022-03-31 | AQ4: 2023-03-31 | AR4: 2024-03-31 | AS4: 2025-03-31 | AT4: 2026-03-31 | AU4: 2027-03-31 | AV4: 2028-03-31 | AW4: 2029-03-31 | AX4: 2030-03-31 | AY4: =EOMONTH(AX4,12) -> 2031-03-31
AP5: 2 | AQ5: 2 | AR5: 2 | AS5: 2 | AT5: 2 | AU5: 3 | AV5: 3 | AW5: 3 | AX5: 3 | AY5: 3
A7: RIIO3 inputs: BPDT mirror table (£m23/24 price base)
B9: Totex allowance
C11: Non-variant allowances
E13: Non-variant allowed load related capex expenditure | G13: £m 23/24 prices | AU13: =CHOOSE(m_identity,SHET!AU13,SPTL!AU13,NGET!AU13) -> 0 | AV13: =CHOOSE(m_identity,SHET!AV13,SPTL!AV13,NGET!AV13) -> 0 | AW13: =CHOOSE(m_identity,SHET!AW13,SPTL!AW13,NGET!AW13) -> 0 | AX13: =CHOOSE(m_identity,SHET!AX13,SPTL!AX13,NGET!AX13) -> 0 | AY13: =CHOOSE(m_identity,SHET!AY13,SPTL!AY13,NGET!AY13) -> 0
E14: Non-variant allowed asset replacement capex expenditure | G14: £m 23/24 prices | AU14: =CHOOSE(m_identity,SHET!AU14,SPTL!AU14,NGET!AU14) -> 35.25686764 | AV14: =CHOOSE(m_identity,SHET!AV14,SPTL!AV14,NGET!AV14) -> 33.68279896 | AW14: =CHOOSE(m_identity,SHET!AW14,SPTL!AW14,NGET!AW14) -> 34.85727608 | AX14: =CHOOSE(m_identity,SHET!AX14,SPTL!AX14,NGET!AX14) -> 27.49441868 | AY14: =CHOOSE(m_identity,SHET!AY14,SPTL!AY14,NGET!AY14) -> 20.48733751
E15: Non-variant allowed other capex expenditure | G15: £m 23/24 prices | AU15: =CHOOSE(m_identity,SHET!AU15,SPTL!AU15,NGET!AU15) -> 0 | AV15: =CHOOSE(m_identity,SHET!AV15,SPTL!AV15,NGET!AV15) -> 0 | AW15: =CHOOSE(m_identity,SHET!AW15,SPTL!AW15,NGET!AW15) -> 0 | AX15: =CHOOSE(m_identity,SHET!AX15,SPTL!AX15,NGET!AX15) -> 0 | AY15: =CHOOSE(m_identity,SHET!AY15,SPTL!AY15,NGET!AY15) -> 0
E16: Non-variant allowed network operating costs (opex) | G16: £m 23/24 prices | AU16: =CHOOSE(m_identity,SHET!AU16,SPTL!AU16,NGET!AU16) -> 50.93654536 | AV16: =CHOOSE(m_identity,SHET!AV16,SPTL!AV16,NGET!AV16) -> 51.74512167 | AW16: =CHOOSE(m_identity,SHET!AW16,SPTL!AW16,NGET!AW16) -> 77.86504037 | AX16: =CHOOSE(m_identity,SHET!AX16,SPTL!AX16,NGET!AX16) -> 67.75845526 | AY16: =CHOOSE(m_identity,SHET!AY16,SPTL!AY16,NGET!AY16) -> 59.79692047
E17: Non-variant allowed indirects (opex) | G17: £m 23/24 prices | AU17: =CHOOSE(m_identity,SHET!AU17,SPTL!AU17,NGET!AU17) -> 256.718025 | AV17: =CHOOSE(m_identity,SHET!AV17,SPTL!AV17,NGET!AV17) -> 269.6207199 | AW17: =CHOOSE(m_identity,SHET!AW17,SPTL!AW17,NGET!AW17) -> 274.3622069 | AX17: =CHOOSE(m_identity,SHET!AX17,SPTL!AX17,NGET!AX17) -> 259.0342965 | AY17: =CHOOSE(m_identity,SHET!AY17,SPTL!AY17,NGET!AY17) -> 246.434057
E18: Non-variant allowed non-operational capex | G18: £m 23/24 prices | AU18: =CHOOSE(m_identity,SHET!AU18,SPTL!AU18,NGET!AU18) -> 82.43899577 | AV18: =CHOOSE(m_identity,SHET!AV18,SPTL!AV18,NGET!AV18) -> 96.6658072 | AW18: =CHOOSE(m_identity,SHET!AW18,SPTL!AW18,NGET!AW18) -> 92.69330092 | AX18: =CHOOSE(m_identity,SHET!AX18,SPTL!AX18,NGET!AX18) -> 74.79094578 | AY18: =CHOOSE(m_identity,SHET!AY18,SPTL!AY18,NGET!AY18) -> 43.47447947
C20: Variant allowances (including Real Price Effects)
C21: Note: RPEs in the table below are calculated for information only. The calculation by totex category is detailed and then aggregated in the "Input" tab.
E23: =CHOOSE(m_identity,SHET!E23,SPTL!E23,NGET!E23) -> Enhancing Pre-existing Infrastructure Projects | F23: SpC 3.10 | G23: £m 23/24 prices | H23: EPIt | AU23: =CHOOSE(m_identity,SHET!AU23,SPTL!AU23,NGET!AU23) -> 0 | AV23: =CHOOSE(m_identity,SHET!AV23,SPTL!AV23,NGET!AV23) -> 0 | AW23: =CHOOSE(m_identity,SHET!AW23,SPTL!AW23,NGET!AW23) -> 0 | AX23: =CHOOSE(m_identity,SHET!AX23,SPTL!AX23,NGET!AX23) -> 0 | AY23: =CHOOSE(m_identity,SHET!AY23,SPTL!AY23,NGET!AY23) -> 0
E24: =CHOOSE(m_identity,SHET!E24,SPTL!E24,NGET!E24) -> Large Onshore Transmission Investment Re-opener Project 1 - Hinckley Sea Bank | F24: SpC 3.13 | G24: £m 23/24 prices | H24: LOTIAt | AU24: =CHOOSE(m_identity,SHET!AU24,SPTL!AU24,NGET!AU24) -> 0 | AV24: =CHOOSE(m_identity,SHET!AV24,SPTL!AV24,NGET!AV24) -> 0 | AW24: =CHOOSE(m_identity,SHET!AW24,SPTL!AW24,NGET!AW24) -> 0 | AX24: =CHOOSE(m_identity,SHET!AX24,SPTL!AX24,NGET!AX24) -> 0 | AY24: =CHOOSE(m_identity,SHET!AY24,SPTL!AY24,NGET!AY24) -> 0
E25: =CHOOSE(m_identity,SHET!E25,SPTL!E25,NGET!E25) -> Wider Works Price Control Deliverable | F25: SpC 3.9 | G25: £m 23/24 prices | H25: WWt | AU25: =CHOOSE(m_identity,SHET!AU25,SPTL!AU25,NGET!AU25) -> 0 | AV25: =CHOOSE(m_identity,SHET!AV25,SPTL!AV25,NGET!AV25) -> 0 | AW25: =CHOOSE(m_identity,SHET!AW25,SPTL!AW25,NGET!AW25) -> 0 | AX25: =CHOOSE(m_identity,SHET!AX25,SPTL!AX25,NGET!AX25) -> 0 | AY25: =CHOOSE(m_identity,SHET!AY25,SPTL!AY25,NGET!AY25) -> 0
E26: =CHOOSE(m_identity,SHET!E26,SPTL!E26,NGET!E26) -> Physical Security Price Control Deliverable | F26: SpC 3.4 | G26: £m 23/24 prices | H26: PSUPt | AU26: =CHOOSE(m_identity,SHET!AU26,SPTL!AU26,NGET!AU26) -> 0 | AV26: =CHOOSE(m_identity,SHET!AV26,SPTL!AV26,NGET!AV26) -> 0 | AW26: =CHOOSE(m_identity,SHET!AW26,SPTL!AW26,NGET!AW26) -> 0 | AX26: =CHOOSE(m_identity,SHET!AX26,SPTL!AX26,NGET!AX26) -> 0 | AY26: =CHOOSE(m_identity,SHET!AY26,SPTL!AY26,NGET!AY26) -> 0
E27: =CHOOSE(m_identity,SHET!E27,SPTL!E27,NGET!E27) -> Cyber Resilience OT Baseline | F27: SpC 3.2 | G27: £m 23/24 prices | H27: CROTt | AU27: =CHOOSE(m_identity,SHET!AU27,SPTL!AU27,NGET!AU27) -> 0 | AV27: =CHOOSE(m_identity,SHET!AV27,SPTL!AV27,NGET!AV27) -> 0 | AW27: =CHOOSE(m_identity,SHET!AW27,SPTL!AW27,NGET!AW27) -> 0 | AX27: =CHOOSE(m_identity,SHET!AX27,SPTL!AX27,NGET!AX27) -> 0 | AY27: =CHOOSE(m_identity,SHET!AY27,SPTL!AY27,NGET!AY27) -> 0
E28: =CHOOSE(m_identity,SHET!E28,SPTL!E28,NGET!E28) -> Cyber Resilience IT Baseline | F28: SpC 3.3 | G28: £m 23/24 prices | H28: CRITt | AU28: =CHOOSE(m_identity,SHET!AU28,SPTL!AU28,NGET!AU28) -> 0 | AV28: =CHOOSE(m_identity,SHET!AV28,SPTL!AV28,NGET!AV28) -> 0 | AW28: =CHOOSE(m_identity,SHET!AW28,SPTL!AW28,NGET!AW28) -> 0 | AX28: =CHOOSE(m_identity,SHET!AX28,SPTL!AX28,NGET!AX28) -> 0 | AY28: =CHOOSE(m_identity,SHET!AY28,SPTL!AY28,NGET!AY28) -> 0
E29: =CHOOSE(m_identity,SHET!E29,SPTL!E29,NGET!E29) -> Baseline Network Risk Output | F29: SpC 3.1 | G29: £m 23/24 prices | H29: NARMt | AU29: =CHOOSE(m_identity,SHET!AU29,SPTL!AU29,NGET!AU29) -> 77.32182422 | AV29: =CHOOSE(m_identity,SHET!AV29,SPTL!AV29,NGET!AV29) -> 103.7128323 | AW29: =CHOOSE(m_identity,SHET!AW29,SPTL!AW29,NGET!AW29) -> 122.3385972 | AX29: =CHOOSE(m_identity,SHET!AX29,SPTL!AX29,NGET!AX29) -> 89.5750284 | AY29: =CHOOSE(m_identity,SHET!AY29,SPTL!AY29,NGET!AY29) -> 9.295911571
E30: =CHOOSE(m_identity,SHET!E30,SPTL!E30,NGET!E30) -> Generation Related Infrastructure Price Control Deliverable (NGET only) | F30: SpC 3.20 | G30: £m 23/24 prices | H30: GRIt | AU30: =CHOOSE(m_identity,SHET!AU30,SPTL!AU30,NGET!AU30) -> 0 | AV30: =CHOOSE(m_identity,SHET!AV30,SPTL!AV30,NGET!AV30) -> 0 | AW30: =CHOOSE(m_identity,SHET!AW30,SPTL!AW30,NGET!AW30) -> 0 | AX30: =CHOOSE(m_identity,SHET!AX30,SPTL!AX30,NGET!AX30) -> 0 | AY30: =CHOOSE(m_identity,SHET!AY30,SPTL!AY30,NGET!AY30) -> 0
E31: =CHOOSE(m_identity,SHET!E31,SPTL!E31,NGET!E31) -> Resilience and Operability Price Control Deliverable (SHET and SPTL only) | F31: SpC 3.18 | G31: £m 23/24 prices | H31: ROt | AU31: =CHOOSE(m_identity,SHET!AU31,SPTL!AU31,NGET!AU31) -> 0 | AV31: =CHOOSE(m_identity,SHET!AV31,SPTL!AV31,NGET!AV31) -> 0 | AW31: =CHOOSE(m_identity,SHET!AW31,SPTL!AW31,NGET!AW31) -> 0 | AX31: =CHOOSE(m_identity,SHET!AX31,SPTL!AX31,NGET!AX31) -> 0 | AY31: =CHOOSE(m_identity,SHET!AY31,SPTL!AY31,NGET!AY31) -> 0
E32: =CHOOSE(m_identity,SHET!E32,SPTL!E32,NGET!E32) -> Operational transport carbon reduction Price Control Deliverable (NGET only) | F32: SpC 3.21 | G32: £m 23/24 prices | H32: OTCt | AU32: =CHOOSE(m_identity,SHET!AU32,SPTL!AU32,NGET!AU32) -> 0 | AV32: =CHOOSE(m_identity,SHET!AV32,SPTL!AV32,NGET!AV32) -> 0 | AW32: =CHOOSE(m_identity,SHET!AW32,SPTL!AW32,NGET!AW32) -> 0 | AX32: =CHOOSE(m_identity,SHET!AX32,SPTL!AX32,NGET!AX32) -> 0 | AY32: =CHOOSE(m_identity,SHET!AY32,SPTL!AY32,NGET!AY32) -> 0
E33: =CHOOSE(m_identity,SHET!E33,SPTL!E33,NGET!E33) -> Shared Schemes Price Control Deliverable (SHET and SPTL only) | F33: SpC 3.17 | G33: £m 23/24 prices | H33: SSt | AU33: =CHOOSE(m_identity,SHET!AU33,SPTL!AU33,NGET!AU33) -> 0 | AV33: =CHOOSE(m_identity,SHET!AV33,SPTL!AV33,NGET!AV33) -> 0 | AW33: =CHOOSE(m_identity,SHET!AW33,SPTL!AW33,NGET!AW33) -> 0 | AX33: =CHOOSE(m_identity,SHET!AX33,SPTL!AX33,NGET!AX33) -> 0 | AY33: =CHOOSE(m_identity,SHET!AY33,SPTL!AY33,NGET!AY33) -> 0
E34: =CHOOSE(m_identity,SHET!E34,SPTL!E34,NGET!E34) -> Enhanced Environmental Requirements use it or lose it allowance (SPTL only) | F34: SpC 3.19 | G34: £m 23/24 prices | H34: EERt | AU34: =CHOOSE(m_identity,SHET!AU34,SPTL!AU34,NGET!AU34) -> 0 | AV34: =CHOOSE(m_identity,SHET!AV34,SPTL!AV34,NGET!AV34) -> 0 | AW34: =CHOOSE(m_identity,SHET!AW34,SPTL!AW34,NGET!AW34) -> 0 | AX34: =CHOOSE(m_identity,SHET!AX34,SPTL!AX34,NGET!AX34) -> 0 | AY34: =CHOOSE(m_identity,SHET!AY34,SPTL!AY34,NGET!AY34) -> 0
E35: =CHOOSE(m_identity,SHET!E35,SPTL!E35,NGET!E35) -> SF6 asset intervention Price Control Deliverable (NGET only) | F35: SpC 3.27 | G35: £m 23/24 prices | H35: SF6t | AU35: =CHOOSE(m_identity,SHET!AU35,SPTL!AU35,NGET!AU35) -> 0 | AV35: =CHOOSE(m_identity,SHET!AV35,SPTL!AV35,NGET!AV35) -> 0 | AW35: =CHOOSE(m_identity,SHET!AW35,SPTL!AW35,NGET!AW35) -> 0 | AX35: =CHOOSE(m_identity,SHET!AX35,SPTL!AX35,NGET!AX35) -> 0 | AY35: =CHOOSE(m_identity,SHET!AY35,SPTL!AY35,NGET!AY35) -> 0
E36: =CHOOSE(m_identity,SHET!E36,SPTL!E36,NGET!E36) -> Substation Auxiliary Systems use it or lose it allowance (NGET only) | F36: SpC 3.26 | G36: £m 23/24 prices | H36: SASt | AU36: =CHOOSE(m_identity,SHET!AU36,SPTL!AU36,NGET!AU36) -> 0 | AV36: =CHOOSE(m_identity,SHET!AV36,SPTL!AV36,NGET!AV36) -> 0 | AW36: =CHOOSE(m_identity,SHET!AW36,SPTL!AW36,NGET!AW36) -> 0 | AX36: =CHOOSE(m_identity,SHET!AX36,SPTL!AX36,NGET!AX36) -> 0 | AY36: =CHOOSE(m_identity,SHET!AY36,SPTL!AY36,NGET!AY36) -> 0
E37: =CHOOSE(m_identity,SHET!E37,SPTL!E37,NGET!E37) -> Instrument Transformer Price Control Deliverable (NGET only) | F37: SpC 3.22 | G37: £m 23/24 prices | H37: InTt | AU37: =CHOOSE(m_identity,SHET!AU37,SPTL!AU37,NGET!AU37) -> 0 | AV37: =CHOOSE(m_identity,SHET!AV37,SPTL!AV37,NGET!AV37) -> 0 | AW37: =CHOOSE(m_identity,SHET!AW37,SPTL!AW37,NGET!AW37) -> 0 | AX37: =CHOOSE(m_identity,SHET!AX37,SPTL!AX37,NGET!AX37) -> 0 | AY37: =CHOOSE(m_identity,SHET!AY37,SPTL!AY37,NGET!AY37) -> 0
E38: =CHOOSE(m_identity,SHET!E38,SPTL!E38,NGET!E38) -> Bay Assets Price Control Deliverable (NGET only) | F38: SpC 3.23 | G38: £m 23/24 prices | H38: BAt | AU38: =CHOOSE(m_identity,SHET!AU38,SPTL!AU38,NGET!AU38) -> 0 | AV38: =CHOOSE(m_identity,SHET!AV38,SPTL!AV38,NGET!AV38) -> 0 | AW38: =CHOOSE(m_identity,SHET!AW38,SPTL!AW38,NGET!AW38) -> 0 | AX38: =CHOOSE(m_identity,SHET!AX38,SPTL!AX38,NGET!AX38) -> 0 | AY38: =CHOOSE(m_identity,SHET!AY38,SPTL!AY38,NGET!AY38) -> 0
E39: =CHOOSE(m_identity,SHET!E39,SPTL!E39,NGET!E39) -> Protection and Control Price Control Deliverable (NGET only) | F39: SpC 3.24 | G39: £m 23/24 prices | H39: PCt | AU39: =CHOOSE(m_identity,SHET!AU39,SPTL!AU39,NGET!AU39) -> 0 | AV39: =CHOOSE(m_identity,SHET!AV39,SPTL!AV39,NGET!AV39) -> 0 | AW39: =CHOOSE(m_identity,SHET!AW39,SPTL!AW39,NGET!AW39) -> 0 | AX39: =CHOOSE(m_identity,SHET!AX39,SPTL!AX39,NGET!AX39) -> 0 | AY39: =CHOOSE(m_identity,SHET!AY39,SPTL!AY39,NGET!AY39) -> 0
E40: =CHOOSE(m_identity,SHET!E40,SPTL!E40,NGET!E40) -> Overhead Line Conductor Price Control Deliverable (NGET only) | F40: SpC 3.25 | G40: £m 23/24 prices | H40: OCt | AU40: =CHOOSE(m_identity,SHET!AU40,SPTL!AU40,NGET!AU40) -> 0 | AV40: =CHOOSE(m_identity,SHET!AV40,SPTL!AV40,NGET!AV40) -> 0 | AW40: =CHOOSE(m_identity,SHET!AW40,SPTL!AW40,NGET!AW40) -> 0 | AX40: =CHOOSE(m_identity,SHET!AX40,SPTL!AX40,NGET!AX40) -> 0 | AY40: =CHOOSE(m_identity,SHET!AY40,SPTL!AY40,NGET!AY40) -> 0
E41: =CHOOSE(m_identity,SHET!E41,SPTL!E41,NGET!E41) -> Pre-Construction Funding Price Control Deliverable | F41: SpC 3.15 | G41: £m 23/24 prices | H41: PCFt | AU41: =CHOOSE(m_identity,SHET!AU41,SPTL!AU41,NGET!AU41) -> 100.4545218 | AV41: =CHOOSE(m_identity,SHET!AV41,SPTL!AV41,NGET!AV41) -> 99.44997659 | AW41: =CHOOSE(m_identity,SHET!AW41,SPTL!AW41,NGET!AW41) -> 98.45547682 | AX41: =CHOOSE(m_identity,SHET!AX41,SPTL!AX41,NGET!AX41) -> 97.47092205 | AY41: =CHOOSE(m_identity,SHET!AY41,SPTL!AY41,NGET!AY41) -> 96.49621283
E42: =CHOOSE(m_identity,SHET!E42,SPTL!E42,NGET!E42) -> Net Zero And Re-opener Development Fund use it or lose it allowance | F42: SpC 3.5 | G42: £m 23/24 prices | H42: RDFt | AU42: =CHOOSE(m_identity,SHET!AU42,SPTL!AU42,NGET!AU42) -> 0 | AV42: =CHOOSE(m_identity,SHET!AV42,SPTL!AV42,NGET!AV42) -> 0 | AW42: =CHOOSE(m_identity,SHET!AW42,SPTL!AW42,NGET!AW42) -> 0 | AX42: =CHOOSE(m_identity,SHET!AX42,SPTL!AX42,NGET!AX42) -> 0 | AY42: =CHOOSE(m_identity,SHET!AY42,SPTL!AY42,NGET!AY42) -> 0
E43: =CHOOSE(m_identity,SHET!E43,SPTL!E43,NGET!E43) -> Development Funding | G43: £m 23/24 prices | AU43: =CHOOSE(m_identity,SHET!AU43,SPTL!AU43,NGET!AU43) -> 0 | AV43: =CHOOSE(m_identity,SHET!AV43,SPTL!AV43,NGET!AV43) -> 0 | AW43: =CHOOSE(m_identity,SHET!AW43,SPTL!AW43,NGET!AW43) -> 0 | AX43: =CHOOSE(m_identity,SHET!AX43,SPTL!AX43,NGET!AX43) -> 0 | AY43: =CHOOSE(m_identity,SHET!AY43,SPTL!AY43,NGET!AY43) -> 0
E44: =CHOOSE(m_identity,SHET!E44,SPTL!E44,NGET!E44) -> Spare PCD 2 | G44: £m 23/24 prices | AU44: =CHOOSE(m_identity,SHET!AU44,SPTL!AU44,NGET!AU44) -> 0 | AV44: =CHOOSE(m_identity,SHET!AV44,SPTL!AV44,NGET!AV44) -> 0 | AW44: =CHOOSE(m_identity,SHET!AW44,SPTL!AW44,NGET!AW44) -> 0 | AX44: =CHOOSE(m_identity,SHET!AX44,SPTL!AX44,NGET!AX44) -> 0 | AY44: =CHOOSE(m_identity,SHET!AY44,SPTL!AY44,NGET!AY44) -> 0
E45: =CHOOSE(m_identity,SHET!E45,SPTL!E45,NGET!E45) -> Spare PCD 3 | G45: £m 23/24 prices | AU45: =CHOOSE(m_identity,SHET!AU45,SPTL!AU45,NGET!AU45) -> 0 | AV45: =CHOOSE(m_identity,SHET!AV45,SPTL!AV45,NGET!AV45) -> 0 | AW45: =CHOOSE(m_identity,SHET!AW45,SPTL!AW45,NGET!AW45) -> 0 | AX45: =CHOOSE(m_identity,SHET!AX45,SPTL!AX45,NGET!AX45) -> 0 | AY45: =CHOOSE(m_identity,SHET!AY45,SPTL!AY45,NGET!AY45) -> 0
E46: =CHOOSE(m_identity,SHET!E46,SPTL!E46,NGET!E46) -> Visual Impact Mitigation Re-opener | F46: SpC 3.10 | G46: £m 23/24 prices | H46: VIMREt | AU46: =CHOOSE(m_identity,SHET!AU46,SPTL!AU46,NGET!AU46) -> 0 | AV46: =CHOOSE(m_identity,SHET!AV46,SPTL!AV46,NGET!AV46) -> 0 | AW46: =CHOOSE(m_identity,SHET!AW46,SPTL!AW46,NGET!AW46) -> 0 | AX46: =CHOOSE(m_identity,SHET!AX46,SPTL!AX46,NGET!AX46) -> 0 | AY46: =CHOOSE(m_identity,SHET!AY46,SPTL!AY46,NGET!AY46) -> 0
E47: =CHOOSE(m_identity,SHET!E47,SPTL!E47,NGET!E47) -> Large Onshore Transmission Investment Re-opener Project 2 - Shetland | F47: SpC 3.13 | G47: £m 23/24 prices | H47: LOTIREt | AU47: =CHOOSE(m_identity,SHET!AU47,SPTL!AU47,NGET!AU47) -> 0 | AV47: =CHOOSE(m_identity,SHET!AV47,SPTL!AV47,NGET!AV47) -> 0 | AW47: =CHOOSE(m_identity,SHET!AW47,SPTL!AW47,NGET!AW47) -> 0 | AX47: =CHOOSE(m_identity,SHET!AX47,SPTL!AX47,NGET!AX47) -> 0 | AY47: =CHOOSE(m_identity,SHET!AY47,SPTL!AY47,NGET!AY47) -> 0
E48: =CHOOSE(m_identity,SHET!E48,SPTL!E48,NGET!E48) -> Large Onshore Transmission Investment Re-opener Project 3 | F48: SpC 3.13 | G48: £m 23/24 prices | H48: LOTIREt | AU48: =CHOOSE(m_identity,SHET!AU48,SPTL!AU48,NGET!AU48) -> 0 | AV48: =CHOOSE(m_identity,SHET!AV48,SPTL!AV48,NGET!AV48) -> 0 | AW48: =CHOOSE(m_identity,SHET!AW48,SPTL!AW48,NGET!AW48) -> 0 | AX48: =CHOOSE(m_identity,SHET!AX48,SPTL!AX48,NGET!AX48) -> 0 | AY48: =CHOOSE(m_identity,SHET!AY48,SPTL!AY48,NGET!AY48) -> 0
E49: =CHOOSE(m_identity,SHET!E49,SPTL!E49,NGET!E49) -> Large Onshore Transmission Investment Re-opener Project 4 | F49: SpC 3.13 | G49: £m 23/24 prices | H49: LOTIREt | AU49: =CHOOSE(m_identity,SHET!AU49,SPTL!AU49,NGET!AU49) -> 0 | AV49: =CHOOSE(m_identity,SHET!AV49,SPTL!AV49,NGET!AV49) -> 0 | AW49: =CHOOSE(m_identity,SHET!AW49,SPTL!AW49,NGET!AW49) -> 0 | AX49: =CHOOSE(m_identity,SHET!AX49,SPTL!AX49,NGET!AX49) -> 0 | AY49: =CHOOSE(m_identity,SHET!AY49,SPTL!AY49,NGET!AY49) -> 0
E50: =CHOOSE(m_identity,SHET!E50,SPTL!E50,NGET!E50) -> Large Onshore Transmission Investment Re-opener Project 5 | F50: SpC 3.13 | G50: £m 23/24 prices | H50: LOTIREt | AU50: =CHOOSE(m_identity,SHET!AU50,SPTL!AU50,NGET!AU50) -> 0 | AV50: =CHOOSE(m_identity,SHET!AV50,SPTL!AV50,NGET!AV50) -> 0 | AW50: =CHOOSE(m_identity,SHET!AW50,SPTL!AW50,NGET!AW50) -> 0 | AX50: =CHOOSE(m_identity,SHET!AX50,SPTL!AX50,NGET!AX50) -> 0 | AY50: =CHOOSE(m_identity,SHET!AY50,SPTL!AY50,NGET!AY50) -> 0
E51: =CHOOSE(m_identity,SHET!E51,SPTL!E51,NGET!E51) -> Large Onshore Transmission Investment Re-opener Project 6 | F51: SpC 3.13 | G51: £m 23/24 prices | H51: LOTIREt | AU51: =CHOOSE(m_identity,SHET!AU51,SPTL!AU51,NGET!AU51) -> 0 | AV51: =CHOOSE(m_identity,SHET!AV51,SPTL!AV51,NGET!AV51) -> 0 | AW51: =CHOOSE(m_identity,SHET!AW51,SPTL!AW51,NGET!AW51) -> 0 | AX51: =CHOOSE(m_identity,SHET!AX51,SPTL!AX51,NGET!AX51) -> 0 | AY51: =CHOOSE(m_identity,SHET!AY51,SPTL!AY51,NGET!AY51) -> 0
E52: =CHOOSE(m_identity,SHET!E52,SPTL!E52,NGET!E52) -> Large Onshore Transmission Investment Re-opener Project 7 | F52: SpC 3.13 | G52: £m 23/24 prices | H52: LOTIREt | AU52: =CHOOSE(m_identity,SHET!AU52,SPTL!AU52,NGET!AU52) -> 0 | AV52: =CHOOSE(m_identity,SHET!AV52,SPTL!AV52,NGET!AV52) -> 0 | AW52: =CHOOSE(m_identity,SHET!AW52,SPTL!AW52,NGET!AW52) -> 0 | AX52: =CHOOSE(m_identity,SHET!AX52,SPTL!AX52,NGET!AX52) -> 0 | AY52: =CHOOSE(m_identity,SHET!AY52,SPTL!AY52,NGET!AY52) -> 0
E53: =CHOOSE(m_identity,SHET!E53,SPTL!E53,NGET!E53) -> Large Onshore Transmission Investment Re-opener Project 8 | F53: SpC 3.13 | G53: £m 23/24 prices | H53: LOTIREt | AU53: =CHOOSE(m_identity,SHET!AU53,SPTL!AU53,NGET!AU53) -> 0 | AV53: =CHOOSE(m_identity,SHET!AV53,SPTL!AV53,NGET!AV53) -> 0 | AW53: =CHOOSE(m_identity,SHET!AW53,SPTL!AW53,NGET!AW53) -> 0 | AX53: =CHOOSE(m_identity,SHET!AX53,SPTL!AX53,NGET!AX53) -> 0 | AY53: =CHOOSE(m_identity,SHET!AY53,SPTL!AY53,NGET!AY53) -> 0
E54: =CHOOSE(m_identity,SHET!E54,SPTL!E54,NGET!E54) -> Accelerated strategic transmission investment Pre-Construction Funding Re-opener | F54: SpC 3.40 | G54: £m 23/24 prices | H54: APCFt | AU54: =CHOOSE(m_identity,SHET!AU54,SPTL!AU54,NGET!AU54) -> 0 | AV54: =CHOOSE(m_identity,SHET!AV54,SPTL!AV54,NGET!AV54) -> 0 | AW54: =CHOOSE(m_identity,SHET!AW54,SPTL!AW54,NGET!AW54) -> 0 | AX54: =CHOOSE(m_identity,SHET!AX54,SPTL!AX54,NGET!AX54) -> 0 | AY54: =CHOOSE(m_identity,SHET!AY54,SPTL!AY54,NGET!AY54) -> 0
E55: =CHOOSE(m_identity,SHET!E55,SPTL!E55,NGET!E55) -> Accelerated strategic transmission investment Re-opener | F55: SpC 3.41 | G55: £m 23/24 prices | H55: ASTIRt | AU55: =CHOOSE(m_identity,SHET!AU55,SPTL!AU55,NGET!AU55) -> 2293.896034 | AV55: =CHOOSE(m_identity,SHET!AV55,SPTL!AV55,NGET!AV55) -> 3960.8 | AW55: =CHOOSE(m_identity,SHET!AW55,SPTL!AW55,NGET!AW55) -> 3549.4 | AX55: =CHOOSE(m_identity,SHET!AX55,SPTL!AX55,NGET!AX55) -> 1974 | AY55: =CHOOSE(m_identity,SHET!AY55,SPTL!AY55,NGET!AY55) -> 974.2
E56: =CHOOSE(m_identity,SHET!E56,SPTL!E56,NGET!E56) -> Generation Connections volume driver | F56: SpC 3.11 | G56: £m 23/24 prices | H56: GCEt | AU56: =CHOOSE(m_identity,SHET!AU56,SPTL!AU56,NGET!AU56) -> 0 | AV56: =CHOOSE(m_identity,SHET!AV56,SPTL!AV56,NGET!AV56) -> 0 | AW56: =CHOOSE(m_identity,SHET!AW56,SPTL!AW56,NGET!AW56) -> 0 | AX56: =CHOOSE(m_identity,SHET!AX56,SPTL!AX56,NGET!AX56) -> 0 | AY56: =CHOOSE(m_identity,SHET!AY56,SPTL!AY56,NGET!AY56) -> 0
E57: =CHOOSE(m_identity,SHET!E57,SPTL!E57,NGET!E57) -> Demand Connections volume driver (SPTL and NGET only) | F57: SpC 3.12 | G57: £m 23/24 prices | H57: DRIt | AU57: =CHOOSE(m_identity,SHET!AU57,SPTL!AU57,NGET!AU57) -> 0 | AV57: =CHOOSE(m_identity,SHET!AV57,SPTL!AV57,NGET!AV57) -> 0 | AW57: =CHOOSE(m_identity,SHET!AW57,SPTL!AW57,NGET!AW57) -> 0 | AX57: =CHOOSE(m_identity,SHET!AX57,SPTL!AX57,NGET!AX57) -> 0 | AY57: =CHOOSE(m_identity,SHET!AY57,SPTL!AY57,NGET!AY57) -> 0
E58: =CHOOSE(m_identity,SHET!E58,SPTL!E58,NGET!E58) -> Net zero Re-opener | F58: SpC 3.6 | G58: £m 23/24 prices | H58: NZt | AU58: =CHOOSE(m_identity,SHET!AU58,SPTL!AU58,NGET!AU58) -> 0 | AV58: =CHOOSE(m_identity,SHET!AV58,SPTL!AV58,NGET!AV58) -> 0 | AW58: =CHOOSE(m_identity,SHET!AW58,SPTL!AW58,NGET!AW58) -> 0 | AX58: =CHOOSE(m_identity,SHET!AX58,SPTL!AX58,NGET!AX58) -> 0 | AY58: =CHOOSE(m_identity,SHET!AY58,SPTL!AY58,NGET!AY58) -> 0
E59: =CHOOSE(m_identity,SHET!E59,SPTL!E59,NGET!E59) -> Coordinated adjustment mechanism Re-opener | F59: SpC 3.8 | G59: £m 23/24 prices | H59: CAMt | AU59: =CHOOSE(m_identity,SHET!AU59,SPTL!AU59,NGET!AU59) -> 0 | AV59: =CHOOSE(m_identity,SHET!AV59,SPTL!AV59,NGET!AV59) -> 0 | AW59: =CHOOSE(m_identity,SHET!AW59,SPTL!AW59,NGET!AW59) -> 0 | AX59: =CHOOSE(m_identity,SHET!AX59,SPTL!AX59,NGET!AX59) -> 0 | AY59: =CHOOSE(m_identity,SHET!AY59,SPTL!AY59,NGET!AY59) -> 0
E60: =CHOOSE(m_identity,SHET!E60,SPTL!E60,NGET!E60) -> Medium Sized Investment Projects Re-opener | F60: SpC 3.14 | G60: £m 23/24 prices | H60: MSIPREt | AU60: =CHOOSE(m_identity,SHET!AU60,SPTL!AU60,NGET!AU60) -> 0 | AV60: =CHOOSE(m_identity,SHET!AV60,SPTL!AV60,NGET!AV60) -> 0 | AW60: =CHOOSE(m_identity,SHET!AW60,SPTL!AW60,NGET!AW60) -> 0 | AX60: =CHOOSE(m_identity,SHET!AX60,SPTL!AX60,NGET!AX60) -> 0 | AY60: =CHOOSE(m_identity,SHET!AY60,SPTL!AY60,NGET!AY60) -> 0
E61: =CHOOSE(m_identity,SHET!E61,SPTL!E61,NGET!E61) -> SF6 asset intervention Re-opener (NGET only) | F61: SpC 3.27 | G61: £m 23/24 prices | H61: SF6REt | AU61: =CHOOSE(m_identity,SHET!AU61,SPTL!AU61,NGET!AU61) -> 0 | AV61: =CHOOSE(m_identity,SHET!AV61,SPTL!AV61,NGET!AV61) -> 0 | AW61: =CHOOSE(m_identity,SHET!AW61,SPTL!AW61,NGET!AW61) -> 0 | AX61: =CHOOSE(m_identity,SHET!AX61,SPTL!AX61,NGET!AX61) -> 0 | AY61: =CHOOSE(m_identity,SHET!AY61,SPTL!AY61,NGET!AY61) -> 0
E62: =CHOOSE(m_identity,SHET!E62,SPTL!E62,NGET!E62) -> Subsea Cable Re-opener (SHET only) | F62: SpC 3.28 | G62: £m 23/24 prices | H62: SCRt | AU62: =CHOOSE(m_identity,SHET!AU62,SPTL!AU62,NGET!AU62) -> 0 | AV62: =CHOOSE(m_identity,SHET!AV62,SPTL!AV62,NGET!AV62) -> 0 | AW62: =CHOOSE(m_identity,SHET!AW62,SPTL!AW62,NGET!AW62) -> 0 | AX62: =CHOOSE(m_identity,SHET!AX62,SPTL!AX62,NGET!AX62) -> 0 | AY62: =CHOOSE(m_identity,SHET!AY62,SPTL!AY62,NGET!AY62) -> 0
... 71 more rows

Sheet MainInputs
A1: Input
B2: =UserInterface!G17 -> SHET
E3: Parameter | F3: Licence condition | G3: Units | H3: Term | I3: Constant | AP3: Annual values
E4: PCFM year ending | F4: =Cover!C4 -> Model Version | I4: =UserInterface!$G$10 -> 2025-03-31 | K4: 1991-03-31 | L4: 1992-03-31 | M4: 1993-03-31 | N4: 1994-03-31 | O4: 1995-03-31 | P4: 1996-03-31 | Q4: 1997-03-31 | R4: 1998-03-31 | S4: 1999-03-31 | T4: 2000-03-31 | U4: 2001-03-31 | V4: 2002-03-31 | W4: 2003-03-31 | X4: 2004-03-31 | Y4: 2005-03-31 | Z4: 2006-03-31 | AA4: 2007-03-31 | AB4: 2008-03-31 | AC4: 2009-03-31 | AD4: 2010-03-31 | AE4: 2011-03-31 | AF4: 2012-03-31 | AG4: 2013-03-31 | AH4: 2014-03-31 | AI4: 2015-03-31 | AJ4: 2016-03-31 | AK4: 2017-03-31 | AL4: 2018-03-31 | AM4: 2019-03-31 | AN4: 2020-03-31 | AO4: 2021-03-31 | AP4: 2022-03-31 | AQ4: 2023-03-31 | AR4: 2024-03-31 | AS4: 2025-03-31 | AT4: 2026-03-31 | AU4: 2027-03-31 | AV4: 2028-03-31 | AW4: 2029-03-31 | AX4: 2030-03-31 | AY4: =EOMONTH(AX4,12) -> 2031-03-31
AP5: 2 | AQ5: 2 | AR5: 2 | AS5: 2 | AT5: 2 | AU5: 3 | AV5: 3 | AW5: 3 | AX5: 3 | AY5: 3
C7: Price control timeline
E9: Pre-RIIO-2 year | G9: flag | K9: =Scenarios!K$119 -> 1 | L9: =Scenarios!L$119 -> 1 | M9: =Scenarios!M$119 -> 1 | N9: =Scenarios!N$119 -> 1 | O9: =Scenarios!O$119 -> 1 | P9: =Scenarios!P$119 -> 1 | Q9: =Scenarios!Q$119 -> 1 | R9: =Scenarios!R$119 -> 1 | S9: =Scenarios!S$119 -> 1 | T9: =Scenarios!T$119 -> 1 | U9: =Scenarios!U$119 -> 1 | V9: =Scenarios!V$119 -> 1 | W9: =Scenarios!W$119 -> 1 | X9: =Scenarios!X$119 -> 1 | Y9: =Scenarios!Y$119 -> 1 | Z9: =Scenarios!Z$119 -> 1 | AA9: =Scenarios!AA$119 -> 1 | AB9: =Scenarios!AB$119 -> 1 | AC9: =Scenarios!AC$119 -> 1 | AD9: =Scenarios!AD$119 -> 1 | AE9: =Scenarios!AE$119 -> 1 | AF9: =Scenarios!AF$119 -> 1 | AG9: =Scenarios!AG$119 -> 1 | AH9: =Scenarios!AH$119 -> 1 | AI9: =Scenarios!AI$119 -> 1 | AJ9: =Scenarios!AJ$119 -> 1 | AK9: =Scenarios!AK$119 -> 1 | AL9: =Scenarios!AL$119 -> 1 | AM9: =Scenarios!AM$119 -> 1 | AN9: =Scenarios!AN$119 -> 1 | AO9: =Scenarios!AO$119 -> 1 | AP9: =Scenarios!AP$119 -> 0 | AQ9: =Scenarios!AQ$119 -> 0 | AR9: =Scenarios!AR$119 -> 0 | AS9: =Scenarios!AS$119 -> 0 | AT9: =Scenarios!AT$119 -> 0 | AU9: =Scenarios!AU$119 -> 0 | AV9: =Scenarios!AV$119 -> 0 | AW9: =Scenarios!AW$119 -> 0 | AX9: =Scenarios!AX$119 -> 0 | AY9: =Scenarios!AY$119 -> 0
E10: RIIO-2 year | G10: flag | K10: =Scenarios!K$120 -> 0 | L10: =Scenarios!L$120 -> 0 | M10: =Scenarios!M$120 -> 0 | N10: =Scenarios!N$120 -> 0 | O10: =Scenarios!O$120 -> 0 | P10: =Scenarios!P$120 -> 0 | Q10: =Scenarios!Q$120 -> 0 | R10: =Scenarios!R$120 -> 0 | S10: =Scenarios!S$120 -> 0 | T10: =Scenarios!T$120 -> 0 | U10: =Scenarios!U$120 -> 0 | V10: =Scenarios!V$120 -> 0 | W10: =Scenarios!W$120 -> 0 | X10: =Scenarios!X$120 -> 0 | Y10: =Scenarios!Y$120 -> 0 | Z10: =Scenarios!Z$120 -> 0 | AA10: =Scenarios!AA$120 -> 0 | AB10: =Scenarios!AB$120 -> 0 | AC10: =Scenarios!AC$120 -> 0 | AD10: =Scenarios!AD$120 -> 0 | AE10: =Scenarios!AE$120 -> 0 | AF10: =Scenarios!AF$120 -> 0 | AG10: =Scenarios!AG$120 -> 0 | AH10: =Scenarios!AH$120 -> 0 | AI10: =Scenarios!AI$120 -> 0 | AJ10: =Scenarios!AJ$120 -> 0 | AK10: =Scenarios!AK$120 -> 0 | AL10: =Scenarios!AL$120 -> 0 | AM10: =Scenarios!AM$120 -> 0 | AN10: =Scenarios!AN$120 -> 0 | AO10: =Scenarios!AO$120 -> 0 | AP10: =Scenarios!AP$120 -> 1 | AQ10: =Scenarios!AQ$120 -> 1 | AR10: =Scenarios!AR$120 -> 1 | AS10: =Scenarios!AS$120 -> 1 | AT10: =Scenarios!AT$120 -> 1 | AU10: =Scenarios!AU$120 -> 0 | AV10: =Scenarios!AV$120 -> 0 | AW10: =Scenarios!AW$120 -> 0 | AX10: =Scenarios!AX$120 -> 0 | AY10: =Scenarios!AY$120 -> 0
E11: RIIO-3 year | G11: flag | K11: =Scenarios!K$121 -> 0 | L11: =Scenarios!L$121 -> 0 | M11: =Scenarios!M$121 -> 0 | N11: =Scenarios!N$121 -> 0 | O11: =Scenarios!O$121 -> 0 | P11: =Scenarios!P$121 -> 0 | Q11: =Scenarios!Q$121 -> 0 | R11: =Scenarios!R$121 -> 0 | S11: =Scenarios!S$121 -> 0 | T11: =Scenarios!T$121 -> 0 | U11: =Scenarios!U$121 -> 0 | V11: =Scenarios!V$121 -> 0 | W11: =Scenarios!W$121 -> 0 | X11: =Scenarios!X$121 -> 0 | Y11: =Scenarios!Y$121 -> 0 | Z11: =Scenarios!Z$121 -> 0 | AA11: =Scenarios!AA$121 -> 0 | AB11: =Scenarios!AB$121 -> 0 | AC11: =Scenarios!AC$121 -> 0 | AD11: =Scenarios!AD$121 -> 0 | AE11: =Scenarios!AE$121 -> 0 | AF11: =Scenarios!AF$121 -> 0 | AG11: =Scenarios!AG$121 -> 0 | AH11: =Scenarios!AH$121 -> 0 | AI11: =Scenarios!AI$121 -> 0 | AJ11: =Scenarios!AJ$121 -> 0 | AK11: =Scenarios!AK$121 -> 0 | AL11: =Scenarios!AL$121 -> 0 | AM11: =Scenarios!AM$121 -> 0 | AN11: =Scenarios!AN$121 -> 0 | AO11: =Scenarios!AO$121 -> 0 | AP11: =Scenarios!AP$121 -> 0 | AQ11: =Scenarios!AQ$121 -> 0 | AR11: =Scenarios!AR$121 -> 0 | AS11: =Scenarios!AS$121 -> 0 | AT11: =Scenarios!AT$121 -> 0 | AU11: =Scenarios!AU$121 -> 1 | AV11: =Scenarios!AV$121 -> 1 | AW11: =Scenarios!AW$121 -> 1 | AX11: =Scenarios!AX$121 -> 1 | AY11: =Scenarios!AY$121 -> 1
E13: Price conversion: RIIO2 inputs to base price | G13: scalar | I13: =INDEX('Annual Inflation'!$AH$41:$AY$41,,MATCH('Annual Inflation'!$I$22,'Annual Inflation'!$AH$4:$AY$4,0))/'Annual Inflation'!AM41 -> 1.245415245
E14: Price conversion: RIIO3 inputs to base price | G14: scalar | I14: =INDEX('Annual Inflation'!$AH$41:$AY$41,,MATCH('Annual Inflation'!$I$22,'Annual Inflation'!$AH$4:$AY$4,0))/'Annual Inflation'!AR41 -> 1
C16: Scenario operators
E18: Allowed cost of debt input | G18: % | I18: =Scenarios!F38 -> Licensee inputs | AU18: =Scenarios!AU137 -> 0 | AV18: =Scenarios!AV137 -> 0 | AW18: =Scenarios!AW137 -> 0 | AX18: =Scenarios!AX137 -> 0 | AY18: =Scenarios!AY137 -> 0
E19: Scenarios iBoxx sensitivity profile | G19: % | I19: =IF(I18="Scenario iBoxx profile","Active: ","Inactive: ")&Scenarios!F39 -> Inactive: Base | AU19: =Scenarios!AU144 -> 0.0603 | AV19: =Scenarios!AV144 -> 0.0603 | AW19: =Scenarios!AW144 -> 0.0603 | AX19: =Scenarios!AX144 -> 0.0603 | AY19: =Scenarios!AY144 -> 0.0603
E20: Allowed cost of equity input | G20: % | I20: =Scenarios!F40 -> Licensee inputs | AU20: =Scenarios!AU151 -> 0.05704 | AV20: =Scenarios!AV151 -> 0.05704 | AW20: =Scenarios!AW151 -> 0.05704 | AX20: =Scenarios!AX151 -> 0.05704 | AY20: =Scenarios!AY151 -> 0.05704
E21: Notional gearing | G21: % | AU21: =Scenarios!$F42 -> 0.55 | AV21: =Scenarios!$F42 -> 0.55 | AW21: =Scenarios!$F42 -> 0.55 | AX21: =Scenarios!$F42 -> 0.55 | AY21: =Scenarios!$F42 -> 0.55
E23: Minimum equity issuance threshold | G23: % | AU23: =Scenarios!AU175 -> 0 | AV23: =Scenarios!AV175 -> 0 | AW23: =Scenarios!AW175 -> 0 | AX23: =Scenarios!AX175 -> 0 | AY23: =Scenarios!AY175 -> 0
E24: Equity issuance costs | G24: % | AU24: =Scenarios!AU185 -> 0.05 | AV24: =Scenarios!AV185 -> 0.05 | AW24: =Scenarios!AW185 -> 0.05 | AX24: =Scenarios!AX185 -> 0.05 | AY24: =Scenarios!AY185 -> 0.05
E25: Assumed dividends as % of equity | G25: % | AU25: =Scenarios!AU180 -> 0.03 | AV25: =Scenarios!AV180 -> 0.03 | AW25: =Scenarios!AW180 -> 0.03 | AX25: =Scenarios!AX180 -> 0.03 | AY25: =Scenarios!AY180 -> 0.03
E26: Equity issuance gearing target | G26: % | AU26: =Scenarios!AU187 -> 0.55 | AV26: =Scenarios!AV187 -> 0.55 | AW26: =Scenarios!AW187 -> 0.55 | AX26: =Scenarios!AX187 -> 0.55 | AY26: =Scenarios!AY187 -> 0.55
E27: CPIH index-linked debt as a percentage of net debt | G27: % | AU27: =Scenarios!AU188 -> 0.1 | AV27: =Scenarios!AV188 -> 0.1 | AW27: =Scenarios!AW188 -> 0.1 | AX27: =Scenarios!AX188 -> 0.1 | AY27: =Scenarios!AY188 -> 0.1
E29: RIIO-3 Funding Adjustment Rate ('sharing factor') | G29: % | I29: =Scenarios!$F20 -> 0.25
E31: Corporation tax rate | G31: % | AU31: =Scenarios!$F60 -> 0.25 | AV31: =Scenarios!$F60 -> 0.25 | AW31: =Scenarios!$F60 -> 0.25 | AX31: =Scenarios!$F60 -> 0.25 | AY31: =Scenarios!$F60 -> 0.25
E33: Incentive revenue based on Scenario input of % RoRE performance | G33: =price_label -> £m 23/24 prices | AU33: =Scenarios!AU252 -> 0 | AV33: =Scenarios!AV252 -> 0 | AW33: =Scenarios!AW252 -> 0 | AX33: =Scenarios!AX252 -> 0 | AY33: =Scenarios!AY252 -> 0
B35: Totex allowance
C37: Non-variant allowances (net of disposals)
C38: Note: Disposals net sales proceeds are deducted from non-variant "other capex".
E40: Non-variant allowed load related capex expenditure | G40: =price_label -> £m 23/24 prices | AP40: =AP$10*$I$13*InputSummary!AP1622+AP$11*$I$14*InputSummary!AP13 -> -3.539683021e-14 | AQ40: =AQ$10*$I$13*InputSummary!AQ1622+AQ$11*$I$14*InputSummary!AQ13 -> 0 | AR40: =AR$10*$I$13*InputSummary!AR1622+AR$11*$I$14*InputSummary!AR13 -> 2.588301479 | AS40: =AS$10*$I$13*InputSummary!AS1622+AS$11*$I$14*InputSummary!AS13 -> 2.558536012 | AT40: =AT$10*$I$13*InputSummary!AT1622+AT$11*$I$14*InputSummary!AT13 -> 2.529112848 | AU40: =AU$10*$I$13*InputSummary!AU1622+AU$11*$I$14*InputSummary!AU13 -> 0 | AV40: =AV$10*$I$13*InputSummary!AV1622+AV$11*$I$14*InputSummary!AV13 -> 0 | AW40: =AW$10*$I$13*InputSummary!AW1622+AW$11*$I$14*InputSummary!AW13 -> 0 | AX40: =AX$10*$I$13*InputSummary!AX1622+AX$11*$I$14*InputSummary!AX13 -> 0 | AY40: =AY$10*$I$13*InputSummary!AY1622+AY$11*$I$14*InputSummary!AY13 -> 0
E41: Non-variant allowed asset replacement capex expenditure | G41: £m 23/24 prices | AP41: =AP$10*$I$13*InputSummary!AP1623+AP$11*$I$14*InputSummary!AP14 -> 8.060330851 | AQ41: =AQ$10*$I$13*InputSummary!AQ1623+AQ$11*$I$14*InputSummary!AQ14 -> 5.564510963 | AR41: =AR$10*$I$13*InputSummary!AR1623+AR$11*$I$14*InputSummary!AR14 -> 24.36290911 | AS41: =AS$10*$I$13*InputSummary!AS1623+AS$11*$I$14*InputSummary!AS14 -> 16.57168428 | AT41: =AT$10*$I$13*InputSummary!AT1623+AT$11*$I$14*InputSummary!AT14 -> 4.948647806 | AU41: =AU$10*$I$13*InputSummary!AU1623+AU$11*$I$14*InputSummary!AU14 -> 35.25686764 | AV41: =AV$10*$I$13*InputSummary!AV1623+AV$11*$I$14*InputSummary!AV14 -> 33.68279896 | AW41: =AW$10*$I$13*InputSummary!AW1623+AW$11*$I$14*InputSummary!AW14 -> 34.85727608 | AX41: =AX$10*$I$13*InputSummary!AX1623+AX$11*$I$14*InputSummary!AX14 -> 27.49441868 | AY41: =AY$10*$I$13*InputSummary!AY1623+AY$11*$I$14*InputSummary!AY14 -> 20.48733751
E42: Non-variant allowed other capex expenditure (net of disposals) | G42: =price_label -> £m 23/24 prices | AP42: =AP$10*($I$13*InputSummary!AP1624-MainInputs!AP2527) + AP$11*$I$14*InputSummary!AP15 -> 15.11551365 | AQ42: =AQ$10*($I$13*InputSummary!AQ1624-MainInputs!AQ2527) + AQ$11*$I$14*InputSummary!AQ15 -> 6.50313898 | AR42: =AR$10*($I$13*InputSummary!AR1624-MainInputs!AR2527) + AR$11*$I$14*InputSummary!AR15 -> 6.439340746 | AS42: =AS$10*($I$13*InputSummary!AS1624-MainInputs!AS2527) + AS$11*$I$14*InputSummary!AS15 -> 4.617903908 | AT42: =AT$10*($I$13*InputSummary!AT1624-MainInputs!AT2527) + AT$11*$I$14*InputSummary!AT15 -> 4.496470841 | AU42: =AU$10*($I$13*InputSummary!AU1624-MainInputs!AU2527) + AU$11*$I$14*InputSummary!AU15 -> 0 | AV42: =AV$10*($I$13*InputSummary!AV1624-MainInputs!AV2527) + AV$11*$I$14*InputSummary!AV15 -> 0 | AW42: =AW$10*($I$13*InputSummary!AW1624-MainInputs!AW2527) + AW$11*$I$14*InputSummary!AW15 -> 0 | AX42: =AX$10*($I$13*InputSummary!AX1624-MainInputs!AX2527) + AX$11*$I$14*InputSummary!AX15 -> 0 | AY42: =AY$10*($I$13*InputSummary!AY1624-MainInputs!AY2527) + AY$11*$I$14*InputSummary!AY15 -> 0
E43: Non-variant allowed network operating costs (opex) | G43: £m 23/24 prices | AP43: =AP$10*$I$13*InputSummary!AP1625+AP$11*$I$14*InputSummary!AP16 -> 19.59411954 | AQ43: =AQ$10*$I$13*InputSummary!AQ1625+AQ$11*$I$14*InputSummary!AQ16 -> 31.69802219 | AR43: =AR$10*$I$13*InputSummary!AR1625+AR$11*$I$14*InputSummary!AR16 -> 31.11481605 | AS43: =AS$10*$I$13*InputSummary!AS1625+AS$11*$I$14*InputSummary!AS16 -> 34.82286161 | AT43: =AT$10*$I$13*InputSummary!AT1625+AT$11*$I$14*InputSummary!AT16 -> 17.08120589 | AU43: =AU$10*$I$13*InputSummary!AU1625+AU$11*$I$14*InputSummary!AU16 -> 50.93654536 | AV43: =AV$10*$I$13*InputSummary!AV1625+AV$11*$I$14*InputSummary!AV16 -> 51.74512167 | AW43: =AW$10*$I$13*InputSummary!AW1625+AW$11*$I$14*InputSummary!AW16 -> 77.86504037 | AX43: =AX$10*$I$13*InputSummary!AX1625+AX$11*$I$14*InputSummary!AX16 -> 67.75845526 | AY43: =AY$10*$I$13*InputSummary!AY1625+AY$11*$I$14*InputSummary!AY16 -> 59.79692047
E44: Non-variant allowed indirects (opex) | G44: £m 23/24 prices | AP44: =AP$10*$I$13*InputSummary!AP1626+AP$11*$I$14*InputSummary!AP17 -> 41.82961629 | AQ44: =AQ$10*$I$13*InputSummary!AQ1626+AQ$11*$I$14*InputSummary!AQ17 -> 30.54511831 | AR44: =AR$10*$I$13*InputSummary!AR1626+AR$11*$I$14*InputSummary!AR17 -> 41.75005965 | AS44: =AS$10*$I$13*InputSummary!AS1626+AS$11*$I$14*InputSummary!AS17 -> 39.02563977 | AT44: =AT$10*$I$13*InputSummary!AT1626+AT$11*$I$14*InputSummary!AT17 -> 52.94347685 | AU44: =AU$10*$I$13*InputSummary!AU1626+AU$11*$I$14*InputSummary!AU17 -> 256.718025 | AV44: =AV$10*$I$13*InputSummary!AV1626+AV$11*$I$14*InputSummary!AV17 -> 269.6207199 | AW44: =AW$10*$I$13*InputSummary!AW1626+AW$11*$I$14*InputSummary!AW17 -> 274.3622069 | AX44: =AX$10*$I$13*InputSummary!AX1626+AX$11*$I$14*InputSummary!AX17 -> 259.0342965 | AY44: =AY$10*$I$13*InputSummary!AY1626+AY$11*$I$14*InputSummary!AY17 -> 246.434057
E45: Non-variant allowed non-operational capex | G45: £m 23/24 prices | AP45: =AP$10*$I$13*InputSummary!AP1627+AP$11*$I$14*InputSummary!AP18 -> 10.16368988 | AQ45: =AQ$10*$I$13*InputSummary!AQ1627+AQ$11*$I$14*InputSummary!AQ18 -> 21.5062068 | AR45: =AR$10*$I$13*InputSummary!AR1627+AR$11*$I$14*InputSummary!AR18 -> 18.28054779 | AS45: =AS$10*$I$13*InputSummary!AS1627+AS$11*$I$14*InputSummary!AS18 -> -5.347083813 | AT45: =AT$10*$I$13*InputSummary!AT1627+AT$11*$I$14*InputSummary!AT18 -> -2.082446671 | AU45: =AU$10*$I$13*InputSummary!AU1627+AU$11*$I$14*InputSummary!AU18 -> 82.43899577 | AV45: =AV$10*$I$13*InputSummary!AV1627+AV$11*$I$14*InputSummary!AV18 -> 96.6658072 | AW45: =AW$10*$I$13*InputSummary!AW1627+AW$11*$I$14*InputSummary!AW18 -> 92.69330092 | AX45: =AX$10*$I$13*InputSummary!AX1627+AX$11*$I$14*InputSummary!AX18 -> 74.79094578 | AY45: =AY$10*$I$13*InputSummary!AY1627+AY$11*$I$14*InputSummary!AY18 -> 43.47447947
E46: Total | G46: £m 23/24 prices | AP46: =SUM(AP40:AP45) -> 94.76327023 | AQ46: =SUM(AQ40:AQ45) -> 95.81699725 | AR46: =SUM(AR40:AR45) -> 124.5359748 | AS46: =SUM(AS40:AS45) -> 92.24954177 | AT46: =SUM(AT40:AT45) -> 79.91646756 | AU46: =SUM(AU40:AU45) -> 425.3504338 | AV46: 451.7144477 | AW46: 479.7778243 | AX46: 429.0781163 | AY46: 370.1927945
C48: Variant allowances (including Real Price Effects)
C49: Note: In the table below RPEs are aggregated in three groups: RPE non-variant allowances, PCDs and UMs. This allows to apply the correct capitalisation rate to each group.
E51: =InputSummary!E23 -> Enhancing Pre-existing Infrastructure Projects | F51: SpC 3.10 | G51: =price_label -> £m 23/24 prices | H51: EPIt | I51: PCD | AP51: =AP$10*$I$13*InputSummary!AP1632 + AP$11*$I$14*InputSummary!AP23 -> 8.785159138 | AQ51: =AQ$10*$I$13*InputSummary!AQ1632 + AQ$11*$I$14*InputSummary!AQ23 -> 1.107174153 | AR51: =AR$10*$I$13*InputSummary!AR1632 + AR$11*$I$14*InputSummary!AR23 -> 0 | AS51: =AS$10*$I$13*InputSummary!AS1632 + AS$11*$I$14*InputSummary!AS23 -> 0 | AT51: =AT$10*$I$13*InputSummary!AT1632 + AT$11*$I$14*InputSummary!AT23 -> 0 | AU51: =AU$10*$I$13*InputSummary!AU1632 + AU$11*$I$14*InputSummary!AU23 -> 0 | AV51: =AV$10*$I$13*InputSummary!AV1632 + AV$11*$I$14*InputSummary!AV23 -> 0 | AW51: =AW$10*$I$13*InputSummary!AW1632 + AW$11*$I$14*InputSummary!AW23 -> 0 | AX51: =AX$10*$I$13*InputSummary!AX1632 + AX$11*$I$14*InputSummary!AX23 -> 0 | AY51: =AY$10*$I$13*InputSummary!AY1632 + AY$11*$I$14*InputSummary!AY23 -> 0
E52: =InputSummary!E24 -> Large Onshore Transmission Investment Re-opener Project 1 - Hinckley Sea Bank | F52: SpC 3.13 | G52: £m 23/24 prices | H52: LOTIAt | I52: PCD | AP52: =AP$10*$I$13*InputSummary!AP1633 + AP$11*$I$14*InputSummary!AP24 -> 0 | AQ52: =AQ$10*$I$13*InputSummary!AQ1633 + AQ$11*$I$14*InputSummary!AQ24 -> 0 | AR52: =AR$10*$I$13*InputSummary!AR1633 + AR$11*$I$14*InputSummary!AR24 -> 0 | AS52: =AS$10*$I$13*InputSummary!AS1633 + AS$11*$I$14*InputSummary!AS24 -> 0 | AT52: =AT$10*$I$13*InputSummary!AT1633 + AT$11*$I$14*InputSummary!AT24 -> 0 | AU52: =AU$10*$I$13*InputSummary!AU1633 + AU$11*$I$14*InputSummary!AU24 -> 0 | AV52: =AV$10*$I$13*InputSummary!AV1633 + AV$11*$I$14*InputSummary!AV24 -> 0 | AW52: =AW$10*$I$13*InputSummary!AW1633 + AW$11*$I$14*InputSummary!AW24 -> 0 | AX52: =AX$10*$I$13*InputSummary!AX1633 + AX$11*$I$14*InputSummary!AX24 -> 0 | AY52: =AY$10*$I$13*InputSummary!AY1633 + AY$11*$I$14*InputSummary!AY24 -> 0
E53: =InputSummary!E25 -> Wider Works Price Control Deliverable | F53: SpC 3.9 | G53: £m 23/24 prices | H53: WWt | I53: PCD | AP53: =AP$10*$I$13*InputSummary!AP1634 + AP$11*$I$14*InputSummary!AP25 -> 74.4633775 | AQ53: =AQ$10*$I$13*InputSummary!AQ1634 + AQ$11*$I$14*InputSummary!AQ25 -> 86.53656398 | AR53: =AR$10*$I$13*InputSummary!AR1634 + AR$11*$I$14*InputSummary!AR25 -> 83.84450152 | AS53: =AS$10*$I$13*InputSummary!AS1634 + AS$11*$I$14*InputSummary!AS25 -> 113.990162 | AT53: =AT$10*$I$13*InputSummary!AT1634 + AT$11*$I$14*InputSummary!AT25 -> 104.5074219 | AU53: =AU$10*$I$13*InputSummary!AU1634 + AU$11*$I$14*InputSummary!AU25 -> 0 | AV53: =AV$10*$I$13*InputSummary!AV1634 + AV$11*$I$14*InputSummary!AV25 -> 0 | AW53: =AW$10*$I$13*InputSummary!AW1634 + AW$11*$I$14*InputSummary!AW25 -> 0 | AX53: =AX$10*$I$13*InputSummary!AX1634 + AX$11*$I$14*InputSummary!AX25 -> 0 | AY53: =AY$10*$I$13*InputSummary!AY1634 + AY$11*$I$14*InputSummary!AY25 -> 0
E54: =InputSummary!E26 -> Physical Security Price Control Deliverable | F54: SpC 3.4 | G54: £m 23/24 prices | H54: PSUPt | I54: PCD | AP54: =AP$10*$I$13*InputSummary!AP1635 + AP$11*$I$14*InputSummary!AP26 -> 3.51548708 | AQ54: =AQ$10*$I$13*InputSummary!AQ1635 + AQ$11*$I$14*InputSummary!AQ26 -> 3.528721166 | AR54: =AR$10*$I$13*InputSummary!AR1635 + AR$11*$I$14*InputSummary!AR26 -> 1.179523994 | AS54: =AS$10*$I$13*InputSummary!AS1635 + AS$11*$I$14*InputSummary!AS26 -> 0.02874726918 | AT54: =AT$10*$I$13*InputSummary!AT1635 + AT$11*$I$14*InputSummary!AT26 -> 0.02838792832 | AU54: =AU$10*$I$13*InputSummary!AU1635 + AU$11*$I$14*InputSummary!AU26 -> 0 | AV54: =AV$10*$I$13*InputSummary!AV1635 + AV$11*$I$14*InputSummary!AV26 -> 0 | AW54: =AW$10*$I$13*InputSummary!AW1635 + AW$11*$I$14*InputSummary!AW26 -> 0 | AX54: =AX$10*$I$13*InputSummary!AX1635 + AX$11*$I$14*InputSummary!AX26 -> 0 | AY54: =AY$10*$I$13*InputSummary!AY1635 + AY$11*$I$14*InputSummary!AY26 -> 0
E55: =InputSummary!E27 -> Cyber Resilience OT Baseline | F55: SpC 3.2 | G55: £m 23/24 prices | H55: CROTt | I55: PCD | AP55: =AP$10*$I$13*InputSummary!AP1636 + AP$11*$I$14*InputSummary!AP27 -> 2.03500851 | AQ55: =AQ$10*$I$13*InputSummary!AQ1636 + AQ$11*$I$14*InputSummary!AQ27 -> 0 | AR55: =AR$10*$I$13*InputSummary!AR1636 + AR$11*$I$14*InputSummary!AR27 -> 0 | AS55: =AS$10*$I$13*InputSummary!AS1636 + AS$11*$I$14*InputSummary!AS27 -> 0 | AT55: =AT$10*$I$13*InputSummary!AT1636 + AT$11*$I$14*InputSummary!AT27 -> 0 | AU55: =AU$10*$I$13*InputSummary!AU1636 + AU$11*$I$14*InputSummary!AU27 -> 0 | AV55: =AV$10*$I$13*InputSummary!AV1636 + AV$11*$I$14*InputSummary!AV27 -> 0 | AW55: =AW$10*$I$13*InputSummary!AW1636 + AW$11*$I$14*InputSummary!AW27 -> 0 | AX55: =AX$10*$I$13*InputSummary!AX1636 + AX$11*$I$14*InputSummary!AX27 -> 0 | AY55: =AY$10*$I$13*InputSummary!AY1636 + AY$11*$I$14*InputSummary!AY27 -> 0
E56: =InputSummary!E28 -> Cyber Resilience IT Baseline | F56: SpC 3.3 | G56: £m 23/24 prices | H56: CRITt | I56: PCD | AP56: =AP$10*$I$13*InputSummary!AP1637 + AP$11*$I$14*InputSummary!AP28 -> 1.857807094 | AQ56: =AQ$10*$I$13*InputSummary!AQ1637 + AQ$11*$I$14*InputSummary!AQ28 -> 2.538058148 | AR56: =AR$10*$I$13*InputSummary!AR1637 + AR$11*$I$14*InputSummary!AR28 -> 1.810870689 | AS56: =AS$10*$I$13*InputSummary!AS1637 + AS$11*$I$14*InputSummary!AS28 -> 1.384122087 | AT56: =AT$10*$I$13*InputSummary!AT1637 + AT$11*$I$14*InputSummary!AT28 -> 1.431331431 | AU56: =AU$10*$I$13*InputSummary!AU1637 + AU$11*$I$14*InputSummary!AU28 -> 0 | AV56: =AV$10*$I$13*InputSummary!AV1637 + AV$11*$I$14*InputSummary!AV28 -> 0 | AW56: =AW$10*$I$13*InputSummary!AW1637 + AW$11*$I$14*InputSummary!AW28 -> 0 | AX56: =AX$10*$I$13*InputSummary!AX1637 + AX$11*$I$14*InputSummary!AX28 -> 0 | AY56: =AY$10*$I$13*InputSummary!AY1637 + AY$11*$I$14*InputSummary!AY28 -> 0
E57: =InputSummary!E29 -> Baseline Network Risk Output | F57: SpC 3.1 | G57: £m 23/24 prices | H57: NARMt | I57: PCD | AP57: =AP$10*$I$13*InputSummary!AP1638 + AP$11*$I$14*InputSummary!AP29 -> 115.3197319 | AQ57: =AQ$10*$I$13*InputSummary!AQ1638 + AQ$11*$I$14*InputSummary!AQ29 -> 195.3154654 | AR57: =AR$10*$I$13*InputSummary!AR1638 + AR$11*$I$14*InputSummary!AR29 -> 190.8169519 | AS57: =AS$10*$I$13*InputSummary!AS1638 + AS$11*$I$14*InputSummary!AS29 -> 269.9879512 | AT57: =AT$10*$I$13*InputSummary!AT1638 + AT$11*$I$14*InputSummary!AT29 -> 137.2225887 | AU57: =AU$10*$I$13*InputSummary!AU1638 + AU$11*$I$14*InputSummary!AU29 -> 77.32182422 | AV57: =AV$10*$I$13*InputSummary!AV1638 + AV$11*$I$14*InputSummary!AV29 -> 103.7128323 | AW57: =AW$10*$I$13*InputSummary!AW1638 + AW$11*$I$14*InputSummary!AW29 -> 122.3385972 | AX57: =AX$10*$I$13*InputSummary!AX1638 + AX$11*$I$14*InputSummary!AX29 -> 89.5750284 | AY57: =AY$10*$I$13*InputSummary!AY1638 + AY$11*$I$14*InputSummary!AY29 -> 9.295911571
E58: =InputSummary!E30 -> Generation Related Infrastructure Price Control Deliverable (NGET only) | F58: SpC 3.20 | G58: £m 23/24 prices | H58: GRIt | I58: PCD | AP58: =AP$10*$I$13*InputSummary!AP1639 + AP$11*$I$14*InputSummary!AP30 -> 0 | AQ58: =AQ$10*$I$13*InputSummary!AQ1639 + AQ$11*$I$14*InputSummary!AQ30 -> 0 | AR58: =AR$10*$I$13*InputSummary!AR1639 + AR$11*$I$14*InputSummary!AR30 -> 0 | AS58: =AS$10*$I$13*InputSummary!AS1639 + AS$11*$I$14*InputSummary!AS30 -> 0 | AT58: =AT$10*$I$13*InputSummary!AT1639 + AT$11*$I$14*InputSummary!AT30 -> 0 | AU58: =AU$10*$I$13*InputSummary!AU1639 + AU$11*$I$14*InputSummary!AU30 -> 0 | AV58: =AV$10*$I$13*InputSummary!AV1639 + AV$11*$I$14*InputSummary!AV30 -> 0 | AW58: =AW$10*$I$13*InputSummary!AW1639 + AW$11*$I$14*InputSummary!AW30 -> 0 | AX58: =AX$10*$I$13*InputSummary!AX1639 + AX$11*$I$14*InputSummary!AX30 -> 0 | AY58: =AY$10*$I$13*InputSummary!AY1639 + AY$11*$I$14*InputSummary!AY30 -> 0
E59: =InputSummary!E31 -> Resilience and Operability Price Control Deliverable (SHET and SPTL only) | F59: SpC 3.18 | G59: £m 23/24 prices | H59: ROt | I59: PCD | AP59: =AP$10*$I$13*InputSummary!AP1640 + AP$11*$I$14*InputSummary!AP31 -> 31.47242487 | AQ59: =AQ$10*$I$13*InputSummary!AQ1640 + AQ$11*$I$14*InputSummary!AQ31 -> 49.32955074 | AR59: =AR$10*$I$13*InputSummary!AR1640 + AR$11*$I$14*InputSummary!AR31 -> 48.8159547 | AS59: =AS$10*$I$13*InputSummary!AS1640 + AS$11*$I$14*InputSummary!AS31 -> 48.97913419 | AT59: =AT$10*$I$13*InputSummary!AT1640 + AT$11*$I$14*InputSummary!AT31 -> 30.10946654 | AU59: =AU$10*$I$13*InputSummary!AU1640 + AU$11*$I$14*InputSummary!AU31 -> 0 | AV59: =AV$10*$I$13*InputSummary!AV1640 + AV$11*$I$14*InputSummary!AV31 -> 0 | AW59: =AW$10*$I$13*InputSummary!AW1640 + AW$11*$I$14*InputSummary!AW31 -> 0 | AX59: =AX$10*$I$13*InputSummary!AX1640 + AX$11*$I$14*InputSummary!AX31 -> 0 | AY59: =AY$10*$I$13*InputSummary!AY1640 + AY$11*$I$14*InputSummary!AY31 -> 0
E60: =InputSummary!E32 -> Operational transport carbon reduction Price Control Deliverable (NGET only) | F60: SpC 3.21 | G60: £m 23/24 prices | H60: OTCt | I60: PCD | AP60: =AP$10*$I$13*InputSummary!AP1641 + AP$11*$I$14*InputSummary!AP32 -> 0 | AQ60: =AQ$10*$I$13*InputSummary!AQ1641 + AQ$11*$I$14*InputSummary!AQ32 -> 0 | AR60: =AR$10*$I$13*InputSummary!AR1641 + AR$11*$I$14*InputSummary!AR32 -> 0 | AS60: =AS$10*$I$13*InputSummary!AS1641 + AS$11*$I$14*InputSummary!AS32 -> 0 | AT60: =AT$10*$I$13*InputSummary!AT1641 + AT$11*$I$14*InputSummary!AT32 -> 0 | AU60: =AU$10*$I$13*InputSummary!AU1641 + AU$11*$I$14*InputSummary!AU32 -> 0 | AV60: =AV$10*$I$13*InputSummary!AV1641 + AV$11*$I$14*InputSummary!AV32 -> 0 | AW60: =AW$10*$I$13*InputSummary!AW1641 + AW$11*$I$14*InputSummary!AW32 -> 0 | AX60: =AX$10*$I$13*InputSummary!AX1641 + AX$11*$I$14*InputSummary!AX32 -> 0 | AY60: =AY$10*$I$13*InputSummary!AY1641 + AY$11*$I$14*InputSummary!AY32 -> 0
E61: =InputSummary!E33 -> Shared Schemes Price Control Deliverable (SHET and SPTL only) | F61: SpC 3.17 | G61: £m 23/24 prices | H61: SSt | I61: PCD | AP61: =AP$10*$I$13*InputSummary!AP1642 + AP$11*$I$14*InputSummary!AP33 -> 124.7283368 | AQ61: =AQ$10*$I$13*InputSummary!AQ1642 + AQ$11*$I$14*InputSummary!AQ33 -> 183.3719553 | AR61: =AR$10*$I$13*InputSummary!AR1642 + AR$11*$I$14*InputSummary!AR33 -> 81.50465515 | AS61: =AS$10*$I$13*InputSummary!AS1642 + AS$11*$I$14*InputSummary!AS33 -> -9.689135502 | AT61: =AT$10*$I$13*InputSummary!AT1642 + AT$11*$I$14*InputSummary!AT33 -> 1.311222367 | AU61: =AU$10*$I$13*InputSummary!AU1642 + AU$11*$I$14*InputSummary!AU33 -> 0 | AV61: =AV$10*$I$13*InputSummary!AV1642 + AV$11*$I$14*InputSummary!AV33 -> 0 | AW61: =AW$10*$I$13*InputSummary!AW1642 + AW$11*$I$14*InputSummary!AW33 -> 0 | AX61: =AX$10*$I$13*InputSummary!AX1642 + AX$11*$I$14*InputSummary!AX33 -> 0 | AY61: =AY$10*$I$13*InputSummary!AY1642 + AY$11*$I$14*InputSummary!AY33 -> 0
E62: =InputSummary!E34 -> Enhanced Environmental Requirements use it or lose it allowance (SPTL only) | F62: SpC 3.19 | G62: £m 23/24 prices | H62: EERt | I62: PCD | AP62: =AP$10*$I$13*InputSummary!AP1643 + AP$11*$I$14*InputSummary!AP34 -> 0 | AQ62: =AQ$10*$I$13*InputSummary!AQ1643 + AQ$11*$I$14*InputSummary!AQ34 -> 0 | AR62: =AR$10*$I$13*InputSummary!AR1643 + AR$11*$I$14*InputSummary!AR34 -> 0 | AS62: =AS$10*$I$13*InputSummary!AS1643 + AS$11*$I$14*InputSummary!AS34 -> 0 | AT62: =AT$10*$I$13*InputSummary!AT1643 + AT$11*$I$14*InputSummary!AT34 -> 0 | AU62: =AU$10*$I$13*InputSummary!AU1643 + AU$11*$I$14*InputSummary!AU34 -> 0 | AV62: =AV$10*$I$13*InputSummary!AV1643 + AV$11*$I$14*InputSummary!AV34 -> 0 | AW62: =AW$10*$I$13*InputSummary!AW1643 + AW$11*$I$14*InputSummary!AW34 -> 0 | AX62: =AX$10*$I$13*InputSummary!AX1643 + AX$11*$I$14*InputSummary!AX34 -> 0 | AY62: =AY$10*$I$13*InputSummary!AY1643 + AY$11*$I$14*InputSummary!AY34 -> 0
... 74 more rows

Sheet Totex
A1: Totex
B2: =UserInterface!G17 -> SHET
E3: Parameter | G3: Units | I3: Constant | AP3: Annual values
E4: PCFM year ending | I4: =UserInterface!$G$10 -> 2025-03-31 | K4: 1991-03-31 | L4: 1992-03-31 | M4: 1993-03-31 | N4: 1994-03-31 | O4: 1995-03-31 | P4: 1996-03-31 | Q4: 1997-03-31 | R4: 1998-03-31 | S4: 1999-03-31 | T4: 2000-03-31 | U4: 2001-03-31 | V4: 2002-03-31 | W4: 2003-03-31 | X4: 2004-03-31 | Y4: 2005-03-31 | Z4: 2006-03-31 | AA4: 2007-03-31 | AB4: 2008-03-31 | AC4: 2009-03-31 | AD4: 2010-03-31 | AE4: 2011-03-31 | AF4: 2012-03-31 | AG4: 2013-03-31 | AH4: 2014-03-31 | AI4: 2015-03-31 | AJ4: 2016-03-31 | AK4: 2017-03-31 | AL4: 2018-03-31 | AM4: 2019-03-31 | AN4: 2020-03-31 | AO4: 2021-03-31 | AP4: 2022-03-31 | AQ4: 2023-03-31 | AR4: 2024-03-31 | AS4: 2025-03-31 | AT4: 2026-03-31 | AU4: 2027-03-31 | AV4: 2028-03-31 | AW4: 2029-03-31 | AX4: 2030-03-31 | AY4: =EOMONTH(AX4,12) -> 2031-03-31
AP5: 2 | AQ5: 2 | AR5: 2 | AS5: 2 | AT5: 2 | AU5: 3 | AV5: 3 | AW5: 3 | AX5: 3 | AY5: 3
C7: Price control timeline
E9: Pre-RIIO-2 year | G9: flag | K9: =Scenarios!K$119 -> 1 | L9: =Scenarios!L$119 -> 1 | M9: =Scenarios!M$119 -> 1 | N9: =Scenarios!N$119 -> 1 | O9: =Scenarios!O$119 -> 1 | P9: =Scenarios!P$119 -> 1 | Q9: =Scenarios!Q$119 -> 1 | R9: =Scenarios!R$119 -> 1 | S9: =Scenarios!S$119 -> 1 | T9: =Scenarios!T$119 -> 1 | U9: =Scenarios!U$119 -> 1 | V9: =Scenarios!V$119 -> 1 | W9: =Scenarios!W$119 -> 1 | X9: =Scenarios!X$119 -> 1 | Y9: =Scenarios!Y$119 -> 1 | Z9: =Scenarios!Z$119 -> 1 | AA9: =Scenarios!AA$119 -> 1 | AB9: =Scenarios!AB$119 -> 1 | AC9: =Scenarios!AC$119 -> 1 | AD9: =Scenarios!AD$119 -> 1 | AE9: =Scenarios!AE$119 -> 1 | AF9: =Scenarios!AF$119 -> 1 | AG9: =Scenarios!AG$119 -> 1 | AH9: =Scenarios!AH$119 -> 1 | AI9: =Scenarios!AI$119 -> 1 | AJ9: =Scenarios!AJ$119 -> 1 | AK9: =Scenarios!AK$119 -> 1 | AL9: =Scenarios!AL$119 -> 1 | AM9: =Scenarios!AM$119 -> 1 | AN9: =Scenarios!AN$119 -> 1 | AO9: =Scenarios!AO$119 -> 1 | AP9: =Scenarios!AP$119 -> 0 | AQ9: =Scenarios!AQ$119 -> 0 | AR9: =Scenarios!AR$119 -> 0 | AS9: =Scenarios!AS$119 -> 0 | AT9: =Scenarios!AT$119 -> 0 | AU9: =Scenarios!AU$119 -> 0 | AV9: =Scenarios!AV$119 -> 0 | AW9: =Scenarios!AW$119 -> 0 | AX9: =Scenarios!AX$119 -> 0 | AY9: =Scenarios!AY$119 -> 0
E10: RIIO-2 year | G10: flag | K10: =Scenarios!K$120 -> 0 | L10: =Scenarios!L$120 -> 0 | M10: =Scenarios!M$120 -> 0 | N10: =Scenarios!N$120 -> 0 | O10: =Scenarios!O$120 -> 0 | P10: =Scenarios!P$120 -> 0 | Q10: =Scenarios!Q$120 -> 0 | R10: =Scenarios!R$120 -> 0 | S10: =Scenarios!S$120 -> 0 | T10: =Scenarios!T$120 -> 0 | U10: =Scenarios!U$120 -> 0 | V10: =Scenarios!V$120 -> 0 | W10: =Scenarios!W$120 -> 0 | X10: =Scenarios!X$120 -> 0 | Y10: =Scenarios!Y$120 -> 0 | Z10: =Scenarios!Z$120 -> 0 | AA10: =Scenarios!AA$120 -> 0 | AB10: =Scenarios!AB$120 -> 0 | AC10: =Scenarios!AC$120 -> 0 | AD10: =Scenarios!AD$120 -> 0 | AE10: =Scenarios!AE$120 -> 0 | AF10: =Scenarios!AF$120 -> 0 | AG10: =Scenarios!AG$120 -> 0 | AH10: =Scenarios!AH$120 -> 0 | AI10: =Scenarios!AI$120 -> 0 | AJ10: =Scenarios!AJ$120 -> 0 | AK10: =Scenarios!AK$120 -> 0 | AL10: =Scenarios!AL$120 -> 0 | AM10: =Scenarios!AM$120 -> 0 | AN10: =Scenarios!AN$120 -> 0 | AO10: =Scenarios!AO$120 -> 0 | AP10: =Scenarios!AP$120 -> 1 | AQ10: =Scenarios!AQ$120 -> 1 | AR10: =Scenarios!AR$120 -> 1 | AS10: =Scenarios!AS$120 -> 1 | AT10: =Scenarios!AT$120 -> 1 | AU10: =Scenarios!AU$120 -> 0 | AV10: =Scenarios!AV$120 -> 0 | AW10: =Scenarios!AW$120 -> 0 | AX10: =Scenarios!AX$120 -> 0 | AY10: =Scenarios!AY$120 -> 0
E11: RIIO-3 year | G11: flag | K11: =Scenarios!K$121 -> 0 | L11: =Scenarios!L$121 -> 0 | M11: =Scenarios!M$121 -> 0 | N11: =Scenarios!N$121 -> 0 | O11: =Scenarios!O$121 -> 0 | P11: =Scenarios!P$121 -> 0 | Q11: =Scenarios!Q$121 -> 0 | R11: =Scenarios!R$121 -> 0 | S11: =Scenarios!S$121 -> 0 | T11: =Scenarios!T$121 -> 0 | U11: =Scenarios!U$121 -> 0 | V11: =Scenarios!V$121 -> 0 | W11: =Scenarios!W$121 -> 0 | X11: =Scenarios!X$121 -> 0 | Y11: =Scenarios!Y$121 -> 0 | Z11: =Scenarios!Z$121 -> 0 | AA11: =Scenarios!AA$121 -> 0 | AB11: =Scenarios!AB$121 -> 0 | AC11: =Scenarios!AC$121 -> 0 | AD11: =Scenarios!AD$121 -> 0 | AE11: =Scenarios!AE$121 -> 0 | AF11: =Scenarios!AF$121 -> 0 | AG11: =Scenarios!AG$121 -> 0 | AH11: =Scenarios!AH$121 -> 0 | AI11: =Scenarios!AI$121 -> 0 | AJ11: =Scenarios!AJ$121 -> 0 | AK11: =Scenarios!AK$121 -> 0 | AL11: =Scenarios!AL$121 -> 0 | AM11: =Scenarios!AM$121 -> 0 | AN11: =Scenarios!AN$121 -> 0 | AO11: =Scenarios!AO$121 -> 0 | AP11: =Scenarios!AP$121 -> 0 | AQ11: =Scenarios!AQ$121 -> 0 | AR11: =Scenarios!AR$121 -> 0 | AS11: =Scenarios!AS$121 -> 0 | AT11: =Scenarios!AT$121 -> 0 | AU11: =Scenarios!AU$121 -> 1 | AV11: =Scenarios!AV$121 -> 1 | AW11: =Scenarios!AW$121 -> 1 | AX11: =Scenarios!AX$121 -> 1 | AY11: =Scenarios!AY$121 -> 1
C13: Scenario operators
E15: User multiplier for allowed totex | G15: % | AP15: =Scenarios!AP130 -> 0 | AQ15: =Scenarios!AQ130 -> 0 | AR15: =Scenarios!AR130 -> 0 | AS15: =Scenarios!AS130 -> 0 | AT15: =Scenarios!AT130 -> 0 | AU15: =Scenarios!AU130 -> 1 | AV15: =Scenarios!AV130 -> 1 | AW15: =Scenarios!AW130 -> 1 | AX15: =Scenarios!AX130 -> 1 | AY15: =Scenarios!AY130 -> 1
E16: User multiplier for actual totex | G16: % | AP16: =Scenarios!AP131 -> 0 | AQ16: =Scenarios!AQ131 -> 0 | AR16: =Scenarios!AR131 -> 0 | AS16: =Scenarios!AS131 -> 0 | AT16: =Scenarios!AT131 -> 0 | AU16: =Scenarios!AU131 -> 1 | AV16: =Scenarios!AV131 -> 1 | AW16: =Scenarios!AW131 -> 1 | AX16: =Scenarios!AX131 -> 1 | AY16: =Scenarios!AY131 -> 1
B18: Totex
C20: Allowed totex aggregated by sub-category
C21: Note: Totex is the sum of a number of cost categories, with all totex allowances falling under one (or more) of them. They have significance in the model as each sub-category can have its own set of tax pool allocation rules.
D23: Capitalisation rate 1 totex
E25: Load related capex | G25: =price_label -> £m 23/24 prices | AP25: =(MainInputs!AP40 + SUMPRODUCT((MainInputs!AP$1599:AP$2504) * (MainInputs!$H$1599:$H$2504 = $E25) * (MainInputs!$BE$1599:$BE$2504 = "CapRate 1 (Baseline)")))*(AP$10+AP$11*AP$15) -> 173.5082419 | AQ25: =(MainInputs!AQ40 + SUMPRODUCT((MainInputs!AQ$1599:AQ$2504) * (MainInputs!$H$1599:$H$2504 = $E25) * (MainInputs!$BE$1599:$BE$2504 = "CapRate 1 (Baseline)")))*(AQ$10+AQ$11*AQ$15) -> 240.3289638 | AR25: =(MainInputs!AR40 + SUMPRODUCT((MainInputs!AR$1599:AR$2504) * (MainInputs!$H$1599:$H$2504 = $E25) * (MainInputs!$BE$1599:$BE$2504 = "CapRate 1 (Baseline)")))*(AR$10+AR$11*AR$15) -> 189.732355 | AS25: =(MainInputs!AS40 + SUMPRODUCT((MainInputs!AS$1599:AS$2504) * (MainInputs!$H$1599:$H$2504 = $E25) * (MainInputs!$BE$1599:$BE$2504 = "CapRate 1 (Baseline)")))*(AS$10+AS$11*AS$15) -> 204.8155066 | AT25: =(MainInputs!AT40 + SUMPRODUCT((MainInputs!AT$1599:AT$2504) * (MainInputs!$H$1599:$H$2504 = $E25) * (MainInputs!$BE$1599:$BE$2504 = "CapRate 1 (Baseline)")))*(AT$10+AT$11*AT$15) -> 139.1398784 | AU25: =(MainInputs!AU40 + SUMPRODUCT((MainInputs!AU$1599:AU$2504) * (MainInputs!$H$1599:$H$2504 = $E25) * (MainInputs!$BE$1599:$BE$2504 = "CapRate 1 (Baseline)")))*(AU$10+AU$11*AU$15) -> 216.8193101 | AV25: =(MainInputs!AV40 + SUMPRODUCT((MainInputs!AV$1599:AV$2504) * (MainInputs!$H$1599:$H$2504 = $E25) * (MainInputs!$BE$1599:$BE$2504 = "CapRate 1 (Baseline)")))*(AV$10+AV$11*AV$15) -> 282.4873292 | AW25: =(MainInputs!AW40 + SUMPRODUCT((MainInputs!AW$1599:AW$2504) * (MainInputs!$H$1599:$H$2504 = $E25) * (MainInputs!$BE$1599:$BE$2504 = "CapRate 1 (Baseline)")))*(AW$10+AW$11*AW$15) -> 299.1997422 | AX25: =(MainInputs!AX40 + SUMPRODUCT((MainInputs!AX$1599:AX$2504) * (MainInputs!$H$1599:$H$2504 = $E25) * (MainInputs!$BE$1599:$BE$2504 = "CapRate 1 (Baseline)")))*(AX$10+AX$11*AX$15) -> 265.4932532 | AY25: =(MainInputs!AY40 + SUMPRODUCT((MainInputs!AY$1599:AY$2504) * (MainInputs!$H$1599:$H$2504 = $E25) * (MainInputs!$BE$1599:$BE$2504 = "CapRate 1 (Baseline)")))*(AY$10+AY$11*AY$15) -> 210.8384119
E26: Asset replacement capex | G26: £m 23/24 prices | AP26: =(MainInputs!AP41 + SUMPRODUCT((MainInputs!AP$1599:AP$2504) * (MainInputs!$H$1599:$H$2504 = $E26) * (MainInputs!$BE$1599:$BE$2504 = "CapRate 1 (Baseline)")))*(AP$10+AP$11*AP$15) -> 159.3154241 | AQ26: =(MainInputs!AQ41 + SUMPRODUCT((MainInputs!AQ$1599:AQ$2504) * (MainInputs!$H$1599:$H$2504 = $E26) * (MainInputs!$BE$1599:$BE$2504 = "CapRate 1 (Baseline)")))*(AQ$10+AQ$11*AQ$15) -> 224.101711 | AR26: =(MainInputs!AR41 + SUMPRODUCT((MainInputs!AR$1599:AR$2504) * (MainInputs!$H$1599:$H$2504 = $E26) * (MainInputs!$BE$1599:$BE$2504 = "CapRate 1 (Baseline)")))*(AR$10+AR$11*AR$15) -> 195.1795498 | AS26: =(MainInputs!AS41 + SUMPRODUCT((MainInputs!AS$1599:AS$2504) * (MainInputs!$H$1599:$H$2504 = $E26) * (MainInputs!$BE$1599:$BE$2504 = "CapRate 1 (Baseline)")))*(AS$10+AS$11*AS$15) -> 195.1386039 | AT26: =(MainInputs!AT41 + SUMPRODUCT((MainInputs!AT$1599:AT$2504) * (MainInputs!$H$1599:$H$2504 = $E26) * (MainInputs!$BE$1599:$BE$2504 = "CapRate 1 (Baseline)")))*(AT$10+AT$11*AT$15) -> 123.5268655 | AU26: =(MainInputs!AU41 + SUMPRODUCT((MainInputs!AU$1599:AU$2504) * (MainInputs!$H$1599:$H$2504 = $E26) * (MainInputs!$BE$1599:$BE$2504 = "CapRate 1 (Baseline)")))*(AU$10+AU$11*AU$15) -> 295.0249554 | AV26: =(MainInputs!AV41 + SUMPRODUCT((MainInputs!AV$1599:AV$2504) * (MainInputs!$H$1599:$H$2504 = $E26) * (MainInputs!$BE$1599:$BE$2504 = "CapRate 1 (Baseline)")))*(AV$10+AV$11*AV$15) -> 306.6242422 | AW26: =(MainInputs!AW41 + SUMPRODUCT((MainInputs!AW$1599:AW$2504) * (MainInputs!$H$1599:$H$2504 = $E26) * (MainInputs!$BE$1599:$BE$2504 = "CapRate 1 (Baseline)")))*(AW$10+AW$11*AW$15) -> 354.3954516 | AX26: =(MainInputs!AX41 + SUMPRODUCT((MainInputs!AX$1599:AX$2504) * (MainInputs!$H$1599:$H$2504 = $E26) * (MainInputs!$BE$1599:$BE$2504 = "CapRate 1 (Baseline)")))*(AX$10+AX$11*AX$15) -> 248.5933144 | AY26: =(MainInputs!AY41 + SUMPRODUCT((MainInputs!AY$1599:AY$2504) * (MainInputs!$H$1599:$H$2504 = $E26) * (MainInputs!$BE$1599:$BE$2504 = "CapRate 1 (Baseline)")))*(AY$10+AY$11*AY$15) -> 103.4705646
E27: Other capex | G27: £m 23/24 prices | AP27: =(MainInputs!AP42 + SUMPRODUCT((MainInputs!AP$1599:AP$2504) * (MainInputs!$H$1599:$H$2504 = $E27) * (MainInputs!$BE$1599:$BE$2504 = "CapRate 1 (Baseline)")))*(AP$10+AP$11*AP$15) -> 18.57691493 | AQ27: =(MainInputs!AQ42 + SUMPRODUCT((MainInputs!AQ$1599:AQ$2504) * (MainInputs!$H$1599:$H$2504 = $E27) * (MainInputs!$BE$1599:$BE$2504 = "CapRate 1 (Baseline)")))*(AQ$10+AQ$11*AQ$15) -> 11.34055398 | AR27: =(MainInputs!AR42 + SUMPRODUCT((MainInputs!AR$1599:AR$2504) * (MainInputs!$H$1599:$H$2504 = $E27) * (MainInputs!$BE$1599:$BE$2504 = "CapRate 1 (Baseline)")))*(AR$10+AR$11*AR$15) -> 10.15380097 | AS27: =(MainInputs!AS42 + SUMPRODUCT((MainInputs!AS$1599:AS$2504) * (MainInputs!$H$1599:$H$2504 = $E27) * (MainInputs!$BE$1599:$BE$2504 = "CapRate 1 (Baseline)")))*(AS$10+AS$11*AS$15) -> 8.52876811 | AT27: =(MainInputs!AT42 + SUMPRODUCT((MainInputs!AT$1599:AT$2504) * (MainInputs!$H$1599:$H$2504 = $E27) * (MainInputs!$BE$1599:$BE$2504 = "CapRate 1 (Baseline)")))*(AT$10+AT$11*AT$15) -> 7.105021676 | AU27: =(MainInputs!AU42 + SUMPRODUCT((MainInputs!AU$1599:AU$2504) * (MainInputs!$H$1599:$H$2504 = $E27) * (MainInputs!$BE$1599:$BE$2504 = "CapRate 1 (Baseline)")))*(AU$10+AU$11*AU$15) -> 26.25842784 | AV27: =(MainInputs!AV42 + SUMPRODUCT((MainInputs!AV$1599:AV$2504) * (MainInputs!$H$1599:$H$2504 = $E27) * (MainInputs!$BE$1599:$BE$2504 = "CapRate 1 (Baseline)")))*(AV$10+AV$11*AV$15) -> 31.80447057 | AW27: =(MainInputs!AW42 + SUMPRODUCT((MainInputs!AW$1599:AW$2504) * (MainInputs!$H$1599:$H$2504 = $E27) * (MainInputs!$BE$1599:$BE$2504 = "CapRate 1 (Baseline)")))*(AW$10+AW$11*AW$15) -> 33.08864695 | AX27: =(MainInputs!AX42 + SUMPRODUCT((MainInputs!AX$1599:AX$2504) * (MainInputs!$H$1599:$H$2504 = $E27) * (MainInputs!$BE$1599:$BE$2504 = "CapRate 1 (Baseline)")))*(AX$10+AX$11*AX$15) -> 29.71380792 | AY27: =(MainInputs!AY42 + SUMPRODUCT((MainInputs!AY$1599:AY$2504) * (MainInputs!$H$1599:$H$2504 = $E27) * (MainInputs!$BE$1599:$BE$2504 = "CapRate 1 (Baseline)")))*(AY$10+AY$11*AY$15) -> 25.2787531
E28: Network operating costs (opex) | G28: £m 23/24 prices | AP28: =(MainInputs!AP43 + SUMPRODUCT((MainInputs!AP$1599:AP$2504) * (MainInputs!$H$1599:$H$2504 = $E28) * (MainInputs!$BE$1599:$BE$2504 = "CapRate 1 (Baseline)")))*(AP$10+AP$11*AP$15) -> 30.1292254 | AQ28: =(MainInputs!AQ43 + SUMPRODUCT((MainInputs!AQ$1599:AQ$2504) * (MainInputs!$H$1599:$H$2504 = $E28) * (MainInputs!$BE$1599:$BE$2504 = "CapRate 1 (Baseline)")))*(AQ$10+AQ$11*AQ$15) -> 47.00646343 | AR28: =(MainInputs!AR43 + SUMPRODUCT((MainInputs!AR$1599:AR$2504) * (MainInputs!$H$1599:$H$2504 = $E28) * (MainInputs!$BE$1599:$BE$2504 = "CapRate 1 (Baseline)")))*(AR$10+AR$11*AR$15) -> 42.75320125 | AS28: =(MainInputs!AS43 + SUMPRODUCT((MainInputs!AS$1599:AS$2504) * (MainInputs!$H$1599:$H$2504 = $E28) * (MainInputs!$BE$1599:$BE$2504 = "CapRate 1 (Baseline)")))*(AS$10+AS$11*AS$15) -> 47.20067527 | AT28: =(MainInputs!AT43 + SUMPRODUCT((MainInputs!AT$1599:AT$2504) * (MainInputs!$H$1599:$H$2504 = $E28) * (MainInputs!$BE$1599:$BE$2504 = "CapRate 1 (Baseline)")))*(AT$10+AT$11*AT$15) -> 25.27740098 | AU28: =(MainInputs!AU43 + SUMPRODUCT((MainInputs!AU$1599:AU$2504) * (MainInputs!$H$1599:$H$2504 = $E28) * (MainInputs!$BE$1599:$BE$2504 = "CapRate 1 (Baseline)")))*(AU$10+AU$11*AU$15) -> 146.0086461 | AV28: =(MainInputs!AV43 + SUMPRODUCT((MainInputs!AV$1599:AV$2504) * (MainInputs!$H$1599:$H$2504 = $E28) * (MainInputs!$BE$1599:$BE$2504 = "CapRate 1 (Baseline)")))*(AV$10+AV$11*AV$15) -> 150.7036842 | AW28: =(MainInputs!AW43 + SUMPRODUCT((MainInputs!AW$1599:AW$2504) * (MainInputs!$H$1599:$H$2504 = $E28) * (MainInputs!$BE$1599:$BE$2504 = "CapRate 1 (Baseline)")))*(AW$10+AW$11*AW$15) -> 185.6804854 | AX28: =(MainInputs!AX43 + SUMPRODUCT((MainInputs!AX$1599:AX$2504) * (MainInputs!$H$1599:$H$2504 = $E28) * (MainInputs!$BE$1599:$BE$2504 = "CapRate 1 (Baseline)")))*(AX$10+AX$11*AX$15) -> 180.7137952 | AY28: =(MainInputs!AY43 + SUMPRODUCT((MainInputs!AY$1599:AY$2504) * (MainInputs!$H$1599:$H$2504 = $E28) * (MainInputs!$BE$1599:$BE$2504 = "CapRate 1 (Baseline)")))*(AY$10+AY$11*AY$15) -> 171.5134463
E29: Indirects (opex) | G29: £m 23/24 prices | AP29: =(MainInputs!AP44 + SUMPRODUCT((MainInputs!AP$1599:AP$2504) * (MainInputs!$H$1599:$H$2504 = $E29) * (MainInputs!$BE$1599:$BE$2504 = "CapRate 1 (Baseline)")))*(AP$10+AP$11*AP$15) -> 79.94605233 | AQ29: =(MainInputs!AQ44 + SUMPRODUCT((MainInputs!AQ$1599:AQ$2504) * (MainInputs!$H$1599:$H$2504 = $E29) * (MainInputs!$BE$1599:$BE$2504 = "CapRate 1 (Baseline)")))*(AQ$10+AQ$11*AQ$15) -> 84.17638519 | AR29: =(MainInputs!AR44 + SUMPRODUCT((MainInputs!AR$1599:AR$2504) * (MainInputs!$H$1599:$H$2504 = $E29) * (MainInputs!$BE$1599:$BE$2504 = "CapRate 1 (Baseline)")))*(AR$10+AR$11*AR$15) -> 83.27438295 | AS29: =(MainInputs!AS44 + SUMPRODUCT((MainInputs!AS$1599:AS$2504) * (MainInputs!$H$1599:$H$2504 = $E29) * (MainInputs!$BE$1599:$BE$2504 = "CapRate 1 (Baseline)")))*(AS$10+AS$11*AS$15) -> 83.40358131 | AT29: =(MainInputs!AT44 + SUMPRODUCT((MainInputs!AT$1599:AT$2504) * (MainInputs!$H$1599:$H$2504 = $E29) * (MainInputs!$BE$1599:$BE$2504 = "CapRate 1 (Baseline)")))*(AT$10+AT$11*AT$15) -> 82.85834768 | AU29: =(MainInputs!AU44 + SUMPRODUCT((MainInputs!AU$1599:AU$2504) * (MainInputs!$H$1599:$H$2504 = $E29) * (MainInputs!$BE$1599:$BE$2504 = "CapRate 1 (Baseline)")))*(AU$10+AU$11*AU$15) -> 271.7318851 | AV29: =(MainInputs!AV44 + SUMPRODUCT((MainInputs!AV$1599:AV$2504) * (MainInputs!$H$1599:$H$2504 = $E29) * (MainInputs!$BE$1599:$BE$2504 = "CapRate 1 (Baseline)")))*(AV$10+AV$11*AV$15) -> 289.6427366 | AW29: =(MainInputs!AW44 + SUMPRODUCT((MainInputs!AW$1599:AW$2504) * (MainInputs!$H$1599:$H$2504 = $E29) * (MainInputs!$BE$1599:$BE$2504 = "CapRate 1 (Baseline)")))*(AW$10+AW$11*AW$15) -> 299.5256553 | AX29: =(MainInputs!AX44 + SUMPRODUCT((MainInputs!AX$1599:AX$2504) * (MainInputs!$H$1599:$H$2504 = $E29) * (MainInputs!$BE$1599:$BE$2504 = "CapRate 1 (Baseline)")))*(AX$10+AX$11*AX$15) -> 286.3857873 | AY29: =(MainInputs!AY44 + SUMPRODUCT((MainInputs!AY$1599:AY$2504) * (MainInputs!$H$1599:$H$2504 = $E29) * (MainInputs!$BE$1599:$BE$2504 = "CapRate 1 (Baseline)")))*(AY$10+AY$11*AY$15) -> 273.8028577
E30: Non-operational capex | G30: £m 23/24 prices | AP30: =(MainInputs!AP45 + SUMPRODUCT((MainInputs!AP$1599:AP$2504) * (MainInputs!$H$1599:$H$2504 = $E30) * (MainInputs!$BE$1599:$BE$2504 = "CapRate 1 (Baseline)")))*(AP$10+AP$11*AP$15) -> 24.15965956 | AQ30: =(MainInputs!AQ45 + SUMPRODUCT((MainInputs!AQ$1599:AQ$2504) * (MainInputs!$H$1599:$H$2504 = $E30) * (MainInputs!$BE$1599:$BE$2504 = "CapRate 1 (Baseline)")))*(AQ$10+AQ$11*AQ$15) -> 41.84115032 | AR30: =(MainInputs!AR45 + SUMPRODUCT((MainInputs!AR$1599:AR$2504) * (MainInputs!$H$1599:$H$2504 = $E30) * (MainInputs!$BE$1599:$BE$2504 = "CapRate 1 (Baseline)")))*(AR$10+AR$11*AR$15) -> 33.95758141 | AS30: =(MainInputs!AS45 + SUMPRODUCT((MainInputs!AS$1599:AS$2504) * (MainInputs!$H$1599:$H$2504 = $E30) * (MainInputs!$BE$1599:$BE$2504 = "CapRate 1 (Baseline)")))*(AS$10+AS$11*AS$15) -> 11.00988053 | AT30: =(MainInputs!AT45 + SUMPRODUCT((MainInputs!AT$1599:AT$2504) * (MainInputs!$H$1599:$H$2504 = $E30) * (MainInputs!$BE$1599:$BE$2504 = "CapRate 1 (Baseline)")))*(AT$10+AT$11*AT$15) -> 8.789816031 | AU30: =(MainInputs!AU45 + SUMPRODUCT((MainInputs!AU$1599:AU$2504) * (MainInputs!$H$1599:$H$2504 = $E30) * (MainInputs!$BE$1599:$BE$2504 = "CapRate 1 (Baseline)")))*(AU$10+AU$11*AU$15) -> 90.08094367 | AV30: =(MainInputs!AV45 + SUMPRODUCT((MainInputs!AV$1599:AV$2504) * (MainInputs!$H$1599:$H$2504 = $E30) * (MainInputs!$BE$1599:$BE$2504 = "CapRate 1 (Baseline)")))*(AV$10+AV$11*AV$15) -> 106.8200625 | AW30: =(MainInputs!AW45 + SUMPRODUCT((MainInputs!AW$1599:AW$2504) * (MainInputs!$H$1599:$H$2504 = $E30) * (MainInputs!$BE$1599:$BE$2504 = "CapRate 1 (Baseline)")))*(AW$10+AW$11*AW$15) -> 104.6526098 | AX30: =(MainInputs!AX45 + SUMPRODUCT((MainInputs!AX$1599:AX$2504) * (MainInputs!$H$1599:$H$2504 = $E30) * (MainInputs!$BE$1599:$BE$2504 = "CapRate 1 (Baseline)")))*(AX$10+AX$11*AX$15) -> 86.09672754 | AY30: =(MainInputs!AY45 + SUMPRODUCT((MainInputs!AY$1599:AY$2504) * (MainInputs!$H$1599:$H$2504 = $E30) * (MainInputs!$BE$1599:$BE$2504 = "CapRate 1 (Baseline)")))*(AY$10+AY$11*AY$15) -> 50.85624002
D32: Capitalisation rate 2 totex
E34: Load related capex | G34: =price_label -> £m 23/24 prices | AP34: =(SUMPRODUCT((MainInputs!AP$1599:AP$2504) * (MainInputs!$H$1599:$H$2504 = $E34) * (MainInputs!$BE$1599:$ED$2504 = "CapRate 2 (UM)")))*(AP$10+AP$11*AP$15) -> 417.2484552 | AQ34: =(SUMPRODUCT((MainInputs!AQ$1599:AQ$2504) * (MainInputs!$H$1599:$H$2504 = $E34) * (MainInputs!$BE$1599:$ED$2504 = "CapRate 2 (UM)")))*(AQ$10+AQ$11*AQ$15) -> 309.2686698 | AR34: =(SUMPRODUCT((MainInputs!AR$1599:AR$2504) * (MainInputs!$H$1599:$H$2504 = $E34) * (MainInputs!$BE$1599:$ED$2504 = "CapRate 2 (UM)")))*(AR$10+AR$11*AR$15) -> 638.6863413 | AS34: =(SUMPRODUCT((MainInputs!AS$1599:AS$2504) * (MainInputs!$H$1599:$H$2504 = $E34) * (MainInputs!$BE$1599:$ED$2504 = "CapRate 2 (UM)")))*(AS$10+AS$11*AS$15) -> 1394.542223 | AT34: =(SUMPRODUCT((MainInputs!AT$1599:AT$2504) * (MainInputs!$H$1599:$H$2504 = $E34) * (MainInputs!$BE$1599:$ED$2504 = "CapRate 2 (UM)")))*(AT$10+AT$11*AT$15) -> 2088.274289 | AU34: =(SUMPRODUCT((MainInputs!AU$1599:AU$2504) * (MainInputs!$H$1599:$H$2504 = $E34) * (MainInputs!$BE$1599:$ED$2504 = "CapRate 2 (UM)")))*(AU$10+AU$11*AU$15) -> 2958.613143 | AV34: =(SUMPRODUCT((MainInputs!AV$1599:AV$2504) * (MainInputs!$H$1599:$H$2504 = $E34) * (MainInputs!$BE$1599:$ED$2504 = "CapRate 2 (UM)")))*(AV$10+AV$11*AV$15) -> 5227.458918 | AW34: =(SUMPRODUCT((MainInputs!AW$1599:AW$2504) * (MainInputs!$H$1599:$H$2504 = $E34) * (MainInputs!$BE$1599:$ED$2504 = "CapRate 2 (UM)")))*(AW$10+AW$11*AW$15) -> 6245.449443 | AX34: =(SUMPRODUCT((MainInputs!AX$1599:AX$2504) * (MainInputs!$H$1599:$H$2504 = $E34) * (MainInputs!$BE$1599:$ED$2504 = "CapRate 2 (UM)")))*(AX$10+AX$11*AX$15) -> 5252.329386 | AY34: =(SUMPRODUCT((MainInputs!AY$1599:AY$2504) * (MainInputs!$H$1599:$H$2504 = $E34) * (MainInputs!$BE$1599:$ED$2504 = "CapRate 2 (UM)")))*(AY$10+AY$11*AY$15) -> 5454.855562
E35: Asset replacement capex | G35: £m 23/24 prices | AP35: =(SUMPRODUCT((MainInputs!AP$1599:AP$2504) * (MainInputs!$H$1599:$H$2504 = $E35) * (MainInputs!$BE$1599:$ED$2504 = "CapRate 2 (UM)")))*(AP$10+AP$11*AP$15) -> 0 | AQ35: =(SUMPRODUCT((MainInputs!AQ$1599:AQ$2504) * (MainInputs!$H$1599:$H$2504 = $E35) * (MainInputs!$BE$1599:$ED$2504 = "CapRate 2 (UM)")))*(AQ$10+AQ$11*AQ$15) -> 0 | AR35: =(SUMPRODUCT((MainInputs!AR$1599:AR$2504) * (MainInputs!$H$1599:$H$2504 = $E35) * (MainInputs!$BE$1599:$ED$2504 = "CapRate 2 (UM)")))*(AR$10+AR$11*AR$15) -> 0 | AS35: =(SUMPRODUCT((MainInputs!AS$1599:AS$2504) * (MainInputs!$H$1599:$H$2504 = $E35) * (MainInputs!$BE$1599:$ED$2504 = "CapRate 2 (UM)")))*(AS$10+AS$11*AS$15) -> 0 | AT35: =(SUMPRODUCT((MainInputs!AT$1599:AT$2504) * (MainInputs!$H$1599:$H$2504 = $E35) * (MainInputs!$BE$1599:$ED$2504 = "CapRate 2 (UM)")))*(AT$10+AT$11*AT$15) -> 0 | AU35: =(SUMPRODUCT((MainInputs!AU$1599:AU$2504) * (MainInputs!$H$1599:$H$2504 = $E35) * (MainInputs!$BE$1599:$ED$2504 = "CapRate 2 (UM)")))*(AU$10+AU$11*AU$15) -> 0 | AV35: =(SUMPRODUCT((MainInputs!AV$1599:AV$2504) * (MainInputs!$H$1599:$H$2504 = $E35) * (MainInputs!$BE$1599:$ED$2504 = "CapRate 2 (UM)")))*(AV$10+AV$11*AV$15) -> 0 | AW35: =(SUMPRODUCT((MainInputs!AW$1599:AW$2504) * (MainInputs!$H$1599:$H$2504 = $E35) * (MainInputs!$BE$1599:$ED$2504 = "CapRate 2 (UM)")))*(AW$10+AW$11*AW$15) -> 0 | AX35: =(SUMPRODUCT((MainInputs!AX$1599:AX$2504) * (MainInputs!$H$1599:$H$2504 = $E35) * (MainInputs!$BE$1599:$ED$2504 = "CapRate 2 (UM)")))*(AX$10+AX$11*AX$15) -> 3.54618 | AY35: =(SUMPRODUCT((MainInputs!AY$1599:AY$2504) * (MainInputs!$H$1599:$H$2504 = $E35) * (MainInputs!$BE$1599:$ED$2504 = "CapRate 2 (UM)")))*(AY$10+AY$11*AY$15) -> 3.54618
E36: Other capex | G36: £m 23/24 prices | AP36: =(SUMPRODUCT((MainInputs!AP$1599:AP$2504) * (MainInputs!$H$1599:$H$2504 = $E36) * (MainInputs!$BE$1599:$ED$2504 = "CapRate 2 (UM)")))*(AP$10+AP$11*AP$15) -> 0 | AQ36: =(SUMPRODUCT((MainInputs!AQ$1599:AQ$2504) * (MainInputs!$H$1599:$H$2504 = $E36) * (MainInputs!$BE$1599:$ED$2504 = "CapRate 2 (UM)")))*(AQ$10+AQ$11*AQ$15) -> 0 | AR36: =(SUMPRODUCT((MainInputs!AR$1599:AR$2504) * (MainInputs!$H$1599:$H$2504 = $E36) * (MainInputs!$BE$1599:$ED$2504 = "CapRate 2 (UM)")))*(AR$10+AR$11*AR$15) -> 0 | AS36: =(SUMPRODUCT((MainInputs!AS$1599:AS$2504) * (MainInputs!$H$1599:$H$2504 = $E36) * (MainInputs!$BE$1599:$ED$2504 = "CapRate 2 (UM)")))*(AS$10+AS$11*AS$15) -> 0 | AT36: =(SUMPRODUCT((MainInputs!AT$1599:AT$2504) * (MainInputs!$H$1599:$H$2504 = $E36) * (MainInputs!$BE$1599:$ED$2504 = "CapRate 2 (UM)")))*(AT$10+AT$11*AT$15) -> 0 | AU36: =(SUMPRODUCT((MainInputs!AU$1599:AU$2504) * (MainInputs!$H$1599:$H$2504 = $E36) * (MainInputs!$BE$1599:$ED$2504 = "CapRate 2 (UM)")))*(AU$10+AU$11*AU$15) -> 0 | AV36: =(SUMPRODUCT((MainInputs!AV$1599:AV$2504) * (MainInputs!$H$1599:$H$2504 = $E36) * (MainInputs!$BE$1599:$ED$2504 = "CapRate 2 (UM)")))*(AV$10+AV$11*AV$15) -> 0 | AW36: =(SUMPRODUCT((MainInputs!AW$1599:AW$2504) * (MainInputs!$H$1599:$H$2504 = $E36) * (MainInputs!$BE$1599:$ED$2504 = "CapRate 2 (UM)")))*(AW$10+AW$11*AW$15) -> 0 | AX36: =(SUMPRODUCT((MainInputs!AX$1599:AX$2504) * (MainInputs!$H$1599:$H$2504 = $E36) * (MainInputs!$BE$1599:$ED$2504 = "CapRate 2 (UM)")))*(AX$10+AX$11*AX$15) -> 0.07164 | AY36: =(SUMPRODUCT((MainInputs!AY$1599:AY$2504) * (MainInputs!$H$1599:$H$2504 = $E36) * (MainInputs!$BE$1599:$ED$2504 = "CapRate 2 (UM)")))*(AY$10+AY$11*AY$15) -> 0.07164
E37: Network operating costs (opex) | G37: £m 23/24 prices | AP37: =(SUMPRODUCT((MainInputs!AP$1599:AP$2504) * (MainInputs!$H$1599:$H$2504 = $E37) * (MainInputs!$BE$1599:$ED$2504 = "CapRate 2 (UM)")))*(AP$10+AP$11*AP$15) -> 0 | AQ37: =(SUMPRODUCT((MainInputs!AQ$1599:AQ$2504) * (MainInputs!$H$1599:$H$2504 = $E37) * (MainInputs!$BE$1599:$ED$2504 = "CapRate 2 (UM)")))*(AQ$10+AQ$11*AQ$15) -> 0 | AR37: =(SUMPRODUCT((MainInputs!AR$1599:AR$2504) * (MainInputs!$H$1599:$H$2504 = $E37) * (MainInputs!$BE$1599:$ED$2504 = "CapRate 2 (UM)")))*(AR$10+AR$11*AR$15) -> 0 | AS37: =(SUMPRODUCT((MainInputs!AS$1599:AS$2504) * (MainInputs!$H$1599:$H$2504 = $E37) * (MainInputs!$BE$1599:$ED$2504 = "CapRate 2 (UM)")))*(AS$10+AS$11*AS$15) -> 0 | AT37: =(SUMPRODUCT((MainInputs!AT$1599:AT$2504) * (MainInputs!$H$1599:$H$2504 = $E37) * (MainInputs!$BE$1599:$ED$2504 = "CapRate 2 (UM)")))*(AT$10+AT$11*AT$15) -> 0 | AU37: =(SUMPRODUCT((MainInputs!AU$1599:AU$2504) * (MainInputs!$H$1599:$H$2504 = $E37) * (MainInputs!$BE$1599:$ED$2504 = "CapRate 2 (UM)")))*(AU$10+AU$11*AU$15) -> 0 | AV37: =(SUMPRODUCT((MainInputs!AV$1599:AV$2504) * (MainInputs!$H$1599:$H$2504 = $E37) * (MainInputs!$BE$1599:$ED$2504 = "CapRate 2 (UM)")))*(AV$10+AV$11*AV$15) -> 0 | AW37: =(SUMPRODUCT((MainInputs!AW$1599:AW$2504) * (MainInputs!$H$1599:$H$2504 = $E37) * (MainInputs!$BE$1599:$ED$2504 = "CapRate 2 (UM)")))*(AW$10+AW$11*AW$15) -> 0 | AX37: =(SUMPRODUCT((MainInputs!AX$1599:AX$2504) * (MainInputs!$H$1599:$H$2504 = $E37) * (MainInputs!$BE$1599:$ED$2504 = "CapRate 2 (UM)")))*(AX$10+AX$11*AX$15) -> 1.75518 | AY37: =(SUMPRODUCT((MainInputs!AY$1599:AY$2504) * (MainInputs!$H$1599:$H$2504 = $E37) * (MainInputs!$BE$1599:$ED$2504 = "CapRate 2 (UM)")))*(AY$10+AY$11*AY$15) -> 1.75518
E38: Indirects (opex) | G38: £m 23/24 prices | AP38: =(SUMPRODUCT((MainInputs!AP$1599:AP$2504) * (MainInputs!$H$1599:$H$2504 = $E38) * (MainInputs!$BE$1599:$ED$2504 = "CapRate 2 (UM)")))*(AP$10+AP$11*AP$15) -> 4.006244674 | AQ38: =(SUMPRODUCT((MainInputs!AQ$1599:AQ$2504) * (MainInputs!$H$1599:$H$2504 = $E38) * (MainInputs!$BE$1599:$ED$2504 = "CapRate 2 (UM)")))*(AQ$10+AQ$11*AQ$15) -> 2.044011735 | AR38: =(SUMPRODUCT((MainInputs!AR$1599:AR$2504) * (MainInputs!$H$1599:$H$2504 = $E38) * (MainInputs!$BE$1599:$ED$2504 = "CapRate 2 (UM)")))*(AR$10+AR$11*AR$15) -> 2.274187182 | AS38: =(SUMPRODUCT((MainInputs!AS$1599:AS$2504) * (MainInputs!$H$1599:$H$2504 = $E38) * (MainInputs!$BE$1599:$ED$2504 = "CapRate 2 (UM)")))*(AS$10+AS$11*AS$15) -> 2.303266888 | AT38: =(SUMPRODUCT((MainInputs!AT$1599:AT$2504) * (MainInputs!$H$1599:$H$2504 = $E38) * (MainInputs!$BE$1599:$ED$2504 = "CapRate 2 (UM)")))*(AT$10+AT$11*AT$15) -> 3.007140794 | AU38: =(SUMPRODUCT((MainInputs!AU$1599:AU$2504) * (MainInputs!$H$1599:$H$2504 = $E38) * (MainInputs!$BE$1599:$ED$2504 = "CapRate 2 (UM)")))*(AU$10+AU$11*AU$15) -> 49.0330575 | AV38: =(SUMPRODUCT((MainInputs!AV$1599:AV$2504) * (MainInputs!$H$1599:$H$2504 = $E38) * (MainInputs!$BE$1599:$ED$2504 = "CapRate 2 (UM)")))*(AV$10+AV$11*AV$15) -> 52.17954319 | AW38: =(SUMPRODUCT((MainInputs!AW$1599:AW$2504) * (MainInputs!$H$1599:$H$2504 = $E38) * (MainInputs!$BE$1599:$ED$2504 = "CapRate 2 (UM)")))*(AW$10+AW$11*AW$15) -> 94.39916696 | AX38: =(SUMPRODUCT((MainInputs!AX$1599:AX$2504) * (MainInputs!$H$1599:$H$2504 = $E38) * (MainInputs!$BE$1599:$ED$2504 = "CapRate 2 (UM)")))*(AX$10+AX$11*AX$15) -> 140.1217676 | AY38: =(SUMPRODUCT((MainInputs!AY$1599:AY$2504) * (MainInputs!$H$1599:$H$2504 = $E38) * (MainInputs!$BE$1599:$ED$2504 = "CapRate 2 (UM)")))*(AY$10+AY$11*AY$15) -> 64.70122479
E39: Non-operational capex | G39: £m 23/24 prices | AP39: =(SUMPRODUCT((MainInputs!AP$1599:AP$2504) * (MainInputs!$H$1599:$H$2504 = $E39) * (MainInputs!$BE$1599:$ED$2504 = "CapRate 2 (UM)")))*(AP$10+AP$11*AP$15) -> 0 | AQ39: =(SUMPRODUCT((MainInputs!AQ$1599:AQ$2504) * (MainInputs!$H$1599:$H$2504 = $E39) * (MainInputs!$BE$1599:$ED$2504 = "CapRate 2 (UM)")))*(AQ$10+AQ$11*AQ$15) -> 0.004213245389 | AR39: =(SUMPRODUCT((MainInputs!AR$1599:AR$2504) * (MainInputs!$H$1599:$H$2504 = $E39) * (MainInputs!$BE$1599:$ED$2504 = "CapRate 2 (UM)")))*(AR$10+AR$11*AR$15) -> 2.964583621 | AS39: =(SUMPRODUCT((MainInputs!AS$1599:AS$2504) * (MainInputs!$H$1599:$H$2504 = $E39) * (MainInputs!$BE$1599:$ED$2504 = "CapRate 2 (UM)")))*(AS$10+AS$11*AS$15) -> 8.214424375 | AT39: =(SUMPRODUCT((MainInputs!AT$1599:AT$2504) * (MainInputs!$H$1599:$H$2504 = $E39) * (MainInputs!$BE$1599:$ED$2504 = "CapRate 2 (UM)")))*(AT$10+AT$11*AT$15) -> 3.475084004 | AU39: =(SUMPRODUCT((MainInputs!AU$1599:AU$2504) * (MainInputs!$H$1599:$H$2504 = $E39) * (MainInputs!$BE$1599:$ED$2504 = "CapRate 2 (UM)")))*(AU$10+AU$11*AU$15) -> 0 | AV39: =(SUMPRODUCT((MainInputs!AV$1599:AV$2504) * (MainInputs!$H$1599:$H$2504 = $E39) * (MainInputs!$BE$1599:$ED$2504 = "CapRate 2 (UM)")))*(AV$10+AV$11*AV$15) -> 0 | AW39: =(SUMPRODUCT((MainInputs!AW$1599:AW$2504) * (MainInputs!$H$1599:$H$2504 = $E39) * (MainInputs!$BE$1599:$ED$2504 = "CapRate 2 (UM)")))*(AW$10+AW$11*AW$15) -> 5 | AX39: =(SUMPRODUCT((MainInputs!AX$1599:AX$2504) * (MainInputs!$H$1599:$H$2504 = $E39) * (MainInputs!$BE$1599:$ED$2504 = "CapRate 2 (UM)")))*(AX$10+AX$11*AX$15) -> 0.25074 | AY39: =(SUMPRODUCT((MainInputs!AY$1599:AY$2504) * (MainInputs!$H$1599:$H$2504 = $E39) * (MainInputs!$BE$1599:$ED$2504 = "CapRate 2 (UM)")))*(AY$10+AY$11*AY$15) -> 0.25074
D41: Allowance
E43: Allowed load related capex expenditure | G43: =price_label -> £m 23/24 prices | AP43: =AP25 + AP34 -> 590.7566971 | AQ43: 549.5976336 | AR43: 828.4186962 | AS43: 1599.357729 | AT43: 2227.414168 | AU43: 3175.432453 | AV43: 5509.946247 | AW43: 6544.649185 | AX43: 5517.82264 | AY43: 5665.693974
E44: Allowed asset replacement capex expenditure | G44: £m 23/24 prices | AP44: =AP26 + AP35 -> 159.3154241 | AQ44: 224.101711 | AR44: 195.1795498 | AS44: 195.1386039 | AT44: 123.5268655 | AU44: 295.0249554 | AV44: 306.6242422 | AW44: 354.3954516 | AX44: 252.1394944 | AY44: 107.0167446
E45: Allowed other capex expenditure | G45: £m 23/24 prices | AP45: =AP27 + AP36 -> 18.57691493 | AQ45: 11.34055398 | AR45: 10.15380097 | AS45: 8.52876811 | AT45: 7.105021676 | AU45: 26.25842784 | AV45: 31.80447057 | AW45: 33.08864695 | AX45: 29.78544792 | AY45: 25.3503931
E46: Allowed network operating costs (opex) | G46: £m 23/24 prices | AP46: =AP28 + AP37 -> 30.1292254 | AQ46: 47.00646343 | AR46: 42.75320125 | AS46: 47.20067527 | AT46: 25.27740098 | AU46: 146.0086461 | AV46: 150.7036842 | AW46: 185.6804854 | AX46: 182.4689752 | AY46: 173.2686263
E47: Allowed indirects (opex) | G47: £m 23/24 prices | AP47: =AP29 + AP38 -> 83.95229701 | AQ47: 86.22039693 | AR47: 85.54857013 | AS47: 85.7068482 | AT47: 85.86548848 | AU47: 320.7649426 | AV47: 341.8222798 | AW47: 393.9248222 | AX47: 426.5075549 | AY47: 338.5040825
E48: Allowed non-operational capex | G48: £m 23/24 prices | AP48: =AP30 + AP39 -> 24.15965956 | AQ48: 41.84536357 | AR48: 36.92216503 | AS48: 19.22430491 | AT48: 12.26490004 | AU48: 90.08094367 | AV48: 106.8200625 | AW48: 109.6526098 | AX48: 86.34746754 | AY48: 51.10698002
E49: Allowed totex | G49: £m 23/24 prices | AP49: =SUM(AP43:AP48) -> 906.8902181 | AQ49: =SUM(AQ43:AQ48) -> 960.1121225 | AR49: =SUM(AR43:AR48) -> 1198.975983 | AS49: =SUM(AS43:AS48) -> 1955.15693 | AT49: =SUM(AT43:AT48) -> 2481.453844 | AU49: =SUM(AU43:AU48) -> 4053.570368 | AV49: 6447.720986 | AW49: 7621.391201 | AX49: 6495.07158 | AY49: 6360.9408
C51: Actual totex
D53: Source of actuals
D54: Note: If the actual totex inputs are zero, the model will use allowances as the forecast.
E56: Historic totex (FYI only) | G56: flag | AP56: =IF(MainInputs!AP372+MainInputs!AP381<>0,1,0) -> 1 | AQ56: =IF(MainInputs!AQ372+MainInputs!AQ381<>0,1,0) -> 1 | AR56: =IF(MainInputs!AR372+MainInputs!AR381<>0,1,0) -> 1 | AS56: =IF(MainInputs!AS372+MainInputs!AS381<>0,1,0) -> 1 | AT56: =IF(MainInputs!AT372+MainInputs!AT381<>0,1,0) -> 1 | AU56: =IF(MainInputs!AU372+MainInputs!AU381<>0,1,0) -> 0 | AV56: =IF(MainInputs!AV372+MainInputs!AV381<>0,1,0) -> 0 | AW56: =IF(MainInputs!AW372+MainInputs!AW381<>0,1,0) -> 0 | AX56: =IF(MainInputs!AX372+MainInputs!AX381<>0,1,0) -> 0 | AY56: =IF(MainInputs!AY372+MainInputs!AY381<>0,1,0) -> 0
E57: Forecasted totex (FYI only) | G57: flag | AP57: =1-AP56 -> 0 | AQ57: =1-AQ56 -> 0 | AR57: 0 | AS57: 0 | AT57: 0 | AU57: 1 | AV57: 1 | AW57: 1 | AX57: 1 | AY57: 1
D59: Actual totex (historic and forecasted)
D60: Note: Actuals are exported both to identify performance against the allowance and to generate writing down allowances used in the tax calculation.
E62: Capitalisation rate 1 totex
... 8 more rows

Sheet TIM
A1: Totex Incentive Mechanism (TIM)
B2: =UserInterface!G17 -> SHET
E3: Parameter | G3: Units | I3: Constant | AP3: Annual values
E4: PCFM year ending | I4: =UserInterface!$G$10 -> 2025-03-31 | K4: 1991-03-31 | L4: 1992-03-31 | M4: 1993-03-31 | N4: 1994-03-31 | O4: 1995-03-31 | P4: 1996-03-31 | Q4: 1997-03-31 | R4: 1998-03-31 | S4: 1999-03-31 | T4: 2000-03-31 | U4: 2001-03-31 | V4: 2002-03-31 | W4: 2003-03-31 | X4: 2004-03-31 | Y4: 2005-03-31 | Z4: 2006-03-31 | AA4: 2007-03-31 | AB4: 2008-03-31 | AC4: 2009-03-31 | AD4: 2010-03-31 | AE4: 2011-03-31 | AF4: 2012-03-31 | AG4: 2013-03-31 | AH4: 2014-03-31 | AI4: 2015-03-31 | AJ4: 2016-03-31 | AK4: 2017-03-31 | AL4: 2018-03-31 | AM4: 2019-03-31 | AN4: 2020-03-31 | AO4: 2021-03-31 | AP4: 2022-03-31 | AQ4: 2023-03-31 | AR4: 2024-03-31 | AS4: 2025-03-31 | AT4: 2026-03-31 | AU4: 2027-03-31 | AV4: 2028-03-31 | AW4: 2029-03-31 | AX4: 2030-03-31 | AY4: =EOMONTH(AX4,12) -> 2031-03-31
AP5: 2 | AQ5: 2 | AR5: 2 | AS5: 2 | AT5: 2 | AU5: 3 | AV5: 3 | AW5: 3 | AX5: 3 | AY5: 3
C7: Price control timeline
E9: Pre-RIIO-2 year | G9: flag | K9: =Scenarios!K$119 -> 1 | L9: =Scenarios!L$119 -> 1 | M9: =Scenarios!M$119 -> 1 | N9: =Scenarios!N$119 -> 1 | O9: =Scenarios!O$119 -> 1 | P9: =Scenarios!P$119 -> 1 | Q9: =Scenarios!Q$119 -> 1 | R9: =Scenarios!R$119 -> 1 | S9: =Scenarios!S$119 -> 1 | T9: =Scenarios!T$119 -> 1 | U9: =Scenarios!U$119 -> 1 | V9: =Scenarios!V$119 -> 1 | W9: =Scenarios!W$119 -> 1 | X9: =Scenarios!X$119 -> 1 | Y9: =Scenarios!Y$119 -> 1 | Z9: =Scenarios!Z$119 -> 1 | AA9: =Scenarios!AA$119 -> 1 | AB9: =Scenarios!AB$119 -> 1 | AC9: =Scenarios!AC$119 -> 1 | AD9: =Scenarios!AD$119 -> 1 | AE9: =Scenarios!AE$119 -> 1 | AF9: =Scenarios!AF$119 -> 1 | AG9: =Scenarios!AG$119 -> 1 | AH9: =Scenarios!AH$119 -> 1 | AI9: =Scenarios!AI$119 -> 1 | AJ9: =Scenarios!AJ$119 -> 1 | AK9: =Scenarios!AK$119 -> 1 | AL9: =Scenarios!AL$119 -> 1 | AM9: =Scenarios!AM$119 -> 1 | AN9: =Scenarios!AN$119 -> 1 | AO9: =Scenarios!AO$119 -> 1 | AP9: =Scenarios!AP$119 -> 0 | AQ9: =Scenarios!AQ$119 -> 0 | AR9: =Scenarios!AR$119 -> 0 | AS9: =Scenarios!AS$119 -> 0 | AT9: =Scenarios!AT$119 -> 0 | AU9: =Scenarios!AU$119 -> 0 | AV9: =Scenarios!AV$119 -> 0 | AW9: =Scenarios!AW$119 -> 0 | AX9: =Scenarios!AX$119 -> 0 | AY9: =Scenarios!AY$119 -> 0
E10: RIIO-2 year | G10: flag | K10: =Scenarios!K$120 -> 0 | L10: =Scenarios!L$120 -> 0 | M10: =Scenarios!M$120 -> 0 | N10: =Scenarios!N$120 -> 0 | O10: =Scenarios!O$120 -> 0 | P10: =Scenarios!P$120 -> 0 | Q10: =Scenarios!Q$120 -> 0 | R10: =Scenarios!R$120 -> 0 | S10: =Scenarios!S$120 -> 0 | T10: =Scenarios!T$120 -> 0 | U10: =Scenarios!U$120 -> 0 | V10: =Scenarios!V$120 -> 0 | W10: =Scenarios!W$120 -> 0 | X10: =Scenarios!X$120 -> 0 | Y10: =Scenarios!Y$120 -> 0 | Z10: =Scenarios!Z$120 -> 0 | AA10: =Scenarios!AA$120 -> 0 | AB10: =Scenarios!AB$120 -> 0 | AC10: =Scenarios!AC$120 -> 0 | AD10: =Scenarios!AD$120 -> 0 | AE10: =Scenarios!AE$120 -> 0 | AF10: =Scenarios!AF$120 -> 0 | AG10: =Scenarios!AG$120 -> 0 | AH10: =Scenarios!AH$120 -> 0 | AI10: =Scenarios!AI$120 -> 0 | AJ10: =Scenarios!AJ$120 -> 0 | AK10: =Scenarios!AK$120 -> 0 | AL10: =Scenarios!AL$120 -> 0 | AM10: =Scenarios!AM$120 -> 0 | AN10: =Scenarios!AN$120 -> 0 | AO10: =Scenarios!AO$120 -> 0 | AP10: =Scenarios!AP$120 -> 1 | AQ10: =Scenarios!AQ$120 -> 1 | AR10: =Scenarios!AR$120 -> 1 | AS10: =Scenarios!AS$120 -> 1 | AT10: =Scenarios!AT$120 -> 1 | AU10: =Scenarios!AU$120 -> 0 | AV10: =Scenarios!AV$120 -> 0 | AW10: =Scenarios!AW$120 -> 0 | AX10: =Scenarios!AX$120 -> 0 | AY10: =Scenarios!AY$120 -> 0
E11: RIIO-3 year | G11: flag | K11: =Scenarios!K$121 -> 0 | L11: =Scenarios!L$121 -> 0 | M11: =Scenarios!M$121 -> 0 | N11: =Scenarios!N$121 -> 0 | O11: =Scenarios!O$121 -> 0 | P11: =Scenarios!P$121 -> 0 | Q11: =Scenarios!Q$121 -> 0 | R11: =Scenarios!R$121 -> 0 | S11: =Scenarios!S$121 -> 0 | T11: =Scenarios!T$121 -> 0 | U11: =Scenarios!U$121 -> 0 | V11: =Scenarios!V$121 -> 0 | W11: =Scenarios!W$121 -> 0 | X11: =Scenarios!X$121 -> 0 | Y11: =Scenarios!Y$121 -> 0 | Z11: =Scenarios!Z$121 -> 0 | AA11: =Scenarios!AA$121 -> 0 | AB11: =Scenarios!AB$121 -> 0 | AC11: =Scenarios!AC$121 -> 0 | AD11: =Scenarios!AD$121 -> 0 | AE11: =Scenarios!AE$121 -> 0 | AF11: =Scenarios!AF$121 -> 0 | AG11: =Scenarios!AG$121 -> 0 | AH11: =Scenarios!AH$121 -> 0 | AI11: =Scenarios!AI$121 -> 0 | AJ11: =Scenarios!AJ$121 -> 0 | AK11: =Scenarios!AK$121 -> 0 | AL11: =Scenarios!AL$121 -> 0 | AM11: =Scenarios!AM$121 -> 0 | AN11: =Scenarios!AN$121 -> 0 | AO11: =Scenarios!AO$121 -> 0 | AP11: =Scenarios!AP$121 -> 0 | AQ11: =Scenarios!AQ$121 -> 0 | AR11: =Scenarios!AR$121 -> 0 | AS11: =Scenarios!AS$121 -> 0 | AT11: =Scenarios!AT$121 -> 0 | AU11: =Scenarios!AU$121 -> 1 | AV11: =Scenarios!AV$121 -> 1 | AW11: =Scenarios!AW$121 -> 1 | AX11: =Scenarios!AX$121 -> 1 | AY11: =Scenarios!AY$121 -> 1
C13: Scenario operators
E15: RIIO-3 Funding Adjustment Rate ('sharing factor') | G15: % | AP15: =AP$11*MainInputs!$I654 -> 0 | AQ15: =AQ$11*MainInputs!$I654 -> 0 | AR15: =AR$11*MainInputs!$I654 -> 0 | AS15: =AS$11*MainInputs!$I654 -> 0 | AT15: =AT$11*MainInputs!$I654 -> 0 | AU15: =AU$11*MainInputs!$I654 -> 0.75 | AV15: =AV$11*MainInputs!$I654 -> 0.75 | AW15: =AW$11*MainInputs!$I654 -> 0.75 | AX15: =AX$11*MainInputs!$I654 -> 0.75 | AY15: =AY$11*MainInputs!$I654 -> 0.75
E16: RIIO-3 cap rates from Scenarios or TO Inputs? | G16: text | I16: =Scenarios!F21 -> Licensee inputs
E17: Capitalisation rate 1 | G17: % | AP17: =IF($I$16="Scenarios",Scenarios!$F22,IF($I$16="Licensee inputs",MainInputs!AP650,AP144))*AP$11 -> 0 | AQ17: =IF($I$16="Scenarios",Scenarios!$F22,IF($I$16="Licensee inputs",MainInputs!AQ650,AQ144))*AQ$11 -> 0 | AR17: =IF($I$16="Scenarios",Scenarios!$F22,IF($I$16="Licensee inputs",MainInputs!AR650,AR144))*AR$11 -> 0 | AS17: =IF($I$16="Scenarios",Scenarios!$F22,IF($I$16="Licensee inputs",MainInputs!AS650,AS144))*AS$11 -> 0 | AT17: =IF($I$16="Scenarios",Scenarios!$F22,IF($I$16="Licensee inputs",MainInputs!AT650,AT144))*AT$11 -> 0 | AU17: =IF($I$16="Scenarios",Scenarios!$F22,IF($I$16="Licensee inputs",MainInputs!AU650,AU144))*AU$11 -> 0.55 | AV17: =IF($I$16="Scenarios",Scenarios!$F22,IF($I$16="Licensee inputs",MainInputs!AV650,AV144))*AV$11 -> 0.55 | AW17: =IF($I$16="Scenarios",Scenarios!$F22,IF($I$16="Licensee inputs",MainInputs!AW650,AW144))*AW$11 -> 0.55 | AX17: =IF($I$16="Scenarios",Scenarios!$F22,IF($I$16="Licensee inputs",MainInputs!AX650,AX144))*AX$11 -> 0.55 | AY17: =IF($I$16="Scenarios",Scenarios!$F22,IF($I$16="Licensee inputs",MainInputs!AY650,AY144))*AY$11 -> 0.55
E18: Capitalisation rate 2 | G18: % | AP18: =IF($I$16="Scenarios",Scenarios!$F23,IF($I$16="Licensee inputs",MainInputs!AP651,AP145))*AP$11 -> 0 | AQ18: =IF($I$16="Scenarios",Scenarios!$F23,IF($I$16="Licensee inputs",MainInputs!AQ651,AQ145))*AQ$11 -> 0 | AR18: =IF($I$16="Scenarios",Scenarios!$F23,IF($I$16="Licensee inputs",MainInputs!AR651,AR145))*AR$11 -> 0 | AS18: =IF($I$16="Scenarios",Scenarios!$F23,IF($I$16="Licensee inputs",MainInputs!AS651,AS145))*AS$11 -> 0 | AT18: =IF($I$16="Scenarios",Scenarios!$F23,IF($I$16="Licensee inputs",MainInputs!AT651,AT145))*AT$11 -> 0 | AU18: =IF($I$16="Scenarios",Scenarios!$F23,IF($I$16="Licensee inputs",MainInputs!AU651,AU145))*AU$11 -> 0.85 | AV18: =IF($I$16="Scenarios",Scenarios!$F23,IF($I$16="Licensee inputs",MainInputs!AV651,AV145))*AV$11 -> 0.85 | AW18: =IF($I$16="Scenarios",Scenarios!$F23,IF($I$16="Licensee inputs",MainInputs!AW651,AW145))*AW$11 -> 0.85 | AX18: =IF($I$16="Scenarios",Scenarios!$F23,IF($I$16="Licensee inputs",MainInputs!AX651,AX145))*AX$11 -> 0.85 | AY18: =IF($I$16="Scenarios",Scenarios!$F23,IF($I$16="Licensee inputs",MainInputs!AY651,AY145))*AY$11 -> 0.85
E20: Stepped TIM: Band 1 threshold | G20: % | I20: =MainInputs!I656 -> 0.05
E21: Stepped TIM: Band 1 sharing factor (company risk share) | G21: % | I21: =MainInputs!I657 -> 0.25
E22: Stepped TIM: Band 2 threshold | G22: % | I22: =MainInputs!I658 -> 0.2
E23: Stepped TIM: Band 2 sharing factor (company risk share) | G23: % | I23: =MainInputs!I659 -> 0.1
E24: Stepped TIM: Band 3 sharing factor (company risk share) | G24: % | I24: =MainInputs!I660 -> 0.05
B26: Efficiency incentive
C28: Post-TIM overspend (underspend)
C29: Note: Totex overspend (underspend) is identified and subject to the "efficiency incentive rate." In order to assign the same stepped rate across both buckets, we calculate the stepped rate on the basis of overall totex.
D31: Calculation of stepped TIM efficiency incentive rate
E33: Cap rate 1 actual totex | G33: =price_label -> £m 23/24 prices | AU33: =SUM(Totex!AU64:AU69) -> 1045.924168 | AV33: =SUM(Totex!AV64:AV69) -> 1168.082525 | AW33: =SUM(Totex!AW64:AW69) -> 1276.542591 | AX33: =SUM(Totex!AX64:AX69) -> 1096.996686 | AY33: =SUM(Totex!AY64:AY69) -> 835.7602735
E34: Cap rate 2 actual totex | G34: =price_label -> £m 23/24 prices | AU34: =SUM(Totex!AU73:AU78) -> 3007.6462 | AV34: =SUM(Totex!AV73:AV78) -> 5279.638461 | AW34: =SUM(Totex!AW73:AW78) -> 6344.84861 | AX34: =SUM(Totex!AX73:AX78) -> 5398.074894 | AY34: =SUM(Totex!AY73:AY78) -> 5525.180527
E35: Total actual totex | G35: =price_label -> £m 23/24 prices | AU35: =AU33+AU34 -> 4053.570368 | AV35: 6447.720986 | AW35: 7621.391201 | AX35: 6495.07158 | AY35: 6360.9408
E37: Cap rate 1 allowed totex | G37: =price_label -> £m 23/24 prices | AU37: =- SUM(Totex!AU25:AU30) -> -1045.924168 | AV37: =- SUM(Totex!AV25:AV30) -> -1168.082525 | AW37: =- SUM(Totex!AW25:AW30) -> -1276.542591 | AX37: =- SUM(Totex!AX25:AX30) -> -1096.996686 | AY37: =- SUM(Totex!AY25:AY30) -> -835.7602735
E38: Cap rate 2 allowed totex | G38: =price_label -> £m 23/24 prices | AU38: =- SUM(Totex!AU34:AU39) -> -3007.6462 | AV38: =- SUM(Totex!AV34:AV39) -> -5279.638461 | AW38: =- SUM(Totex!AW34:AW39) -> -6344.84861 | AX38: =- SUM(Totex!AX34:AX39) -> -5398.074894 | AY38: =- SUM(Totex!AY34:AY39) -> -5525.180527
E39: Total allowed totex | G39: =price_label -> £m 23/24 prices | AU39: =AU37+AU38 -> -4053.570368 | AV39: =AV37+AV38 -> -6447.720986 | AW39: =AW37+AW38 -> -7621.391201 | AX39: =AX37+AX38 -> -6495.07158 | AY39: =AY37+AY38 -> -6360.9408
E41: Total pre-TIM overspend (underspend) | G41: =price_label -> £m 23/24 prices | AU41: =AU35+AU39 -> 0 | AV41: 0 | AW41: 0 | AX41: 0 | AY41: 0
E42: Cumulative total pre-TIM overspend (underspend) | AU42: =(AU41+AT42) -> 0 | AV42: =(AV41+AU42) -> 0 | AW42: =(AW41+AV42) -> 0 | AX42: 0 | AY42: 0
E43: Cumulative pre-TIM overspend (underspend) % | G43: % | AU43: =-AU42/SUM($AU39:AU39) -> 0 | AV43: =-AV42/SUM($AU39:AV39) -> 0 | AW43: =-AW42/SUM($AU39:AW39) -> 0 | AX43: =-AX42/SUM($AU39:AX39) -> 0 | AY43: =-AY42/SUM($AU39:AY39) -> 0
E45: Stepped TIM effective rate | G45: % | AU45: =1-IF(AU43=0,0,(MAX(MIN(ABS(AU43),$I$20),0)*$I$21 + MAX(MIN(ABS(AU43)-$I$20,$I$22-$I$20),0)*$I$23 + MAX(ABS(AU43)-$I$22,0)*$I$24)/ABS(AU43)) -> 1 | AV45: 1 | AW45: 1 | AX45: 1 | AY45: 1
D47: Capitalisation 1 totex
E49: Actual totex | G49: =price_label -> £m 23/24 prices | AP49: =SUM(Totex!AP64:AP69) -> 430.5311954 | AQ49: =SUM(Totex!AQ64:AQ69) -> 419.3340061 | AR49: =SUM(Totex!AR64:AR69) -> 446.052756 | AS49: =SUM(Totex!AS64:AS69) -> 554.7224033 | AT49: =SUM(Totex!AT64:AT69) -> 612.338761 | AU49: =SUM(Totex!AU64:AU69) -> 1045.924168 | AV49: =SUM(Totex!AV64:AV69) -> 1168.082525 | AW49: =SUM(Totex!AW64:AW69) -> 1276.542591 | AX49: =SUM(Totex!AX64:AX69) -> 1096.996686 | AY49: =SUM(Totex!AY64:AY69) -> 835.7602735
E50: Less allowed totex | G50: =price_label -> £m 23/24 prices | AP50: =- SUM(Totex!AP25:AP30) -> -485.6355182 | AQ50: =- SUM(Totex!AQ25:AQ30) -> -648.7952277 | AR50: =- SUM(Totex!AR25:AR30) -> -555.0508714 | AS50: =- SUM(Totex!AS25:AS30) -> -550.0970158 | AT50: =- SUM(Totex!AT25:AT30) -> -386.6973303 | AU50: =- SUM(Totex!AU25:AU30) -> -1045.924168 | AV50: =- SUM(Totex!AV25:AV30) -> -1168.082525 | AW50: =- SUM(Totex!AW25:AW30) -> -1276.542591 | AX50: =- SUM(Totex!AX25:AX30) -> -1096.996686 | AY50: =- SUM(Totex!AY25:AY30) -> -835.7602735
E51: Pre-TIM overspend (underspend) | G51: =price_label -> £m 23/24 prices | AP51: =SUM(AP49:AP50) -> -55.10432278 | AQ51: =SUM(AQ49:AQ50) -> -229.4612216 | AR51: =SUM(AR49:AR50) -> -108.9981154 | AS51: =SUM(AS49:AS50) -> 4.625387554 | AT51: =SUM(AT49:AT50) -> 225.6414308 | AU51: =SUM(AU49:AU50) -> 0 | AV51: 0 | AW51: 0 | AX51: 0 | AY51: 0
E52: Cumulative over (underspend) | G52: £m 23/24 prices | AP52: =AP51*AP$11+AO52 -> 0 | AQ52: =AQ51*AQ$11+AP52 -> 0 | AR52: 0 | AS52: 0 | AT52: 0 | AU52: 0 | AV52: 0 | AW52: 0 | AX52: 0 | AY52: 0
E54: TIM rate for allowance, inverse of Sharing Factor | G54: % | I54: =Scenarios!F19 -> Stepped | AP54: =MainInputs!$I$653*AP10 + IF($I54="Stepped",AP45,AP15)*AP11 -> 0.64 | AQ54: =MainInputs!$I$653*AQ10 + IF($I54="Stepped",AQ45,AQ15)*AQ11 -> 0.64 | AR54: =MainInputs!$I$653*AR10 + IF($I54="Stepped",AR45,AR15)*AR11 -> 0.64 | AS54: =MainInputs!$I$653*AS10 + IF($I54="Stepped",AS45,AS15)*AS11 -> 0.64 | AT54: =MainInputs!$I$653*AT10 + IF($I54="Stepped",AT45,AT15)*AT11 -> 0.64 | AU54: =MainInputs!$I$653*AU10 + IF($I54="Stepped",AU45,AU15)*AU11 -> 1 | AV54: =MainInputs!$I$653*AV10 + IF($I54="Stepped",AV45,AV15)*AV11 -> 1 | AW54: =MainInputs!$I$653*AW10 + IF($I54="Stepped",AW45,AW15)*AW11 -> 1 | AX54: =MainInputs!$I$653*AX10 + IF($I54="Stepped",AX45,AX15)*AX11 -> 1 | AY54: =MainInputs!$I$653*AY10 + IF($I54="Stepped",AY45,AY15)*AY11 -> 1
E56: Post-TIM overspend (underspend) (note formula discontinuity in row) | G56: =price_label -> £m 23/24 prices | AO56: 0 | AP56: =AP$54 * AP51 * AP$10 -> -35.26676658 | AQ56: -146.8551818 | AR56: -69.75879383 | AS56: 2.960248035 | AT56: =AT$54 * AT51 * AT$10 -> 144.4105157 | AU56: =IF($I$54="Scenarios",AU54*AU51,AU54 * AU52 - SUMPRODUCT($AT$11:AT$11,$AT56:AT56)) -> 0 | AV56: =IF($I$54="Scenarios",AV54*AV51,AV54 * AV52 - SUMPRODUCT($AT$11:AU$11,$AT56:AU56)) -> 0 | AW56: =IF($I$54="Scenarios",AW54*AW51,AW54 * AW52 - SUMPRODUCT($AT$11:AV$11,$AT56:AV56)) -> 0 | AX56: =IF($I$54="Scenarios",AX54*AX51,AX54 * AX52 - SUMPRODUCT($AT$11:AW$11,$AT56:AW56)) -> 0 | AY56: =IF($I$54="Scenarios",AY54*AY51,AY54 * AY52 - SUMPRODUCT($AT$11:AX$11,$AT56:AX56)) -> 0
D58: Capitalisation 2 totex
E60: Actual totex | G60: =price_label -> £m 23/24 prices | AP60: =SUM(Totex!AP73:AP78) -> 319.7341779 | AQ60: =SUM(Totex!AQ73:AQ78) -> 242.7327898 | AR60: =SUM(Totex!AR73:AR78) -> 633.9768394 | AS60: =SUM(Totex!AS73:AS78) -> 1271.375542 | AT60: =SUM(Totex!AT73:AT78) -> 1955.609591 | AU60: =SUM(Totex!AU73:AU78) -> 3007.6462 | AV60: =SUM(Totex!AV73:AV78) -> 5279.638461 | AW60: =SUM(Totex!AW73:AW78) -> 6344.84861 | AX60: =SUM(Totex!AX73:AX78) -> 5398.074894 | AY60: =SUM(Totex!AY73:AY78) -> 5525.180527
E61: Less allowed totex | G61: =price_label -> £m 23/24 prices | AP61: =- SUM(Totex!AP34:AP39) -> -421.2546999 | AQ61: =- SUM(Totex!AQ34:AQ39) -> -311.3168948 | AR61: =- SUM(Totex!AR34:AR39) -> -643.9251121 | AS61: =- SUM(Totex!AS34:AS39) -> -1405.059914 | AT61: =- SUM(Totex!AT34:AT39) -> -2094.756514 | AU61: =- SUM(Totex!AU34:AU39) -> -3007.6462 | AV61: =- SUM(Totex!AV34:AV39) -> -5279.638461 | AW61: =- SUM(Totex!AW34:AW39) -> -6344.84861 | AX61: =- SUM(Totex!AX34:AX39) -> -5398.074894 | AY61: =- SUM(Totex!AY34:AY39) -> -5525.180527
E62: Pre-TIM overspend (underspend) | G62: =price_label -> £m 23/24 prices | AP62: =SUM(AP60:AP61) -> -101.520522 | AQ62: =SUM(AQ60:AQ61) -> -68.584105 | AR62: =SUM(AR60:AR61) -> -9.948272615 | AS62: =SUM(AS60:AS61) -> -133.6843722 | AT62: =SUM(AT60:AT61) -> -139.1469226 | AU62: =SUM(AU60:AU61) -> 0 | AV62: 0 | AW62: 0 | AX62: 0 | AY62: 0
... 52 more rows

Sheet Depn
A1: Regulatory Depreciation
B2: =UserInterface!G17 -> SHET
E3: Parameter | G3: Units | I3: Constant | AP3: Annual values
E4: PCFM year ending | I4: =UserInterface!$G$10 -> 2025-03-31 | K4: 1991-03-31 | L4: 1992-03-31 | M4: 1993-03-31 | N4: 1994-03-31 | O4: 1995-03-31 | P4: 1996-03-31 | Q4: 1997-03-31 | R4: 1998-03-31 | S4: 1999-03-31 | T4: 2000-03-31 | U4: 2001-03-31 | V4: 2002-03-31 | W4: 2003-03-31 | X4: 2004-03-31 | Y4: 2005-03-31 | Z4: 2006-03-31 | AA4: 2007-03-31 | AB4: 2008-03-31 | AC4: 2009-03-31 | AD4: 2010-03-31 | AE4: 2011-03-31 | AF4: 2012-03-31 | AG4: 2013-03-31 | AH4: 2014-03-31 | AI4: 2015-03-31 | AJ4: 2016-03-31 | AK4: 2017-03-31 | AL4: 2018-03-31 | AM4: 2019-03-31 | AN4: 2020-03-31 | AO4: 2021-03-31 | AP4: 2022-03-31 | AQ4: 2023-03-31 | AR4: 2024-03-31 | AS4: 2025-03-31 | AT4: 2026-03-31 | AU4: 2027-03-31 | AV4: 2028-03-31 | AW4: 2029-03-31 | AX4: 2030-03-31 | AY4: =EOMONTH(AX4,12) -> 2031-03-31 | AZ4: =EOMONTH(AY4,12) -> 2032-03-31 | BA4: 2033-03-31 | BB4: 2034-03-31 | BC4: 2035-03-31 | BD4: 2036-03-31 | BE4: 2037-03-31 | BF4: 2038-03-31 | BG4: 2039-03-31 | BH4: 2040-03-31 | BI4: 2041-03-31 | BJ4: 2042-03-31 | BK4: 2043-03-31 | BL4: 2044-03-31 | BM4: 2045-03-31 | BN4: 2046-03-31 | BO4: 2047-03-31 | BP4: 2048-03-31 | BQ4: 2049-03-31 | BR4: 2050-03-31 | BS4: 2051-03-31 | BT4: 2052-03-31 | BU4: 2053-03-31 | BV4: 2054-03-31 | BW4: 2055-03-31 | BX4: 2056-03-31 | BY4: =EOMONTH(BX4,12) -> 2057-03-31 | BZ4: =EOMONTH(BY4,12) -> 2058-03-31 | CA4: =EOMONTH(BZ4,12) -> 2059-03-31 | CB4: =EOMONTH(CA4,12) -> 2060-03-31 | CC4: =EOMONTH(CB4,12) -> 2061-03-31 | CD4: =EOMONTH(CC4,12) -> 2062-03-31 | CE4: =EOMONTH(CD4,12) -> 2063-03-31 | CF4: =EOMONTH(CE4,12) -> 2064-03-31 | CG4: =EOMONTH(CF4,12) -> 2065-03-31 | CH4: =EOMONTH(CG4,12) -> 2066-03-31 | CI4: =EOMONTH(CH4,12) -> 2067-03-31 | CJ4: =EOMONTH(CI4,12) -> 2068-03-31 | CK4: =EOMONTH(CJ4,12) -> 2069-03-31 | CL4: =EOMONTH(CK4,12) -> 2070-03-31 | CM4: =EOMONTH(CL4,12) -> 2071-03-31 | CN4: =EOMONTH(CM4,12) -> 2072-03-31 | CO4: =EOMONTH(CN4,12) -> 2073-03-31 | CP4: =EOMONTH(CO4,12) -> 2074-03-31 | CQ4: =EOMONTH(CP4,12) -> 2075-03-31 | CR4: =EOMONTH(CQ4,12) -> 2076-03-31 | CS4: =EOMONTH(CR4,12) -> 2077-03-31 | CT4: =EOMONTH(CS4,12) -> 2078-03-31 | CU4: =EOMONTH(CT4,12) -> 2079-03-31 | CV4: =EOMONTH(CU4,12) -> 2080-03-31 | CW4: 2081-03-31
AU5: =ROUNDUP(SUM($AU11:AU11)/5,0)+2 -> 3 | AV5: =ROUNDUP(SUM($AU11:AV11)/5,0)+2 -> 3 | AW5: =ROUNDUP(SUM($AU11:AW11)/5,0)+2 -> 3 | AX5: =ROUNDUP(SUM($AU11:AX11)/5,0)+2 -> 3 | AY5: =ROUNDUP(SUM($AU11:AY11)/5,0)+2 -> 3 | AZ5: =ROUNDUP(SUM($AU11:AZ11)/5,0)+2 -> 4 | BA5: =ROUNDUP(SUM($AU11:BA11)/5,0)+2 -> 4 | BB5: =ROUNDUP(SUM($AU11:BB11)/5,0)+2 -> 4 | BC5: =ROUNDUP(SUM($AU11:BC11)/5,0)+2 -> 4 | BD5: =ROUNDUP(SUM($AU11:BD11)/5,0)+2 -> 4 | BE5: =ROUNDUP(SUM($AU11:BE11)/5,0)+2 -> 5 | BF5: =ROUNDUP(SUM($AU11:BF11)/5,0)+2 -> 5 | BG5: =ROUNDUP(SUM($AU11:BG11)/5,0)+2 -> 5 | BH5: =ROUNDUP(SUM($AU11:BH11)/5,0)+2 -> 5 | BI5: =ROUNDUP(SUM($AU11:BI11)/5,0)+2 -> 5 | BJ5: =ROUNDUP(SUM($AU11:BJ11)/5,0)+2 -> 6 | BK5: =ROUNDUP(SUM($AU11:BK11)/5,0)+2 -> 6 | BL5: =ROUNDUP(SUM($AU11:BL11)/5,0)+2 -> 6 | BM5: =ROUNDUP(SUM($AU11:BM11)/5,0)+2 -> 6 | BN5: =ROUNDUP(SUM($AU11:BN11)/5,0)+2 -> 6 | BO5: =ROUNDUP(SUM($AU11:BO11)/5,0)+2 -> 7 | BP5: =ROUNDUP(SUM($AU11:BP11)/5,0)+2 -> 7 | BQ5: =ROUNDUP(SUM($AU11:BQ11)/5,0)+2 -> 7 | BR5: =ROUNDUP(SUM($AU11:BR11)/5,0)+2 -> 7 | BS5: =ROUNDUP(SUM($AU11:BS11)/5,0)+2 -> 7 | BT5: =ROUNDUP(SUM($AU11:BT11)/5,0)+2 -> 8 | BU5: =ROUNDUP(SUM($AU11:BU11)/5,0)+2 -> 8 | BV5: =ROUNDUP(SUM($AU11:BV11)/5,0)+2 -> 8 | BW5: =ROUNDUP(SUM($AU11:BW11)/5,0)+2 -> 8 | BX5: =ROUNDUP(SUM($AU11:BX11)/5,0)+2 -> 8 | BY5: =ROUNDUP(SUM($AU11:BY11)/5,0)+2 -> 9 | BZ5: =ROUNDUP(SUM($AU11:BZ11)/5,0)+2 -> 9 | CA5: =ROUNDUP(SUM($AU11:CA11)/5,0)+2 -> 9 | CB5: =ROUNDUP(SUM($AU11:CB11)/5,0)+2 -> 9 | CC5: =ROUNDUP(SUM($AU11:CC11)/5,0)+2 -> 9 | CD5: =ROUNDUP(SUM($AU11:CD11)/5,0)+2 -> 10 | CE5: =ROUNDUP(SUM($AU11:CE11)/5,0)+2 -> 10 | CF5: =ROUNDUP(SUM($AU11:CF11)/5,0)+2 -> 10 | CG5: =ROUNDUP(SUM($AU11:CG11)/5,0)+2 -> 10 | CH5: =ROUNDUP(SUM($AU11:CH11)/5,0)+2 -> 10 | CI5: =ROUNDUP(SUM($AU11:CI11)/5,0)+2 -> 11 | CJ5: =ROUNDUP(SUM($AU11:CJ11)/5,0)+2 -> 11 | CK5: =ROUNDUP(SUM($AU11:CK11)/5,0)+2 -> 11 | CL5: =ROUNDUP(SUM($AU11:CL11)/5,0)+2 -> 11 | CM5: =ROUNDUP(SUM($AU11:CM11)/5,0)+2 -> 11 | CN5: =ROUNDUP(SUM($AU11:CN11)/5,0)+2 -> 12 | CO5: =ROUNDUP(SUM($AU11:CO11)/5,0)+2 -> 12 | CP5: =ROUNDUP(SUM($AU11:CP11)/5,0)+2 -> 12 | CQ5: =ROUNDUP(SUM($AU11:CQ11)/5,0)+2 -> 12 | CR5: =ROUNDUP(SUM($AU11:CR11)/5,0)+2 -> 12 | CS5: =ROUNDUP(SUM($AU11:CS11)/5,0)+2 -> 13 | CT5: =ROUNDUP(SUM($AU11:CT11)/5,0)+2 -> 13 | CU5: =ROUNDUP(SUM($AU11:CU11)/5,0)+2 -> 13 | CV5: =ROUNDUP(SUM($AU11:CV11)/5,0)+2 -> 13 | CW5: =ROUNDUP(SUM($AU11:CW11)/5,0)+2 -> 13 | CX5: =ROUNDUP(SUM($AU11:CX11)/5,0)+2 -> 13 | CY5: =ROUNDUP(SUM($AU11:CY11)/5,0)+2 -> 13 | CZ5: =ROUNDUP(SUM($AU11:CZ11)/5,0)+2 -> 13 | DA5: =ROUNDUP(SUM($AU11:DA11)/5,0)+2 -> 13 | DB5: =ROUNDUP(SUM($AU11:DB11)/5,0)+2 -> 13 | DC5: =ROUNDUP(SUM($AU11:DC11)/5,0)+2 -> 13 | DD5: =ROUNDUP(SUM($AU11:DD11)/5,0)+2 -> 13 | DE5: =ROUNDUP(SUM($AU11:DE11)/5,0)+2 -> 13 | DF5: =ROUNDUP(SUM($AU11:DF11)/5,0)+2 -> 13 | DG5: =ROUNDUP(SUM($AU11:DG11)/5,0)+2 -> 13 | DH5: =ROUNDUP(SUM($AU11:DH11)/5,0)+2 -> 13 | DI5: =ROUNDUP(SUM($AU11:DI11)/5,0)+2 -> 13 | DJ5: =ROUNDUP(SUM($AU11:DJ11)/5,0)+2 -> 13 | DK5: =ROUNDUP(SUM($AU11:DK11)/5,0)+2 -> 13 | DL5: =ROUNDUP(SUM($AU11:DL11)/5,0)+2 -> 13 | DM5: =ROUNDUP(SUM($AU11:DM11)/5,0)+2 -> 13 | DN5: =ROUNDUP(SUM($AU11:DN11)/5,0)+2 -> 13 | DO5: =ROUNDUP(SUM($AU11:DO11)/5,0)+2 -> 13 | DP5: =ROUNDUP(SUM($AU11:DP11)/5,0)+2 -> 13 | DQ5: =ROUNDUP(SUM($AU11:DQ11)/5,0)+2 -> 13 | DR5: =ROUNDUP(SUM($AU11:DR11)/5,0)+2 -> 13 | DS5: =ROUNDUP(SUM($AU11:DS11)/5,0)+2 -> 13 | DT5: =ROUNDUP(SUM($AU11:DT11)/5,0)+2 -> 13 | DU5: =ROUNDUP(SUM($AU11:DU11)/5,0)+2 -> 13 | DV5: =ROUNDUP(SUM($AU11:DV11)/5,0)+2 -> 13 | DW5: =ROUNDUP(SUM($AU11:DW11)/5,0)+2 -> 13 | DX5: =ROUNDUP(SUM($AU11:DX11)/5,0)+2 -> 13 | DY5: =ROUNDUP(SUM($AU11:DY11)/5,0)+2 -> 13 | DZ5: =ROUNDUP(SUM($AU11:DZ11)/5,0)+2 -> 13 | EA5: =ROUNDUP(SUM($AU11:EA11)/5,0)+2 -> 13 | EB5: =ROUNDUP(SUM($AU11:EB11)/5,0)+2 -> 13 | EC5: =ROUNDUP(SUM($AU11:EC11)/5,0)+2 -> 13 | ED5: =ROUNDUP(SUM($AU11:ED11)/5,0)+2 -> 13 | EE5: =ROUNDUP(SUM($AU11:EE11)/5,0)+2 -> 13 | EF5: =ROUNDUP(SUM($AU11:EF11)/5,0)+2 -> 13 | EG5: =ROUNDUP(SUM($AU11:EG11)/5,0)+2 -> 13 | EH5: =ROUNDUP(SUM($AU11:EH11)/5,0)+2 -> 13 | EI5: =ROUNDUP(SUM($AU11:EI11)/5,0)+2 -> 13 | EJ5: =ROUNDUP(SUM($AU11:EJ11)/5,0)+2 -> 13 | EK5: =ROUNDUP(SUM($AU11:EK11)/5,0)+2 -> 13 | EL5: =ROUNDUP(SUM($AU11:EL11)/5,0)+2 -> 13 | EM5: =ROUNDUP(SUM($AU11:EM11)/5,0)+2 -> 13 | EN5: =ROUNDUP(SUM($AU11:EN11)/5,0)+2 -> 13 | EO5: =ROUNDUP(SUM($AU11:EO11)/5,0)+2 -> 13 | EP5: =ROUNDUP(SUM($AU11:EP11)/5,0)+2 -> 13 | EQ5: =ROUNDUP(SUM($AU11:EQ11)/5,0)+2 -> 13 | ER5: =ROUNDUP(SUM($AU11:ER11)/5,0)+2 -> 13 | ES5: =ROUNDUP(SUM($AU11:ES11)/5,0)+2 -> 13 | ET5: =ROUNDUP(SUM($AU11:ET11)/5,0)+2 -> 13 | EU5: =ROUNDUP(SUM($AU11:EU11)/5,0)+2 -> 13 | EV5: =ROUNDUP(SUM($AU11:EV11)/5,0)+2 -> 13
C7: Price control timeline
E9: Pre-RIIO-2 year | G9: flag | K9: =Scenarios!K$119 -> 1 | L9: =Scenarios!L$119 -> 1 | M9: =Scenarios!M$119 -> 1 | N9: =Scenarios!N$119 -> 1 | O9: =Scenarios!O$119 -> 1 | P9: =Scenarios!P$119 -> 1 | Q9: =Scenarios!Q$119 -> 1 | R9: =Scenarios!R$119 -> 1 | S9: =Scenarios!S$119 -> 1 | T9: =Scenarios!T$119 -> 1 | U9: =Scenarios!U$119 -> 1 | V9: =Scenarios!V$119 -> 1 | W9: =Scenarios!W$119 -> 1 | X9: =Scenarios!X$119 -> 1 | Y9: =Scenarios!Y$119 -> 1 | Z9: =Scenarios!Z$119 -> 1 | AA9: =Scenarios!AA$119 -> 1 | AB9: =Scenarios!AB$119 -> 1 | AC9: =Scenarios!AC$119 -> 1 | AD9: =Scenarios!AD$119 -> 1 | AE9: =Scenarios!AE$119 -> 1 | AF9: =Scenarios!AF$119 -> 1 | AG9: =Scenarios!AG$119 -> 1 | AH9: =Scenarios!AH$119 -> 1 | AI9: =Scenarios!AI$119 -> 1 | AJ9: =Scenarios!AJ$119 -> 1 | AK9: =Scenarios!AK$119 -> 1 | AL9: =Scenarios!AL$119 -> 1 | AM9: =Scenarios!AM$119 -> 1 | AN9: =Scenarios!AN$119 -> 1 | AO9: =Scenarios!AO$119 -> 1 | AP9: =Scenarios!AP$119 -> 0 | AQ9: =Scenarios!AQ$119 -> 0 | AR9: =Scenarios!AR$119 -> 0 | AS9: =Scenarios!AS$119 -> 0 | AT9: =Scenarios!AT$119 -> 0 | AU9: =Scenarios!AU$119 -> 0 | AV9: =Scenarios!AV$119 -> 0 | AW9: =Scenarios!AW$119 -> 0 | AX9: =Scenarios!AX$119 -> 0 | AY9: =Scenarios!AY$119 -> 0
E10: RIIO-2 year | G10: flag | K10: =Scenarios!K$120 -> 0 | L10: =Scenarios!L$120 -> 0 | M10: =Scenarios!M$120 -> 0 | N10: =Scenarios!N$120 -> 0 | O10: =Scenarios!O$120 -> 0 | P10: =Scenarios!P$120 -> 0 | Q10: =Scenarios!Q$120 -> 0 | R10: =Scenarios!R$120 -> 0 | S10: =Scenarios!S$120 -> 0 | T10: =Scenarios!T$120 -> 0 | U10: =Scenarios!U$120 -> 0 | V10: =Scenarios!V$120 -> 0 | W10: =Scenarios!W$120 -> 0 | X10: =Scenarios!X$120 -> 0 | Y10: =Scenarios!Y$120 -> 0 | Z10: =Scenarios!Z$120 -> 0 | AA10: =Scenarios!AA$120 -> 0 | AB10: =Scenarios!AB$120 -> 0 | AC10: =Scenarios!AC$120 -> 0 | AD10: =Scenarios!AD$120 -> 0 | AE10: =Scenarios!AE$120 -> 0 | AF10: =Scenarios!AF$120 -> 0 | AG10: =Scenarios!AG$120 -> 0 | AH10: =Scenarios!AH$120 -> 0 | AI10: =Scenarios!AI$120 -> 0 | AJ10: =Scenarios!AJ$120 -> 0 | AK10: =Scenarios!AK$120 -> 0 | AL10: =Scenarios!AL$120 -> 0 | AM10: =Scenarios!AM$120 -> 0 | AN10: =Scenarios!AN$120 -> 0 | AO10: =Scenarios!AO$120 -> 0 | AP10: =Scenarios!AP$120 -> 1 | AQ10: =Scenarios!AQ$120 -> 1 | AR10: =Scenarios!AR$120 -> 1 | AS10: =Scenarios!AS$120 -> 1 | AT10: =Scenarios!AT$120 -> 1 | AU10: =Scenarios!AU$120 -> 0 | AV10: =Scenarios!AV$120 -> 0 | AW10: =Scenarios!AW$120 -> 0 | AX10: =Scenarios!AX$120 -> 0 | AY10: =Scenarios!AY$120 -> 0
E11: RIIO-3 year | G11: flag | K11: =Scenarios!K$121 -> 0 | L11: =Scenarios!L$121 -> 0 | M11: =Scenarios!M$121 -> 0 | N11: =Scenarios!N$121 -> 0 | O11: =Scenarios!O$121 -> 0 | P11: =Scenarios!P$121 -> 0 | Q11: =Scenarios!Q$121 -> 0 | R11: =Scenarios!R$121 -> 0 | S11: =Scenarios!S$121 -> 0 | T11: =Scenarios!T$121 -> 0 | U11: =Scenarios!U$121 -> 0 | V11: =Scenarios!V$121 -> 0 | W11: =Scenarios!W$121 -> 0 | X11: =Scenarios!X$121 -> 0 | Y11: =Scenarios!Y$121 -> 0 | Z11: =Scenarios!Z$121 -> 0 | AA11: =Scenarios!AA$121 -> 0 | AB11: =Scenarios!AB$121 -> 0 | AC11: =Scenarios!AC$121 -> 0 | AD11: =Scenarios!AD$121 -> 0 | AE11: =Scenarios!AE$121 -> 0 | AF11: =Scenarios!AF$121 -> 0 | AG11: =Scenarios!AG$121 -> 0 | AH11: =Scenarios!AH$121 -> 0 | AI11: =Scenarios!AI$121 -> 0 | AJ11: =Scenarios!AJ$121 -> 0 | AK11: =Scenarios!AK$121 -> 0 | AL11: =Scenarios!AL$121 -> 0 | AM11: =Scenarios!AM$121 -> 0 | AN11: =Scenarios!AN$121 -> 0 | AO11: =Scenarios!AO$121 -> 0 | AP11: =Scenarios!AP$121 -> 0 | AQ11: =Scenarios!AQ$121 -> 0 | AR11: =Scenarios!AR$121 -> 0 | AS11: =Scenarios!AS$121 -> 0 | AT11: =Scenarios!AT$121 -> 0 | AU11: =Scenarios!AU$121 -> 1 | AV11: =Scenarios!AV$121 -> 1 | AW11: =Scenarios!AW$121 -> 1 | AX11: =Scenarios!AX$121 -> 1 | AY11: =Scenarios!AY$121 -> 1 | AZ11: 1 | BA11: 1 | BB11: 1 | BC11: 1 | BD11: 1 | BE11: 1 | BF11: 1 | BG11: 1 | BH11: 1 | BI11: 1 | BJ11: 1 | BK11: 1 | BL11: 1 | BM11: 1 | BN11: 1 | BO11: 1 | BP11: 1 | BQ11: 1 | BR11: 1 | BS11: 1 | BT11: 1 | BU11: 1 | BV11: 1 | BW11: 1 | BX11: 1 | BY11: 1 | BZ11: 1 | CA11: 1 | CB11: 1 | CC11: 1 | CD11: 1 | CE11: 1 | CF11: 1 | CG11: 1 | CH11: 1 | CI11: 1 | CJ11: 1 | CK11: 1 | CL11: 1 | CM11: 1 | CN11: 1 | CO11: 1 | CP11: 1 | CQ11: 1 | CR11: 1 | CS11: 1 | CT11: 1 | CU11: 1 | CV11: 1 | CW11: 1
C13: Scenario operators
E15: SSMC cost of debt inflation approach: additions | G15: text | I15: =Scenarios!F53 -> Option 1 | AP15: ='Return&RAV'!AP61*AP11 -> 0 | AQ15: ='Return&RAV'!AQ61*AQ11 -> 0 | AR15: ='Return&RAV'!AR61*AR11 -> 0 | AS15: ='Return&RAV'!AS61*AS11 -> 0 | AT15: ='Return&RAV'!AT61*AT11 -> 0 | AU15: ='Return&RAV'!AU61*AU11 -> 3148.794416 | AV15: ='Return&RAV'!AV61*AV11 -> 5211.426664 | AW15: ='Return&RAV'!AW61*AW11 -> 6254.305196 | AX15: ='Return&RAV'!AX61*AX11 -> 5381.582435 | AY15: ='Return&RAV'!AY61*AY11 -> 5399.285308
E16: RIIO3 depreciation lifetime override | G16: years | I16: =Scenarios!F27 -> 0 | AU16: =$I16 -> 0 | AV16: =$I16 -> 0 | AW16: 0 | AX16: 0 | AY16: 0
E17: Accelerated pre-vesting depreciation smoothing in RIIO3 override | G17: % | I17: =Scenarios!F28 -> 0 | AU17: =$I17 -> 0 | AV17: 0 | AW17: 0 | AX17: 0 | AY17: 0
B19: Regulatory depreciation
C21: Net RAV additions (after disposals)
C22: Note: Additions to RAV are combined before feeding into the depreciation calculations. Disposals are treated as negative additions. Pre-RIIO values are used to build up the post-vesting RAV from vesting.
E24: Slow money | G24: =price_label -> £m 23/24 prices | AP24: =IF(AP11=1,AP15,TIM!AP109*AP10) -> 649.6232697 | AQ24: =IF(AQ11=1,AQ15,TIM!AQ109*AQ10) -> 613.8034427 | AR24: =IF(AR11=1,AR15,TIM!AR109*AR10) -> 915.5993846 | AS24: =IF(AS11=1,AS15,TIM!AS109*AS10) -> 1547.430721 | AT24: =IF(AT11=1,AT15,TIM!AT109*AT10) -> 2113.800152 | AU24: =IF(AU11=1,AU15,TIM!AU109*AU10) -> 3148.794416 | AV24: =IF(AV11=1,AV15,TIM!AV109*AV10) -> 5211.426664 | AW24: =IF(AW11=1,AW15,TIM!AW109*AW10) -> 6254.305196 | AX24: =IF(AX11=1,AX15,TIM!AX109*AX10) -> 5381.582435 | AY24: =IF(AY11=1,AY15,TIM!AY109*AY10) -> 5399.285308 | AZ24: =IF(AZ11=1,AZ15,TIM!AZ109*AZ10) -> 0 | BA24: =IF(BA11=1,BA15,TIM!BA109*BA10) -> 0 | BB24: =IF(BB11=1,BB15,TIM!BB109*BB10) -> 0 | BC24: =IF(BC11=1,BC15,TIM!BC109*BC10) -> 0 | BD24: =IF(BD11=1,BD15,TIM!BD109*BD10) -> 0 | BE24: =IF(BE11=1,BE15,TIM!BE109*BE10) -> 0 | BF24: =IF(BF11=1,BF15,TIM!BF109*BF10) -> 0 | BG24: =IF(BG11=1,BG15,TIM!BG109*BG10) -> 0 | BH24: =IF(BH11=1,BH15,TIM!BH109*BH10) -> 0 | BI24: =IF(BI11=1,BI15,TIM!BI109*BI10) -> 0 | BJ24: =IF(BJ11=1,BJ15,TIM!BJ109*BJ10) -> 0 | BK24: =IF(BK11=1,BK15,TIM!BK109*BK10) -> 0 | BL24: =IF(BL11=1,BL15,TIM!BL109*BL10) -> 0 | BM24: =IF(BM11=1,BM15,TIM!BM109*BM10) -> 0 | BN24: =IF(BN11=1,BN15,TIM!BN109*BN10) -> 0 | BO24: =IF(BO11=1,BO15,TIM!BO109*BO10) -> 0 | BP24: =IF(BP11=1,BP15,TIM!BP109*BP10) -> 0 | BQ24: =IF(BQ11=1,BQ15,TIM!BQ109*BQ10) -> 0 | BR24: =IF(BR11=1,BR15,TIM!BR109*BR10) -> 0 | BS24: =IF(BS11=1,BS15,TIM!BS109*BS10) -> 0 | BT24: =IF(BT11=1,BT15,TIM!BT109*BT10) -> 0 | BU24: =IF(BU11=1,BU15,TIM!BU109*BU10) -> 0 | BV24: =IF(BV11=1,BV15,TIM!BV109*BV10) -> 0 | BW24: =IF(BW11=1,BW15,TIM!BW109*BW10) -> 0 | BX24: =IF(BX11=1,BX15,TIM!BX109*BX10) -> 0 | BY24: =IF(BY11=1,BY15,TIM!BY109*BY10) -> 0 | BZ24: =IF(BZ11=1,BZ15,TIM!BZ109*BZ10) -> 0 | CA24: =IF(CA11=1,CA15,TIM!CA109*CA10) -> 0 | CB24: =IF(CB11=1,CB15,TIM!CB109*CB10) -> 0 | CC24: =IF(CC11=1,CC15,TIM!CC109*CC10) -> 0 | CD24: =IF(CD11=1,CD15,TIM!CD109*CD10) -> 0 | CE24: =IF(CE11=1,CE15,TIM!CE109*CE10) -> 0 | CF24: =IF(CF11=1,CF15,TIM!CF109*CF10) -> 0 | CG24: =IF(CG11=1,CG15,TIM!CG109*CG10) -> 0 | CH24: =IF(CH11=1,CH15,TIM!CH109*CH10) -> 0 | CI24: =IF(CI11=1,CI15,TIM!CI109*CI10) -> 0 | CJ24: =IF(CJ11=1,CJ15,TIM!CJ109*CJ10) -> 0 | CK24: =IF(CK11=1,CK15,TIM!CK109*CK10) -> 0 | CL24: =IF(CL11=1,CL15,TIM!CL109*CL10) -> 0 | CM24: =IF(CM11=1,CM15,TIM!CM109*CM10) -> 0 | CN24: =IF(CN11=1,CN15,TIM!CN109*CN10) -> 0 | CO24: =IF(CO11=1,CO15,TIM!CO109*CO10) -> 0 | CP24: =IF(CP11=1,CP15,TIM!CP109*CP10) -> 0 | CQ24: =IF(CQ11=1,CQ15,TIM!CQ109*CQ10) -> 0 | CR24: =IF(CR11=1,CR15,TIM!CR109*CR10) -> 0 | CS24: =IF(CS11=1,CS15,TIM!CS109*CS10) -> 0 | CT24: =IF(CT11=1,CT15,TIM!CT109*CT10) -> 0 | CU24: =IF(CU11=1,CU15,TIM!CU109*CU10) -> 0 | CV24: =IF(CV11=1,CV15,TIM!CV109*CV10) -> 0 | CW24: =IF(CW11=1,CW15,TIM!CW109*CW10) -> 0
E25: Net adjustments | G25: £m 23/24 prices | AP25: =SUM(MainInputs!AP2524:AP2525) -> 0 | AQ25: =SUM(MainInputs!AQ2524:AQ2525) -> 0 | AR25: =SUM(MainInputs!AR2524:AR2525) -> 0 | AS25: =SUM(MainInputs!AS2524:AS2525) -> 0 | AT25: =SUM(MainInputs!AT2524:AT2525) -> -311.1047282 | AU25: =SUM(MainInputs!AU2524:AU2525) -> 0 | AV25: =SUM(MainInputs!AV2524:AV2525) -> 0 | AW25: =SUM(MainInputs!AW2524:AW2525) -> 0 | AX25: =SUM(MainInputs!AX2524:AX2525) -> 0 | AY25: =SUM(MainInputs!AY2524:AY2525) -> 0 | AZ25: =SUM(MainInputs!AZ2524:AZ2525) -> 0 | BA25: =SUM(MainInputs!BA2524:BA2525) -> 0 | BB25: =SUM(MainInputs!BB2524:BB2525) -> 0 | BC25: =SUM(MainInputs!BC2524:BC2525) -> 0 | BD25: =SUM(MainInputs!BD2524:BD2525) -> 0 | BE25: =SUM(MainInputs!BE2524:BE2525) -> 0 | BF25: =SUM(MainInputs!BF2524:BF2525) -> 0 | BG25: =SUM(MainInputs!BG2524:BG2525) -> 0 | BH25: =SUM(MainInputs!BH2524:BH2525) -> 0 | BI25: =SUM(MainInputs!BI2524:BI2525) -> 0 | BJ25: =SUM(MainInputs!BJ2524:BJ2525) -> 0 | BK25: =SUM(MainInputs!BK2524:BK2525) -> 0 | BL25: =SUM(MainInputs!BL2524:BL2525) -> 0 | BM25: =SUM(MainInputs!BM2524:BM2525) -> 0 | BN25: =SUM(MainInputs!BN2524:BN2525) -> 0 | BO25: =SUM(MainInputs!BO2524:BO2525) -> 0 | BP25: =SUM(MainInputs!BP2524:BP2525) -> 0 | BQ25: =SUM(MainInputs!BQ2524:BQ2525) -> 0 | BR25: =SUM(MainInputs!BR2524:BR2525) -> 0 | BS25: =SUM(MainInputs!BS2524:BS2525) -> 0 | BT25: =SUM(MainInputs!BT2524:BT2525) -> 0 | BU25: =SUM(MainInputs!BU2524:BU2525) -> 0 | BV25: =SUM(MainInputs!BV2524:BV2525) -> 0 | BW25: =SUM(MainInputs!BW2524:BW2525) -> 0 | BX25: =SUM(MainInputs!BX2524:BX2525) -> 0 | BY25: =SUM(MainInputs!BY2524:BY2525) -> 0 | BZ25: =SUM(MainInputs!BZ2524:BZ2525) -> 0 | CA25: =SUM(MainInputs!CA2524:CA2525) -> 0 | CB25: =SUM(MainInputs!CB2524:CB2525) -> 0 | CC25: =SUM(MainInputs!CC2524:CC2525) -> 0 | CD25: =SUM(MainInputs!CD2524:CD2525) -> 0 | CE25: =SUM(MainInputs!CE2524:CE2525) -> 0 | CF25: =SUM(MainInputs!CF2524:CF2525) -> 0 | CG25: =SUM(MainInputs!CG2524:CG2525) -> 0 | CH25: =SUM(MainInputs!CH2524:CH2525) -> 0 | CI25: =SUM(MainInputs!CI2524:CI2525) -> 0 | CJ25: =SUM(MainInputs!CJ2524:CJ2525) -> 0 | CK25: =SUM(MainInputs!CK2524:CK2525) -> 0 | CL25: =SUM(MainInputs!CL2524:CL2525) -> 0 | CM25: =SUM(MainInputs!CM2524:CM2525) -> 0 | CN25: =SUM(MainInputs!CN2524:CN2525) -> 0 | CO25: =SUM(MainInputs!CO2524:CO2525) -> 0 | CP25: =SUM(MainInputs!CP2524:CP2525) -> 0 | CQ25: =SUM(MainInputs!CQ2524:CQ2525) -> 0 | CR25: =SUM(MainInputs!CR2524:CR2525) -> 0 | CS25: =SUM(MainInputs!CS2524:CS2525) -> 0 | CT25: =SUM(MainInputs!CT2524:CT2525) -> 0 | CU25: =SUM(MainInputs!CU2524:CU2525) -> 0 | CV25: =SUM(MainInputs!CV2524:CV2525) -> 0 | CW25: =SUM(MainInputs!CW2524:CW2525) -> 0
E26: Pre-RIIO net RAV additions (after disposals) | G26: £m 23/24 prices | K26: =MainInputs!K2521 -> 43.08661449 | L26: =MainInputs!L2521 -> 38.84560111 | M26: =MainInputs!M2521 -> 3.806611268 | N26: =MainInputs!N2521 -> 43.19068844 | O26: =MainInputs!O2521 -> 18.09938474 | P26: =MainInputs!P2521 -> 18.53035686 | Q26: =MainInputs!Q2521 -> 22.15727737 | R26: =MainInputs!R2521 -> 26.49158814 | S26: =MainInputs!S2521 -> 19.53738066 | T26: =MainInputs!T2521 -> 35.63357741 | U26: =MainInputs!U2521 -> 18.53495702 | V26: =MainInputs!V2521 -> 13.53393427 | W26: =MainInputs!W2521 -> 15.56584309 | X26: =MainInputs!X2521 -> 16.70833639 | Y26: =MainInputs!Y2521 -> 79.2568709 | Z26: =MainInputs!Z2521 -> 36.34371971 | AA26: =MainInputs!AA2521 -> 43.46233203 | AB26: =MainInputs!AB2521 -> 76.13909935 | AC26: =MainInputs!AC2521 -> 88.70539724 | AD26: =MainInputs!AD2521 -> 64.50800128 | AE26: =MainInputs!AE2521 -> 54.70181555 | AF26: =MainInputs!AF2521 -> 47.32970816 | AG26: =MainInputs!AG2521 -> 124.9343769
E27: RIIO-1 net RAV additions (after disposals) | G27: £m 23/24 prices | AH27: =MainInputs!AH2523 -> 129.5850877 | AI27: =MainInputs!AI2523 -> 439.889235 | AJ27: =MainInputs!AJ2523 -> 772.1648223 | AK27: =MainInputs!AK2523 -> 658.2696652 | AL27: =MainInputs!AL2523 -> 485.3554189 | AM27: =MainInputs!AM2523 -> 308.7541088 | AN27: =MainInputs!AN2523 -> 348.5874485 | AO27: =MainInputs!AO2523 -> 446.1841397
E28: Net RAV additions (after disposals) | G28: £m 23/24 prices | J28: > | K28: =SUM(K24:K27) -> 43.08661449 | L28: 38.84560111 | M28: 3.806611268 | N28: 43.19068844 | O28: 18.09938474 | P28: 18.53035686 | Q28: 22.15727737 | R28: 26.49158814 | S28: 19.53738066 | T28: 35.63357741 | U28: 18.53495702 | V28: 13.53393427 | W28: 15.56584309 | X28: 16.70833639 | Y28: 79.2568709 | Z28: 36.34371971 | AA28: 43.46233203 | AB28: 76.13909935 | AC28: 88.70539724 | AD28: 64.50800128 | AE28: 54.70181555 | AF28: 47.32970816 | AG28: 124.9343769 | AH28: 129.5850877 | AI28: 439.889235 | AJ28: 772.1648223 | AK28: 658.2696652 | AL28: 485.3554189 | AM28: 308.7541088 | AN28: 348.5874485 | AO28: 446.1841397 | AP28: 649.6232697 | AQ28: 613.8034427 | AR28: 915.5993846 | AS28: 1547.430721 | AT28: 1802.695424 | AU28: 3148.794416 | AV28: 5211.426664 | AW28: 6254.305196 | AX28: 5381.582435 | AY28: 5399.285308 | AZ28: =SUM(AZ24:AZ27) -> 0 | BA28: =SUM(BA24:BA27) -> 0 | BB28: 0 | BC28: 0 | BD28: 0 | BE28: 0 | BF28: 0 | BG28: 0 | BH28: 0 | BI28: 0 | BJ28: 0 | BK28: 0 | BL28: 0 | BM28: 0 | BN28: 0 | BO28: 0 | BP28: 0 | BQ28: 0 | BR28: 0 | BS28: 0 | BT28: 0 | BU28: 0 | BV28: 0 | BW28: 0 | BX28: 0 | BY28: 0 | BZ28: 0 | CA28: 0 | CB28: 0 | CC28: 0 | CD28: 0 | CE28: 0 | CF28: 0 | CG28: 0 | CH28: 0 | CI28: 0 | CJ28: 0 | CK28: 0 | CL28: 0 | CM28: 0 | CN28: 0 | CO28: 0 | CP28: 0 | CQ28: 0 | CR28: 0 | CS28: 0 | CT28: 0 | CU28: 0 | CV28: 0 | CW28: 0
C30: Net depreciation additions (after disposals)
E32: Pre-RIIO transfers to depreciation | G32: =price_label -> £m 23/24 prices | J32: > | K32: =MainInputs!K2522 -> 0 | L32: =MainInputs!L2522 -> 0 | M32: =MainInputs!M2522 -> 0 | N32: =MainInputs!N2522 -> 0 | O32: =MainInputs!O2522 -> 0 | P32: =MainInputs!P2522 -> 0 | Q32: =MainInputs!Q2522 -> 0 | R32: =MainInputs!R2522 -> 0 | S32: =MainInputs!S2522 -> 0 | T32: =MainInputs!T2522 -> 0 | U32: =MainInputs!U2522 -> 0 | V32: =MainInputs!V2522 -> 0 | W32: =MainInputs!W2522 -> 0 | X32: =MainInputs!X2522 -> 0 | Y32: =MainInputs!Y2522 -> 0 | Z32: =MainInputs!Z2522 -> 0 | AA32: =MainInputs!AA2522 -> 0 | AB32: =MainInputs!AB2522 -> 0 | AC32: =MainInputs!AC2522 -> 0 | AD32: =MainInputs!AD2522 -> 0 | AE32: =MainInputs!AE2522 -> 0 | AF32: =MainInputs!AF2522 -> 0 | AG32: =MainInputs!AG2522 -> 0
C34: Pre-vesting depreciation
C35: Note: The following depreciation factor is used to depreciate the pre-vesting balance on the "Return&RAV" sheet.
E37: Vesting year | G37: year ending | I37: =MainInputs!I2520 -> 1991-03-31
E38: Pre-vesting asset life | G38: years | I38: =MainInputs!I2510 -> 22
E39: Pre-vesting straight line depreciation factor | G39: % | AH39: =1/$I$38 -> 0.04545454545 | AI39: =1/$I$38 -> 0.04545454545 | AJ39: 0.04545454545 | AK39: 0.04545454545 | AL39: 0.04545454545 | AM39: 0.04545454545 | AN39: 0.04545454545 | AO39: 0.04545454545 | AP39: 0.04545454545 | AQ39: 0.04545454545 | AR39: 0.04545454545 | AS39: 0.04545454545 | AT39: 0.04545454545 | AU39: 0.04545454545 | AV39: 0.04545454545 | AW39: 0.04545454545 | AX39: 0.04545454545 | AY39: =1/$I$38 -> 0.04545454545
C41: Accelerated post-vesting depreciation
C42: Note: Non-accelerated depreciation calculations are used to establish the "RAV differential" accumulated as the difference between non-accelerated and accelerated depreciation before full depreciation of vesting assets.
D44: Depreciation parameters
E46: Post-vesting asset life | G46: years | K46: =MainInputs!K2518*(K9+K10) + K11*IF(K16=0,MainInputs!K2518,K16) -> 20 | L46: =MainInputs!L2518*(L9+L10) + L11*IF(L16=0,MainInputs!L2518,L16) -> 20 | M46: =MainInputs!M2518*(M9+M10) + M11*IF(M16=0,MainInputs!M2518,M16) -> 20 | N46: =MainInputs!N2518*(N9+N10) + N11*IF(N16=0,MainInputs!N2518,N16) -> 20 | O46: =MainInputs!O2518*(O9+O10) + O11*IF(O16=0,MainInputs!O2518,O16) -> 20 | P46: =MainInputs!P2518*(P9+P10) + P11*IF(P16=0,MainInputs!P2518,P16) -> 20 | Q46: =MainInputs!Q2518*(Q9+Q10) + Q11*IF(Q16=0,MainInputs!Q2518,Q16) -> 20 | R46: =MainInputs!R2518*(R9+R10) + R11*IF(R16=0,MainInputs!R2518,R16) -> 20 | S46: =MainInputs!S2518*(S9+S10) + S11*IF(S16=0,MainInputs!S2518,S16) -> 20 | T46: =MainInputs!T2518*(T9+T10) + T11*IF(T16=0,MainInputs!T2518,T16) -> 20 | U46: =MainInputs!U2518*(U9+U10) + U11*IF(U16=0,MainInputs!U2518,U16) -> 20 | V46: =MainInputs!V2518*(V9+V10) + V11*IF(V16=0,MainInputs!V2518,V16) -> 20 | W46: =MainInputs!W2518*(W9+W10) + W11*IF(W16=0,MainInputs!W2518,W16) -> 20 | X46: =MainInputs!X2518*(X9+X10) + X11*IF(X16=0,MainInputs!X2518,X16) -> 20 | Y46: =MainInputs!Y2518*(Y9+Y10) + Y11*IF(Y16=0,MainInputs!Y2518,Y16) -> 20 | Z46: =MainInputs!Z2518*(Z9+Z10) + Z11*IF(Z16=0,MainInputs!Z2518,Z16) -> 20 | AA46: =MainInputs!AA2518*(AA9+AA10) + AA11*IF(AA16=0,MainInputs!AA2518,AA16) -> 20 | AB46: =MainInputs!AB2518*(AB9+AB10) + AB11*IF(AB16=0,MainInputs!AB2518,AB16) -> 20 | AC46: =MainInputs!AC2518*(AC9+AC10) + AC11*IF(AC16=0,MainInputs!AC2518,AC16) -> 20 | AD46: =MainInputs!AD2518*(AD9+AD10) + AD11*IF(AD16=0,MainInputs!AD2518,AD16) -> 20 | AE46: =MainInputs!AE2518*(AE9+AE10) + AE11*IF(AE16=0,MainInputs!AE2518,AE16) -> 20 | AF46: =MainInputs!AF2518*(AF9+AF10) + AF11*IF(AF16=0,MainInputs!AF2518,AF16) -> 20 | AG46: =MainInputs!AG2518*(AG9+AG10) + AG11*IF(AG16=0,MainInputs!AG2518,AG16) -> 20 | AH46: =MainInputs!AH2518*(AH9+AH10) + AH11*IF(AH16=0,MainInputs!AH2518,AH16) -> 21.5625 | AI46: =MainInputs!AI2518*(AI9+AI10) + AI11*IF(AI16=0,MainInputs!AI2518,AI16) -> 23.125 | AJ46: =MainInputs!AJ2518*(AJ9+AJ10) + AJ11*IF(AJ16=0,MainInputs!AJ2518,AJ16) -> 24.6875 | AK46: =MainInputs!AK2518*(AK9+AK10) + AK11*IF(AK16=0,MainInputs!AK2518,AK16) -> 26.25 | AL46: =MainInputs!AL2518*(AL9+AL10) + AL11*IF(AL16=0,MainInputs!AL2518,AL16) -> 27.8125 | AM46: =MainInputs!AM2518*(AM9+AM10) + AM11*IF(AM16=0,MainInputs!AM2518,AM16) -> 29.375 | AN46: =MainInputs!AN2518*(AN9+AN10) + AN11*IF(AN16=0,MainInputs!AN2518,AN16) -> 30.9375 | AO46: =MainInputs!AO2518*(AO9+AO10) + AO11*IF(AO16=0,MainInputs!AO2518,AO16) -> 32.5 | AP46: =MainInputs!AP2518*(AP9+AP10) + AP11*IF(AP16=0,MainInputs!AP2518,AP16) -> 35 | AQ46: =MainInputs!AQ2518*(AQ9+AQ10) + AQ11*IF(AQ16=0,MainInputs!AQ2518,AQ16) -> 37.5 | AR46: =MainInputs!AR2518*(AR9+AR10) + AR11*IF(AR16=0,MainInputs!AR2518,AR16) -> 40 | AS46: =MainInputs!AS2518*(AS9+AS10) + AS11*IF(AS16=0,MainInputs!AS2518,AS16) -> 42.5 | AT46: =MainInputs!AT2518*(AT9+AT10) + AT11*IF(AT16=0,MainInputs!AT2518,AT16) -> 45 | AU46: =MainInputs!AU2518*(AU9+AU10) + AU11*IF(AU16=0,MainInputs!AU2518,AU16) -> 45 | AV46: =MainInputs!AV2518*(AV9+AV10) + AV11*IF(AV16=0,MainInputs!AV2518,AV16) -> 45 | AW46: =MainInputs!AW2518*(AW9+AW10) + AW11*IF(AW16=0,MainInputs!AW2518,AW16) -> 45 | AX46: =MainInputs!AX2518*(AX9+AX10) + AX11*IF(AX16=0,MainInputs!AX2518,AX16) -> 45 | AY46: =MainInputs!AY2518*(AY9+AY10) + AY11*IF(AY16=0,MainInputs!AY2518,AY16) -> 45 | AZ46: =AY46 -> 45 | BA46: =AZ46 -> 45 | BB46: 45 | BC46: 45 | BD46: 45 | BE46: 45 | BF46: 45 | BG46: 45 | BH46: 45 | BI46: 45 | BJ46: 45 | BK46: 45 | BL46: 45 | BM46: 45 | BN46: 45 | BO46: 45 | BP46: 45 | BQ46: 45 | BR46: 45 | BS46: 45 | BT46: 45 | BU46: 45 | BV46: 45 | BW46: 45 | BX46: 45 | BY46: 45 | BZ46: 45 | CA46: 45 | CB46: 45 | CC46: 45 | CD46: 45 | CE46: 45 | CF46: 45 | CG46: 45 | CH46: 45 | CI46: 45 | CJ46: 45 | CK46: 45 | CL46: 45 | CM46: 45 | CN46: 45 | CO46: 45 | CP46: 45 | CQ46: 45 | CR46: 45 | CS46: 45 | CT46: 45 | CU46: 45 | CV46: 45 | CW46: 45
E47: Non-accelerated post-vesting depreciation applied | G47: text | J47: > | K47: =YEAR(K$4)>=YEAR($I$37)+$I$38 -> FALSE | L47: FALSE | M47: FALSE | N47: FALSE | O47: FALSE | P47: FALSE | Q47: FALSE | R47: FALSE | S47: FALSE | T47: FALSE | U47: FALSE | V47: FALSE | W47: FALSE | X47: FALSE | Y47: FALSE | Z47: FALSE | AA47: FALSE | AB47: FALSE | AC47: FALSE | AD47: FALSE | AE47: FALSE | AF47: FALSE | AG47: TRUE | AH47: TRUE | AI47: TRUE | AJ47: TRUE | AK47: TRUE | AL47: TRUE | AM47: TRUE | AN47: TRUE | AO47: TRUE | AP47: TRUE | AQ47: =YEAR(AQ$4)>=YEAR($I$37)+$I$38 -> TRUE | AR47: TRUE | AS47: TRUE | AT47: TRUE | AU47: TRUE | AV47: TRUE | AW47: TRUE | AX47: TRUE | AY47: TRUE | AZ47: TRUE | BA47: TRUE | BB47: TRUE | BC47: TRUE | BD47: TRUE | BE47: TRUE | BF47: TRUE | BG47: TRUE | BH47: TRUE | BI47: TRUE | BJ47: TRUE | BK47: TRUE | BL47: TRUE | BM47: TRUE | BN47: TRUE | BO47: TRUE | BP47: TRUE | BQ47: TRUE | BR47: TRUE | BS47: TRUE | BT47: TRUE | BU47: TRUE | BV47: TRUE | BW47: =YEAR(BW$4)>=YEAR($I$37)+$I$38 -> TRUE | BX47: TRUE | BY47: TRUE | BZ47: TRUE | CA47: TRUE | CB47: TRUE | CC47: TRUE | CD47: TRUE | CE47: TRUE | CF47: TRUE | CG47: TRUE | CH47: TRUE | CI47: TRUE | CJ47: TRUE | CK47: TRUE | CL47: TRUE | CM47: TRUE | CN47: TRUE | CO47: TRUE | CP47: TRUE | CQ47: TRUE | CR47: TRUE | CS47: TRUE | CT47: TRUE | CU47: TRUE | CV47: TRUE | CW47: TRUE
D49: Depreciation schedule
E51: Straight line depreciation of additions from year ending | I51: Net additions
E52: 1991-03-31 | G52: =price_label -> £m 23/24 prices | I52: =TRANSPOSE(K28:CW28) -> 43.08661449 | J52: > | L52: =$I52 / K$46 -> 2.154330725 | M52: =IF($I52 >0, MIN(L52,$I52-SUM($K52:L52)), MAX(L52,$I52-SUM($K52:L52))) -> 2.154330725 | N52: =IF($I52 >0, MIN(M52,$I52-SUM($K52:M52)), MAX(M52,$I52-SUM($K52:M52))) -> 2.154330725 | O52: =IF($I52 >0, MIN(N52,$I52-SUM($K52:N52)), MAX(N52,$I52-SUM($K52:N52))) -> 2.154330725 | P52: =IF($I52 >0, MIN(O52,$I52-SUM($K52:O52)), MAX(O52,$I52-SUM($K52:O52))) -> 2.154330725 | Q52: =IF($I52 >0, MIN(P52,$I52-SUM($K52:P52)), MAX(P52,$I52-SUM($K52:P52))) -> 2.154330725 | R52: =IF($I52 >0, MIN(Q52,$I52-SUM($K52:Q52)), MAX(Q52,$I52-SUM($K52:Q52))) -> 2.154330725 | S52: =IF($I52 >0, MIN(R52,$I52-SUM($K52:R52)), MAX(R52,$I52-SUM($K52:R52))) -> 2.154330725 | T52: =IF($I52 >0, MIN(S52,$I52-SUM($K52:S52)), MAX(S52,$I52-SUM($K52:S52))) -> 2.154330725 | U52: =IF($I52 >0, MIN(T52,$I52-SUM($K52:T52)), MAX(T52,$I52-SUM($K52:T52))) -> 2.154330725 | V52: =IF($I52 >0, MIN(U52,$I52-SUM($K52:U52)), MAX(U52,$I52-SUM($K52:U52))) -> 2.154330725 | W52: =IF($I52 >0, MIN(V52,$I52-SUM($K52:V52)), MAX(V52,$I52-SUM($K52:V52))) -> 2.154330725 | X52: =IF($I52 >0, MIN(W52,$I52-SUM($K52:W52)), MAX(W52,$I52-SUM($K52:W52))) -> 2.154330725 | Y52: =IF($I52 >0, MIN(X52,$I52-SUM($K52:X52)), MAX(X52,$I52-SUM($K52:X52))) -> 2.154330725 | Z52: =IF($I52 >0, MIN(Y52,$I52-SUM($K52:Y52)), MAX(Y52,$I52-SUM($K52:Y52))) -> 2.154330725 | AA52: =IF($I52 >0, MIN(Z52,$I52-SUM($K52:Z52)), MAX(Z52,$I52-SUM($K52:Z52))) -> 2.154330725 | AB52: =IF($I52 >0, MIN(AA52,$I52-SUM($K52:AA52)), MAX(AA52,$I52-SUM($K52:AA52))) -> 2.154330725 | AC52: =IF($I52 >0, MIN(AB52,$I52-SUM($K52:AB52)), MAX(AB52,$I52-SUM($K52:AB52))) -> 2.154330725 | AD52: =IF($I52 >0, MIN(AC52,$I52-SUM($K52:AC52)), MAX(AC52,$I52-SUM($K52:AC52))) -> 2.154330725 | AE52: =IF($I52 >0, MIN(AD52,$I52-SUM($K52:AD52)), MAX(AD52,$I52-SUM($K52:AD52))) -> 2.154330725 | AF52: =IF($I52 >0, MIN(AE52,$I52-SUM($K52:AE52)), MAX(AE52,$I52-SUM($K52:AE52))) -> 1.421085472e-14 | AG52: =IF($I52 >0, MIN(AF52,$I52-SUM($K52:AF52)), MAX(AF52,$I52-SUM($K52:AF52))) -> 0 | AH52: =IF($I52 >0, MIN(AG52,$I52-SUM($K52:AG52)), MAX(AG52,$I52-SUM($K52:AG52))) -> 0 | AI52: =IF($I52 >0, MIN(AH52,$I52-SUM($K52:AH52)), MAX(AH52,$I52-SUM($K52:AH52))) -> 0 | AJ52: =IF($I52 >0, MIN(AI52,$I52-SUM($K52:AI52)), MAX(AI52,$I52-SUM($K52:AI52))) -> 0 | AK52: =IF($I52 >0, MIN(AJ52,$I52-SUM($K52:AJ52)), MAX(AJ52,$I52-SUM($K52:AJ52))) -> 0 | AL52: =IF($I52 >0, MIN(AK52,$I52-SUM($K52:AK52)), MAX(AK52,$I52-SUM($K52:AK52))) -> 0 | AM52: =IF($I52 >0, MIN(AL52,$I52-SUM($K52:AL52)), MAX(AL52,$I52-SUM($K52:AL52))) -> 0 | AN52: =IF($I52 >0, MIN(AM52,$I52-SUM($K52:AM52)), MAX(AM52,$I52-SUM($K52:AM52))) -> 0 | AO52: =IF($I52 >0, MIN(AN52,$I52-SUM($K52:AN52)), MAX(AN52,$I52-SUM($K52:AN52))) -> 0 | AP52: =IF($I52 >0, MIN(AO52,$I52-SUM($K52:AO52)), MAX(AO52,$I52-SUM($K52:AO52))) -> 0 | AQ52: =IF($I52 >0, MIN(AP52,$I52-SUM($K52:AP52)), MAX(AP52,$I52-SUM($K52:AP52))) -> 0 | AR52: =IF($I52 >0, MIN(AQ52,$I52-SUM($K52:AQ52)), MAX(AQ52,$I52-SUM($K52:AQ52))) -> 0 | AS52: =IF($I52 >0, MIN(AR52,$I52-SUM($K52:AR52)), MAX(AR52,$I52-SUM($K52:AR52))) -> 0 | AT52: =IF($I52 >0, MIN(AS52,$I52-SUM($K52:AS52)), MAX(AS52,$I52-SUM($K52:AS52))) -> 0 | AU52: =IF($I52 >0, MIN(AT52,$I52-SUM($K52:AT52)), MAX(AT52,$I52-SUM($K52:AT52))) -> 0 | AV52: =IF($I52 >0, MIN(AU52,$I52-SUM($K52:AU52)), MAX(AU52,$I52-SUM($K52:AU52))) -> 0 | AW52: =IF($I52 >0, MIN(AV52,$I52-SUM($K52:AV52)), MAX(AV52,$I52-SUM($K52:AV52))) -> 0 | AX52: =IF($I52 >0, MIN(AW52,$I52-SUM($K52:AW52)), MAX(AW52,$I52-SUM($K52:AW52))) -> 0 | AY52: =IF($I52 >0, MIN(AX52,$I52-SUM($K52:AX52)), MAX(AX52,$I52-SUM($K52:AX52))) -> 0 | AZ52: =IF($I52 >0, MIN(AY52,$I52-SUM($K52:AY52)), MAX(AY52,$I52-SUM($K52:AY52))) -> 0 | BA52: =IF($I52 >0, MIN(AZ52,$I52-SUM($K52:AZ52)), MAX(AZ52,$I52-SUM($K52:AZ52))) -> 0 | BB52: =IF($I52 >0, MIN(BA52,$I52-SUM($K52:BA52)), MAX(BA52,$I52-SUM($K52:BA52))) -> 0 | BC52: =IF($I52 >0, MIN(BB52,$I52-SUM($K52:BB52)), MAX(BB52,$I52-SUM($K52:BB52))) -> 0 | BD52: =IF($I52 >0, MIN(BC52,$I52-SUM($K52:BC52)), MAX(BC52,$I52-SUM($K52:BC52))) -> 0 | BE52: =IF($I52 >0, MIN(BD52,$I52-SUM($K52:BD52)), MAX(BD52,$I52-SUM($K52:BD52))) -> 0 | BF52: =IF($I52 >0, MIN(BE52,$I52-SUM($K52:BE52)), MAX(BE52,$I52-SUM($K52:BE52))) -> 0 | BG52: =IF($I52 >0, MIN(BF52,$I52-SUM($K52:BF52)), MAX(BF52,$I52-SUM($K52:BF52))) -> 0 | BH52: =IF($I52 >0, MIN(BG52,$I52-SUM($K52:BG52)), MAX(BG52,$I52-SUM($K52:BG52))) -> 0 | BI52: =IF($I52 >0, MIN(BH52,$I52-SUM($K52:BH52)), MAX(BH52,$I52-SUM($K52:BH52))) -> 0 | BJ52: =IF($I52 >0, MIN(BI52,$I52-SUM($K52:BI52)), MAX(BI52,$I52-SUM($K52:BI52))) -> 0 | BK52: =IF($I52 >0, MIN(BJ52,$I52-SUM($K52:BJ52)), MAX(BJ52,$I52-SUM($K52:BJ52))) -> 0 | BL52: =IF($I52 >0, MIN(BK52,$I52-SUM($K52:BK52)), MAX(BK52,$I52-SUM($K52:BK52))) -> 0 | BM52: =IF($I52 >0, MIN(BL52,$I52-SUM($K52:BL52)), MAX(BL52,$I52-SUM($K52:BL52))) -> 0 | BN52: =IF($I52 >0, MIN(BM52,$I52-SUM($K52:BM52)), MAX(BM52,$I52-SUM($K52:BM52))) -> 0 | BO52: =IF($I52 >0, MIN(BN52,$I52-SUM($K52:BN52)), MAX(BN52,$I52-SUM($K52:BN52))) -> 0 | BP52: =IF($I52 >0, MIN(BO52,$I52-SUM($K52:BO52)), MAX(BO52,$I52-SUM($K52:BO52))) -> 0 | BQ52: =IF($I52 >0, MIN(BP52,$I52-SUM($K52:BP52)), MAX(BP52,$I52-SUM($K52:BP52))) -> 0 | BR52: =IF($I52 >0, MIN(BQ52,$I52-SUM($K52:BQ52)), MAX(BQ52,$I52-SUM($K52:BQ52))) -> 0 | BS52: =IF($I52 >0, MIN(BR52,$I52-SUM($K52:BR52)), MAX(BR52,$I52-SUM($K52:BR52))) -> 0 | BT52: =IF($I52 >0, MIN(BS52,$I52-SUM($K52:BS52)), MAX(BS52,$I52-SUM($K52:BS52))) -> 0 | BU52: =IF($I52 >0, MIN(BT52,$I52-SUM($K52:BT52)), MAX(BT52,$I52-SUM($K52:BT52))) -> 0 | BV52: =IF($I52 >0, MIN(BU52,$I52-SUM($K52:BU52)), MAX(BU52,$I52-SUM($K52:BU52))) -> 0 | BW52: =IF($I52 >0, MIN(BV52,$I52-SUM($K52:BV52)), MAX(BV52,$I52-SUM($K52:BV52))) -> 0 | BX52: =IF($I52 >0, MIN(BW52,$I52-SUM($K52:BW52)), MAX(BW52,$I52-SUM($K52:BW52))) -> 0 | BY52: =IF($I52 >0, MIN(BX52,$I52-SUM($K52:BX52)), MAX(BX52,$I52-SUM($K52:BX52))) -> 0 | BZ52: =IF($I52 >0, MIN(BY52,$I52-SUM($K52:BY52)), MAX(BY52,$I52-SUM($K52:BY52))) -> 0 | CA52: =IF($I52 >0, MIN(BZ52,$I52-SUM($K52:BZ52)), MAX(BZ52,$I52-SUM($K52:BZ52))) -> 0 | CB52: =IF($I52 >0, MIN(CA52,$I52-SUM($K52:CA52)), MAX(CA52,$I52-SUM($K52:CA52))) -> 0 | CC52: =IF($I52 >0, MIN(CB52,$I52-SUM($K52:CB52)), MAX(CB52,$I52-SUM($K52:CB52))) -> 0 | CD52: =IF($I52 >0, MIN(CC52,$I52-SUM($K52:CC52)), MAX(CC52,$I52-SUM($K52:CC52))) -> 0 | CE52: =IF($I52 >0, MIN(CD52,$I52-SUM($K52:CD52)), MAX(CD52,$I52-SUM($K52:CD52))) -> 0 | CF52: =IF($I52 >0, MIN(CE52,$I52-SUM($K52:CE52)), MAX(CE52,$I52-SUM($K52:CE52))) -> 0 | CG52: =IF($I52 >0, MIN(CF52,$I52-SUM($K52:CF52)), MAX(CF52,$I52-SUM($K52:CF52))) -> 0 | CH52: =IF($I52 >0, MIN(CG52,$I52-SUM($K52:CG52)), MAX(CG52,$I52-SUM($K52:CG52))) -> 0 | CI52: =IF($I52 >0, MIN(CH52,$I52-SUM($K52:CH52)), MAX(CH52,$I52-SUM($K52:CH52))) -> 0 | CJ52: =IF($I52 >0, MIN(CI52,$I52-SUM($K52:CI52)), MAX(CI52,$I52-SUM($K52:CI52))) -> 0 | CK52: =IF($I52 >0, MIN(CJ52,$I52-SUM($K52:CJ52)), MAX(CJ52,$I52-SUM($K52:CJ52))) -> 0 | CL52: =IF($I52 >0, MIN(CK52,$I52-SUM($K52:CK52)), MAX(CK52,$I52-SUM($K52:CK52))) -> 0 | CM52: =IF($I52 >0, MIN(CL52,$I52-SUM($K52:CL52)), MAX(CL52,$I52-SUM($K52:CL52))) -> 0 | CN52: =IF($I52 >0, MIN(CM52,$I52-SUM($K52:CM52)), MAX(CM52,$I52-SUM($K52:CM52))) -> 0 | CO52: =IF($I52 >0, MIN(CN52,$I52-SUM($K52:CN52)), MAX(CN52,$I52-SUM($K52:CN52))) -> 0 | CP52: =IF($I52 >0, MIN(CO52,$I52-SUM($K52:CO52)), MAX(CO52,$I52-SUM($K52:CO52))) -> 0 | CQ52: =IF($I52 >0, MIN(CP52,$I52-SUM($K52:CP52)), MAX(CP52,$I52-SUM($K52:CP52))) -> 0 | CR52: =IF($I52 >0, MIN(CQ52,$I52-SUM($K52:CQ52)), MAX(CQ52,$I52-SUM($K52:CQ52))) -> 0 | CS52: =IF($I52 >0, MIN(CR52,$I52-SUM($K52:CR52)), MAX(CR52,$I52-SUM($K52:CR52))) -> 0 | CT52: =IF($I52 >0, MIN(CS52,$I52-SUM($K52:CS52)), MAX(CS52,$I52-SUM($K52:CS52))) -> 0 | CU52: =IF($I52 >0, MIN(CT52,$I52-SUM($K52:CT52)), MAX(CT52,$I52-SUM($K52:CT52))) -> 0 | CV52: =IF($I52 >0, MIN(CU52,$I52-SUM($K52:CU52)), MAX(CU52,$I52-SUM($K52:CU52))) -> 0 | CW52: =IF($I52 >0, MIN(CV52,$I52-SUM($K52:CV52)), MAX(CV52,$I52-SUM($K52:CV52))) -> 0
E53: 1992-03-31 | G53: £m 23/24 prices | I53: 38.84560111 | J53: > | M53: =$I53 / L$46 -> 1.942280056 | N53: =IF($I53 >0, MIN(M53,$I53-SUM($K53:M53)), MAX(M53,$I53-SUM($K53:M53))) -> 1.942280056 | O53: =IF($I53 >0, MIN(N53,$I53-SUM($K53:N53)), MAX(N53,$I53-SUM($K53:N53))) -> 1.942280056 | P53: =IF($I53 >0, MIN(O53,$I53-SUM($K53:O53)), MAX(O53,$I53-SUM($K53:O53))) -> 1.942280056 | Q53: =IF($I53 >0, MIN(P53,$I53-SUM($K53:P53)), MAX(P53,$I53-SUM($K53:P53))) -> 1.942280056 | R53: =IF($I53 >0, MIN(Q53,$I53-SUM($K53:Q53)), MAX(Q53,$I53-SUM($K53:Q53))) -> 1.942280056 | S53: =IF($I53 >0, MIN(R53,$I53-SUM($K53:R53)), MAX(R53,$I53-SUM($K53:R53))) -> 1.942280056 | T53: =IF($I53 >0, MIN(S53,$I53-SUM($K53:S53)), MAX(S53,$I53-SUM($K53:S53))) -> 1.942280056 | U53: =IF($I53 >0, MIN(T53,$I53-SUM($K53:T53)), MAX(T53,$I53-SUM($K53:T53))) -> 1.942280056 | V53: =IF($I53 >0, MIN(U53,$I53-SUM($K53:U53)), MAX(U53,$I53-SUM($K53:U53))) -> 1.942280056 | W53: =IF($I53 >0, MIN(V53,$I53-SUM($K53:V53)), MAX(V53,$I53-SUM($K53:V53))) -> 1.942280056 | X53: =IF($I53 >0, MIN(W53,$I53-SUM($K53:W53)), MAX(W53,$I53-SUM($K53:W53))) -> 1.942280056 | Y53: =IF($I53 >0, MIN(X53,$I53-SUM($K53:X53)), MAX(X53,$I53-SUM($K53:X53))) -> 1.942280056 | Z53: =IF($I53 >0, MIN(Y53,$I53-SUM($K53:Y53)), MAX(Y53,$I53-SUM($K53:Y53))) -> 1.942280056 | AA53: =IF($I53 >0, MIN(Z53,$I53-SUM($K53:Z53)), MAX(Z53,$I53-SUM($K53:Z53))) -> 1.942280056 | AB53: =IF($I53 >0, MIN(AA53,$I53-SUM($K53:AA53)), MAX(AA53,$I53-SUM($K53:AA53))) -> 1.942280056 | AC53: =IF($I53 >0, MIN(AB53,$I53-SUM($K53:AB53)), MAX(AB53,$I53-SUM($K53:AB53))) -> 1.942280056 | AD53: =IF($I53 >0, MIN(AC53,$I53-SUM($K53:AC53)), MAX(AC53,$I53-SUM($K53:AC53))) -> 1.942280056 | AE53: =IF($I53 >0, MIN(AD53,$I53-SUM($K53:AD53)), MAX(AD53,$I53-SUM($K53:AD53))) -> 1.942280056 | AF53: =IF($I53 >0, MIN(AE53,$I53-SUM($K53:AE53)), MAX(AE53,$I53-SUM($K53:AE53))) -> 1.942280056 | AG53: =IF($I53 >0, MIN(AF53,$I53-SUM($K53:AF53)), MAX(AF53,$I53-SUM($K53:AF53))) -> 0 | AH53: =IF($I53 >0, MIN(AG53,$I53-SUM($K53:AG53)), MAX(AG53,$I53-SUM($K53:AG53))) -> 0 | AI53: =IF($I53 >0, MIN(AH53,$I53-SUM($K53:AH53)), MAX(AH53,$I53-SUM($K53:AH53))) -> 0 | AJ53: =IF($I53 >0, MIN(AI53,$I53-SUM($K53:AI53)), MAX(AI53,$I53-SUM($K53:AI53))) -> 0 | AK53: =IF($I53 >0, MIN(AJ53,$I53-SUM($K53:AJ53)), MAX(AJ53,$I53-SUM($K53:AJ53))) -> 0 | AL53: =IF($I53 >0, MIN(AK53,$I53-SUM($K53:AK53)), MAX(AK53,$I53-SUM($K53:AK53))) -> 0 | AM53: =IF($I53 >0, MIN(AL53,$I53-SUM($K53:AL53)), MAX(AL53,$I53-SUM($K53:AL53))) -> 0 | AN53: =IF($I53 >0, MIN(AM53,$I53-SUM($K53:AM53)), MAX(AM53,$I53-SUM($K53:AM53))) -> 0 | AO53: =IF($I53 >0, MIN(AN53,$I53-SUM($K53:AN53)), MAX(AN53,$I53-SUM($K53:AN53))) -> 0 | AP53: =IF($I53 >0, MIN(AO53,$I53-SUM($K53:AO53)), MAX(AO53,$I53-SUM($K53:AO53))) -> 0 | AQ53: =IF($I53 >0, MIN(AP53,$I53-SUM($K53:AP53)), MAX(AP53,$I53-SUM($K53:AP53))) -> 0 | AR53: =IF($I53 >0, MIN(AQ53,$I53-SUM($K53:AQ53)), MAX(AQ53,$I53-SUM($K53:AQ53))) -> 0 | AS53: =IF($I53 >0, MIN(AR53,$I53-SUM($K53:AR53)), MAX(AR53,$I53-SUM($K53:AR53))) -> 0 | AT53: =IF($I53 >0, MIN(AS53,$I53-SUM($K53:AS53)), MAX(AS53,$I53-SUM($K53:AS53))) -> 0 | AU53: =IF($I53 >0, MIN(AT53,$I53-SUM($K53:AT53)), MAX(AT53,$I53-SUM($K53:AT53))) -> 0 | AV53: =IF($I53 >0, MIN(AU53,$I53-SUM($K53:AU53)), MAX(AU53,$I53-SUM($K53:AU53))) -> 0 | AW53: =IF($I53 >0, MIN(AV53,$I53-SUM($K53:AV53)), MAX(AV53,$I53-SUM($K53:AV53))) -> 0 | AX53: =IF($I53 >0, MIN(AW53,$I53-SUM($K53:AW53)), MAX(AW53,$I53-SUM($K53:AW53))) -> 0 | AY53: =IF($I53 >0, MIN(AX53,$I53-SUM($K53:AX53)), MAX(AX53,$I53-SUM($K53:AX53))) -> 0 | AZ53: =IF($I53 >0, MIN(AY53,$I53-SUM($K53:AY53)), MAX(AY53,$I53-SUM($K53:AY53))) -> 0 | BA53: =IF($I53 >0, MIN(AZ53,$I53-SUM($K53:AZ53)), MAX(AZ53,$I53-SUM($K53:AZ53))) -> 0 | BB53: =IF($I53 >0, MIN(BA53,$I53-SUM($K53:BA53)), MAX(BA53,$I53-SUM($K53:BA53))) -> 0 | BC53: =IF($I53 >0, MIN(BB53,$I53-SUM($K53:BB53)), MAX(BB53,$I53-SUM($K53:BB53))) -> 0 | BD53: =IF($I53 >0, MIN(BC53,$I53-SUM($K53:BC53)), MAX(BC53,$I53-SUM($K53:BC53))) -> 0 | BE53: =IF($I53 >0, MIN(BD53,$I53-SUM($K53:BD53)), MAX(BD53,$I53-SUM($K53:BD53))) -> 0 | BF53: =IF($I53 >0, MIN(BE53,$I53-SUM($K53:BE53)), MAX(BE53,$I53-SUM($K53:BE53))) -> 0 | BG53: =IF($I53 >0, MIN(BF53,$I53-SUM($K53:BF53)), MAX(BF53,$I53-SUM($K53:BF53))) -> 0 | BH53: =IF($I53 >0, MIN(BG53,$I53-SUM($K53:BG53)), MAX(BG53,$I53-SUM($K53:BG53))) -> 0 | BI53: =IF($I53 >0, MIN(BH53,$I53-SUM($K53:BH53)), MAX(BH53,$I53-SUM($K53:BH53))) -> 0 | BJ53: =IF($I53 >0, MIN(BI53,$I53-SUM($K53:BI53)), MAX(BI53,$I53-SUM($K53:BI53))) -> 0 | BK53: =IF($I53 >0, MIN(BJ53,$I53-SUM($K53:BJ53)), MAX(BJ53,$I53-SUM($K53:BJ53))) -> 0 | BL53: =IF($I53 >0, MIN(BK53,$I53-SUM($K53:BK53)), MAX(BK53,$I53-SUM($K53:BK53))) -> 0 | BM53: =IF($I53 >0, MIN(BL53,$I53-SUM($K53:BL53)), MAX(BL53,$I53-SUM($K53:BL53))) -> 0 | BN53: =IF($I53 >0, MIN(BM53,$I53-SUM($K53:BM53)), MAX(BM53,$I53-SUM($K53:BM53))) -> 0 | BO53: =IF($I53 >0, MIN(BN53,$I53-SUM($K53:BN53)), MAX(BN53,$I53-SUM($K53:BN53))) -> 0 | BP53: =IF($I53 >0, MIN(BO53,$I53-SUM($K53:BO53)), MAX(BO53,$I53-SUM($K53:BO53))) -> 0 | BQ53: =IF($I53 >0, MIN(BP53,$I53-SUM($K53:BP53)), MAX(BP53,$I53-SUM($K53:BP53))) -> 0 | BR53: =IF($I53 >0, MIN(BQ53,$I53-SUM($K53:BQ53)), MAX(BQ53,$I53-SUM($K53:BQ53))) -> 0 | BS53: =IF($I53 >0, MIN(BR53,$I53-SUM($K53:BR53)), MAX(BR53,$I53-SUM($K53:BR53))) -> 0 | BT53: =IF($I53 >0, MIN(BS53,$I53-SUM($K53:BS53)), MAX(BS53,$I53-SUM($K53:BS53))) -> 0 | BU53: =IF($I53 >0, MIN(BT53,$I53-SUM($K53:BT53)), MAX(BT53,$I53-SUM($K53:BT53))) -> 0 | BV53: =IF($I53 >0, MIN(BU53,$I53-SUM($K53:BU53)), MAX(BU53,$I53-SUM($K53:BU53))) -> 0 | BW53: =IF($I53 >0, MIN(BV53,$I53-SUM($K53:BV53)), MAX(BV53,$I53-SUM($K53:BV53))) -> 0 | BX53: =IF($I53 >0, MIN(BW53,$I53-SUM($K53:BW53)), MAX(BW53,$I53-SUM($K53:BW53))) -> 0 | BY53: =IF($I53 >0, MIN(BX53,$I53-SUM($K53:BX53)), MAX(BX53,$I53-SUM($K53:BX53))) -> 0 | BZ53: =IF($I53 >0, MIN(BY53,$I53-SUM($K53:BY53)), MAX(BY53,$I53-SUM($K53:BY53))) -> 0 | CA53: =IF($I53 >0, MIN(BZ53,$I53-SUM($K53:BZ53)), MAX(BZ53,$I53-SUM($K53:BZ53))) -> 0 | CB53: =IF($I53 >0, MIN(CA53,$I53-SUM($K53:CA53)), MAX(CA53,$I53-SUM($K53:CA53))) -> 0 | CC53: =IF($I53 >0, MIN(CB53,$I53-SUM($K53:CB53)), MAX(CB53,$I53-SUM($K53:CB53))) -> 0 | CD53: =IF($I53 >0, MIN(CC53,$I53-SUM($K53:CC53)), MAX(CC53,$I53-SUM($K53:CC53))) -> 0 | CE53: =IF($I53 >0, MIN(CD53,$I53-SUM($K53:CD53)), MAX(CD53,$I53-SUM($K53:CD53))) -> 0 | CF53: =IF($I53 >0, MIN(CE53,$I53-SUM($K53:CE53)), MAX(CE53,$I53-SUM($K53:CE53))) -> 0 | CG53: =IF($I53 >0, MIN(CF53,$I53-SUM($K53:CF53)), MAX(CF53,$I53-SUM($K53:CF53))) -> 0 | CH53: =IF($I53 >0, MIN(CG53,$I53-SUM($K53:CG53)), MAX(CG53,$I53-SUM($K53:CG53))) -> 0 | CI53: =IF($I53 >0, MIN(CH53,$I53-SUM($K53:CH53)), MAX(CH53,$I53-SUM($K53:CH53))) -> 0 | CJ53: =IF($I53 >0, MIN(CI53,$I53-SUM($K53:CI53)), MAX(CI53,$I53-SUM($K53:CI53))) -> 0 | CK53: =IF($I53 >0, MIN(CJ53,$I53-SUM($K53:CJ53)), MAX(CJ53,$I53-SUM($K53:CJ53))) -> 0 | CL53: =IF($I53 >0, MIN(CK53,$I53-SUM($K53:CK53)), MAX(CK53,$I53-SUM($K53:CK53))) -> 0 | CM53: =IF($I53 >0, MIN(CL53,$I53-SUM($K53:CL53)), MAX(CL53,$I53-SUM($K53:CL53))) -> 0 | CN53: =IF($I53 >0, MIN(CM53,$I53-SUM($K53:CM53)), MAX(CM53,$I53-SUM($K53:CM53))) -> 0 | CO53: =IF($I53 >0, MIN(CN53,$I53-SUM($K53:CN53)), MAX(CN53,$I53-SUM($K53:CN53))) -> 0 | CP53: =IF($I53 >0, MIN(CO53,$I53-SUM($K53:CO53)), MAX(CO53,$I53-SUM($K53:CO53))) -> 0 | CQ53: =IF($I53 >0, MIN(CP53,$I53-SUM($K53:CP53)), MAX(CP53,$I53-SUM($K53:CP53))) -> 0 | CR53: =IF($I53 >0, MIN(CQ53,$I53-SUM($K53:CQ53)), MAX(CQ53,$I53-SUM($K53:CQ53))) -> 0 | CS53: =IF($I53 >0, MIN(CR53,$I53-SUM($K53:CR53)), MAX(CR53,$I53-SUM($K53:CR53))) -> 0 | CT53: =IF($I53 >0, MIN(CS53,$I53-SUM($K53:CS53)), MAX(CS53,$I53-SUM($K53:CS53))) -> 0 | CU53: =IF($I53 >0, MIN(CT53,$I53-SUM($K53:CT53)), MAX(CT53,$I53-SUM($K53:CT53))) -> 0 | CV53: =IF($I53 >0, MIN(CU53,$I53-SUM($K53:CU53)), MAX(CU53,$I53-SUM($K53:CU53))) -> 0 | CW53: =IF($I53 >0, MIN(CV53,$I53-SUM($K53:CV53)), MAX(CV53,$I53-SUM($K53:CV53))) -> 0
E54: 1993-03-31 | G54: £m 23/24 prices | I54: 3.806611268 | J54: > | N54: =$I54 / M$46 -> 0.1903305634 | O54: =IF($I54 >0, MIN(N54,$I54-SUM($K54:N54)), MAX(N54,$I54-SUM($K54:N54))) -> 0.1903305634 | P54: =IF($I54 >0, MIN(O54,$I54-SUM($K54:O54)), MAX(O54,$I54-SUM($K54:O54))) -> 0.1903305634 | Q54: =IF($I54 >0, MIN(P54,$I54-SUM($K54:P54)), MAX(P54,$I54-SUM($K54:P54))) -> 0.1903305634 | R54: =IF($I54 >0, MIN(Q54,$I54-SUM($K54:Q54)), MAX(Q54,$I54-SUM($K54:Q54))) -> 0.1903305634 | S54: =IF($I54 >0, MIN(R54,$I54-SUM($K54:R54)), MAX(R54,$I54-SUM($K54:R54))) -> 0.1903305634 | T54: =IF($I54 >0, MIN(S54,$I54-SUM($K54:S54)), MAX(S54,$I54-SUM($K54:S54))) -> 0.1903305634 | U54: =IF($I54 >0, MIN(T54,$I54-SUM($K54:T54)), MAX(T54,$I54-SUM($K54:T54))) -> 0.1903305634 | V54: =IF($I54 >0, MIN(U54,$I54-SUM($K54:U54)), MAX(U54,$I54-SUM($K54:U54))) -> 0.1903305634 | W54: =IF($I54 >0, MIN(V54,$I54-SUM($K54:V54)), MAX(V54,$I54-SUM($K54:V54))) -> 0.1903305634 | X54: =IF($I54 >0, MIN(W54,$I54-SUM($K54:W54)), MAX(W54,$I54-SUM($K54:W54))) -> 0.1903305634 | Y54: =IF($I54 >0, MIN(X54,$I54-SUM($K54:X54)), MAX(X54,$I54-SUM($K54:X54))) -> 0.1903305634 | Z54: =IF($I54 >0, MIN(Y54,$I54-SUM($K54:Y54)), MAX(Y54,$I54-SUM($K54:Y54))) -> 0.1903305634 | AA54: =IF($I54 >0, MIN(Z54,$I54-SUM($K54:Z54)), MAX(Z54,$I54-SUM($K54:Z54))) -> 0.1903305634 | AB54: =IF($I54 >0, MIN(AA54,$I54-SUM($K54:AA54)), MAX(AA54,$I54-SUM($K54:AA54))) -> 0.1903305634 | AC54: =IF($I54 >0, MIN(AB54,$I54-SUM($K54:AB54)), MAX(AB54,$I54-SUM($K54:AB54))) -> 0.1903305634 | AD54: =IF($I54 >0, MIN(AC54,$I54-SUM($K54:AC54)), MAX(AC54,$I54-SUM($K54:AC54))) -> 0.1903305634 | AE54: =IF($I54 >0, MIN(AD54,$I54-SUM($K54:AD54)), MAX(AD54,$I54-SUM($K54:AD54))) -> 0.1903305634 | AF54: =IF($I54 >0, MIN(AE54,$I54-SUM($K54:AE54)), MAX(AE54,$I54-SUM($K54:AE54))) -> 0.1903305634 | AG54: =IF($I54 >0, MIN(AF54,$I54-SUM($K54:AF54)), MAX(AF54,$I54-SUM($K54:AF54))) -> 0.1903305634 | AH54: =IF($I54 >0, MIN(AG54,$I54-SUM($K54:AG54)), MAX(AG54,$I54-SUM($K54:AG54))) -> 0 | AI54: =IF($I54 >0, MIN(AH54,$I54-SUM($K54:AH54)), MAX(AH54,$I54-SUM($K54:AH54))) -> 0 | AJ54: =IF($I54 >0, MIN(AI54,$I54-SUM($K54:AI54)), MAX(AI54,$I54-SUM($K54:AI54))) -> 0 | AK54: =IF($I54 >0, MIN(AJ54,$I54-SUM($K54:AJ54)), MAX(AJ54,$I54-SUM($K54:AJ54))) -> 0 | AL54: =IF($I54 >0, MIN(AK54,$I54-SUM($K54:AK54)), MAX(AK54,$I54-SUM($K54:AK54))) -> 0 | AM54: =IF($I54 >0, MIN(AL54,$I54-SUM($K54:AL54)), MAX(AL54,$I54-SUM($K54:AL54))) -> 0 | AN54: =IF($I54 >0, MIN(AM54,$I54-SUM($K54:AM54)), MAX(AM54,$I54-SUM($K54:AM54))) -> 0 | AO54: =IF($I54 >0, MIN(AN54,$I54-SUM($K54:AN54)), MAX(AN54,$I54-SUM($K54:AN54))) -> 0 | AP54: =IF($I54 >0, MIN(AO54,$I54-SUM($K54:AO54)), MAX(AO54,$I54-SUM($K54:AO54))) -> 0 | AQ54: =IF($I54 >0, MIN(AP54,$I54-SUM($K54:AP54)), MAX(AP54,$I54-SUM($K54:AP54))) -> 0 | AR54: =IF($I54 >0, MIN(AQ54,$I54-SUM($K54:AQ54)), MAX(AQ54,$I54-SUM($K54:AQ54))) -> 0 | AS54: =IF($I54 >0, MIN(AR54,$I54-SUM($K54:AR54)), MAX(AR54,$I54-SUM($K54:AR54))) -> 0 | AT54: =IF($I54 >0, MIN(AS54,$I54-SUM($K54:AS54)), MAX(AS54,$I54-SUM($K54:AS54))) -> 0 | AU54: =IF($I54 >0, MIN(AT54,$I54-SUM($K54:AT54)), MAX(AT54,$I54-SUM($K54:AT54))) -> 0 | AV54: =IF($I54 >0, MIN(AU54,$I54-SUM($K54:AU54)), MAX(AU54,$I54-SUM($K54:AU54))) -> 0 | AW54: =IF($I54 >0, MIN(AV54,$I54-SUM($K54:AV54)), MAX(AV54,$I54-SUM($K54:AV54))) -> 0 | AX54: =IF($I54 >0, MIN(AW54,$I54-SUM($K54:AW54)), MAX(AW54,$I54-SUM($K54:AW54))) -> 0 | AY54: =IF($I54 >0, MIN(AX54,$I54-SUM($K54:AX54)), MAX(AX54,$I54-SUM($K54:AX54))) -> 0 | AZ54: =IF($I54 >0, MIN(AY54,$I54-SUM($K54:AY54)), MAX(AY54,$I54-SUM($K54:AY54))) -> 0 | BA54: =IF($I54 >0, MIN(AZ54,$I54-SUM($K54:AZ54)), MAX(AZ54,$I54-SUM($K54:AZ54))) -> 0 | BB54: =IF($I54 >0, MIN(BA54,$I54-SUM($K54:BA54)), MAX(BA54,$I54-SUM($K54:BA54))) -> 0 | BC54: =IF($I54 >0, MIN(BB54,$I54-SUM($K54:BB54)), MAX(BB54,$I54-SUM($K54:BB54))) -> 0 | BD54: =IF($I54 >0, MIN(BC54,$I54-SUM($K54:BC54)), MAX(BC54,$I54-SUM($K54:BC54))) -> 0 | BE54: =IF($I54 >0, MIN(BD54,$I54-SUM($K54:BD54)), MAX(BD54,$I54-SUM($K54:BD54))) -> 0 | BF54: =IF($I54 >0, MIN(BE54,$I54-SUM($K54:BE54)), MAX(BE54,$I54-SUM($K54:BE54))) -> 0 | BG54: =IF($I54 >0, MIN(BF54,$I54-SUM($K54:BF54)), MAX(BF54,$I54-SUM($K54:BF54))) -> 0 | BH54: =IF($I54 >0, MIN(BG54,$I54-SUM($K54:BG54)), MAX(BG54,$I54-SUM($K54:BG54))) -> 0 | BI54: =IF($I54 >0, MIN(BH54,$I54-SUM($K54:BH54)), MAX(BH54,$I54-SUM($K54:BH54))) -> 0 | BJ54: =IF($I54 >0, MIN(BI54,$I54-SUM($K54:BI54)), MAX(BI54,$I54-SUM($K54:BI54))) -> 0 | BK54: =IF($I54 >0, MIN(BJ54,$I54-SUM($K54:BJ54)), MAX(BJ54,$I54-SUM($K54:BJ54))) -> 0 | BL54: =IF($I54 >0, MIN(BK54,$I54-SUM($K54:BK54)), MAX(BK54,$I54-SUM($K54:BK54))) -> 0 | BM54: =IF($I54 >0, MIN(BL54,$I54-SUM($K54:BL54)), MAX(BL54,$I54-SUM($K54:BL54))) -> 0 | BN54: =IF($I54 >0, MIN(BM54,$I54-SUM($K54:BM54)), MAX(BM54,$I54-SUM($K54:BM54))) -> 0 | BO54: =IF($I54 >0, MIN(BN54,$I54-SUM($K54:BN54)), MAX(BN54,$I54-SUM($K54:BN54))) -> 0 | BP54: =IF($I54 >0, MIN(BO54,$I54-SUM($K54:BO54)), MAX(BO54,$I54-SUM($K54:BO54))) -> 0 | BQ54: =IF($I54 >0, MIN(BP54,$I54-SUM($K54:BP54)), MAX(BP54,$I54-SUM($K54:BP54))) -> 0 | BR54: =IF($I54 >0, MIN(BQ54,$I54-SUM($K54:BQ54)), MAX(BQ54,$I54-SUM($K54:BQ54))) -> 0 | BS54: =IF($I54 >0, MIN(BR54,$I54-SUM($K54:BR54)), MAX(BR54,$I54-SUM($K54:BR54))) -> 0 | BT54: =IF($I54 >0, MIN(BS54,$I54-SUM($K54:BS54)), MAX(BS54,$I54-SUM($K54:BS54))) -> 0 | BU54: =IF($I54 >0, MIN(BT54,$I54-SUM($K54:BT54)), MAX(BT54,$I54-SUM($K54:BT54))) -> 0 | BV54: =IF($I54 >0, MIN(BU54,$I54-SUM($K54:BU54)), MAX(BU54,$I54-SUM($K54:BU54))) -> 0 | BW54: =IF($I54 >0, MIN(BV54,$I54-SUM($K54:BV54)), MAX(BV54,$I54-SUM($K54:BV54))) -> 0 | BX54: =IF($I54 >0, MIN(BW54,$I54-SUM($K54:BW54)), MAX(BW54,$I54-SUM($K54:BW54))) -> 0 | BY54: =IF($I54 >0, MIN(BX54,$I54-SUM($K54:BX54)), MAX(BX54,$I54-SUM($K54:BX54))) -> 0 | BZ54: =IF($I54 >0, MIN(BY54,$I54-SUM($K54:BY54)), MAX(BY54,$I54-SUM($K54:BY54))) -> 0 | CA54: =IF($I54 >0, MIN(BZ54,$I54-SUM($K54:BZ54)), MAX(BZ54,$I54-SUM($K54:BZ54))) -> 0 | CB54: =IF($I54 >0, MIN(CA54,$I54-SUM($K54:CA54)), MAX(CA54,$I54-SUM($K54:CA54))) -> 0 | CC54: =IF($I54 >0, MIN(CB54,$I54-SUM($K54:CB54)), MAX(CB54,$I54-SUM($K54:CB54))) -> 0 | CD54: =IF($I54 >0, MIN(CC54,$I54-SUM($K54:CC54)), MAX(CC54,$I54-SUM($K54:CC54))) -> 0 | CE54: =IF($I54 >0, MIN(CD54,$I54-SUM($K54:CD54)), MAX(CD54,$I54-SUM($K54:CD54))) -> 0 | CF54: =IF($I54 >0, MIN(CE54,$I54-SUM($K54:CE54)), MAX(CE54,$I54-SUM($K54:CE54))) -> 0 | CG54: =IF($I54 >0, MIN(CF54,$I54-SUM($K54:CF54)), MAX(CF54,$I54-SUM($K54:CF54))) -> 0 | CH54: =IF($I54 >0, MIN(CG54,$I54-SUM($K54:CG54)), MAX(CG54,$I54-SUM($K54:CG54))) -> 0 | CI54: =IF($I54 >0, MIN(CH54,$I54-SUM($K54:CH54)), MAX(CH54,$I54-SUM($K54:CH54))) -> 0 | CJ54: =IF($I54 >0, MIN(CI54,$I54-SUM($K54:CI54)), MAX(CI54,$I54-SUM($K54:CI54))) -> 0 | CK54: =IF($I54 >0, MIN(CJ54,$I54-SUM($K54:CJ54)), MAX(CJ54,$I54-SUM($K54:CJ54))) -> 0 | CL54: =IF($I54 >0, MIN(CK54,$I54-SUM($K54:CK54)), MAX(CK54,$I54-SUM($K54:CK54))) -> 0 | CM54: =IF($I54 >0, MIN(CL54,$I54-SUM($K54:CL54)), MAX(CL54,$I54-SUM($K54:CL54))) -> 0 | CN54: =IF($I54 >0, MIN(CM54,$I54-SUM($K54:CM54)), MAX(CM54,$I54-SUM($K54:CM54))) -> 0 | CO54: =IF($I54 >0, MIN(CN54,$I54-SUM($K54:CN54)), MAX(CN54,$I54-SUM($K54:CN54))) -> 0 | CP54: =IF($I54 >0, MIN(CO54,$I54-SUM($K54:CO54)), MAX(CO54,$I54-SUM($K54:CO54))) -> 0 | CQ54: =IF($I54 >0, MIN(CP54,$I54-SUM($K54:CP54)), MAX(CP54,$I54-SUM($K54:CP54))) -> 0 | CR54: =IF($I54 >0, MIN(CQ54,$I54-SUM($K54:CQ54)), MAX(CQ54,$I54-SUM($K54:CQ54))) -> 0 | CS54: =IF($I54 >0, MIN(CR54,$I54-SUM($K54:CR54)), MAX(CR54,$I54-SUM($K54:CR54))) -> 0 | CT54: =IF($I54 >0, MIN(CS54,$I54-SUM($K54:CS54)), MAX(CS54,$I54-SUM($K54:CS54))) -> 0 | CU54: =IF($I54 >0, MIN(CT54,$I54-SUM($K54:CT54)), MAX(CT54,$I54-SUM($K54:CT54))) -> 0 | CV54: =IF($I54 >0, MIN(CU54,$I54-SUM($K54:CU54)), MAX(CU54,$I54-SUM($K54:CU54))) -> 0 | CW54: =IF($I54 >0, MIN(CV54,$I54-SUM($K54:CV54)), MAX(CV54,$I54-SUM($K54:CV54))) -> 0
E55: 1994-03-31 | G55: £m 23/24 prices | I55: 43.19068844 | J55: > | O55: =$I55 / N$46 -> 2.159534422 | P55: =IF($I55 >0, MIN(O55,$I55-SUM($K55:O55)), MAX(O55,$I55-SUM($K55:O55))) -> 2.159534422 | Q55: =IF($I55 >0, MIN(P55,$I55-SUM($K55:P55)), MAX(P55,$I55-SUM($K55:P55))) -> 2.159534422 | R55: =IF($I55 >0, MIN(Q55,$I55-SUM($K55:Q55)), MAX(Q55,$I55-SUM($K55:Q55))) -> 2.159534422 | S55: =IF($I55 >0, MIN(R55,$I55-SUM($K55:R55)), MAX(R55,$I55-SUM($K55:R55))) -> 2.159534422 | T55: =IF($I55 >0, MIN(S55,$I55-SUM($K55:S55)), MAX(S55,$I55-SUM($K55:S55))) -> 2.159534422 | U55: =IF($I55 >0, MIN(T55,$I55-SUM($K55:T55)), MAX(T55,$I55-SUM($K55:T55))) -> 2.159534422 | V55: =IF($I55 >0, MIN(U55,$I55-SUM($K55:U55)), MAX(U55,$I55-SUM($K55:U55))) -> 2.159534422 | W55: =IF($I55 >0, MIN(V55,$I55-SUM($K55:V55)), MAX(V55,$I55-SUM($K55:V55))) -> 2.159534422 | X55: =IF($I55 >0, MIN(W55,$I55-SUM($K55:W55)), MAX(W55,$I55-SUM($K55:W55))) -> 2.159534422 | Y55: =IF($I55 >0, MIN(X55,$I55-SUM($K55:X55)), MAX(X55,$I55-SUM($K55:X55))) -> 2.159534422 | Z55: =IF($I55 >0, MIN(Y55,$I55-SUM($K55:Y55)), MAX(Y55,$I55-SUM($K55:Y55))) -> 2.159534422 | AA55: =IF($I55 >0, MIN(Z55,$I55-SUM($K55:Z55)), MAX(Z55,$I55-SUM($K55:Z55))) -> 2.159534422 | AB55: =IF($I55 >0, MIN(AA55,$I55-SUM($K55:AA55)), MAX(AA55,$I55-SUM($K55:AA55))) -> 2.159534422 | AC55: =IF($I55 >0, MIN(AB55,$I55-SUM($K55:AB55)), MAX(AB55,$I55-SUM($K55:AB55))) -> 2.159534422 | AD55: =IF($I55 >0, MIN(AC55,$I55-SUM($K55:AC55)), MAX(AC55,$I55-SUM($K55:AC55))) -> 2.159534422 | AE55: =IF($I55 >0, MIN(AD55,$I55-SUM($K55:AD55)), MAX(AD55,$I55-SUM($K55:AD55))) -> 2.159534422 | AF55: =IF($I55 >0, MIN(AE55,$I55-SUM($K55:AE55)), MAX(AE55,$I55-SUM($K55:AE55))) -> 2.159534422 | AG55: =IF($I55 >0, MIN(AF55,$I55-SUM($K55:AF55)), MAX(AF55,$I55-SUM($K55:AF55))) -> 2.159534422 | AH55: =IF($I55 >0, MIN(AG55,$I55-SUM($K55:AG55)), MAX(AG55,$I55-SUM($K55:AG55))) -> 2.159534422 | AI55: =IF($I55 >0, MIN(AH55,$I55-SUM($K55:AH55)), MAX(AH55,$I55-SUM($K55:AH55))) -> 0 | AJ55: =IF($I55 >0, MIN(AI55,$I55-SUM($K55:AI55)), MAX(AI55,$I55-SUM($K55:AI55))) -> 0 | AK55: =IF($I55 >0, MIN(AJ55,$I55-SUM($K55:AJ55)), MAX(AJ55,$I55-SUM($K55:AJ55))) -> 0 | AL55: =IF($I55 >0, MIN(AK55,$I55-SUM($K55:AK55)), MAX(AK55,$I55-SUM($K55:AK55))) -> 0 | AM55: =IF($I55 >0, MIN(AL55,$I55-SUM($K55:AL55)), MAX(AL55,$I55-SUM($K55:AL55))) -> 0 | AN55: =IF($I55 >0, MIN(AM55,$I55-SUM($K55:AM55)), MAX(AM55,$I55-SUM($K55:AM55))) -> 0 | AO55: =IF($I55 >0, MIN(AN55,$I55-SUM($K55:AN55)), MAX(AN55,$I55-SUM($K55:AN55))) -> 0 | AP55: =IF($I55 >0, MIN(AO55,$I55-SUM($K55:AO55)), MAX(AO55,$I55-SUM($K55:AO55))) -> 0 | AQ55: =IF($I55 >0, MIN(AP55,$I55-SUM($K55:AP55)), MAX(AP55,$I55-SUM($K55:AP55))) -> 0 | AR55: =IF($I55 >0, MIN(AQ55,$I55-SUM($K55:AQ55)), MAX(AQ55,$I55-SUM($K55:AQ55))) -> 0 | AS55: =IF($I55 >0, MIN(AR55,$I55-SUM($K55:AR55)), MAX(AR55,$I55-SUM($K55:AR55))) -> 0 | AT55: =IF($I55 >0, MIN(AS55,$I55-SUM($K55:AS55)), MAX(AS55,$I55-SUM($K55:AS55))) -> 0 | AU55: =IF($I55 >0, MIN(AT55,$I55-SUM($K55:AT55)), MAX(AT55,$I55-SUM($K55:AT55))) -> 0 | AV55: =IF($I55 >0, MIN(AU55,$I55-SUM($K55:AU55)), MAX(AU55,$I55-SUM($K55:AU55))) -> 0 | AW55: =IF($I55 >0, MIN(AV55,$I55-SUM($K55:AV55)), MAX(AV55,$I55-SUM($K55:AV55))) -> 0 | AX55: =IF($I55 >0, MIN(AW55,$I55-SUM($K55:AW55)), MAX(AW55,$I55-SUM($K55:AW55))) -> 0 | AY55: =IF($I55 >0, MIN(AX55,$I55-SUM($K55:AX55)), MAX(AX55,$I55-SUM($K55:AX55))) -> 0 | AZ55: =IF($I55 >0, MIN(AY55,$I55-SUM($K55:AY55)), MAX(AY55,$I55-SUM($K55:AY55))) -> 0 | BA55: =IF($I55 >0, MIN(AZ55,$I55-SUM($K55:AZ55)), MAX(AZ55,$I55-SUM($K55:AZ55))) -> 0 | BB55: =IF($I55 >0, MIN(BA55,$I55-SUM($K55:BA55)), MAX(BA55,$I55-SUM($K55:BA55))) -> 0 | BC55: =IF($I55 >0, MIN(BB55,$I55-SUM($K55:BB55)), MAX(BB55,$I55-SUM($K55:BB55))) -> 0 | BD55: =IF($I55 >0, MIN(BC55,$I55-SUM($K55:BC55)), MAX(BC55,$I55-SUM($K55:BC55))) -> 0 | BE55: =IF($I55 >0, MIN(BD55,$I55-SUM($K55:BD55)), MAX(BD55,$I55-SUM($K55:BD55))) -> 0 | BF55: =IF($I55 >0, MIN(BE55,$I55-SUM($K55:BE55)), MAX(BE55,$I55-SUM($K55:BE55))) -> 0 | BG55: =IF($I55 >0, MIN(BF55,$I55-SUM($K55:BF55)), MAX(BF55,$I55-SUM($K55:BF55))) -> 0 | BH55: =IF($I55 >0, MIN(BG55,$I55-SUM($K55:BG55)), MAX(BG55,$I55-SUM($K55:BG55))) -> 0 | BI55: =IF($I55 >0, MIN(BH55,$I55-SUM($K55:BH55)), MAX(BH55,$I55-SUM($K55:BH55))) -> 0 | BJ55: =IF($I55 >0, MIN(BI55,$I55-SUM($K55:BI55)), MAX(BI55,$I55-SUM($K55:BI55))) -> 0 | BK55: =IF($I55 >0, MIN(BJ55,$I55-SUM($K55:BJ55)), MAX(BJ55,$I55-SUM($K55:BJ55))) -> 0 | BL55: =IF($I55 >0, MIN(BK55,$I55-SUM($K55:BK55)), MAX(BK55,$I55-SUM($K55:BK55))) -> 0 | BM55: =IF($I55 >0, MIN(BL55,$I55-SUM($K55:BL55)), MAX(BL55,$I55-SUM($K55:BL55))) -> 0 | BN55: =IF($I55 >0, MIN(BM55,$I55-SUM($K55:BM55)), MAX(BM55,$I55-SUM($K55:BM55))) -> 0 | BO55: =IF($I55 >0, MIN(BN55,$I55-SUM($K55:BN55)), MAX(BN55,$I55-SUM($K55:BN55))) -> 0 | BP55: =IF($I55 >0, MIN(BO55,$I55-SUM($K55:BO55)), MAX(BO55,$I55-SUM($K55:BO55))) -> 0 | BQ55: =IF($I55 >0, MIN(BP55,$I55-SUM($K55:BP55)), MAX(BP55,$I55-SUM($K55:BP55))) -> 0 | BR55: =IF($I55 >0, MIN(BQ55,$I55-SUM($K55:BQ55)), MAX(BQ55,$I55-SUM($K55:BQ55))) -> 0 | BS55: =IF($I55 >0, MIN(BR55,$I55-SUM($K55:BR55)), MAX(BR55,$I55-SUM($K55:BR55))) -> 0 | BT55: =IF($I55 >0, MIN(BS55,$I55-SUM($K55:BS55)), MAX(BS55,$I55-SUM($K55:BS55))) -> 0 | BU55: =IF($I55 >0, MIN(BT55,$I55-SUM($K55:BT55)), MAX(BT55,$I55-SUM($K55:BT55))) -> 0 | BV55: =IF($I55 >0, MIN(BU55,$I55-SUM($K55:BU55)), MAX(BU55,$I55-SUM($K55:BU55))) -> 0 | BW55: =IF($I55 >0, MIN(BV55,$I55-SUM($K55:BV55)), MAX(BV55,$I55-SUM($K55:BV55))) -> 0 | BX55: =IF($I55 >0, MIN(BW55,$I55-SUM($K55:BW55)), MAX(BW55,$I55-SUM($K55:BW55))) -> 0 | BY55: =IF($I55 >0, MIN(BX55,$I55-SUM($K55:BX55)), MAX(BX55,$I55-SUM($K55:BX55))) -> 0 | BZ55: =IF($I55 >0, MIN(BY55,$I55-SUM($K55:BY55)), MAX(BY55,$I55-SUM($K55:BY55))) -> 0 | CA55: =IF($I55 >0, MIN(BZ55,$I55-SUM($K55:BZ55)), MAX(BZ55,$I55-SUM($K55:BZ55))) -> 0 | CB55: =IF($I55 >0, MIN(CA55,$I55-SUM($K55:CA55)), MAX(CA55,$I55-SUM($K55:CA55))) -> 0 | CC55: =IF($I55 >0, MIN(CB55,$I55-SUM($K55:CB55)), MAX(CB55,$I55-SUM($K55:CB55))) -> 0 | CD55: =IF($I55 >0, MIN(CC55,$I55-SUM($K55:CC55)), MAX(CC55,$I55-SUM($K55:CC55))) -> 0 | CE55: =IF($I55 >0, MIN(CD55,$I55-SUM($K55:CD55)), MAX(CD55,$I55-SUM($K55:CD55))) -> 0 | CF55: =IF($I55 >0, MIN(CE55,$I55-SUM($K55:CE55)), MAX(CE55,$I55-SUM($K55:CE55))) -> 0 | CG55: =IF($I55 >0, MIN(CF55,$I55-SUM($K55:CF55)), MAX(CF55,$I55-SUM($K55:CF55))) -> 0 | CH55: =IF($I55 >0, MIN(CG55,$I55-SUM($K55:CG55)), MAX(CG55,$I55-SUM($K55:CG55))) -> 0 | CI55: =IF($I55 >0, MIN(CH55,$I55-SUM($K55:CH55)), MAX(CH55,$I55-SUM($K55:CH55))) -> 0 | CJ55: =IF($I55 >0, MIN(CI55,$I55-SUM($K55:CI55)), MAX(CI55,$I55-SUM($K55:CI55))) -> 0 | CK55: =IF($I55 >0, MIN(CJ55,$I55-SUM($K55:CJ55)), MAX(CJ55,$I55-SUM($K55:CJ55))) -> 0 | CL55: =IF($I55 >0, MIN(CK55,$I55-SUM($K55:CK55)), MAX(CK55,$I55-SUM($K55:CK55))) -> 0 | CM55: =IF($I55 >0, MIN(CL55,$I55-SUM($K55:CL55)), MAX(CL55,$I55-SUM($K55:CL55))) -> 0 | CN55: =IF($I55 >0, MIN(CM55,$I55-SUM($K55:CM55)), MAX(CM55,$I55-SUM($K55:CM55))) -> 0 | CO55: =IF($I55 >0, MIN(CN55,$I55-SUM($K55:CN55)), MAX(CN55,$I55-SUM($K55:CN55))) -> 0 | CP55: =IF($I55 >0, MIN(CO55,$I55-SUM($K55:CO55)), MAX(CO55,$I55-SUM($K55:CO55))) -> 0 | CQ55: =IF($I55 >0, MIN(CP55,$I55-SUM($K55:CP55)), MAX(CP55,$I55-SUM($K55:CP55))) -> 0 | CR55: =IF($I55 >0, MIN(CQ55,$I55-SUM($K55:CQ55)), MAX(CQ55,$I55-SUM($K55:CQ55))) -> 0 | CS55: =IF($I55 >0, MIN(CR55,$I55-SUM($K55:CR55)), MAX(CR55,$I55-SUM($K55:CR55))) -> 0 | CT55: =IF($I55 >0, MIN(CS55,$I55-SUM($K55:CS55)), MAX(CS55,$I55-SUM($K55:CS55))) -> 0 | CU55: =IF($I55 >0, MIN(CT55,$I55-SUM($K55:CT55)), MAX(CT55,$I55-SUM($K55:CT55))) -> 0 | CV55: =IF($I55 >0, MIN(CU55,$I55-SUM($K55:CU55)), MAX(CU55,$I55-SUM($K55:CU55))) -> 0 | CW55: =IF($I55 >0, MIN(CV55,$I55-SUM($K55:CV55)), MAX(CV55,$I55-SUM($K55:CV55))) -> 0
E56: 1995-03-31 | G56: £m 23/24 prices | I56: 18.09938474 | J56: > | P56: =$I56 / O$46 -> 0.9049692369 | Q56: =IF($I56 >0, MIN(P56,$I56-SUM($K56:P56)), MAX(P56,$I56-SUM($K56:P56))) -> 0.9049692369 | R56: =IF($I56 >0, MIN(Q56,$I56-SUM($K56:Q56)), MAX(Q56,$I56-SUM($K56:Q56))) -> 0.9049692369 | S56: =IF($I56 >0, MIN(R56,$I56-SUM($K56:R56)), MAX(R56,$I56-SUM($K56:R56))) -> 0.9049692369 | T56: =IF($I56 >0, MIN(S56,$I56-SUM($K56:S56)), MAX(S56,$I56-SUM($K56:S56))) -> 0.9049692369 | U56: =IF($I56 >0, MIN(T56,$I56-SUM($K56:T56)), MAX(T56,$I56-SUM($K56:T56))) -> 0.9049692369 | V56: =IF($I56 >0, MIN(U56,$I56-SUM($K56:U56)), MAX(U56,$I56-SUM($K56:U56))) -> 0.9049692369 | W56: =IF($I56 >0, MIN(V56,$I56-SUM($K56:V56)), MAX(V56,$I56-SUM($K56:V56))) -> 0.9049692369 | X56: =IF($I56 >0, MIN(W56,$I56-SUM($K56:W56)), MAX(W56,$I56-SUM($K56:W56))) -> 0.9049692369 | Y56: =IF($I56 >0, MIN(X56,$I56-SUM($K56:X56)), MAX(X56,$I56-SUM($K56:X56))) -> 0.9049692369 | Z56: =IF($I56 >0, MIN(Y56,$I56-SUM($K56:Y56)), MAX(Y56,$I56-SUM($K56:Y56))) -> 0.9049692369 | AA56: =IF($I56 >0, MIN(Z56,$I56-SUM($K56:Z56)), MAX(Z56,$I56-SUM($K56:Z56))) -> 0.9049692369 | AB56: =IF($I56 >0, MIN(AA56,$I56-SUM($K56:AA56)), MAX(AA56,$I56-SUM($K56:AA56))) -> 0.9049692369 | AC56: =IF($I56 >0, MIN(AB56,$I56-SUM($K56:AB56)), MAX(AB56,$I56-SUM($K56:AB56))) -> 0.9049692369 | AD56: =IF($I56 >0, MIN(AC56,$I56-SUM($K56:AC56)), MAX(AC56,$I56-SUM($K56:AC56))) -> 0.9049692369 | AE56: =IF($I56 >0, MIN(AD56,$I56-SUM($K56:AD56)), MAX(AD56,$I56-SUM($K56:AD56))) -> 0.9049692369 | AF56: =IF($I56 >0, MIN(AE56,$I56-SUM($K56:AE56)), MAX(AE56,$I56-SUM($K56:AE56))) -> 0.9049692369 | AG56: =IF($I56 >0, MIN(AF56,$I56-SUM($K56:AF56)), MAX(AF56,$I56-SUM($K56:AF56))) -> 0.9049692369 | AH56: =IF($I56 >0, MIN(AG56,$I56-SUM($K56:AG56)), MAX(AG56,$I56-SUM($K56:AG56))) -> 0.9049692369 | AI56: =IF($I56 >0, MIN(AH56,$I56-SUM($K56:AH56)), MAX(AH56,$I56-SUM($K56:AH56))) -> 0.9049692369 | AJ56: =IF($I56 >0, MIN(AI56,$I56-SUM($K56:AI56)), MAX(AI56,$I56-SUM($K56:AI56))) -> 3.552713679e-15 | AK56: =IF($I56 >0, MIN(AJ56,$I56-SUM($K56:AJ56)), MAX(AJ56,$I56-SUM($K56:AJ56))) -> 0 | AL56: =IF($I56 >0, MIN(AK56,$I56-SUM($K56:AK56)), MAX(AK56,$I56-SUM($K56:AK56))) -> 0 | AM56: =IF($I56 >0, MIN(AL56,$I56-SUM($K56:AL56)), MAX(AL56,$I56-SUM($K56:AL56))) -> 0 | AN56: =IF($I56 >0, MIN(AM56,$I56-SUM($K56:AM56)), MAX(AM56,$I56-SUM($K56:AM56))) -> 0 | AO56: =IF($I56 >0, MIN(AN56,$I56-SUM($K56:AN56)), MAX(AN56,$I56-SUM($K56:AN56))) -> 0 | AP56: =IF($I56 >0, MIN(AO56,$I56-SUM($K56:AO56)), MAX(AO56,$I56-SUM($K56:AO56))) -> 0 | AQ56: =IF($I56 >0, MIN(AP56,$I56-SUM($K56:AP56)), MAX(AP56,$I56-SUM($K56:AP56))) -> 0 | AR56: =IF($I56 >0, MIN(AQ56,$I56-SUM($K56:AQ56)), MAX(AQ56,$I56-SUM($K56:AQ56))) -> 0 | AS56: =IF($I56 >0, MIN(AR56,$I56-SUM($K56:AR56)), MAX(AR56,$I56-SUM($K56:AR56))) -> 0 | AT56: =IF($I56 >0, MIN(AS56,$I56-SUM($K56:AS56)), MAX(AS56,$I56-SUM($K56:AS56))) -> 0 | AU56: =IF($I56 >0, MIN(AT56,$I56-SUM($K56:AT56)), MAX(AT56,$I56-SUM($K56:AT56))) -> 0 | AV56: =IF($I56 >0, MIN(AU56,$I56-SUM($K56:AU56)), MAX(AU56,$I56-SUM($K56:AU56))) -> 0 | AW56: =IF($I56 >0, MIN(AV56,$I56-SUM($K56:AV56)), MAX(AV56,$I56-SUM($K56:AV56))) -> 0 | AX56: =IF($I56 >0, MIN(AW56,$I56-SUM($K56:AW56)), MAX(AW56,$I56-SUM($K56:AW56))) -> 0 | AY56: =IF($I56 >0, MIN(AX56,$I56-SUM($K56:AX56)), MAX(AX56,$I56-SUM($K56:AX56))) -> 0 | AZ56: =IF($I56 >0, MIN(AY56,$I56-SUM($K56:AY56)), MAX(AY56,$I56-SUM($K56:AY56))) -> 0 | BA56: =IF($I56 >0, MIN(AZ56,$I56-SUM($K56:AZ56)), MAX(AZ56,$I56-SUM($K56:AZ56))) -> 0 | BB56: =IF($I56 >0, MIN(BA56,$I56-SUM($K56:BA56)), MAX(BA56,$I56-SUM($K56:BA56))) -> 0 | BC56: =IF($I56 >0, MIN(BB56,$I56-SUM($K56:BB56)), MAX(BB56,$I56-SUM($K56:BB56))) -> 0 | BD56: =IF($I56 >0, MIN(BC56,$I56-SUM($K56:BC56)), MAX(BC56,$I56-SUM($K56:BC56))) -> 0 | BE56: =IF($I56 >0, MIN(BD56,$I56-SUM($K56:BD56)), MAX(BD56,$I56-SUM($K56:BD56))) -> 0 | BF56: =IF($I56 >0, MIN(BE56,$I56-SUM($K56:BE56)), MAX(BE56,$I56-SUM($K56:BE56))) -> 0 | BG56: =IF($I56 >0, MIN(BF56,$I56-SUM($K56:BF56)), MAX(BF56,$I56-SUM($K56:BF56))) -> 0 | BH56: =IF($I56 >0, MIN(BG56,$I56-SUM($K56:BG56)), MAX(BG56,$I56-SUM($K56:BG56))) -> 0 | BI56: =IF($I56 >0, MIN(BH56,$I56-SUM($K56:BH56)), MAX(BH56,$I56-SUM($K56:BH56))) -> 0 | BJ56: =IF($I56 >0, MIN(BI56,$I56-SUM($K56:BI56)), MAX(BI56,$I56-SUM($K56:BI56))) -> 0 | BK56: =IF($I56 >0, MIN(BJ56,$I56-SUM($K56:BJ56)), MAX(BJ56,$I56-SUM($K56:BJ56))) -> 0 | BL56: =IF($I56 >0, MIN(BK56,$I56-SUM($K56:BK56)), MAX(BK56,$I56-SUM($K56:BK56))) -> 0 | BM56: =IF($I56 >0, MIN(BL56,$I56-SUM($K56:BL56)), MAX(BL56,$I56-SUM($K56:BL56))) -> 0 | BN56: =IF($I56 >0, MIN(BM56,$I56-SUM($K56:BM56)), MAX(BM56,$I56-SUM($K56:BM56))) -> 0 | BO56: =IF($I56 >0, MIN(BN56,$I56-SUM($K56:BN56)), MAX(BN56,$I56-SUM($K56:BN56))) -> 0 | BP56: =IF($I56 >0, MIN(BO56,$I56-SUM($K56:BO56)), MAX(BO56,$I56-SUM($K56:BO56))) -> 0 | BQ56: =IF($I56 >0, MIN(BP56,$I56-SUM($K56:BP56)), MAX(BP56,$I56-SUM($K56:BP56))) -> 0 | BR56: =IF($I56 >0, MIN(BQ56,$I56-SUM($K56:BQ56)), MAX(BQ56,$I56-SUM($K56:BQ56))) -> 0 | BS56: =IF($I56 >0, MIN(BR56,$I56-SUM($K56:BR56)), MAX(BR56,$I56-SUM($K56:BR56))) -> 0 | BT56: =IF($I56 >0, MIN(BS56,$I56-SUM($K56:BS56)), MAX(BS56,$I56-SUM($K56:BS56))) -> 0 | BU56: =IF($I56 >0, MIN(BT56,$I56-SUM($K56:BT56)), MAX(BT56,$I56-SUM($K56:BT56))) -> 0 | BV56: =IF($I56 >0, MIN(BU56,$I56-SUM($K56:BU56)), MAX(BU56,$I56-SUM($K56:BU56))) -> 0 | BW56: =IF($I56 >0, MIN(BV56,$I56-SUM($K56:BV56)), MAX(BV56,$I56-SUM($K56:BV56))) -> 0 | BX56: =IF($I56 >0, MIN(BW56,$I56-SUM($K56:BW56)), MAX(BW56,$I56-SUM($K56:BW56))) -> 0 | BY56: =IF($I56 >0, MIN(BX56,$I56-SUM($K56:BX56)), MAX(BX56,$I56-SUM($K56:BX56))) -> 0 | BZ56: =IF($I56 >0, MIN(BY56,$I56-SUM($K56:BY56)), MAX(BY56,$I56-SUM($K56:BY56))) -> 0 | CA56: =IF($I56 >0, MIN(BZ56,$I56-SUM($K56:BZ56)), MAX(BZ56,$I56-SUM($K56:BZ56))) -> 0 | CB56: =IF($I56 >0, MIN(CA56,$I56-SUM($K56:CA56)), MAX(CA56,$I56-SUM($K56:CA56))) -> 0 | CC56: =IF($I56 >0, MIN(CB56,$I56-SUM($K56:CB56)), MAX(CB56,$I56-SUM($K56:CB56))) -> 0 | CD56: =IF($I56 >0, MIN(CC56,$I56-SUM($K56:CC56)), MAX(CC56,$I56-SUM($K56:CC56))) -> 0 | CE56: =IF($I56 >0, MIN(CD56,$I56-SUM($K56:CD56)), MAX(CD56,$I56-SUM($K56:CD56))) -> 0 | CF56: =IF($I56 >0, MIN(CE56,$I56-SUM($K56:CE56)), MAX(CE56,$I56-SUM($K56:CE56))) -> 0 | CG56: =IF($I56 >0, MIN(CF56,$I56-SUM($K56:CF56)), MAX(CF56,$I56-SUM($K56:CF56))) -> 0 | CH56: =IF($I56 >0, MIN(CG56,$I56-SUM($K56:CG56)), MAX(CG56,$I56-SUM($K56:CG56))) -> 0 | CI56: =IF($I56 >0, MIN(CH56,$I56-SUM($K56:CH56)), MAX(CH56,$I56-SUM($K56:CH56))) -> 0 | CJ56: =IF($I56 >0, MIN(CI56,$I56-SUM($K56:CI56)), MAX(CI56,$I56-SUM($K56:CI56))) -> 0 | CK56: =IF($I56 >0, MIN(CJ56,$I56-SUM($K56:CJ56)), MAX(CJ56,$I56-SUM($K56:CJ56))) -> 0 | CL56: =IF($I56 >0, MIN(CK56,$I56-SUM($K56:CK56)), MAX(CK56,$I56-SUM($K56:CK56))) -> 0 | CM56: =IF($I56 >0, MIN(CL56,$I56-SUM($K56:CL56)), MAX(CL56,$I56-SUM($K56:CL56))) -> 0 | CN56: =IF($I56 >0, MIN(CM56,$I56-SUM($K56:CM56)), MAX(CM56,$I56-SUM($K56:CM56))) -> 0 | CO56: =IF($I56 >0, MIN(CN56,$I56-SUM($K56:CN56)), MAX(CN56,$I56-SUM($K56:CN56))) -> 0 | CP56: =IF($I56 >0, MIN(CO56,$I56-SUM($K56:CO56)), MAX(CO56,$I56-SUM($K56:CO56))) -> 0 | CQ56: =IF($I56 >0, MIN(CP56,$I56-SUM($K56:CP56)), MAX(CP56,$I56-SUM($K56:CP56))) -> 0 | CR56: =IF($I56 >0, MIN(CQ56,$I56-SUM($K56:CQ56)), MAX(CQ56,$I56-SUM($K56:CQ56))) -> 0 | CS56: =IF($I56 >0, MIN(CR56,$I56-SUM($K56:CR56)), MAX(CR56,$I56-SUM($K56:CR56))) -> 0 | CT56: =IF($I56 >0, MIN(CS56,$I56-SUM($K56:CS56)), MAX(CS56,$I56-SUM($K56:CS56))) -> 0 | CU56: =IF($I56 >0, MIN(CT56,$I56-SUM($K56:CT56)), MAX(CT56,$I56-SUM($K56:CT56))) -> 0 | CV56: =IF($I56 >0, MIN(CU56,$I56-SUM($K56:CU56)), MAX(CU56,$I56-SUM($K56:CU56))) -> 0 | CW56: =IF($I56 >0, MIN(CV56,$I56-SUM($K56:CV56)), MAX(CV56,$I56-SUM($K56:CV56))) -> 0
E57: 1996-03-31 | G57: £m 23/24 prices | I57: 18.53035686 | J57: > | Q57: =$I57 / P$46 -> 0.9265178428 | R57: =IF($I57 >0, MIN(Q57,$I57-SUM($K57:Q57)), MAX(Q57,$I57-SUM($K57:Q57))) -> 0.9265178428 | S57: =IF($I57 >0, MIN(R57,$I57-SUM($K57:R57)), MAX(R57,$I57-SUM($K57:R57))) -> 0.9265178428 | T57: =IF($I57 >0, MIN(S57,$I57-SUM($K57:S57)), MAX(S57,$I57-SUM($K57:S57))) -> 0.9265178428 | U57: =IF($I57 >0, MIN(T57,$I57-SUM($K57:T57)), MAX(T57,$I57-SUM($K57:T57))) -> 0.9265178428 | V57: =IF($I57 >0, MIN(U57,$I57-SUM($K57:U57)), MAX(U57,$I57-SUM($K57:U57))) -> 0.9265178428 | W57: =IF($I57 >0, MIN(V57,$I57-SUM($K57:V57)), MAX(V57,$I57-SUM($K57:V57))) -> 0.9265178428 | X57: =IF($I57 >0, MIN(W57,$I57-SUM($K57:W57)), MAX(W57,$I57-SUM($K57:W57))) -> 0.9265178428 | Y57: =IF($I57 >0, MIN(X57,$I57-SUM($K57:X57)), MAX(X57,$I57-SUM($K57:X57))) -> 0.9265178428 | Z57: =IF($I57 >0, MIN(Y57,$I57-SUM($K57:Y57)), MAX(Y57,$I57-SUM($K57:Y57))) -> 0.9265178428 | AA57: =IF($I57 >0, MIN(Z57,$I57-SUM($K57:Z57)), MAX(Z57,$I57-SUM($K57:Z57))) -> 0.9265178428 | AB57: =IF($I57 >0, MIN(AA57,$I57-SUM($K57:AA57)), MAX(AA57,$I57-SUM($K57:AA57))) -> 0.9265178428 | AC57: =IF($I57 >0, MIN(AB57,$I57-SUM($K57:AB57)), MAX(AB57,$I57-SUM($K57:AB57))) -> 0.9265178428 | AD57: =IF($I57 >0, MIN(AC57,$I57-SUM($K57:AC57)), MAX(AC57,$I57-SUM($K57:AC57))) -> 0.9265178428 | AE57: =IF($I57 >0, MIN(AD57,$I57-SUM($K57:AD57)), MAX(AD57,$I57-SUM($K57:AD57))) -> 0.9265178428 | AF57: =IF($I57 >0, MIN(AE57,$I57-SUM($K57:AE57)), MAX(AE57,$I57-SUM($K57:AE57))) -> 0.9265178428 | AG57: =IF($I57 >0, MIN(AF57,$I57-SUM($K57:AF57)), MAX(AF57,$I57-SUM($K57:AF57))) -> 0.9265178428 | AH57: =IF($I57 >0, MIN(AG57,$I57-SUM($K57:AG57)), MAX(AG57,$I57-SUM($K57:AG57))) -> 0.9265178428 | AI57: =IF($I57 >0, MIN(AH57,$I57-SUM($K57:AH57)), MAX(AH57,$I57-SUM($K57:AH57))) -> 0.9265178428 | AJ57: =IF($I57 >0, MIN(AI57,$I57-SUM($K57:AI57)), MAX(AI57,$I57-SUM($K57:AI57))) -> 0.9265178428 | AK57: =IF($I57 >0, MIN(AJ57,$I57-SUM($K57:AJ57)), MAX(AJ57,$I57-SUM($K57:AJ57))) -> 0 | AL57: =IF($I57 >0, MIN(AK57,$I57-SUM($K57:AK57)), MAX(AK57,$I57-SUM($K57:AK57))) -> 0 | AM57: =IF($I57 >0, MIN(AL57,$I57-SUM($K57:AL57)), MAX(AL57,$I57-SUM($K57:AL57))) -> 0 | AN57: =IF($I57 >0, MIN(AM57,$I57-SUM($K57:AM57)), MAX(AM57,$I57-SUM($K57:AM57))) -> 0 | AO57: =IF($I57 >0, MIN(AN57,$I57-SUM($K57:AN57)), MAX(AN57,$I57-SUM($K57:AN57))) -> 0 | AP57: =IF($I57 >0, MIN(AO57,$I57-SUM($K57:AO57)), MAX(AO57,$I57-SUM($K57:AO57))) -> 0 | AQ57: =IF($I57 >0, MIN(AP57,$I57-SUM($K57:AP57)), MAX(AP57,$I57-SUM($K57:AP57))) -> 0 | AR57: =IF($I57 >0, MIN(AQ57,$I57-SUM($K57:AQ57)), MAX(AQ57,$I57-SUM($K57:AQ57))) -> 0 | AS57: =IF($I57 >0, MIN(AR57,$I57-SUM($K57:AR57)), MAX(AR57,$I57-SUM($K57:AR57))) -> 0 | AT57: =IF($I57 >0, MIN(AS57,$I57-SUM($K57:AS57)), MAX(AS57,$I57-SUM($K57:AS57))) -> 0 | AU57: =IF($I57 >0, MIN(AT57,$I57-SUM($K57:AT57)), MAX(AT57,$I57-SUM($K57:AT57))) -> 0 | AV57: =IF($I57 >0, MIN(AU57,$I57-SUM($K57:AU57)), MAX(AU57,$I57-SUM($K57:AU57))) -> 0 | AW57: =IF($I57 >0, MIN(AV57,$I57-SUM($K57:AV57)), MAX(AV57,$I57-SUM($K57:AV57))) -> 0 | AX57: =IF($I57 >0, MIN(AW57,$I57-SUM($K57:AW57)), MAX(AW57,$I57-SUM($K57:AW57))) -> 0 | AY57: =IF($I57 >0, MIN(AX57,$I57-SUM($K57:AX57)), MAX(AX57,$I57-SUM($K57:AX57))) -> 0 | AZ57: =IF($I57 >0, MIN(AY57,$I57-SUM($K57:AY57)), MAX(AY57,$I57-SUM($K57:AY57))) -> 0 | BA57: =IF($I57 >0, MIN(AZ57,$I57-SUM($K57:AZ57)), MAX(AZ57,$I57-SUM($K57:AZ57))) -> 0 | BB57: =IF($I57 >0, MIN(BA57,$I57-SUM($K57:BA57)), MAX(BA57,$I57-SUM($K57:BA57))) -> 0 | BC57: =IF($I57 >0, MIN(BB57,$I57-SUM($K57:BB57)), MAX(BB57,$I57-SUM($K57:BB57))) -> 0 | BD57: =IF($I57 >0, MIN(BC57,$I57-SUM($K57:BC57)), MAX(BC57,$I57-SUM($K57:BC57))) -> 0 | BE57: =IF($I57 >0, MIN(BD57,$I57-SUM($K57:BD57)), MAX(BD57,$I57-SUM($K57:BD57))) -> 0 | BF57: =IF($I57 >0, MIN(BE57,$I57-SUM($K57:BE57)), MAX(BE57,$I57-SUM($K57:BE57))) -> 0 | BG57: =IF($I57 >0, MIN(BF57,$I57-SUM($K57:BF57)), MAX(BF57,$I57-SUM($K57:BF57))) -> 0 | BH57: =IF($I57 >0, MIN(BG57,$I57-SUM($K57:BG57)), MAX(BG57,$I57-SUM($K57:BG57))) -> 0 | BI57: =IF($I57 >0, MIN(BH57,$I57-SUM($K57:BH57)), MAX(BH57,$I57-SUM($K57:BH57))) -> 0 | BJ57: =IF($I57 >0, MIN(BI57,$I57-SUM($K57:BI57)), MAX(BI57,$I57-SUM($K57:BI57))) -> 0 | BK57: =IF($I57 >0, MIN(BJ57,$I57-SUM($K57:BJ57)), MAX(BJ57,$I57-SUM($K57:BJ57))) -> 0 | BL57: =IF($I57 >0, MIN(BK57,$I57-SUM($K57:BK57)), MAX(BK57,$I57-SUM($K57:BK57))) -> 0 | BM57: =IF($I57 >0, MIN(BL57,$I57-SUM($K57:BL57)), MAX(BL57,$I57-SUM($K57:BL57))) -> 0 | BN57: =IF($I57 >0, MIN(BM57,$I57-SUM($K57:BM57)), MAX(BM57,$I57-SUM($K57:BM57))) -> 0 | BO57: =IF($I57 >0, MIN(BN57,$I57-SUM($K57:BN57)), MAX(BN57,$I57-SUM($K57:BN57))) -> 0 | BP57: =IF($I57 >0, MIN(BO57,$I57-SUM($K57:BO57)), MAX(BO57,$I57-SUM($K57:BO57))) -> 0 | BQ57: =IF($I57 >0, MIN(BP57,$I57-SUM($K57:BP57)), MAX(BP57,$I57-SUM($K57:BP57))) -> 0 | BR57: =IF($I57 >0, MIN(BQ57,$I57-SUM($K57:BQ57)), MAX(BQ57,$I57-SUM($K57:BQ57))) -> 0 | BS57: =IF($I57 >0, MIN(BR57,$I57-SUM($K57:BR57)), MAX(BR57,$I57-SUM($K57:BR57))) -> 0 | BT57: =IF($I57 >0, MIN(BS57,$I57-SUM($K57:BS57)), MAX(BS57,$I57-SUM($K57:BS57))) -> 0 | BU57: =IF($I57 >0, MIN(BT57,$I57-SUM($K57:BT57)), MAX(BT57,$I57-SUM($K57:BT57))) -> 0 | BV57: =IF($I57 >0, MIN(BU57,$I57-SUM($K57:BU57)), MAX(BU57,$I57-SUM($K57:BU57))) -> 0 | BW57: =IF($I57 >0, MIN(BV57,$I57-SUM($K57:BV57)), MAX(BV57,$I57-SUM($K57:BV57))) -> 0 | BX57: =IF($I57 >0, MIN(BW57,$I57-SUM($K57:BW57)), MAX(BW57,$I57-SUM($K57:BW57))) -> 0 | BY57: =IF($I57 >0, MIN(BX57,$I57-SUM($K57:BX57)), MAX(BX57,$I57-SUM($K57:BX57))) -> 0 | BZ57: =IF($I57 >0, MIN(BY57,$I57-SUM($K57:BY57)), MAX(BY57,$I57-SUM($K57:BY57))) -> 0 | CA57: =IF($I57 >0, MIN(BZ57,$I57-SUM($K57:BZ57)), MAX(BZ57,$I57-SUM($K57:BZ57))) -> 0 | CB57: =IF($I57 >0, MIN(CA57,$I57-SUM($K57:CA57)), MAX(CA57,$I57-SUM($K57:CA57))) -> 0 | CC57: =IF($I57 >0, MIN(CB57,$I57-SUM($K57:CB57)), MAX(CB57,$I57-SUM($K57:CB57))) -> 0 | CD57: =IF($I57 >0, MIN(CC57,$I57-SUM($K57:CC57)), MAX(CC57,$I57-SUM($K57:CC57))) -> 0 | CE57: =IF($I57 >0, MIN(CD57,$I57-SUM($K57:CD57)), MAX(CD57,$I57-SUM($K57:CD57))) -> 0 | CF57: =IF($I57 >0, MIN(CE57,$I57-SUM($K57:CE57)), MAX(CE57,$I57-SUM($K57:CE57))) -> 0 | CG57: =IF($I57 >0, MIN(CF57,$I57-SUM($K57:CF57)), MAX(CF57,$I57-SUM($K57:CF57))) -> 0 | CH57: =IF($I57 >0, MIN(CG57,$I57-SUM($K57:CG57)), MAX(CG57,$I57-SUM($K57:CG57))) -> 0 | CI57: =IF($I57 >0, MIN(CH57,$I57-SUM($K57:CH57)), MAX(CH57,$I57-SUM($K57:CH57))) -> 0 | CJ57: =IF($I57 >0, MIN(CI57,$I57-SUM($K57:CI57)), MAX(CI57,$I57-SUM($K57:CI57))) -> 0 | CK57: =IF($I57 >0, MIN(CJ57,$I57-SUM($K57:CJ57)), MAX(CJ57,$I57-SUM($K57:CJ57))) -> 0 | CL57: =IF($I57 >0, MIN(CK57,$I57-SUM($K57:CK57)), MAX(CK57,$I57-SUM($K57:CK57))) -> 0 | CM57: =IF($I57 >0, MIN(CL57,$I57-SUM($K57:CL57)), MAX(CL57,$I57-SUM($K57:CL57))) -> 0 | CN57: =IF($I57 >0, MIN(CM57,$I57-SUM($K57:CM57)), MAX(CM57,$I57-SUM($K57:CM57))) -> 0 | CO57: =IF($I57 >0, MIN(CN57,$I57-SUM($K57:CN57)), MAX(CN57,$I57-SUM($K57:CN57))) -> 0 | CP57: =IF($I57 >0, MIN(CO57,$I57-SUM($K57:CO57)), MAX(CO57,$I57-SUM($K57:CO57))) -> 0 | CQ57: =IF($I57 >0, MIN(CP57,$I57-SUM($K57:CP57)), MAX(CP57,$I57-SUM($K57:CP57))) -> 0 | CR57: =IF($I57 >0, MIN(CQ57,$I57-SUM($K57:CQ57)), MAX(CQ57,$I57-SUM($K57:CQ57))) -> 0 | CS57: =IF($I57 >0, MIN(CR57,$I57-SUM($K57:CR57)), MAX(CR57,$I57-SUM($K57:CR57))) -> 0 | CT57: =IF($I57 >0, MIN(CS57,$I57-SUM($K57:CS57)), MAX(CS57,$I57-SUM($K57:CS57))) -> 0 | CU57: =IF($I57 >0, MIN(CT57,$I57-SUM($K57:CT57)), MAX(CT57,$I57-SUM($K57:CT57))) -> 0 | CV57: =IF($I57 >0, MIN(CU57,$I57-SUM($K57:CU57)), MAX(CU57,$I57-SUM($K57:CU57))) -> 0 | CW57: =IF($I57 >0, MIN(CV57,$I57-SUM($K57:CV57)), MAX(CV57,$I57-SUM($K57:CV57))) -> 0
E58: 1997-03-31 | G58: £m 23/24 prices | I58: 22.15727737 | J58: > | R58: =$I58 / Q$46 -> 1.107863869 | S58: =IF($I58 >0, MIN(R58,$I58-SUM($K58:R58)), MAX(R58,$I58-SUM($K58:R58))) -> 1.107863869 | T58: =IF($I58 >0, MIN(S58,$I58-SUM($K58:S58)), MAX(S58,$I58-SUM($K58:S58))) -> 1.107863869 | U58: =IF($I58 >0, MIN(T58,$I58-SUM($K58:T58)), MAX(T58,$I58-SUM($K58:T58))) -> 1.107863869 | V58: =IF($I58 >0, MIN(U58,$I58-SUM($K58:U58)), MAX(U58,$I58-SUM($K58:U58))) -> 1.107863869 | W58: =IF($I58 >0, MIN(V58,$I58-SUM($K58:V58)), MAX(V58,$I58-SUM($K58:V58))) -> 1.107863869 | X58: =IF($I58 >0, MIN(W58,$I58-SUM($K58:W58)), MAX(W58,$I58-SUM($K58:W58))) -> 1.107863869 | Y58: =IF($I58 >0, MIN(X58,$I58-SUM($K58:X58)), MAX(X58,$I58-SUM($K58:X58))) -> 1.107863869 | Z58: =IF($I58 >0, MIN(Y58,$I58-SUM($K58:Y58)), MAX(Y58,$I58-SUM($K58:Y58))) -> 1.107863869 | AA58: =IF($I58 >0, MIN(Z58,$I58-SUM($K58:Z58)), MAX(Z58,$I58-SUM($K58:Z58))) -> 1.107863869 | AB58: =IF($I58 >0, MIN(AA58,$I58-SUM($K58:AA58)), MAX(AA58,$I58-SUM($K58:AA58))) -> 1.107863869 | AC58: =IF($I58 >0, MIN(AB58,$I58-SUM($K58:AB58)), MAX(AB58,$I58-SUM($K58:AB58))) -> 1.107863869 | AD58: =IF($I58 >0, MIN(AC58,$I58-SUM($K58:AC58)), MAX(AC58,$I58-SUM($K58:AC58))) -> 1.107863869 | AE58: =IF($I58 >0, MIN(AD58,$I58-SUM($K58:AD58)), MAX(AD58,$I58-SUM($K58:AD58))) -> 1.107863869 | AF58: =IF($I58 >0, MIN(AE58,$I58-SUM($K58:AE58)), MAX(AE58,$I58-SUM($K58:AE58))) -> 1.107863869 | AG58: =IF($I58 >0, MIN(AF58,$I58-SUM($K58:AF58)), MAX(AF58,$I58-SUM($K58:AF58))) -> 1.107863869 | AH58: =IF($I58 >0, MIN(AG58,$I58-SUM($K58:AG58)), MAX(AG58,$I58-SUM($K58:AG58))) -> 1.107863869 | AI58: =IF($I58 >0, MIN(AH58,$I58-SUM($K58:AH58)), MAX(AH58,$I58-SUM($K58:AH58))) -> 1.107863869 | AJ58: =IF($I58 >0, MIN(AI58,$I58-SUM($K58:AI58)), MAX(AI58,$I58-SUM($K58:AI58))) -> 1.107863869 | AK58: =IF($I58 >0, MIN(AJ58,$I58-SUM($K58:AJ58)), MAX(AJ58,$I58-SUM($K58:AJ58))) -> 1.107863869 | AL58: =IF($I58 >0, MIN(AK58,$I58-SUM($K58:AK58)), MAX(AK58,$I58-SUM($K58:AK58))) -> 3.552713679e-15 | AM58: =IF($I58 >0, MIN(AL58,$I58-SUM($K58:AL58)), MAX(AL58,$I58-SUM($K58:AL58))) -> 0 | AN58: =IF($I58 >0, MIN(AM58,$I58-SUM($K58:AM58)), MAX(AM58,$I58-SUM($K58:AM58))) -> 0 | AO58: =IF($I58 >0, MIN(AN58,$I58-SUM($K58:AN58)), MAX(AN58,$I58-SUM($K58:AN58))) -> 0 | AP58: =IF($I58 >0, MIN(AO58,$I58-SUM($K58:AO58)), MAX(AO58,$I58-SUM($K58:AO58))) -> 0 | AQ58: =IF($I58 >0, MIN(AP58,$I58-SUM($K58:AP58)), MAX(AP58,$I58-SUM($K58:AP58))) -> 0 | AR58: =IF($I58 >0, MIN(AQ58,$I58-SUM($K58:AQ58)), MAX(AQ58,$I58-SUM($K58:AQ58))) -> 0 | AS58: =IF($I58 >0, MIN(AR58,$I58-SUM($K58:AR58)), MAX(AR58,$I58-SUM($K58:AR58))) -> 0 | AT58: =IF($I58 >0, MIN(AS58,$I58-SUM($K58:AS58)), MAX(AS58,$I58-SUM($K58:AS58))) -> 0 | AU58: =IF($I58 >0, MIN(AT58,$I58-SUM($K58:AT58)), MAX(AT58,$I58-SUM($K58:AT58))) -> 0 | AV58: =IF($I58 >0, MIN(AU58,$I58-SUM($K58:AU58)), MAX(AU58,$I58-SUM($K58:AU58))) -> 0 | AW58: =IF($I58 >0, MIN(AV58,$I58-SUM($K58:AV58)), MAX(AV58,$I58-SUM($K58:AV58))) -> 0 | AX58: =IF($I58 >0, MIN(AW58,$I58-SUM($K58:AW58)), MAX(AW58,$I58-SUM($K58:AW58))) -> 0 | AY58: =IF($I58 >0, MIN(AX58,$I58-SUM($K58:AX58)), MAX(AX58,$I58-SUM($K58:AX58))) -> 0 | AZ58: =IF($I58 >0, MIN(AY58,$I58-SUM($K58:AY58)), MAX(AY58,$I58-SUM($K58:AY58))) -> 0 | BA58: =IF($I58 >0, MIN(AZ58,$I58-SUM($K58:AZ58)), MAX(AZ58,$I58-SUM($K58:AZ58))) -> 0 | BB58: =IF($I58 >0, MIN(BA58,$I58-SUM($K58:BA58)), MAX(BA58,$I58-SUM($K58:BA58))) -> 0 | BC58: =IF($I58 >0, MIN(BB58,$I58-SUM($K58:BB58)), MAX(BB58,$I58-SUM($K58:BB58))) -> 0 | BD58: =IF($I58 >0, MIN(BC58,$I58-SUM($K58:BC58)), MAX(BC58,$I58-SUM($K58:BC58))) -> 0 | BE58: =IF($I58 >0, MIN(BD58,$I58-SUM($K58:BD58)), MAX(BD58,$I58-SUM($K58:BD58))) -> 0 | BF58: =IF($I58 >0, MIN(BE58,$I58-SUM($K58:BE58)), MAX(BE58,$I58-SUM($K58:BE58))) -> 0 | BG58: =IF($I58 >0, MIN(BF58,$I58-SUM($K58:BF58)), MAX(BF58,$I58-SUM($K58:BF58))) -> 0 | BH58: =IF($I58 >0, MIN(BG58,$I58-SUM($K58:BG58)), MAX(BG58,$I58-SUM($K58:BG58))) -> 0 | BI58: =IF($I58 >0, MIN(BH58,$I58-SUM($K58:BH58)), MAX(BH58,$I58-SUM($K58:BH58))) -> 0 | BJ58: =IF($I58 >0, MIN(BI58,$I58-SUM($K58:BI58)), MAX(BI58,$I58-SUM($K58:BI58))) -> 0 | BK58: =IF($I58 >0, MIN(BJ58,$I58-SUM($K58:BJ58)), MAX(BJ58,$I58-SUM($K58:BJ58))) -> 0 | BL58: =IF($I58 >0, MIN(BK58,$I58-SUM($K58:BK58)), MAX(BK58,$I58-SUM($K58:BK58))) -> 0 | BM58: =IF($I58 >0, MIN(BL58,$I58-SUM($K58:BL58)), MAX(BL58,$I58-SUM($K58:BL58))) -> 0 | BN58: =IF($I58 >0, MIN(BM58,$I58-SUM($K58:BM58)), MAX(BM58,$I58-SUM($K58:BM58))) -> 0 | BO58: =IF($I58 >0, MIN(BN58,$I58-SUM($K58:BN58)), MAX(BN58,$I58-SUM($K58:BN58))) -> 0 | BP58: =IF($I58 >0, MIN(BO58,$I58-SUM($K58:BO58)), MAX(BO58,$I58-SUM($K58:BO58))) -> 0 | BQ58: =IF($I58 >0, MIN(BP58,$I58-SUM($K58:BP58)), MAX(BP58,$I58-SUM($K58:BP58))) -> 0 | BR58: =IF($I58 >0, MIN(BQ58,$I58-SUM($K58:BQ58)), MAX(BQ58,$I58-SUM($K58:BQ58))) -> 0 | BS58: =IF($I58 >0, MIN(BR58,$I58-SUM($K58:BR58)), MAX(BR58,$I58-SUM($K58:BR58))) -> 0 | BT58: =IF($I58 >0, MIN(BS58,$I58-SUM($K58:BS58)), MAX(BS58,$I58-SUM($K58:BS58))) -> 0 | BU58: =IF($I58 >0, MIN(BT58,$I58-SUM($K58:BT58)), MAX(BT58,$I58-SUM($K58:BT58))) -> 0 | BV58: =IF($I58 >0, MIN(BU58,$I58-SUM($K58:BU58)), MAX(BU58,$I58-SUM($K58:BU58))) -> 0 | BW58: =IF($I58 >0, MIN(BV58,$I58-SUM($K58:BV58)), MAX(BV58,$I58-SUM($K58:BV58))) -> 0 | BX58: =IF($I58 >0, MIN(BW58,$I58-SUM($K58:BW58)), MAX(BW58,$I58-SUM($K58:BW58))) -> 0 | BY58: =IF($I58 >0, MIN(BX58,$I58-SUM($K58:BX58)), MAX(BX58,$I58-SUM($K58:BX58))) -> 0 | BZ58: =IF($I58 >0, MIN(BY58,$I58-SUM($K58:BY58)), MAX(BY58,$I58-SUM($K58:BY58))) -> 0 | CA58: =IF($I58 >0, MIN(BZ58,$I58-SUM($K58:BZ58)), MAX(BZ58,$I58-SUM($K58:BZ58))) -> 0 | CB58: =IF($I58 >0, MIN(CA58,$I58-SUM($K58:CA58)), MAX(CA58,$I58-SUM($K58:CA58))) -> 0 | CC58: =IF($I58 >0, MIN(CB58,$I58-SUM($K58:CB58)), MAX(CB58,$I58-SUM($K58:CB58))) -> 0 | CD58: =IF($I58 >0, MIN(CC58,$I58-SUM($K58:CC58)), MAX(CC58,$I58-SUM($K58:CC58))) -> 0 | CE58: =IF($I58 >0, MIN(CD58,$I58-SUM($K58:CD58)), MAX(CD58,$I58-SUM($K58:CD58))) -> 0 | CF58: =IF($I58 >0, MIN(CE58,$I58-SUM($K58:CE58)), MAX(CE58,$I58-SUM($K58:CE58))) -> 0 | CG58: =IF($I58 >0, MIN(CF58,$I58-SUM($K58:CF58)), MAX(CF58,$I58-SUM($K58:CF58))) -> 0 | CH58: =IF($I58 >0, MIN(CG58,$I58-SUM($K58:CG58)), MAX(CG58,$I58-SUM($K58:CG58))) -> 0 | CI58: =IF($I58 >0, MIN(CH58,$I58-SUM($K58:CH58)), MAX(CH58,$I58-SUM($K58:CH58))) -> 0 | CJ58: =IF($I58 >0, MIN(CI58,$I58-SUM($K58:CI58)), MAX(CI58,$I58-SUM($K58:CI58))) -> 0 | CK58: =IF($I58 >0, MIN(CJ58,$I58-SUM($K58:CJ58)), MAX(CJ58,$I58-SUM($K58:CJ58))) -> 0 | CL58: =IF($I58 >0, MIN(CK58,$I58-SUM($K58:CK58)), MAX(CK58,$I58-SUM($K58:CK58))) -> 0 | CM58: =IF($I58 >0, MIN(CL58,$I58-SUM($K58:CL58)), MAX(CL58,$I58-SUM($K58:CL58))) -> 0 | CN58: =IF($I58 >0, MIN(CM58,$I58-SUM($K58:CM58)), MAX(CM58,$I58-SUM($K58:CM58))) -> 0 | CO58: =IF($I58 >0, MIN(CN58,$I58-SUM($K58:CN58)), MAX(CN58,$I58-SUM($K58:CN58))) -> 0 | CP58: =IF($I58 >0, MIN(CO58,$I58-SUM($K58:CO58)), MAX(CO58,$I58-SUM($K58:CO58))) -> 0 | CQ58: =IF($I58 >0, MIN(CP58,$I58-SUM($K58:CP58)), MAX(CP58,$I58-SUM($K58:CP58))) -> 0 | CR58: =IF($I58 >0, MIN(CQ58,$I58-SUM($K58:CQ58)), MAX(CQ58,$I58-SUM($K58:CQ58))) -> 0 | CS58: =IF($I58 >0, MIN(CR58,$I58-SUM($K58:CR58)), MAX(CR58,$I58-SUM($K58:CR58))) -> 0 | CT58: =IF($I58 >0, MIN(CS58,$I58-SUM($K58:CS58)), MAX(CS58,$I58-SUM($K58:CS58))) -> 0 | CU58: =IF($I58 >0, MIN(CT58,$I58-SUM($K58:CT58)), MAX(CT58,$I58-SUM($K58:CT58))) -> 0 | CV58: =IF($I58 >0, MIN(CU58,$I58-SUM($K58:CU58)), MAX(CU58,$I58-SUM($K58:CU58))) -> 0 | CW58: =IF($I58 >0, MIN(CV58,$I58-SUM($K58:CV58)), MAX(CV58,$I58-SUM($K58:CV58))) -> 0
E59: 1998-03-31 | G59: £m 23/24 prices | I59: 26.49158814 | J59: > | S59: =$I59 / R$46 -> 1.324579407 | T59: =IF($I59 >0, MIN(S59,$I59-SUM($K59:S59)), MAX(S59,$I59-SUM($K59:S59))) -> 1.324579407 | U59: =IF($I59 >0, MIN(T59,$I59-SUM($K59:T59)), MAX(T59,$I59-SUM($K59:T59))) -> 1.324579407 | V59: =IF($I59 >0, MIN(U59,$I59-SUM($K59:U59)), MAX(U59,$I59-SUM($K59:U59))) -> 1.324579407 | W59: =IF($I59 >0, MIN(V59,$I59-SUM($K59:V59)), MAX(V59,$I59-SUM($K59:V59))) -> 1.324579407 | X59: =IF($I59 >0, MIN(W59,$I59-SUM($K59:W59)), MAX(W59,$I59-SUM($K59:W59))) -> 1.324579407 | Y59: =IF($I59 >0, MIN(X59,$I59-SUM($K59:X59)), MAX(X59,$I59-SUM($K59:X59))) -> 1.324579407 | Z59: =IF($I59 >0, MIN(Y59,$I59-SUM($K59:Y59)), MAX(Y59,$I59-SUM($K59:Y59))) -> 1.324579407 | AA59: =IF($I59 >0, MIN(Z59,$I59-SUM($K59:Z59)), MAX(Z59,$I59-SUM($K59:Z59))) -> 1.324579407 | AB59: =IF($I59 >0, MIN(AA59,$I59-SUM($K59:AA59)), MAX(AA59,$I59-SUM($K59:AA59))) -> 1.324579407 | AC59: =IF($I59 >0, MIN(AB59,$I59-SUM($K59:AB59)), MAX(AB59,$I59-SUM($K59:AB59))) -> 1.324579407 | AD59: =IF($I59 >0, MIN(AC59,$I59-SUM($K59:AC59)), MAX(AC59,$I59-SUM($K59:AC59))) -> 1.324579407 | AE59: =IF($I59 >0, MIN(AD59,$I59-SUM($K59:AD59)), MAX(AD59,$I59-SUM($K59:AD59))) -> 1.324579407 | AF59: =IF($I59 >0, MIN(AE59,$I59-SUM($K59:AE59)), MAX(AE59,$I59-SUM($K59:AE59))) -> 1.324579407 | AG59: =IF($I59 >0, MIN(AF59,$I59-SUM($K59:AF59)), MAX(AF59,$I59-SUM($K59:AF59))) -> 1.324579407 | AH59: =IF($I59 >0, MIN(AG59,$I59-SUM($K59:AG59)), MAX(AG59,$I59-SUM($K59:AG59))) -> 1.324579407 | AI59: =IF($I59 >0, MIN(AH59,$I59-SUM($K59:AH59)), MAX(AH59,$I59-SUM($K59:AH59))) -> 1.324579407 | AJ59: =IF($I59 >0, MIN(AI59,$I59-SUM($K59:AI59)), MAX(AI59,$I59-SUM($K59:AI59))) -> 1.324579407 | AK59: =IF($I59 >0, MIN(AJ59,$I59-SUM($K59:AJ59)), MAX(AJ59,$I59-SUM($K59:AJ59))) -> 1.324579407 | AL59: =IF($I59 >0, MIN(AK59,$I59-SUM($K59:AK59)), MAX(AK59,$I59-SUM($K59:AK59))) -> 1.324579407 | AM59: =IF($I59 >0, MIN(AL59,$I59-SUM($K59:AL59)), MAX(AL59,$I59-SUM($K59:AL59))) -> 0 | AN59: =IF($I59 >0, MIN(AM59,$I59-SUM($K59:AM59)), MAX(AM59,$I59-SUM($K59:AM59))) -> 0 | AO59: =IF($I59 >0, MIN(AN59,$I59-SUM($K59:AN59)), MAX(AN59,$I59-SUM($K59:AN59))) -> 0 | AP59: =IF($I59 >0, MIN(AO59,$I59-SUM($K59:AO59)), MAX(AO59,$I59-SUM($K59:AO59))) -> 0 | AQ59: =IF($I59 >0, MIN(AP59,$I59-SUM($K59:AP59)), MAX(AP59,$I59-SUM($K59:AP59))) -> 0 | AR59: =IF($I59 >0, MIN(AQ59,$I59-SUM($K59:AQ59)), MAX(AQ59,$I59-SUM($K59:AQ59))) -> 0 | AS59: =IF($I59 >0, MIN(AR59,$I59-SUM($K59:AR59)), MAX(AR59,$I59-SUM($K59:AR59))) -> 0 | AT59: =IF($I59 >0, MIN(AS59,$I59-SUM($K59:AS59)), MAX(AS59,$I59-SUM($K59:AS59))) -> 0 | AU59: =IF($I59 >0, MIN(AT59,$I59-SUM($K59:AT59)), MAX(AT59,$I59-SUM($K59:AT59))) -> 0 | AV59: =IF($I59 >0, MIN(AU59,$I59-SUM($K59:AU59)), MAX(AU59,$I59-SUM($K59:AU59))) -> 0 | AW59: =IF($I59 >0, MIN(AV59,$I59-SUM($K59:AV59)), MAX(AV59,$I59-SUM($K59:AV59))) -> 0 | AX59: =IF($I59 >0, MIN(AW59,$I59-SUM($K59:AW59)), MAX(AW59,$I59-SUM($K59:AW59))) -> 0 | AY59: =IF($I59 >0, MIN(AX59,$I59-SUM($K59:AX59)), MAX(AX59,$I59-SUM($K59:AX59))) -> 0 | AZ59: =IF($I59 >0, MIN(AY59,$I59-SUM($K59:AY59)), MAX(AY59,$I59-SUM($K59:AY59))) -> 0 | BA59: =IF($I59 >0, MIN(AZ59,$I59-SUM($K59:AZ59)), MAX(AZ59,$I59-SUM($K59:AZ59))) -> 0 | BB59: =IF($I59 >0, MIN(BA59,$I59-SUM($K59:BA59)), MAX(BA59,$I59-SUM($K59:BA59))) -> 0 | BC59: =IF($I59 >0, MIN(BB59,$I59-SUM($K59:BB59)), MAX(BB59,$I59-SUM($K59:BB59))) -> 0 | BD59: =IF($I59 >0, MIN(BC59,$I59-SUM($K59:BC59)), MAX(BC59,$I59-SUM($K59:BC59))) -> 0 | BE59: =IF($I59 >0, MIN(BD59,$I59-SUM($K59:BD59)), MAX(BD59,$I59-SUM($K59:BD59))) -> 0 | BF59: =IF($I59 >0, MIN(BE59,$I59-SUM($K59:BE59)), MAX(BE59,$I59-SUM($K59:BE59))) -> 0 | BG59: =IF($I59 >0, MIN(BF59,$I59-SUM($K59:BF59)), MAX(BF59,$I59-SUM($K59:BF59))) -> 0 | BH59: =IF($I59 >0, MIN(BG59,$I59-SUM($K59:BG59)), MAX(BG59,$I59-SUM($K59:BG59))) -> 0 | BI59: =IF($I59 >0, MIN(BH59,$I59-SUM($K59:BH59)), MAX(BH59,$I59-SUM($K59:BH59))) -> 0 | BJ59: =IF($I59 >0, MIN(BI59,$I59-SUM($K59:BI59)), MAX(BI59,$I59-SUM($K59:BI59))) -> 0 | BK59: =IF($I59 >0, MIN(BJ59,$I59-SUM($K59:BJ59)), MAX(BJ59,$I59-SUM($K59:BJ59))) -> 0 | BL59: =IF($I59 >0, MIN(BK59,$I59-SUM($K59:BK59)), MAX(BK59,$I59-SUM($K59:BK59))) -> 0 | BM59: =IF($I59 >0, MIN(BL59,$I59-SUM($K59:BL59)), MAX(BL59,$I59-SUM($K59:BL59))) -> 0 | BN59: =IF($I59 >0, MIN(BM59,$I59-SUM($K59:BM59)), MAX(BM59,$I59-SUM($K59:BM59))) -> 0 | BO59: =IF($I59 >0, MIN(BN59,$I59-SUM($K59:BN59)), MAX(BN59,$I59-SUM($K59:BN59))) -> 0 | BP59: =IF($I59 >0, MIN(BO59,$I59-SUM($K59:BO59)), MAX(BO59,$I59-SUM($K59:BO59))) -> 0 | BQ59: =IF($I59 >0, MIN(BP59,$I59-SUM($K59:BP59)), MAX(BP59,$I59-SUM($K59:BP59))) -> 0 | BR59: =IF($I59 >0, MIN(BQ59,$I59-SUM($K59:BQ59)), MAX(BQ59,$I59-SUM($K59:BQ59))) -> 0 | BS59: =IF($I59 >0, MIN(BR59,$I59-SUM($K59:BR59)), MAX(BR59,$I59-SUM($K59:BR59))) -> 0 | BT59: =IF($I59 >0, MIN(BS59,$I59-SUM($K59:BS59)), MAX(BS59,$I59-SUM($K59:BS59))) -> 0 | BU59: =IF($I59 >0, MIN(BT59,$I59-SUM($K59:BT59)), MAX(BT59,$I59-SUM($K59:BT59))) -> 0 | BV59: =IF($I59 >0, MIN(BU59,$I59-SUM($K59:BU59)), MAX(BU59,$I59-SUM($K59:BU59))) -> 0 | BW59: =IF($I59 >0, MIN(BV59,$I59-SUM($K59:BV59)), MAX(BV59,$I59-SUM($K59:BV59))) -> 0 | BX59: =IF($I59 >0, MIN(BW59,$I59-SUM($K59:BW59)), MAX(BW59,$I59-SUM($K59:BW59))) -> 0 | BY59: =IF($I59 >0, MIN(BX59,$I59-SUM($K59:BX59)), MAX(BX59,$I59-SUM($K59:BX59))) -> 0 | BZ59: =IF($I59 >0, MIN(BY59,$I59-SUM($K59:BY59)), MAX(BY59,$I59-SUM($K59:BY59))) -> 0 | CA59: =IF($I59 >0, MIN(BZ59,$I59-SUM($K59:BZ59)), MAX(BZ59,$I59-SUM($K59:BZ59))) -> 0 | CB59: =IF($I59 >0, MIN(CA59,$I59-SUM($K59:CA59)), MAX(CA59,$I59-SUM($K59:CA59))) -> 0 | CC59: =IF($I59 >0, MIN(CB59,$I59-SUM($K59:CB59)), MAX(CB59,$I59-SUM($K59:CB59))) -> 0 | CD59: =IF($I59 >0, MIN(CC59,$I59-SUM($K59:CC59)), MAX(CC59,$I59-SUM($K59:CC59))) -> 0 | CE59: =IF($I59 >0, MIN(CD59,$I59-SUM($K59:CD59)), MAX(CD59,$I59-SUM($K59:CD59))) -> 0 | CF59: =IF($I59 >0, MIN(CE59,$I59-SUM($K59:CE59)), MAX(CE59,$I59-SUM($K59:CE59))) -> 0 | CG59: =IF($I59 >0, MIN(CF59,$I59-SUM($K59:CF59)), MAX(CF59,$I59-SUM($K59:CF59))) -> 0 | CH59: =IF($I59 >0, MIN(CG59,$I59-SUM($K59:CG59)), MAX(CG59,$I59-SUM($K59:CG59))) -> 0 | CI59: =IF($I59 >0, MIN(CH59,$I59-SUM($K59:CH59)), MAX(CH59,$I59-SUM($K59:CH59))) -> 0 | CJ59: =IF($I59 >0, MIN(CI59,$I59-SUM($K59:CI59)), MAX(CI59,$I59-SUM($K59:CI59))) -> 0 | CK59: =IF($I59 >0, MIN(CJ59,$I59-SUM($K59:CJ59)), MAX(CJ59,$I59-SUM($K59:CJ59))) -> 0 | CL59: =IF($I59 >0, MIN(CK59,$I59-SUM($K59:CK59)), MAX(CK59,$I59-SUM($K59:CK59))) -> 0 | CM59: =IF($I59 >0, MIN(CL59,$I59-SUM($K59:CL59)), MAX(CL59,$I59-SUM($K59:CL59))) -> 0 | CN59: =IF($I59 >0, MIN(CM59,$I59-SUM($K59:CM59)), MAX(CM59,$I59-SUM($K59:CM59))) -> 0 | CO59: =IF($I59 >0, MIN(CN59,$I59-SUM($K59:CN59)), MAX(CN59,$I59-SUM($K59:CN59))) -> 0 | CP59: =IF($I59 >0, MIN(CO59,$I59-SUM($K59:CO59)), MAX(CO59,$I59-SUM($K59:CO59))) -> 0 | CQ59: =IF($I59 >0, MIN(CP59,$I59-SUM($K59:CP59)), MAX(CP59,$I59-SUM($K59:CP59))) -> 0 | CR59: =IF($I59 >0, MIN(CQ59,$I59-SUM($K59:CQ59)), MAX(CQ59,$I59-SUM($K59:CQ59))) -> 0 | CS59: =IF($I59 >0, MIN(CR59,$I59-SUM($K59:CR59)), MAX(CR59,$I59-SUM($K59:CR59))) -> 0 | CT59: =IF($I59 >0, MIN(CS59,$I59-SUM($K59:CS59)), MAX(CS59,$I59-SUM($K59:CS59))) -> 0 | CU59: =IF($I59 >0, MIN(CT59,$I59-SUM($K59:CT59)), MAX(CT59,$I59-SUM($K59:CT59))) -> 0 | CV59: =IF($I59 >0, MIN(CU59,$I59-SUM($K59:CU59)), MAX(CU59,$I59-SUM($K59:CU59))) -> 0 | CW59: =IF($I59 >0, MIN(CV59,$I59-SUM($K59:CV59)), MAX(CV59,$I59-SUM($K59:CV59))) -> 0
E60: 1999-03-31 | G60: £m 23/24 prices | I60: 19.53738066 | J60: > | T60: =$I60 / S$46 -> 0.9768690332 | U60: =IF($I60 >0, MIN(T60,$I60-SUM($K60:T60)), MAX(T60,$I60-SUM($K60:T60))) -> 0.9768690332 | V60: =IF($I60 >0, MIN(U60,$I60-SUM($K60:U60)), MAX(U60,$I60-SUM($K60:U60))) -> 0.9768690332 | W60: =IF($I60 >0, MIN(V60,$I60-SUM($K60:V60)), MAX(V60,$I60-SUM($K60:V60))) -> 0.9768690332 | X60: =IF($I60 >0, MIN(W60,$I60-SUM($K60:W60)), MAX(W60,$I60-SUM($K60:W60))) -> 0.9768690332 | Y60: =IF($I60 >0, MIN(X60,$I60-SUM($K60:X60)), MAX(X60,$I60-SUM($K60:X60))) -> 0.9768690332 | Z60: =IF($I60 >0, MIN(Y60,$I60-SUM($K60:Y60)), MAX(Y60,$I60-SUM($K60:Y60))) -> 0.9768690332 | AA60: =IF($I60 >0, MIN(Z60,$I60-SUM($K60:Z60)), MAX(Z60,$I60-SUM($K60:Z60))) -> 0.9768690332 | AB60: =IF($I60 >0, MIN(AA60,$I60-SUM($K60:AA60)), MAX(AA60,$I60-SUM($K60:AA60))) -> 0.9768690332 | AC60: =IF($I60 >0, MIN(AB60,$I60-SUM($K60:AB60)), MAX(AB60,$I60-SUM($K60:AB60))) -> 0.9768690332 | AD60: =IF($I60 >0, MIN(AC60,$I60-SUM($K60:AC60)), MAX(AC60,$I60-SUM($K60:AC60))) -> 0.9768690332 | AE60: =IF($I60 >0, MIN(AD60,$I60-SUM($K60:AD60)), MAX(AD60,$I60-SUM($K60:AD60))) -> 0.9768690332 | AF60: =IF($I60 >0, MIN(AE60,$I60-SUM($K60:AE60)), MAX(AE60,$I60-SUM($K60:AE60))) -> 0.9768690332 | AG60: =IF($I60 >0, MIN(AF60,$I60-SUM($K60:AF60)), MAX(AF60,$I60-SUM($K60:AF60))) -> 0.9768690332 | AH60: =IF($I60 >0, MIN(AG60,$I60-SUM($K60:AG60)), MAX(AG60,$I60-SUM($K60:AG60))) -> 0.9768690332 | AI60: =IF($I60 >0, MIN(AH60,$I60-SUM($K60:AH60)), MAX(AH60,$I60-SUM($K60:AH60))) -> 0.9768690332 | AJ60: =IF($I60 >0, MIN(AI60,$I60-SUM($K60:AI60)), MAX(AI60,$I60-SUM($K60:AI60))) -> 0.9768690332 | AK60: =IF($I60 >0, MIN(AJ60,$I60-SUM($K60:AJ60)), MAX(AJ60,$I60-SUM($K60:AJ60))) -> 0.9768690332 | AL60: =IF($I60 >0, MIN(AK60,$I60-SUM($K60:AK60)), MAX(AK60,$I60-SUM($K60:AK60))) -> 0.9768690332 | AM60: =IF($I60 >0, MIN(AL60,$I60-SUM($K60:AL60)), MAX(AL60,$I60-SUM($K60:AL60))) -> 0.9768690332 | AN60: =IF($I60 >0, MIN(AM60,$I60-SUM($K60:AM60)), MAX(AM60,$I60-SUM($K60:AM60))) -> 0 | AO60: =IF($I60 >0, MIN(AN60,$I60-SUM($K60:AN60)), MAX(AN60,$I60-SUM($K60:AN60))) -> 0 | AP60: =IF($I60 >0, MIN(AO60,$I60-SUM($K60:AO60)), MAX(AO60,$I60-SUM($K60:AO60))) -> 0 | AQ60: =IF($I60 >0, MIN(AP60,$I60-SUM($K60:AP60)), MAX(AP60,$I60-SUM($K60:AP60))) -> 0 | AR60: =IF($I60 >0, MIN(AQ60,$I60-SUM($K60:AQ60)), MAX(AQ60,$I60-SUM($K60:AQ60))) -> 0 | AS60: =IF($I60 >0, MIN(AR60,$I60-SUM($K60:AR60)), MAX(AR60,$I60-SUM($K60:AR60))) -> 0 | AT60: =IF($I60 >0, MIN(AS60,$I60-SUM($K60:AS60)), MAX(AS60,$I60-SUM($K60:AS60))) -> 0 | AU60: =IF($I60 >0, MIN(AT60,$I60-SUM($K60:AT60)), MAX(AT60,$I60-SUM($K60:AT60))) -> 0 | AV60: =IF($I60 >0, MIN(AU60,$I60-SUM($K60:AU60)), MAX(AU60,$I60-SUM($K60:AU60))) -> 0 | AW60: =IF($I60 >0, MIN(AV60,$I60-SUM($K60:AV60)), MAX(AV60,$I60-SUM($K60:AV60))) -> 0 | AX60: =IF($I60 >0, MIN(AW60,$I60-SUM($K60:AW60)), MAX(AW60,$I60-SUM($K60:AW60))) -> 0 | AY60: =IF($I60 >0, MIN(AX60,$I60-SUM($K60:AX60)), MAX(AX60,$I60-SUM($K60:AX60))) -> 0 | AZ60: =IF($I60 >0, MIN(AY60,$I60-SUM($K60:AY60)), MAX(AY60,$I60-SUM($K60:AY60))) -> 0 | BA60: =IF($I60 >0, MIN(AZ60,$I60-SUM($K60:AZ60)), MAX(AZ60,$I60-SUM($K60:AZ60))) -> 0 | BB60: =IF($I60 >0, MIN(BA60,$I60-SUM($K60:BA60)), MAX(BA60,$I60-SUM($K60:BA60))) -> 0 | BC60: =IF($I60 >0, MIN(BB60,$I60-SUM($K60:BB60)), MAX(BB60,$I60-SUM($K60:BB60))) -> 0 | BD60: =IF($I60 >0, MIN(BC60,$I60-SUM($K60:BC60)), MAX(BC60,$I60-SUM($K60:BC60))) -> 0 | BE60: =IF($I60 >0, MIN(BD60,$I60-SUM($K60:BD60)), MAX(BD60,$I60-SUM($K60:BD60))) -> 0 | BF60: =IF($I60 >0, MIN(BE60,$I60-SUM($K60:BE60)), MAX(BE60,$I60-SUM($K60:BE60))) -> 0 | BG60: =IF($I60 >0, MIN(BF60,$I60-SUM($K60:BF60)), MAX(BF60,$I60-SUM($K60:BF60))) -> 0 | BH60: =IF($I60 >0, MIN(BG60,$I60-SUM($K60:BG60)), MAX(BG60,$I60-SUM($K60:BG60))) -> 0 | BI60: =IF($I60 >0, MIN(BH60,$I60-SUM($K60:BH60)), MAX(BH60,$I60-SUM($K60:BH60))) -> 0 | BJ60: =IF($I60 >0, MIN(BI60,$I60-SUM($K60:BI60)), MAX(BI60,$I60-SUM($K60:BI60))) -> 0 | BK60: =IF($I60 >0, MIN(BJ60,$I60-SUM($K60:BJ60)), MAX(BJ60,$I60-SUM($K60:BJ60))) -> 0 | BL60: =IF($I60 >0, MIN(BK60,$I60-SUM($K60:BK60)), MAX(BK60,$I60-SUM($K60:BK60))) -> 0 | BM60: =IF($I60 >0, MIN(BL60,$I60-SUM($K60:BL60)), MAX(BL60,$I60-SUM($K60:BL60))) -> 0 | BN60: =IF($I60 >0, MIN(BM60,$I60-SUM($K60:BM60)), MAX(BM60,$I60-SUM($K60:BM60))) -> 0 | BO60: =IF($I60 >0, MIN(BN60,$I60-SUM($K60:BN60)), MAX(BN60,$I60-SUM($K60:BN60))) -> 0 | BP60: =IF($I60 >0, MIN(BO60,$I60-SUM($K60:BO60)), MAX(BO60,$I60-SUM($K60:BO60))) -> 0 | BQ60: =IF($I60 >0, MIN(BP60,$I60-SUM($K60:BP60)), MAX(BP60,$I60-SUM($K60:BP60))) -> 0 | BR60: =IF($I60 >0, MIN(BQ60,$I60-SUM($K60:BQ60)), MAX(BQ60,$I60-SUM($K60:BQ60))) -> 0 | BS60: =IF($I60 >0, MIN(BR60,$I60-SUM($K60:BR60)), MAX(BR60,$I60-SUM($K60:BR60))) -> 0 | BT60: =IF($I60 >0, MIN(BS60,$I60-SUM($K60:BS60)), MAX(BS60,$I60-SUM($K60:BS60))) -> 0 | BU60: =IF($I60 >0, MIN(BT60,$I60-SUM($K60:BT60)), MAX(BT60,$I60-SUM($K60:BT60))) -> 0 | BV60: =IF($I60 >0, MIN(BU60,$I60-SUM($K60:BU60)), MAX(BU60,$I60-SUM($K60:BU60))) -> 0 | BW60: =IF($I60 >0, MIN(BV60,$I60-SUM($K60:BV60)), MAX(BV60,$I60-SUM($K60:BV60))) -> 0 | BX60: =IF($I60 >0, MIN(BW60,$I60-SUM($K60:BW60)), MAX(BW60,$I60-SUM($K60:BW60))) -> 0 | BY60: =IF($I60 >0, MIN(BX60,$I60-SUM($K60:BX60)), MAX(BX60,$I60-SUM($K60:BX60))) -> 0 | BZ60: =IF($I60 >0, MIN(BY60,$I60-SUM($K60:BY60)), MAX(BY60,$I60-SUM($K60:BY60))) -> 0 | CA60: =IF($I60 >0, MIN(BZ60,$I60-SUM($K60:BZ60)), MAX(BZ60,$I60-SUM($K60:BZ60))) -> 0 | CB60: =IF($I60 >0, MIN(CA60,$I60-SUM($K60:CA60)), MAX(CA60,$I60-SUM($K60:CA60))) -> 0 | CC60: =IF($I60 >0, MIN(CB60,$I60-SUM($K60:CB60)), MAX(CB60,$I60-SUM($K60:CB60))) -> 0 | CD60: =IF($I60 >0, MIN(CC60,$I60-SUM($K60:CC60)), MAX(CC60,$I60-SUM($K60:CC60))) -> 0 | CE60: =IF($I60 >0, MIN(CD60,$I60-SUM($K60:CD60)), MAX(CD60,$I60-SUM($K60:CD60))) -> 0 | CF60: =IF($I60 >0, MIN(CE60,$I60-SUM($K60:CE60)), MAX(CE60,$I60-SUM($K60:CE60))) -> 0 | CG60: =IF($I60 >0, MIN(CF60,$I60-SUM($K60:CF60)), MAX(CF60,$I60-SUM($K60:CF60))) -> 0 | CH60: =IF($I60 >0, MIN(CG60,$I60-SUM($K60:CG60)), MAX(CG60,$I60-SUM($K60:CG60))) -> 0 | CI60: =IF($I60 >0, MIN(CH60,$I60-SUM($K60:CH60)), MAX(CH60,$I60-SUM($K60:CH60))) -> 0 | CJ60: =IF($I60 >0, MIN(CI60,$I60-SUM($K60:CI60)), MAX(CI60,$I60-SUM($K60:CI60))) -> 0 | CK60: =IF($I60 >0, MIN(CJ60,$I60-SUM($K60:CJ60)), MAX(CJ60,$I60-SUM($K60:CJ60))) -> 0 | CL60: =IF($I60 >0, MIN(CK60,$I60-SUM($K60:CK60)), MAX(CK60,$I60-SUM($K60:CK60))) -> 0 | CM60: =IF($I60 >0, MIN(CL60,$I60-SUM($K60:CL60)), MAX(CL60,$I60-SUM($K60:CL60))) -> 0 | CN60: =IF($I60 >0, MIN(CM60,$I60-SUM($K60:CM60)), MAX(CM60,$I60-SUM($K60:CM60))) -> 0 | CO60: =IF($I60 >0, MIN(CN60,$I60-SUM($K60:CN60)), MAX(CN60,$I60-SUM($K60:CN60))) -> 0 | CP60: =IF($I60 >0, MIN(CO60,$I60-SUM($K60:CO60)), MAX(CO60,$I60-SUM($K60:CO60))) -> 0 | CQ60: =IF($I60 >0, MIN(CP60,$I60-SUM($K60:CP60)), MAX(CP60,$I60-SUM($K60:CP60))) -> 0 | CR60: =IF($I60 >0, MIN(CQ60,$I60-SUM($K60:CQ60)), MAX(CQ60,$I60-SUM($K60:CQ60))) -> 0 | CS60: =IF($I60 >0, MIN(CR60,$I60-SUM($K60:CR60)), MAX(CR60,$I60-SUM($K60:CR60))) -> 0 | CT60: =IF($I60 >0, MIN(CS60,$I60-SUM($K60:CS60)), MAX(CS60,$I60-SUM($K60:CS60))) -> 0 | CU60: =IF($I60 >0, MIN(CT60,$I60-SUM($K60:CT60)), MAX(CT60,$I60-SUM($K60:CT60))) -> 0 | CV60: =IF($I60 >0, MIN(CU60,$I60-SUM($K60:CU60)), MAX(CU60,$I60-SUM($K60:CU60))) -> 0 | CW60: =IF($I60 >0, MIN(CV60,$I60-SUM($K60:CV60)), MAX(CV60,$I60-SUM($K60:CV60))) -> 0
E61: 2000-03-31 | G61: £m 23/24 prices | I61: 35.63357741 | J61: > | U61: =$I61 / T$46 -> 1.78167887 | V61: =IF($I61 >0, MIN(U61,$I61-SUM($K61:U61)), MAX(U61,$I61-SUM($K61:U61))) -> 1.78167887 | W61: =IF($I61 >0, MIN(V61,$I61-SUM($K61:V61)), MAX(V61,$I61-SUM($K61:V61))) -> 1.78167887 | X61: =IF($I61 >0, MIN(W61,$I61-SUM($K61:W61)), MAX(W61,$I61-SUM($K61:W61))) -> 1.78167887 | Y61: =IF($I61 >0, MIN(X61,$I61-SUM($K61:X61)), MAX(X61,$I61-SUM($K61:X61))) -> 1.78167887 | Z61: =IF($I61 >0, MIN(Y61,$I61-SUM($K61:Y61)), MAX(Y61,$I61-SUM($K61:Y61))) -> 1.78167887 | AA61: =IF($I61 >0, MIN(Z61,$I61-SUM($K61:Z61)), MAX(Z61,$I61-SUM($K61:Z61))) -> 1.78167887 | AB61: =IF($I61 >0, MIN(AA61,$I61-SUM($K61:AA61)), MAX(AA61,$I61-SUM($K61:AA61))) -> 1.78167887 | AC61: =IF($I61 >0, MIN(AB61,$I61-SUM($K61:AB61)), MAX(AB61,$I61-SUM($K61:AB61))) -> 1.78167887 | AD61: =IF($I61 >0, MIN(AC61,$I61-SUM($K61:AC61)), MAX(AC61,$I61-SUM($K61:AC61))) -> 1.78167887 | AE61: =IF($I61 >0, MIN(AD61,$I61-SUM($K61:AD61)), MAX(AD61,$I61-SUM($K61:AD61))) -> 1.78167887 | AF61: =IF($I61 >0, MIN(AE61,$I61-SUM($K61:AE61)), MAX(AE61,$I61-SUM($K61:AE61))) -> 1.78167887 | AG61: =IF($I61 >0, MIN(AF61,$I61-SUM($K61:AF61)), MAX(AF61,$I61-SUM($K61:AF61))) -> 1.78167887 | AH61: =IF($I61 >0, MIN(AG61,$I61-SUM($K61:AG61)), MAX(AG61,$I61-SUM($K61:AG61))) -> 1.78167887 | AI61: =IF($I61 >0, MIN(AH61,$I61-SUM($K61:AH61)), MAX(AH61,$I61-SUM($K61:AH61))) -> 1.78167887 | AJ61: =IF($I61 >0, MIN(AI61,$I61-SUM($K61:AI61)), MAX(AI61,$I61-SUM($K61:AI61))) -> 1.78167887 | AK61: =IF($I61 >0, MIN(AJ61,$I61-SUM($K61:AJ61)), MAX(AJ61,$I61-SUM($K61:AJ61))) -> 1.78167887 | AL61: =IF($I61 >0, MIN(AK61,$I61-SUM($K61:AK61)), MAX(AK61,$I61-SUM($K61:AK61))) -> 1.78167887 | AM61: =IF($I61 >0, MIN(AL61,$I61-SUM($K61:AL61)), MAX(AL61,$I61-SUM($K61:AL61))) -> 1.78167887 | AN61: =IF($I61 >0, MIN(AM61,$I61-SUM($K61:AM61)), MAX(AM61,$I61-SUM($K61:AM61))) -> 1.78167887 | AO61: =IF($I61 >0, MIN(AN61,$I61-SUM($K61:AN61)), MAX(AN61,$I61-SUM($K61:AN61))) -> 0 | AP61: =IF($I61 >0, MIN(AO61,$I61-SUM($K61:AO61)), MAX(AO61,$I61-SUM($K61:AO61))) -> 0 | AQ61: =IF($I61 >0, MIN(AP61,$I61-SUM($K61:AP61)), MAX(AP61,$I61-SUM($K61:AP61))) -> 0 | AR61: =IF($I61 >0, MIN(AQ61,$I61-SUM($K61:AQ61)), MAX(AQ61,$I61-SUM($K61:AQ61))) -> 0 | AS61: =IF($I61 >0, MIN(AR61,$I61-SUM($K61:AR61)), MAX(AR61,$I61-SUM($K61:AR61))) -> 0 | AT61: =IF($I61 >0, MIN(AS61,$I61-SUM($K61:AS61)), MAX(AS61,$I61-SUM($K61:AS61))) -> 0 | AU61: =IF($I61 >0, MIN(AT61,$I61-SUM($K61:AT61)), MAX(AT61,$I61-SUM($K61:AT61))) -> 0 | AV61: =IF($I61 >0, MIN(AU61,$I61-SUM($K61:AU61)), MAX(AU61,$I61-SUM($K61:AU61))) -> 0 | AW61: =IF($I61 >0, MIN(AV61,$I61-SUM($K61:AV61)), MAX(AV61,$I61-SUM($K61:AV61))) -> 0 | AX61: =IF($I61 >0, MIN(AW61,$I61-SUM($K61:AW61)), MAX(AW61,$I61-SUM($K61:AW61))) -> 0 | AY61: =IF($I61 >0, MIN(AX61,$I61-SUM($K61:AX61)), MAX(AX61,$I61-SUM($K61:AX61))) -> 0 | AZ61: =IF($I61 >0, MIN(AY61,$I61-SUM($K61:AY61)), MAX(AY61,$I61-SUM($K61:AY61))) -> 0 | BA61: =IF($I61 >0, MIN(AZ61,$I61-SUM($K61:AZ61)), MAX(AZ61,$I61-SUM($K61:AZ61))) -> 0 | BB61: =IF($I61 >0, MIN(BA61,$I61-SUM($K61:BA61)), MAX(BA61,$I61-SUM($K61:BA61))) -> 0 | BC61: =IF($I61 >0, MIN(BB61,$I61-SUM($K61:BB61)), MAX(BB61,$I61-SUM($K61:BB61))) -> 0 | BD61: =IF($I61 >0, MIN(BC61,$I61-SUM($K61:BC61)), MAX(BC61,$I61-SUM($K61:BC61))) -> 0 | BE61: =IF($I61 >0, MIN(BD61,$I61-SUM($K61:BD61)), MAX(BD61,$I61-SUM($K61:BD61))) -> 0 | BF61: =IF($I61 >0, MIN(BE61,$I61-SUM($K61:BE61)), MAX(BE61,$I61-SUM($K61:BE61))) -> 0 | BG61: =IF($I61 >0, MIN(BF61,$I61-SUM($K61:BF61)), MAX(BF61,$I61-SUM($K61:BF61))) -> 0 | BH61: =IF($I61 >0, MIN(BG61,$I61-SUM($K61:BG61)), MAX(BG61,$I61-SUM($K61:BG61))) -> 0 | BI61: =IF($I61 >0, MIN(BH61,$I61-SUM($K61:BH61)), MAX(BH61,$I61-SUM($K61:BH61))) -> 0 | BJ61: =IF($I61 >0, MIN(BI61,$I61-SUM($K61:BI61)), MAX(BI61,$I61-SUM($K61:BI61))) -> 0 | BK61: =IF($I61 >0, MIN(BJ61,$I61-SUM($K61:BJ61)), MAX(BJ61,$I61-SUM($K61:BJ61))) -> 0 | BL61: =IF($I61 >0, MIN(BK61,$I61-SUM($K61:BK61)), MAX(BK61,$I61-SUM($K61:BK61))) -> 0 | BM61: =IF($I61 >0, MIN(BL61,$I61-SUM($K61:BL61)), MAX(BL61,$I61-SUM($K61:BL61))) -> 0 | BN61: =IF($I61 >0, MIN(BM61,$I61-SUM($K61:BM61)), MAX(BM61,$I61-SUM($K61:BM61))) -> 0 | BO61: =IF($I61 >0, MIN(BN61,$I61-SUM($K61:BN61)), MAX(BN61,$I61-SUM($K61:BN61))) -> 0 | BP61: =IF($I61 >0, MIN(BO61,$I61-SUM($K61:BO61)), MAX(BO61,$I61-SUM($K61:BO61))) -> 0 | BQ61: =IF($I61 >0, MIN(BP61,$I61-SUM($K61:BP61)), MAX(BP61,$I61-SUM($K61:BP61))) -> 0 | BR61: =IF($I61 >0, MIN(BQ61,$I61-SUM($K61:BQ61)), MAX(BQ61,$I61-SUM($K61:BQ61))) -> 0 | BS61: =IF($I61 >0, MIN(BR61,$I61-SUM($K61:BR61)), MAX(BR61,$I61-SUM($K61:BR61))) -> 0 | BT61: =IF($I61 >0, MIN(BS61,$I61-SUM($K61:BS61)), MAX(BS61,$I61-SUM($K61:BS61))) -> 0 | BU61: =IF($I61 >0, MIN(BT61,$I61-SUM($K61:BT61)), MAX(BT61,$I61-SUM($K61:BT61))) -> 0 | BV61: =IF($I61 >0, MIN(BU61,$I61-SUM($K61:BU61)), MAX(BU61,$I61-SUM($K61:BU61))) -> 0 | BW61: =IF($I61 >0, MIN(BV61,$I61-SUM($K61:BV61)), MAX(BV61,$I61-SUM($K61:BV61))) -> 0 | BX61: =IF($I61 >0, MIN(BW61,$I61-SUM($K61:BW61)), MAX(BW61,$I61-SUM($K61:BW61))) -> 0 | BY61: =IF($I61 >0, MIN(BX61,$I61-SUM($K61:BX61)), MAX(BX61,$I61-SUM($K61:BX61))) -> 0 | BZ61: =IF($I61 >0, MIN(BY61,$I61-SUM($K61:BY61)), MAX(BY61,$I61-SUM($K61:BY61))) -> 0 | CA61: =IF($I61 >0, MIN(BZ61,$I61-SUM($K61:BZ61)), MAX(BZ61,$I61-SUM($K61:BZ61))) -> 0 | CB61: =IF($I61 >0, MIN(CA61,$I61-SUM($K61:CA61)), MAX(CA61,$I61-SUM($K61:CA61))) -> 0 | CC61: =IF($I61 >0, MIN(CB61,$I61-SUM($K61:CB61)), MAX(CB61,$I61-SUM($K61:CB61))) -> 0 | CD61: =IF($I61 >0, MIN(CC61,$I61-SUM($K61:CC61)), MAX(CC61,$I61-SUM($K61:CC61))) -> 0 | CE61: =IF($I61 >0, MIN(CD61,$I61-SUM($K61:CD61)), MAX(CD61,$I61-SUM($K61:CD61))) -> 0 | CF61: =IF($I61 >0, MIN(CE61,$I61-SUM($K61:CE61)), MAX(CE61,$I61-SUM($K61:CE61))) -> 0 | CG61: =IF($I61 >0, MIN(CF61,$I61-SUM($K61:CF61)), MAX(CF61,$I61-SUM($K61:CF61))) -> 0 | CH61: =IF($I61 >0, MIN(CG61,$I61-SUM($K61:CG61)), MAX(CG61,$I61-SUM($K61:CG61))) -> 0 | CI61: =IF($I61 >0, MIN(CH61,$I61-SUM($K61:CH61)), MAX(CH61,$I61-SUM($K61:CH61))) -> 0 | CJ61: =IF($I61 >0, MIN(CI61,$I61-SUM($K61:CI61)), MAX(CI61,$I61-SUM($K61:CI61))) -> 0 | CK61: =IF($I61 >0, MIN(CJ61,$I61-SUM($K61:CJ61)), MAX(CJ61,$I61-SUM($K61:CJ61))) -> 0 | CL61: =IF($I61 >0, MIN(CK61,$I61-SUM($K61:CK61)), MAX(CK61,$I61-SUM($K61:CK61))) -> 0 | CM61: =IF($I61 >0, MIN(CL61,$I61-SUM($K61:CL61)), MAX(CL61,$I61-SUM($K61:CL61))) -> 0 | CN61: =IF($I61 >0, MIN(CM61,$I61-SUM($K61:CM61)), MAX(CM61,$I61-SUM($K61:CM61))) -> 0 | CO61: =IF($I61 >0, MIN(CN61,$I61-SUM($K61:CN61)), MAX(CN61,$I61-SUM($K61:CN61))) -> 0 | CP61: =IF($I61 >0, MIN(CO61,$I61-SUM($K61:CO61)), MAX(CO61,$I61-SUM($K61:CO61))) -> 0 | CQ61: =IF($I61 >0, MIN(CP61,$I61-SUM($K61:CP61)), MAX(CP61,$I61-SUM($K61:CP61))) -> 0 | CR61: =IF($I61 >0, MIN(CQ61,$I61-SUM($K61:CQ61)), MAX(CQ61,$I61-SUM($K61:CQ61))) -> 0 | CS61: =IF($I61 >0, MIN(CR61,$I61-SUM($K61:CR61)), MAX(CR61,$I61-SUM($K61:CR61))) -> 0 | CT61: =IF($I61 >0, MIN(CS61,$I61-SUM($K61:CS61)), MAX(CS61,$I61-SUM($K61:CS61))) -> 0 | CU61: =IF($I61 >0, MIN(CT61,$I61-SUM($K61:CT61)), MAX(CT61,$I61-SUM($K61:CT61))) -> 0 | CV61: =IF($I61 >0, MIN(CU61,$I61-SUM($K61:CU61)), MAX(CU61,$I61-SUM($K61:CU61))) -> 0 | CW61: =IF($I61 >0, MIN(CV61,$I61-SUM($K61:CV61)), MAX(CV61,$I61-SUM($K61:CV61))) -> 0
E62: 2001-03-31 | G62: £m 23/24 prices | I62: 18.53495702 | J62: > | V62: =$I62 / U$46 -> 0.9267478509 | W62: =IF($I62 >0, MIN(V62,$I62-SUM($K62:V62)), MAX(V62,$I62-SUM($K62:V62))) -> 0.9267478509 | X62: =IF($I62 >0, MIN(W62,$I62-SUM($K62:W62)), MAX(W62,$I62-SUM($K62:W62))) -> 0.9267478509 | Y62: =IF($I62 >0, MIN(X62,$I62-SUM($K62:X62)), MAX(X62,$I62-SUM($K62:X62))) -> 0.9267478509 | Z62: =IF($I62 >0, MIN(Y62,$I62-SUM($K62:Y62)), MAX(Y62,$I62-SUM($K62:Y62))) -> 0.9267478509 | AA62: =IF($I62 >0, MIN(Z62,$I62-SUM($K62:Z62)), MAX(Z62,$I62-SUM($K62:Z62))) -> 0.9267478509 | AB62: =IF($I62 >0, MIN(AA62,$I62-SUM($K62:AA62)), MAX(AA62,$I62-SUM($K62:AA62))) -> 0.9267478509 | AC62: =IF($I62 >0, MIN(AB62,$I62-SUM($K62:AB62)), MAX(AB62,$I62-SUM($K62:AB62))) -> 0.9267478509 | AD62: =IF($I62 >0, MIN(AC62,$I62-SUM($K62:AC62)), MAX(AC62,$I62-SUM($K62:AC62))) -> 0.9267478509 | AE62: =IF($I62 >0, MIN(AD62,$I62-SUM($K62:AD62)), MAX(AD62,$I62-SUM($K62:AD62))) -> 0.9267478509 | AF62: =IF($I62 >0, MIN(AE62,$I62-SUM($K62:AE62)), MAX(AE62,$I62-SUM($K62:AE62))) -> 0.9267478509 | AG62: =IF($I62 >0, MIN(AF62,$I62-SUM($K62:AF62)), MAX(AF62,$I62-SUM($K62:AF62))) -> 0.9267478509 | AH62: =IF($I62 >0, MIN(AG62,$I62-SUM($K62:AG62)), MAX(AG62,$I62-SUM($K62:AG62))) -> 0.9267478509 | AI62: =IF($I62 >0, MIN(AH62,$I62-SUM($K62:AH62)), MAX(AH62,$I62-SUM($K62:AH62))) -> 0.9267478509 | AJ62: =IF($I62 >0, MIN(AI62,$I62-SUM($K62:AI62)), MAX(AI62,$I62-SUM($K62:AI62))) -> 0.9267478509 | AK62: =IF($I62 >0, MIN(AJ62,$I62-SUM($K62:AJ62)), MAX(AJ62,$I62-SUM($K62:AJ62))) -> 0.9267478509 | AL62: =IF($I62 >0, MIN(AK62,$I62-SUM($K62:AK62)), MAX(AK62,$I62-SUM($K62:AK62))) -> 0.9267478509 | AM62: =IF($I62 >0, MIN(AL62,$I62-SUM($K62:AL62)), MAX(AL62,$I62-SUM($K62:AL62))) -> 0.9267478509 | AN62: =IF($I62 >0, MIN(AM62,$I62-SUM($K62:AM62)), MAX(AM62,$I62-SUM($K62:AM62))) -> 0.9267478509 | AO62: =IF($I62 >0, MIN(AN62,$I62-SUM($K62:AN62)), MAX(AN62,$I62-SUM($K62:AN62))) -> 0.9267478509 | AP62: =IF($I62 >0, MIN(AO62,$I62-SUM($K62:AO62)), MAX(AO62,$I62-SUM($K62:AO62))) -> 0 | AQ62: =IF($I62 >0, MIN(AP62,$I62-SUM($K62:AP62)), MAX(AP62,$I62-SUM($K62:AP62))) -> 0 | AR62: =IF($I62 >0, MIN(AQ62,$I62-SUM($K62:AQ62)), MAX(AQ62,$I62-SUM($K62:AQ62))) -> 0 | AS62: =IF($I62 >0, MIN(AR62,$I62-SUM($K62:AR62)), MAX(AR62,$I62-SUM($K62:AR62))) -> 0 | AT62: =IF($I62 >0, MIN(AS62,$I62-SUM($K62:AS62)), MAX(AS62,$I62-SUM($K62:AS62))) -> 0 | AU62: =IF($I62 >0, MIN(AT62,$I62-SUM($K62:AT62)), MAX(AT62,$I62-SUM($K62:AT62))) -> 0 | AV62: =IF($I62 >0, MIN(AU62,$I62-SUM($K62:AU62)), MAX(AU62,$I62-SUM($K62:AU62))) -> 0 | AW62: =IF($I62 >0, MIN(AV62,$I62-SUM($K62:AV62)), MAX(AV62,$I62-SUM($K62:AV62))) -> 0 | AX62: =IF($I62 >0, MIN(AW62,$I62-SUM($K62:AW62)), MAX(AW62,$I62-SUM($K62:AW62))) -> 0 | AY62: =IF($I62 >0, MIN(AX62,$I62-SUM($K62:AX62)), MAX(AX62,$I62-SUM($K62:AX62))) -> 0 | AZ62: =IF($I62 >0, MIN(AY62,$I62-SUM($K62:AY62)), MAX(AY62,$I62-SUM($K62:AY62))) -> 0 | BA62: =IF($I62 >0, MIN(AZ62,$I62-SUM($K62:AZ62)), MAX(AZ62,$I62-SUM($K62:AZ62))) -> 0 | BB62: =IF($I62 >0, MIN(BA62,$I62-SUM($K62:BA62)), MAX(BA62,$I62-SUM($K62:BA62))) -> 0 | BC62: =IF($I62 >0, MIN(BB62,$I62-SUM($K62:BB62)), MAX(BB62,$I62-SUM($K62:BB62))) -> 0 | BD62: =IF($I62 >0, MIN(BC62,$I62-SUM($K62:BC62)), MAX(BC62,$I62-SUM($K62:BC62))) -> 0 | BE62: =IF($I62 >0, MIN(BD62,$I62-SUM($K62:BD62)), MAX(BD62,$I62-SUM($K62:BD62))) -> 0 | BF62: =IF($I62 >0, MIN(BE62,$I62-SUM($K62:BE62)), MAX(BE62,$I62-SUM($K62:BE62))) -> 0 | BG62: =IF($I62 >0, MIN(BF62,$I62-SUM($K62:BF62)), MAX(BF62,$I62-SUM($K62:BF62))) -> 0 | BH62: =IF($I62 >0, MIN(BG62,$I62-SUM($K62:BG62)), MAX(BG62,$I62-SUM($K62:BG62))) -> 0 | BI62: =IF($I62 >0, MIN(BH62,$I62-SUM($K62:BH62)), MAX(BH62,$I62-SUM($K62:BH62))) -> 0 | BJ62: =IF($I62 >0, MIN(BI62,$I62-SUM($K62:BI62)), MAX(BI62,$I62-SUM($K62:BI62))) -> 0 | BK62: =IF($I62 >0, MIN(BJ62,$I62-SUM($K62:BJ62)), MAX(BJ62,$I62-SUM($K62:BJ62))) -> 0 | BL62: =IF($I62 >0, MIN(BK62,$I62-SUM($K62:BK62)), MAX(BK62,$I62-SUM($K62:BK62))) -> 0 | BM62: =IF($I62 >0, MIN(BL62,$I62-SUM($K62:BL62)), MAX(BL62,$I62-SUM($K62:BL62))) -> 0 | BN62: =IF($I62 >0, MIN(BM62,$I62-SUM($K62:BM62)), MAX(BM62,$I62-SUM($K62:BM62))) -> 0 | BO62: =IF($I62 >0, MIN(BN62,$I62-SUM($K62:BN62)), MAX(BN62,$I62-SUM($K62:BN62))) -> 0 | BP62: =IF($I62 >0, MIN(BO62,$I62-SUM($K62:BO62)), MAX(BO62,$I62-SUM($K62:BO62))) -> 0 | BQ62: =IF($I62 >0, MIN(BP62,$I62-SUM($K62:BP62)), MAX(BP62,$I62-SUM($K62:BP62))) -> 0 | BR62: =IF($I62 >0, MIN(BQ62,$I62-SUM($K62:BQ62)), MAX(BQ62,$I62-SUM($K62:BQ62))) -> 0 | BS62: =IF($I62 >0, MIN(BR62,$I62-SUM($K62:BR62)), MAX(BR62,$I62-SUM($K62:BR62))) -> 0 | BT62: =IF($I62 >0, MIN(BS62,$I62-SUM($K62:BS62)), MAX(BS62,$I62-SUM($K62:BS62))) -> 0 | BU62: =IF($I62 >0, MIN(BT62,$I62-SUM($K62:BT62)), MAX(BT62,$I62-SUM($K62:BT62))) -> 0 | BV62: =IF($I62 >0, MIN(BU62,$I62-SUM($K62:BU62)), MAX(BU62,$I62-SUM($K62:BU62))) -> 0 | BW62: =IF($I62 >0, MIN(BV62,$I62-SUM($K62:BV62)), MAX(BV62,$I62-SUM($K62:BV62))) -> 0 | BX62: =IF($I62 >0, MIN(BW62,$I62-SUM($K62:BW62)), MAX(BW62,$I62-SUM($K62:BW62))) -> 0 | BY62: =IF($I62 >0, MIN(BX62,$I62-SUM($K62:BX62)), MAX(BX62,$I62-SUM($K62:BX62))) -> 0 | BZ62: =IF($I62 >0, MIN(BY62,$I62-SUM($K62:BY62)), MAX(BY62,$I62-SUM($K62:BY62))) -> 0 | CA62: =IF($I62 >0, MIN(BZ62,$I62-SUM($K62:BZ62)), MAX(BZ62,$I62-SUM($K62:BZ62))) -> 0 | CB62: =IF($I62 >0, MIN(CA62,$I62-SUM($K62:CA62)), MAX(CA62,$I62-SUM($K62:CA62))) -> 0 | CC62: =IF($I62 >0, MIN(CB62,$I62-SUM($K62:CB62)), MAX(CB62,$I62-SUM($K62:CB62))) -> 0 | CD62: =IF($I62 >0, MIN(CC62,$I62-SUM($K62:CC62)), MAX(CC62,$I62-SUM($K62:CC62))) -> 0 | CE62: =IF($I62 >0, MIN(CD62,$I62-SUM($K62:CD62)), MAX(CD62,$I62-SUM($K62:CD62))) -> 0 | CF62: =IF($I62 >0, MIN(CE62,$I62-SUM($K62:CE62)), MAX(CE62,$I62-SUM($K62:CE62))) -> 0 | CG62: =IF($I62 >0, MIN(CF62,$I62-SUM($K62:CF62)), MAX(CF62,$I62-SUM($K62:CF62))) -> 0 | CH62: =IF($I62 >0, MIN(CG62,$I62-SUM($K62:CG62)), MAX(CG62,$I62-SUM($K62:CG62))) -> 0 | CI62: =IF($I62 >0, MIN(CH62,$I62-SUM($K62:CH62)), MAX(CH62,$I62-SUM($K62:CH62))) -> 0 | CJ62: =IF($I62 >0, MIN(CI62,$I62-SUM($K62:CI62)), MAX(CI62,$I62-SUM($K62:CI62))) -> 0 | CK62: =IF($I62 >0, MIN(CJ62,$I62-SUM($K62:CJ62)), MAX(CJ62,$I62-SUM($K62:CJ62))) -> 0 | CL62: =IF($I62 >0, MIN(CK62,$I62-SUM($K62:CK62)), MAX(CK62,$I62-SUM($K62:CK62))) -> 0 | CM62: =IF($I62 >0, MIN(CL62,$I62-SUM($K62:CL62)), MAX(CL62,$I62-SUM($K62:CL62))) -> 0 | CN62: =IF($I62 >0, MIN(CM62,$I62-SUM($K62:CM62)), MAX(CM62,$I62-SUM($K62:CM62))) -> 0 | CO62: =IF($I62 >0, MIN(CN62,$I62-SUM($K62:CN62)), MAX(CN62,$I62-SUM($K62:CN62))) -> 0 | CP62: =IF($I62 >0, MIN(CO62,$I62-SUM($K62:CO62)), MAX(CO62,$I62-SUM($K62:CO62))) -> 0 | CQ62: =IF($I62 >0, MIN(CP62,$I62-SUM($K62:CP62)), MAX(CP62,$I62-SUM($K62:CP62))) -> 0 | CR62: =IF($I62 >0, MIN(CQ62,$I62-SUM($K62:CQ62)), MAX(CQ62,$I62-SUM($K62:CQ62))) -> 0 | CS62: =IF($I62 >0, MIN(CR62,$I62-SUM($K62:CR62)), MAX(CR62,$I62-SUM($K62:CR62))) -> 0 | CT62: =IF($I62 >0, MIN(CS62,$I62-SUM($K62:CS62)), MAX(CS62,$I62-SUM($K62:CS62))) -> 0 | CU62: =IF($I62 >0, MIN(CT62,$I62-SUM($K62:CT62)), MAX(CT62,$I62-SUM($K62:CT62))) -> 0 | CV62: =IF($I62 >0, MIN(CU62,$I62-SUM($K62:CU62)), MAX(CU62,$I62-SUM($K62:CU62))) -> 0 | CW62: =IF($I62 >0, MIN(CV62,$I62-SUM($K62:CV62)), MAX(CV62,$I62-SUM($K62:CV62))) -> 0
... 69 more rows

Sheet Return&RAV
A1: Return & RAV
B2: =UserInterface!G17 -> SHET
E3: Parameter | G3: Units | I3: Constant | AP3: Annual values
E4: PCFM year ending | I4: =UserInterface!$G$10 -> 2025-03-31 | K4: 1991-03-31 | L4: 1992-03-31 | M4: 1993-03-31 | N4: 1994-03-31 | O4: 1995-03-31 | P4: 1996-03-31 | Q4: 1997-03-31 | R4: 1998-03-31 | S4: 1999-03-31 | T4: 2000-03-31 | U4: 2001-03-31 | V4: 2002-03-31 | W4: 2003-03-31 | X4: 2004-03-31 | Y4: 2005-03-31 | Z4: 2006-03-31 | AA4: 2007-03-31 | AB4: 2008-03-31 | AC4: 2009-03-31 | AD4: 2010-03-31 | AE4: 2011-03-31 | AF4: 2012-03-31 | AG4: 2013-03-31 | AH4: 2014-03-31 | AI4: 2015-03-31 | AJ4: 2016-03-31 | AK4: 2017-03-31 | AL4: 2018-03-31 | AM4: 2019-03-31 | AN4: 2020-03-31 | AO4: 2021-03-31 | AP4: 2022-03-31 | AQ4: 2023-03-31 | AR4: 2024-03-31 | AS4: 2025-03-31 | AT4: 2026-03-31 | AU4: 2027-03-31 | AV4: 2028-03-31 | AW4: 2029-03-31 | AX4: 2030-03-31 | AY4: =EOMONTH(AX4,12) -> 2031-03-31
AP5: 2 | AQ5: 2 | AR5: 2 | AS5: 2 | AT5: 2 | AU5: 3 | AV5: 3 | AW5: 3 | AX5: 3 | AY5: 3
C7: Price control timeline
E9: Pre-RIIO-2 year | G9: flag | K9: =Scenarios!K$119 -> 1 | L9: =Scenarios!L$119 -> 1 | M9: =Scenarios!M$119 -> 1 | N9: =Scenarios!N$119 -> 1 | O9: =Scenarios!O$119 -> 1 | P9: =Scenarios!P$119 -> 1 | Q9: =Scenarios!Q$119 -> 1 | R9: =Scenarios!R$119 -> 1 | S9: =Scenarios!S$119 -> 1 | T9: =Scenarios!T$119 -> 1 | U9: =Scenarios!U$119 -> 1 | V9: =Scenarios!V$119 -> 1 | W9: =Scenarios!W$119 -> 1 | X9: =Scenarios!X$119 -> 1 | Y9: =Scenarios!Y$119 -> 1 | Z9: =Scenarios!Z$119 -> 1 | AA9: =Scenarios!AA$119 -> 1 | AB9: =Scenarios!AB$119 -> 1 | AC9: =Scenarios!AC$119 -> 1 | AD9: =Scenarios!AD$119 -> 1 | AE9: =Scenarios!AE$119 -> 1 | AF9: =Scenarios!AF$119 -> 1 | AG9: =Scenarios!AG$119 -> 1 | AH9: =Scenarios!AH$119 -> 1 | AI9: =Scenarios!AI$119 -> 1 | AJ9: =Scenarios!AJ$119 -> 1 | AK9: =Scenarios!AK$119 -> 1 | AL9: =Scenarios!AL$119 -> 1 | AM9: =Scenarios!AM$119 -> 1 | AN9: =Scenarios!AN$119 -> 1 | AO9: =Scenarios!AO$119 -> 1 | AP9: =Scenarios!AP$119 -> 0 | AQ9: =Scenarios!AQ$119 -> 0 | AR9: =Scenarios!AR$119 -> 0 | AS9: =Scenarios!AS$119 -> 0 | AT9: =Scenarios!AT$119 -> 0 | AU9: =Scenarios!AU$119 -> 0 | AV9: =Scenarios!AV$119 -> 0 | AW9: =Scenarios!AW$119 -> 0 | AX9: =Scenarios!AX$119 -> 0 | AY9: =Scenarios!AY$119 -> 0
E10: RIIO-2 year | G10: flag | K10: =Scenarios!K$120 -> 0 | L10: =Scenarios!L$120 -> 0 | M10: =Scenarios!M$120 -> 0 | N10: =Scenarios!N$120 -> 0 | O10: =Scenarios!O$120 -> 0 | P10: =Scenarios!P$120 -> 0 | Q10: =Scenarios!Q$120 -> 0 | R10: =Scenarios!R$120 -> 0 | S10: =Scenarios!S$120 -> 0 | T10: =Scenarios!T$120 -> 0 | U10: =Scenarios!U$120 -> 0 | V10: =Scenarios!V$120 -> 0 | W10: =Scenarios!W$120 -> 0 | X10: =Scenarios!X$120 -> 0 | Y10: =Scenarios!Y$120 -> 0 | Z10: =Scenarios!Z$120 -> 0 | AA10: =Scenarios!AA$120 -> 0 | AB10: =Scenarios!AB$120 -> 0 | AC10: =Scenarios!AC$120 -> 0 | AD10: =Scenarios!AD$120 -> 0 | AE10: =Scenarios!AE$120 -> 0 | AF10: =Scenarios!AF$120 -> 0 | AG10: =Scenarios!AG$120 -> 0 | AH10: =Scenarios!AH$120 -> 0 | AI10: =Scenarios!AI$120 -> 0 | AJ10: =Scenarios!AJ$120 -> 0 | AK10: =Scenarios!AK$120 -> 0 | AL10: =Scenarios!AL$120 -> 0 | AM10: =Scenarios!AM$120 -> 0 | AN10: =Scenarios!AN$120 -> 0 | AO10: =Scenarios!AO$120 -> 0 | AP10: =Scenarios!AP$120 -> 1 | AQ10: =Scenarios!AQ$120 -> 1 | AR10: =Scenarios!AR$120 -> 1 | AS10: =Scenarios!AS$120 -> 1 | AT10: =Scenarios!AT$120 -> 1 | AU10: =Scenarios!AU$120 -> 0 | AV10: =Scenarios!AV$120 -> 0 | AW10: =Scenarios!AW$120 -> 0 | AX10: =Scenarios!AX$120 -> 0 | AY10: =Scenarios!AY$120 -> 0
E11: RIIO-3 year | G11: flag | K11: =Scenarios!K$121 -> 0 | L11: =Scenarios!L$121 -> 0 | M11: =Scenarios!M$121 -> 0 | N11: =Scenarios!N$121 -> 0 | O11: =Scenarios!O$121 -> 0 | P11: =Scenarios!P$121 -> 0 | Q11: =Scenarios!Q$121 -> 0 | R11: =Scenarios!R$121 -> 0 | S11: =Scenarios!S$121 -> 0 | T11: =Scenarios!T$121 -> 0 | U11: =Scenarios!U$121 -> 0 | V11: =Scenarios!V$121 -> 0 | W11: =Scenarios!W$121 -> 0 | X11: =Scenarios!X$121 -> 0 | Y11: =Scenarios!Y$121 -> 0 | Z11: =Scenarios!Z$121 -> 0 | AA11: =Scenarios!AA$121 -> 0 | AB11: =Scenarios!AB$121 -> 0 | AC11: =Scenarios!AC$121 -> 0 | AD11: =Scenarios!AD$121 -> 0 | AE11: =Scenarios!AE$121 -> 0 | AF11: =Scenarios!AF$121 -> 0 | AG11: =Scenarios!AG$121 -> 0 | AH11: =Scenarios!AH$121 -> 0 | AI11: =Scenarios!AI$121 -> 0 | AJ11: =Scenarios!AJ$121 -> 0 | AK11: =Scenarios!AK$121 -> 0 | AL11: =Scenarios!AL$121 -> 0 | AM11: =Scenarios!AM$121 -> 0 | AN11: =Scenarios!AN$121 -> 0 | AO11: =Scenarios!AO$121 -> 0 | AP11: =Scenarios!AP$121 -> 0 | AQ11: =Scenarios!AQ$121 -> 0 | AR11: =Scenarios!AR$121 -> 0 | AS11: =Scenarios!AS$121 -> 0 | AT11: =Scenarios!AT$121 -> 0 | AU11: =Scenarios!AU$121 -> 1 | AV11: =Scenarios!AV$121 -> 1 | AW11: =Scenarios!AW$121 -> 1 | AX11: =Scenarios!AX$121 -> 1 | AY11: =Scenarios!AY$121 -> 1
E13: Price control base year | G13: flag | I13: =Scenarios!F14 -> 2024 | K13: =IF(YEAR(K4)=$I13,1,0) -> 0 | L13: 0 | M13: 0 | N13: 0 | O13: 0 | P13: 0 | Q13: 0 | R13: 0 | S13: 0 | T13: 0 | U13: 0 | V13: 0 | W13: 0 | X13: 0 | Y13: 0 | Z13: 0 | AA13: 0 | AB13: 0 | AC13: 0 | AD13: 0 | AE13: 0 | AF13: 0 | AG13: 0 | AH13: 0 | AI13: 0 | AJ13: 0 | AK13: 0 | AL13: 0 | AM13: 0 | AN13: 0 | AO13: 0 | AP13: 0 | AQ13: 0 | AR13: 1 | AS13: 0 | AT13: 0 | AU13: 0 | AV13: 0 | AW13: 0 | AX13: 0 | AY13: 0
C15: New proposed cost of capital arrangements
D17: Inflation
E19: Combined RPI-CPIH price index (financial year average, FYE for 25/26) | G19: index value | I19: =Scenarios!F53 -> Option 1 | AG19: =IF($I$19="Option 1",IF(AND(AG10=1,AH11=1),'Annual Inflation'!AG51,MainInputs!AG544),MainInputs!AG544) -> 244.675 | AH19: =IF($I$19="Option 1",IF(AND(AH10=1,AI11=1),'Annual Inflation'!AH51,MainInputs!AH544),MainInputs!AH544) -> 251.7333333 | AI19: =IF($I$19="Option 1",IF(AND(AI10=1,AJ11=1),'Annual Inflation'!AI51,MainInputs!AI544),MainInputs!AI544) -> 256.6666667 | AJ19: =IF($I$19="Option 1",IF(AND(AJ10=1,AK11=1),'Annual Inflation'!AJ51,MainInputs!AJ544),MainInputs!AJ544) -> 259.4333333 | AK19: =IF($I$19="Option 1",IF(AND(AK10=1,AL11=1),'Annual Inflation'!AK51,MainInputs!AK544),MainInputs!AK544) -> 264.9916667 | AL19: =IF($I$19="Option 1",IF(AND(AL10=1,AM11=1),'Annual Inflation'!AL51,MainInputs!AL544),MainInputs!AL544) -> 274.9083333 | AM19: =IF($I$19="Option 1",IF(AND(AM10=1,AN11=1),'Annual Inflation'!AM51,MainInputs!AM544),MainInputs!AM544) -> 283.3083333 | AN19: =IF($I$19="Option 1",IF(AND(AN10=1,AO11=1),'Annual Inflation'!AN51,MainInputs!AN544),MainInputs!AN544) -> 290.6416667 | AO19: =IF($I$19="Option 1",IF(AND(AO10=1,AP11=1),'Annual Inflation'!AO51,MainInputs!AO544),MainInputs!AO544) -> 294.1666667 | AP19: =IF($I$19="Option 1",IF(AND(AP10=1,AQ11=1),'Annual Inflation'!AP51,MainInputs!AP544),MainInputs!AP544) -> 307.328214 | AQ19: =IF($I$19="Option 1",IF(AND(AQ10=1,AR11=1),'Annual Inflation'!AQ51,MainInputs!AQ544),MainInputs!AQ544) -> 334.2935818 | AR19: =IF($I$19="Option 1",IF(AND(AR10=1,AS11=1),'Annual Inflation'!AR51,MainInputs!AR544),MainInputs!AR544) -> 352.8365174 | AS19: =IF($I$19="Option 1",IF(AND(AS10=1,AT11=1),'Annual Inflation'!AS51,MainInputs!AS544),MainInputs!AS544) -> 364.1796318 | AT19: =IF($I$19="Option 1",IF(AND(AT10=1,AU11=1),'Annual Inflation'!AT51,MainInputs!AT544),MainInputs!AT544) -> 381.9870893 | AU19: =IF($I$19="Option 1",IF(AND(AU10=1,AV11=1),'Annual Inflation'!AU51,MainInputs!AU544),MainInputs!AU544) -> 386.2085403 | AV19: =IF($I$19="Option 1",IF(AND(AV10=1,AW11=1),'Annual Inflation'!AV51,MainInputs!AV544),MainInputs!AV544) -> 394.3691688 | AW19: =IF($I$19="Option 1",IF(AND(AW10=1,AX11=1),'Annual Inflation'!AW51,MainInputs!AW544),MainInputs!AW544) -> 402.4954241 | AX19: =IF($I$19="Option 1",IF(AND(AX10=1,AY11=1),'Annual Inflation'!AX51,MainInputs!AX544),MainInputs!AX544) -> 410.8810239 | AY19: =IF($I$19="Option 1",IF(AND(AY10=1,AZ11=1),'Annual Inflation'!AY51,MainInputs!AY544),MainInputs!AY544) -> 419.4575059
E20: Combined RPI-CPIH inflation (financial year average, FYE for 25/26) | G20: annual % | AH20: =AH19/AG19-1 -> 0.02884779129 | AI20: =AI19/AH19-1 -> 0.01959745763 | AJ20: 0.01077922078 | AK20: 0.02142490042 | AL20: 0.03742256046 | AM20: 0.03055563976 | AN20: 0.02588463688 | AO20: 0.01212833673 | AP20: 0.04474180389 | AQ20: 0.08774127008 | AR20: 0.05546901456 | AS20: 0.03214835729 | AT20: 0.04889745588 | AU20: 0.01105129256 | AV20: 0.02113010877 | AW20: 0.02060570636 | AX20: 0.02083402526 | AY20: 0.02087339517
E21: Combined RPI-CPIH real to nominal prices conversion factor (FYE for 25/26) | G21: scalar | AG21: =AG19/SUMPRODUCT($AG$13:$AY$13,$AG$19:$AY$19) -> 0.6934514654 | AH21: =AH19/SUMPRODUCT($AG$13:$AY$13,$AG$19:$AY$19) -> 0.7134560085 | AI21: 0.7274379324 | AJ21: 0.7352791465 | AK21: 0.751032429 | AL21: 0.7791379855 | AM21: 0.8029450451 | AN21: 0.823728986 | AO21: 0.8337194485 | AP21: 0.8710215606 | AQ21: 0.9474460986 | AR21: 1 | AS21: 1.032148357 | AT21: 1.082617786 | AU21: 1.094582112 | AV21: 1.117710751 | AW21: 1.140741971 | AX21: 1.164508218 | AY21: 1.188815458
E23: CPIH inflation (financial year average) | G23: annual % | AH23: =MainInputs!AH542 -> 0.02088006903 | AI23: =MainInputs!AI542 -> 0.01140973631 | AJ23: =MainInputs!AJ542 -> 0.004428845993 | AK23: =MainInputs!AK542 -> 0.01372712146 | AL23: =MainInputs!AL542 -> 0.02634386541 | AM23: =MainInputs!AM542 -> 0.0212697905 | AN23: =MainInputs!AN542 -> 0.01699029126 | AO23: =MainInputs!AO542 -> 0.008006774963 | AP23: =MainInputs!AP542 -> 0.03673718781 | AQ23: =MainInputs!AQ542 -> 0.08774127008 | AR23: =MainInputs!AR542 -> 0.05546901456 | AS23: =MainInputs!AS542 -> 0.03214835729 | AT23: =MainInputs!AT542 -> 0.03777928836 | AU23: =MainInputs!AU542 -> 0.02188311179 | AV23: =MainInputs!AV542 -> 0.02113010877 | AW23: =MainInputs!AW542 -> 0.02060570636 | AX23: =MainInputs!AX542 -> 0.02083402526 | AY23: =MainInputs!AY542 -> 0.02087339517
E24: Forecast debt inflation (CPIH long term) | G24: annual % | AH24: =MainInputs!AH547 -> 0 | AI24: =MainInputs!AI547 -> 0 | AJ24: =MainInputs!AJ547 -> 0 | AK24: =MainInputs!AK547 -> 0 | AL24: =MainInputs!AL547 -> 0 | AM24: =MainInputs!AM547 -> 0 | AN24: =MainInputs!AN547 -> 0 | AO24: =MainInputs!AO547 -> 0 | AP24: =MainInputs!AP547 -> 0.02 | AQ24: =MainInputs!AQ547 -> 0.02 | AR24: =MainInputs!AR547 -> 0.02 | AS24: =MainInputs!AS547 -> 0.016 | AT24: =MainInputs!AT547 -> 0.02 | AU24: =MainInputs!AU547 -> 0.0208 | AV24: =MainInputs!AV547 -> 0.0208 | AW24: =MainInputs!AW547 -> 0.0208 | AX24: =MainInputs!AX547 -> 0.0208 | AY24: =MainInputs!AY547 -> 0.0208
D26: Notional structure
E28: Equity | G28: % | AP28: =(1-MainInputs!AP527) -> 0.45 | AQ28: =(1-MainInputs!AQ527) -> 0.45 | AR28: =(1-MainInputs!AR527) -> 0.45 | AS28: =(1-MainInputs!AS527) -> 0.45 | AT28: =(1-MainInputs!AT527) -> 0.45 | AU28: =(1-MainInputs!AU527) -> 0.45 | AV28: =(1-MainInputs!AV527) -> 0.45 | AW28: =(1-MainInputs!AW527) -> 0.45 | AX28: =(1-MainInputs!AX527) -> 0.45 | AY28: =(1-MainInputs!AY527) -> 0.45
E29: Inflation linked debt | G29: % | AP29: =MainInputs!AP646*(1-AP28) -> 0.165 | AQ29: =MainInputs!AQ646*(1-AQ28) -> 0.165 | AR29: =MainInputs!AR646*(1-AR28) -> 0.165 | AS29: =MainInputs!AS646*(1-AS28) -> 0.165 | AT29: =MainInputs!AT646*(1-AT28) -> 0.165 | AU29: =MainInputs!AU646*(1-AU28) -> 0.055 | AV29: =MainInputs!AV646*(1-AV28) -> 0.055 | AW29: =MainInputs!AW646*(1-AW28) -> 0.055 | AX29: =MainInputs!AX646*(1-AX28) -> 0.055 | AY29: =MainInputs!AY646*(1-AY28) -> 0.055
E30: Fixed rate debt | G30: % | AP30: =1-(AP28+AP29) -> 0.385 | AQ30: 0.385 | AR30: 0.385 | AS30: 0.385 | AT30: 0.385 | AU30: =1-(AU28+AU29) -> 0.495 | AV30: 0.495 | AW30: 0.495 | AX30: 0.495 | AY30: 0.495
D32: Real WACC elements
E34: Equity | G34: annual real % | AP34: =MainInputs!AP526 -> 0.04243944978 | AQ34: =MainInputs!AQ526 -> 0.04261609333 | AR34: =MainInputs!AR526 -> 0.04909683911 | AS34: =MainInputs!AS526 -> 0.05201151822 | AT34: =MainInputs!AT526 -> 0.05093368533 | AU34: =MainInputs!AU526 -> 0.05704 | AV34: =MainInputs!AV526 -> 0.05704 | AW34: =MainInputs!AW526 -> 0.05704 | AX34: =MainInputs!AX526 -> 0.05704 | AY34: =MainInputs!AY526 -> 0.05704
E35: Inflation linked debt | G35: annual real % | AP35: =MainInputs!AP525 -> 0.01818470764 | AQ35: =MainInputs!AQ525 -> 0.01580603294 | AR35: =MainInputs!AR525 -> 0.01799516762 | AS35: =MainInputs!AS525 -> 0.02311577969 | AT35: =MainInputs!AT525 -> 0.02678225371 | AU35: =MainInputs!AU525 -> 0.03287672832 | AV35: =MainInputs!AV525 -> 0.0361385378 | AW35: =MainInputs!AW525 -> 0.03920893515 | AX35: =MainInputs!AX525 -> 0.04123138272 | AY35: =MainInputs!AY525 -> 0.04240378214
E37: Vanilla WACC (current approach) | G37: annual real % | AP37: =AP34*AP28 + AP35*(1-AP28) -> 0.0290993416 | AQ37: 0.02787056012 | AR37: 0.03199091979 | AS37: 0.03611886203 | AT37: 0.03765039794 | AU37: 0.04375020058 | AV37: 0.04554419579 | AW37: 0.04723291433 | AX37: 0.0483452605 | AY37: 0.04899008018
E38: Check: equal to MainInputs' CAPM calculated Vanilla allowed return on capital | AP38: =AP37-MainInputs!AP529 -> 0 | AQ38: =AQ37-MainInputs!AQ529 -> 0 | AR38: =AR37-MainInputs!AR529 -> 0 | AS38: =AS37-MainInputs!AS529 -> 0 | AT38: =AT37-MainInputs!AT529 -> 0 | AU38: =AU37-MainInputs!AU529 -> 0 | AV38: =AV37-MainInputs!AV529 -> 0 | AW38: =AW37-MainInputs!AW529 -> 0 | AX38: =AX37-MainInputs!AX529 -> 0 | AY38: =AY37-MainInputs!AY529 -> 0
D40: Nominal WACC elements
E42: Fixed rate debt | G42: nominal % | AP42: =(1+AP24)*(1+AP35)-1 -> 0.03854840179 | AQ42: 0.0361221536 | AR42: 0.03835507097 | AS42: 0.03948563217 | AT42: =(1+AT24)*(1+AT35)-1 -> 0.04731789879 | AU42: 0.05436056427 | AV42: 0.05769021938 | AW42: 0.060824481 | AX42: 0.06288899548 | AY42: 0.06408578081
E44: Nominal WACC | G44: nominal % | AP44: =((1+AP34)*(1+AP20)-1)*AP28 + ((1+AP35)*(1+AP20)-1)*AP29 + AP42*AP30 -> 0.06544428788 | AQ44: =((1+AQ34)*(1+AQ20)-1)*AQ28 + ((1+AQ35)*(1+AQ20)-1)*AQ29 + AQ42*AQ30 -> 0.09156461207 | AR44: 0.07533313426 | AS44: 0.06306755033 | AT44: 0.07696537547 | AU44: 0.06026924986 | AV44: 0.06746734935 | AW44: 0.06891183454 | AX44: 0.07016897519 | AY44: 0.07084819348
D46: RAV indexation
E48: Inflation applied to indexed portion of capital structure | G48: annual % | AP48: =AP20*AP10 + AP20*(AP28+AP29)*AP11 -> 0.04474180389 | AQ48: 0.08774127008 | AR48: 0.05546901456 | AS48: =AS20*AS10 + AS20*(AS28+AS29)*AS11 -> 0.03214835729 | AT48: 0.04889745588 | AU48: =AU20*AU10 + AU20*(AU28+AU29)*AU11 -> 0.005580902744 | AV48: 0.01067070493 | AW48: 0.01040588171 | AX48: 0.01052118276 | AY48: =AY20*AY10 + AY20*(AY28+AY29)*AY11 -> 0.01054106456
E49: Inflation index | G49: scalar | AP49: =(1+AP48)*AO49 + AP$13 -> 0 | AQ49: =(1+AQ48)*AP49 + AQ$13 -> 0 | AR49: =(1+AR48)*AQ49 + AR$13 -> 1 | AS49: =(1+AS48)*AR49 + AS$13 -> 1.032148357 | AT49: 1.082617786 | AU49: =(1+AU48)*AT49 + AU$13 -> 1.088659771 | AV49: =(1+AV48)*AU49 + AV$13 -> 1.100276538 | AW49: 1.111725885 | AX49: 1.123422557 | AY49: =(1+AY48)*AX49 + AY$13 -> 1.135264626
E50: Semi-nominal WACC | G50: semi-nominal % | AP50: =AP28*AP34+AP29*AP35+AP30*AP42 -> 0.03693936385 | AQ50: 0.03569226657 | AR50: 0.03982948258 | AS50: 0.04242125523 | AT50: 0.0455566213 | AU50: =AU28*AU34+AU29*AU35+AU30*AU42 -> 0.05438469937 | AV50: 0.05621227817 | AW50: 0.05793260953 | AX50: 0.05906577881 | AY50: 0.05972266952
E52: RAV inflation (splice pre-RIIO-3, splice or semi-nominal in RIIO-3) | G52: annual % | I52: =Scenarios!F53 -> Option 1 | AH52: =AH20*(AH9+AH10) + IF($I52="Status quo", AH20,AH48)*AH11 -> 0.02884779129 | AI52: 0.01959745763 | AJ52: 0.01077922078 | AK52: 0.02142490042 | AL52: 0.03742256046 | AM52: 0.03055563976 | AN52: 0.02588463688 | AO52: 0.01212833673 | AP52: 0.04474180389 | AQ52: 0.08774127008 | AR52: 0.05546901456 | AS52: 0.03214835729 | AT52: 0.04889745588 | AU52: =AU20*(AU9+AU10) + IF($I52="Status quo", AU20,AU48)*AU11 -> 0.005580902744 | AV52: 0.01067070493 | AW52: 0.01040588171 | AX52: 0.01052118276 | AY52: =AY20*(AY9+AY10) + IF($I52="Status quo", AY20,AY48)*AY11 -> 0.01054106456
C54: Re-basing RIIO-3 additions for depreciation
E56: Pre-RIIO-3 slow money additions | G56: =price_label -> £m 23/24 prices | AH56: =MainInputs!AH2523+(TIM!AH109+SUM(MainInputs!AH2524:AH2525))*AH10 -> 129.5850877 | AI56: =MainInputs!AI2523+(TIM!AI109+SUM(MainInputs!AI2524:AI2525))*AI10 -> 439.889235 | AJ56: =MainInputs!AJ2523+(TIM!AJ109+SUM(MainInputs!AJ2524:AJ2525))*AJ10 -> 772.1648223 | AK56: =MainInputs!AK2523+(TIM!AK109+SUM(MainInputs!AK2524:AK2525))*AK10 -> 658.2696652 | AL56: =MainInputs!AL2523+(TIM!AL109+SUM(MainInputs!AL2524:AL2525))*AL10 -> 485.3554189 | AM56: =MainInputs!AM2523+(TIM!AM109+SUM(MainInputs!AM2524:AM2525))*AM10 -> 308.7541088 | AN56: =MainInputs!AN2523+(TIM!AN109+SUM(MainInputs!AN2524:AN2525))*AN10 -> 348.5874485 | AO56: =MainInputs!AO2523+(TIM!AO109+SUM(MainInputs!AO2524:AO2525))*AO10 -> 446.1841397 | AP56: =MainInputs!AP2523+(TIM!AP109+SUM(MainInputs!AP2524:AP2525))*AP10 -> 649.6232697 | AQ56: =MainInputs!AQ2523+(TIM!AQ109+SUM(MainInputs!AQ2524:AQ2525))*AQ10 -> 613.8034427 | AR56: =MainInputs!AR2523+(TIM!AR109+SUM(MainInputs!AR2524:AR2525))*AR10 -> 915.5993846 | AS56: =MainInputs!AS2523+(TIM!AS109+SUM(MainInputs!AS2524:AS2525))*AS10 -> 1547.430721 | AT56: =MainInputs!AT2523+(TIM!AT109+SUM(MainInputs!AT2524:AT2525))*AT10 -> 1802.695424 | AU56: =MainInputs!AU2523+(TIM!AU109+SUM(MainInputs!AU2524:AU2525))*AU10 -> 0 | AV56: =MainInputs!AV2523+(TIM!AV109+SUM(MainInputs!AV2524:AV2525))*AV10 -> 0 | AW56: =MainInputs!AW2523+(TIM!AW109+SUM(MainInputs!AW2524:AW2525))*AW10 -> 0 | AX56: =MainInputs!AX2523+(TIM!AX109+SUM(MainInputs!AX2524:AX2525))*AX10 -> 0 | AY56: =MainInputs!AY2523+(TIM!AY109+SUM(MainInputs!AY2524:AY2525))*AY10 -> 0
E57: RIIO-3 slow money additions | G57: =price_label -> £m 23/24 prices | AP57: =TIM!AP109*AP11 -> 0 | AQ57: =TIM!AQ109*AQ11 -> 0 | AR57: =TIM!AR109*AR11 -> 0 | AS57: =TIM!AS109*AS11 -> 0 | AT57: =TIM!AT109*AT11 -> 0 | AU57: =TIM!AU109*AU11 -> 3131.757563 | AV57: =TIM!AV109*AV11 -> 5130.138081 | AW57: =TIM!AW109*AW11 -> 6095.219743 | AX57: =TIM!AX109*AX11 -> 5191.711837 | AY57: =TIM!AY109*AY11 -> 5156.071598
E58: RIIO-3 slow money additions (nominal) | G58: £m nominal | AP58: =AP57*TOpf -> 0 | AQ58: 0 | AR58: 0 | AS58: 0 | AT58: 0 | AU58: =AU57*TOpf -> 3427.965807 | AV58: 5734.010487 | AW58: 6953.072981 | AX58: 6045.791098 | AY58: 6129.617617
E60: Applicable RIIO-3 additions nominal to real conversion factor for depreciation | G60: Scalar | AP60: =IF($I$52="Status quo",AP21,AP49) -> 0 | AQ60: 0 | AR60: 1 | AS60: 1.032148357 | AT60: 1.082617786 | AU60: =IF($I$52="Status quo",AU21,AU49) -> 1.088659771 | AV60: 1.100276538 | AW60: 1.111725885 | AX60: 1.123422557 | AY60: 1.135264626
E61: Additions deflated using inflation applied to indexed portion of capital structure | G61: =price_label&" (semi-nominal)" -> £m 23/24 prices (semi-nominal) | AP61: =IF(AP60=0,0,AP$58/AP60) -> 0 | AQ61: =IF(AQ60=0,0,AQ$58/AQ60) -> 0 | AR61: 0 | AS61: 0 | AT61: 0 | AU61: =IF(AU60=0,0,AU$58/AU60) -> 3148.794416 | AV61: 5211.426664 | AW61: 6254.305196 | AX61: 5381.582435 | AY61: 5399.285308
... 50 more rows

Sheet TaxPools
A1: Tax Pools
B2: =UserInterface!G17 -> SHET
E3: Parameter | G3: Units | I3: Constant | AP3: Annual values
E4: PCFM year ending | I4: =UserInterface!$G$10 -> 2025-03-31 | K4: 1991-03-31 | L4: 1992-03-31 | M4: 1993-03-31 | N4: 1994-03-31 | O4: 1995-03-31 | P4: 1996-03-31 | Q4: 1997-03-31 | R4: 1998-03-31 | S4: 1999-03-31 | T4: 2000-03-31 | U4: 2001-03-31 | V4: 2002-03-31 | W4: 2003-03-31 | X4: 2004-03-31 | Y4: 2005-03-31 | Z4: 2006-03-31 | AA4: 2007-03-31 | AB4: 2008-03-31 | AC4: 2009-03-31 | AD4: 2010-03-31 | AE4: 2011-03-31 | AF4: 2012-03-31 | AG4: 2013-03-31 | AH4: 2014-03-31 | AI4: 2015-03-31 | AJ4: 2016-03-31 | AK4: 2017-03-31 | AL4: 2018-03-31 | AM4: 2019-03-31 | AN4: 2020-03-31 | AO4: 2021-03-31 | AP4: 2022-03-31 | AQ4: 2023-03-31 | AR4: 2024-03-31 | AS4: 2025-03-31 | AT4: 2026-03-31 | AU4: 2027-03-31 | AV4: 2028-03-31 | AW4: 2029-03-31 | AX4: 2030-03-31 | AY4: =EOMONTH(AX4,12) -> 2031-03-31
AP5: 2 | AQ5: 2 | AR5: 2 | AS5: 2 | AT5: 2 | AU5: 3 | AV5: 3 | AW5: 3 | AX5: 3 | AY5: 3
B7: Tax pool additions
B8: Note: Actual totex is combined with other expenditure and allocated to tax pools. Each cost sub-category can have its own percentage split between each pool.
C10: Expenditure categories allocated to tax pools
D12: Actual totex
E14: Load related capex expenditure | G14: =price_label -> £m 23/24 prices | AP14: =Totex!AP82 -> 488.2948554 | AQ14: =Totex!AQ82 -> 384.6004903 | AR14: =Totex!AR82 -> 710.3313363 | AS14: =Totex!AS82 -> 1303.604624 | AT14: =Totex!AT82 -> 1918.846766 | AU14: =Totex!AU82 -> 3175.432453 | AV14: =Totex!AV82 -> 5509.946247 | AW14: =Totex!AW82 -> 6544.649185 | AX14: =Totex!AX82 -> 5517.82264 | AY14: =Totex!AY82 -> 5665.693974
E15: Asset replacement capex expenditure | G15: £m 23/24 prices | AP15: =Totex!AP83 -> 98.61984034 | AQ15: =Totex!AQ83 -> 105.3203481 | AR15: =Totex!AR83 -> 129.6070761 | AS15: =Totex!AS83 -> 240.2087568 | AT15: =Totex!AT83 -> 355.1132821 | AU15: =Totex!AU83 -> 295.0249554 | AV15: =Totex!AV83 -> 306.6242422 | AW15: =Totex!AW83 -> 354.3954516 | AX15: =Totex!AX83 -> 252.1394944 | AY15: =Totex!AY83 -> 107.0167446
E16: Other capex expenditure | G16: £m 23/24 prices | AP16: =Totex!AP84 -> 38.80042326 | AQ16: =Totex!AQ84 -> 14.76795088 | AR16: =Totex!AR84 -> 9.415573141 | AS16: =Totex!AS84 -> 18.9960071 | AT16: =Totex!AT84 -> 34.4938138 | AU16: =Totex!AU84 -> 26.25842784 | AV16: =Totex!AV84 -> 31.80447057 | AW16: =Totex!AW84 -> 33.08864695 | AX16: =Totex!AX84 -> 29.78544792 | AY16: =Totex!AY84 -> 25.3503931
E17: Network operating costs (opex) | G17: £m 23/24 prices | AP17: =Totex!AP85 -> 13.09690177 | AQ17: =Totex!AQ85 -> 13.62500459 | AR17: =Totex!AR85 -> 18.049613 | AS17: =Totex!AS85 -> 16.97018809 | AT17: =Totex!AT85 -> 16.82167352 | AU17: =Totex!AU85 -> 146.0086461 | AV17: =Totex!AV85 -> 150.7036842 | AW17: =Totex!AW85 -> 185.6804854 | AX17: =Totex!AX85 -> 182.4689752 | AY17: =Totex!AY85 -> 173.2686263
E18: Indirects (opex) | G18: £m 23/24 prices | AP18: =Totex!AP86 -> 101.6848757 | AQ18: =Totex!AQ86 -> 138.9308028 | AR18: =Totex!AR86 -> 184.5745564 | AS18: =Totex!AS86 -> 179.5647436 | AT18: =Totex!AT86 -> 224.1597115 | AU18: =Totex!AU86 -> 320.7649426 | AV18: =Totex!AV86 -> 341.8222798 | AW18: =Totex!AW86 -> 393.9248222 | AX18: =Totex!AX86 -> 426.5075549 | AY18: =Totex!AY86 -> 338.5040825
E19: Non-operational capex | G19: £m 23/24 prices | AP19: =Totex!AP87 -> 9.768476833 | AQ19: =Totex!AQ87 -> 4.822199179 | AR19: =Totex!AR87 -> 28.0514405 | AS19: =Totex!AS87 -> 66.75362509 | AT19: =Totex!AT87 -> 18.51310534 | AU19: =Totex!AU87 -> 90.08094367 | AV19: =Totex!AV87 -> 106.8200625 | AW19: =Totex!AW87 -> 109.6526098 | AX19: =Totex!AX87 -> 86.34746754 | AY19: =Totex!AY87 -> 51.10698002
E20: Actual totex | G20: £m 23/24 prices | AP20: =SUM(AP14:AP19) -> 750.2653733 | AQ20: =SUM(AQ14:AQ19) -> 662.0667959 | AR20: =SUM(AR14:AR19) -> 1080.029595 | AS20: =SUM(AS14:AS19) -> 1826.097945 | AT20: =SUM(AT14:AT19) -> 2567.948352 | AU20: =SUM(AU14:AU19) -> 4053.570368 | AV20: 6447.720986 | AW20: 7621.391201 | AX20: 6495.07158 | AY20: 6360.9408
D22: Non-totex items
E24: Pass-through expenditure and "Other revenue associated costs" | G24: =price_label -> £m 23/24 prices | AP24: =SUM(MainInputs!AP394, MainInputs!AP425) -> 50.31020453 | AQ24: =SUM(MainInputs!AQ394, MainInputs!AQ425) -> 46.32993053 | AR24: =SUM(MainInputs!AR394, MainInputs!AR425) -> 63.8868 | AS24: =SUM(MainInputs!AS394, MainInputs!AS425) -> 67.61836207 | AT24: =SUM(MainInputs!AT394, MainInputs!AT425) -> 67.27617867 | AU24: =SUM(MainInputs!AU394, MainInputs!AU425) -> 83.40211866 | AV24: =SUM(MainInputs!AV394, MainInputs!AV425) -> 109.8289054 | AW24: =SUM(MainInputs!AW394, MainInputs!AW425) -> 110.7160627 | AX24: =SUM(MainInputs!AX394, MainInputs!AX425) -> 111.9026652 | AY24: =SUM(MainInputs!AY394, MainInputs!AY425) -> 110.8239807
C26: Tax pool allocation
E28: Allocation to "General" tax pool | G28: % | AP28: =MainInputs!AP582 -> 0.0051 | AQ28: =MainInputs!AQ582 -> 0.0047 | AR28: =MainInputs!AR582 -> 0.0061 | AS28: =MainInputs!AS582 -> 0.0081 | AT28: =MainInputs!AT582 -> 0.0033 | AU28: =MainInputs!AU582 -> 0.005126379475 | AV28: =MainInputs!AV582 -> 0.004686026472 | AW28: =MainInputs!AW582 -> 0.006086825756 | AX28: =MainInputs!AX582 -> 0.006114493125 | AY28: =MainInputs!AY582 -> 0.003638906107
E29: Allocation to "Special Rate" tax pool | G29: % | AP29: =MainInputs!AP583 -> 0.8286 | AQ29: =MainInputs!AQ583 -> 0.8019 | AR29: =MainInputs!AR583 -> 0.8197 | AS29: =MainInputs!AS583 -> 0.8519 | AT29: =MainInputs!AT583 -> 0.8828 | AU29: =MainInputs!AU583 -> 0.8285772235 | AV29: =MainInputs!AV583 -> 0.8019267937 | AW29: =MainInputs!AW583 -> 0.8197314111 | AX29: =MainInputs!AX583 -> 0.8335751552 | AY29: =MainInputs!AY583 -> 0.8818485705
E30: Allocation to "Structures and Buildings" tax pool | G30: % | AP30: =MainInputs!AP584 -> 0.0096 | AQ30: =MainInputs!AQ584 -> 0.005 | AR30: =MainInputs!AR584 -> 0.0092 | AS30: =MainInputs!AS584 -> 0.0111 | AT30: =MainInputs!AT584 -> 0.0039 | AU30: =MainInputs!AU584 -> 0.009644961485 | AV30: =MainInputs!AV584 -> 0.005005817279 | AW30: =MainInputs!AW584 -> 0.009169366998 | AX30: =MainInputs!AX584 -> 0.009319646749 | AY30: =MainInputs!AY584 -> 0.004645800831
E31: Allocation to "Deferred Revenue" tax pool | G31: % | AP31: =MainInputs!AP585 -> 0.01 | AQ31: =MainInputs!AQ585 -> 0.0042 | AR31: =MainInputs!AR585 -> 0.0121 | AS31: =MainInputs!AS585 -> 0.0166 | AT31: =MainInputs!AT585 -> 0.0048 | AU31: =MainInputs!AU585 -> 0.009977347843 | AV31: =MainInputs!AV585 -> 0.004241790204 | AW31: =MainInputs!AW585 -> 0.01213942144 | AX31: =MainInputs!AX585 -> 0.01165780021 | AY31: =MainInputs!AY585 -> 0.005359752735
E32: Allocation to "Revenue" tax pool | G32: % | AP32: =MainInputs!AP586 -> 0.1156 | AQ32: =MainInputs!AQ586 -> 0.1544 | AR32: =MainInputs!AR586 -> 0.1234 | AS32: =MainInputs!AS586 -> 0.0815 | AT32: =MainInputs!AT586 -> 0.0738 | AU32: =MainInputs!AU586 -> 0.1156272293 | AV32: =MainInputs!AV586 -> 0.1543593153 | AW32: =MainInputs!AW586 -> 0.1234311628 | AX32: =MainInputs!AX586 -> 0.1086448106 | AY32: =MainInputs!AY586 -> 0.07400486723
E33: Allocation to "Non Qualifying" tax pool | G33: % | AP33: =MainInputs!AP587 -> 0.031 | AQ33: =MainInputs!AQ587 -> 0.0298 | AR33: =MainInputs!AR587 -> 0.0294 | AS33: =MainInputs!AS587 -> 0.0307 | AT33: =MainInputs!AT587 -> 0.0315 | AU33: =MainInputs!AU587 -> 0.03104685838 | AV33: =MainInputs!AV587 -> 0.02978025705 | AW33: =MainInputs!AW587 -> 0.0294418119 | AX33: =MainInputs!AX587 -> 0.03068809409 | AY33: =MainInputs!AY587 -> 0.03050210263
E34: Allocation check | G34: % | AP34: =SUM(AP28:AP33) -> 0.9999 | AQ34: =SUM(AQ28:AQ33) -> 1 | AR34: 0.9999 | AS34: 0.9999 | AT34: 1.0001 | AU34: =SUM(AU28:AU33) -> 1 | AV34: 1 | AW34: 1 | AX34: 1 | AY34: 1
E36: General pool additions qualifying for super-deduction/first year allowance | G36: % | AP36: =MainInputs!AP590 -> 0 | AQ36: =MainInputs!AQ590 -> 0 | AR36: =MainInputs!AR590 -> 0 | AS36: =MainInputs!AS590 -> 0 | AT36: =MainInputs!AT590 -> 0 | AU36: =MainInputs!AU590 -> 1 | AV36: =MainInputs!AV590 -> 1 | AW36: =MainInputs!AW590 -> 1 | AX36: =MainInputs!AX590 -> 1 | AY36: =MainInputs!AY590 -> 1
E37: Special rate pool additions qualifying for first year allowance | G37: % | AP37: =MainInputs!AP591 -> 0 | AQ37: =MainInputs!AQ591 -> 0 | AR37: =MainInputs!AR591 -> 0 | AS37: =MainInputs!AS591 -> 0 | AT37: =MainInputs!AT591 -> 0 | AU37: =MainInputs!AU591 -> 1 | AV37: =MainInputs!AV591 -> 1 | AW37: =MainInputs!AW591 -> 1 | AX37: =MainInputs!AX591 -> 1 | AY37: =MainInputs!AY591 -> 1
E39: General pool additions | G39: =price_label -> £m 23/24 prices | AP39: =AP28*AP$20 -> 3.826353404 | AQ39: 3.111713941 | AR39: 6.588180532 | AS39: 14.79139335 | AT39: 8.474229563 | AU39: =AU28*AU$20 -> 20.78013994 | AV39: 30.21419122 | AW39: 46.39008026 | AX39: 39.71407052 | AY39: 23.14686632
E40: Special Rate pool additions | G40: £m 23/24 prices | AP40: 621.6698883 | AQ40: 530.9113636 | AR40: 885.3002594 | AS40: 1555.652839 | AT40: 2266.984806 | AU40: =AU29*AU$20 -> 3358.696081 | AV40: 5170.600217 | AW40: 6247.493763 | AX40: 5414.1303 | AY40: 5609.386552
E41: Structures and Buildings pool additions | G41: £m 23/24 prices | AP41: 7.202547584 | AQ41: 3.310333979 | AR41: 9.936272278 | AS41: 20.26968719 | AT41: 10.01499857 | AU41: =AU30*AU$20 -> 39.09653008 | AV41: 32.27611312 | AW41: 69.88333296 | AX41: 60.53177273 | AY41: 29.55166406
E42: Deferred revenue pool additions | G42: £m 23/24 prices | AP42: 7.502653733 | AQ42: 2.780680543 | AR42: 13.0683581 | AS42: 30.31322589 | AT42: 12.32615209 | AU42: =AU31*AU$20 -> 40.44388157 | AV42: 27.34987972 | AW42: 92.51927975 | AX42: 75.71824683 | AY42: 34.09306985
E43: Revenue pool additions | G43: £m 23/24 prices | AP43: =AP32*AP$20 +AP24 -> 137.0408817 | AQ43: =AQ32*AQ$20 +AQ24 -> 148.5530438 | AR43: 197.1624521 | AS43: 216.4453446 | AT43: 256.7907671 | AU43: =AU32*AU$20 +AU24 -> 552.1052293 | AV43: 1105.094702 | AW43: 1051.433241 | AX43: 817.5584871 | AY43: 581.56456
E44: Non-qualifying expenditure | G44: £m 23/24 prices | AP44: =AP33*AP$20 -> 23.25822657 | AQ44: =AQ33*AQ$20 -> 19.72959052 | AR44: =AR33*AR$20 -> 31.75287011 | AS44: =AS33*AS$20 -> 56.06120691 | AT44: =AT33*AT$20 -> 80.8903731 | AU44: =AU33*AU$20 -> 125.8506252 | AV44: 192.0147884 | AW44: 224.3875662 | AX44: 199.3213678 | AY44: 194.0220691
B46: Capital allowances
B47: Note: Special, General and deferred revenue capital allowances are calculated for the tax allowance calculation.
B48: When "non-core" assets are transferred to the RAV their tax book value is moved into the "Transfer" line.
C50: General pool
E52: Capital allowance rate | G52: % | AP52: =MainInputs!AP594 -> 0.18 | AQ52: =MainInputs!AQ594 -> 0.18 | AR52: =MainInputs!AR594 -> 0.18 | AS52: =MainInputs!AS594 -> 0.18 | AT52: =MainInputs!AT594 -> 0.18 | AU52: =MainInputs!AU594 -> 0.14 | AV52: =MainInputs!AV594 -> 0.14 | AW52: =MainInputs!AW594 -> 0.14 | AX52: =MainInputs!AX594 -> 0.14 | AY52: =MainInputs!AY594 -> 0.14
E54: Opening balance brought forward | G54: £m nominal | AP54: =MainInputs!$AP$575 -> 87.6774262 | AQ54: =AP62 -> 74.62841526 | AR54: =AQ62 -> 67.04134094 | AS54: =AR62 -> 53.78303493 | AT54: =AS62 -> 52.19106418 | AU54: =AT62 -> 39.98882661 | AV54: =AU62 -> 34.39039088 | AW54: 29.57573616 | AX54: 25.4351331 | AY54: 21.87421446
E55: Transfer | G55: £m nominal | AP55: =-NonCore!AP17 -> 0 | AQ55: =-NonCore!AQ17 -> 4.181136367 | AR55: =-NonCore!AR17 -> 0 | AS55: =-NonCore!AS17 -> 0 | AT55: =-NonCore!AT17 -> 0 | AU55: =-NonCore!AU17 -> 0 | AV55: =-NonCore!AV17 -> 0 | AW55: =-NonCore!AW17 -> 0 | AX55: =-NonCore!AX17 -> 0 | AY55: =-NonCore!AY17 -> 0
E56: Revisions | G56: £m nominal | AP56: =MainInputs!AP569 -> 0 | AQ56: =MainInputs!AQ569 -> 0 | AR56: =MainInputs!AR569 -> -8.040454491 | AS56: =MainInputs!AS569 -> -5.402308036 | AT56: =MainInputs!AT569 -> -12.51886813 | AU56: =MainInputs!AU569 -> 0 | AV56: =MainInputs!AV569 -> 0 | AW56: =MainInputs!AW569 -> 0 | AX56: =MainInputs!AX569 -> 0 | AY56: =MainInputs!AY569 -> 0
E57: Capex additions | G57: £m nominal | AP57: =AP39 * TOpf -> 3.332836313 | AQ57: 2.948181233 | AR57: 6.588180532 | AS57: 15.26691235 | AT57: 9.094665668 | AU57: 22.74556946 | AV57: 33.77072636 | AW57: 52.91911157 | AX57: 46.24736148 | AY57: 27.51735249
E58: Transfers out to Super deduction | G58: £m nominal | AP58: =-AP57*AP36 -> 0 | AQ58: =-AQ57*AQ36 -> 0 | AR58: 0 | AS58: 0 | AT58: 0 | AU58: -22.74556946 | AV58: -33.77072636 | AW58: -52.91911157 | AX58: -46.24736148 | AY58: -27.51735249
E59: Transfers in from Super deduction | G59: £m nominal | AP59: =-AP67 -> 0 | AQ59: =-AQ67 -> 0 | AR59: 0 | AS59: 0 | AT59: 0 | AU59: 0 | AV59: 0 | AW59: 0 | AX59: 0 | AY59: 0
E60: Tax book value pre-depreciation | G60: £m nominal | AP60: =SUM(AP54:AP59) -> 91.01026251 | AQ60: =SUM(AQ54:AQ59) -> 81.75773286 | AR60: 65.58906698 | AS60: 63.64763924 | AT60: 48.76686172 | AU60: 39.98882661 | AV60: 34.39039088 | AW60: 29.57573616 | AX60: 25.4351331 | AY60: 21.87421446
E61: General pool capital allowance (reducing balance) | G61: £m nominal | AP61: =-AP60*AP52 -> -16.38184725 | AQ61: =-AQ60*AQ52 -> -14.71639191 | AR61: -11.80603206 | AS61: -11.45657506 | AT61: -8.778035109 | AU61: =-AU60*AU52 -> -5.598435725 | AV61: -4.814654724 | AW61: -4.140603062 | AX61: -3.560918634 | AY61: -3.062390025
E62: Closing balance carried forward | G62: £m nominal | AP62: =SUM(AP60:AP61) -> 74.62841526 | AQ62: =SUM(AQ60:AQ61) -> 67.04134094 | AR62: =SUM(AR60:AR61) -> 53.78303493 | AS62: =SUM(AS60:AS61) -> 52.19106418 | AT62: =SUM(AT60:AT61) -> 39.98882661 | AU62: =SUM(AU60:AU61) -> 34.39039088 | AV62: 29.57573616 | AW62: 25.4351331 | AX62: 21.87421446 | AY62: 18.81182444
E64: Super deduction allowance rate | G64: % | AP64: =MainInputs!AP599 -> 0 | AQ64: =MainInputs!AQ599 -> 0 | AR64: =MainInputs!AR599 -> 0 | AS64: =MainInputs!AS599 -> 0 | AT64: =MainInputs!AT599 -> 0 | AU64: =MainInputs!AU599 -> 1 | AV64: =MainInputs!AV599 -> 1 | AW64: =MainInputs!AW599 -> 1 | AX64: =MainInputs!AX599 -> 1 | AY64: =MainInputs!AY599 -> 1
E66: Opening balance brought forward | G66: £m nominal | AP66: =AO72 -> 0 | AQ66: =AP72 -> 0 | AR66: 0 | AS66: 0 | AT66: 0 | AU66: 0 | AV66: 0 | AW66: 0 | AX66: 0 | AY66: 0
E67: Transfer | G67: £m nominal | AP67: =-AP66 -> 0 | AQ67: =-AQ66 -> 0 | AR67: 0 | AS67: 0 | AT67: 0 | AU67: 0 | AV67: 0 | AW67: 0 | AX67: 0 | AY67: 0
E68: Revisions | G68: £m nominal
E69: Capex additions Transfers from general pool | G69: £m nominal | AP69: =-AP58 -> 0 | AQ69: 0 | AR69: 0 | AS69: 0 | AT69: 0 | AU69: 22.74556946 | AV69: 33.77072636 | AW69: 52.91911157 | AX69: 46.24736148 | AY69: 27.51735249
E70: Tax book value pre-depreciation | G70: £m nominal | AP70: =SUM(AP66:AP69) -> 0 | AQ70: =SUM(AQ66:AQ69) -> 0 | AR70: 0 | AS70: 0 | AT70: 0 | AU70: 22.74556946 | AV70: 33.77072636 | AW70: 52.91911157 | AX70: 46.24736148 | AY70: 27.51735249
E71: General pool capital allowance (reducing balance) | G71: £m nominal | AP71: =AP70*-AP64 -> 0 | AQ71: =AQ70*-AQ64 -> 0 | AR71: 0 | AS71: 0 | AT71: 0 | AU71: -22.74556946 | AV71: -33.77072636 | AW71: -52.91911157 | AX71: -46.24736148 | AY71: -27.51735249
E72: Closing balance carried forward (limited to 0) | G72: £m nominal | AP72: =MAX(SUM(AP70:AP71),0) -> 0 | AQ72: =MAX(SUM(AQ70:AQ71),0) -> 0 | AR72: 0 | AS72: 0 | AT72: 0 | AU72: 0 | AV72: 0 | AW72: 0 | AX72: 0 | AY72: 0
C74: Special Rates pool
E76: Capital allowance rate | G76: % | AP76: =MainInputs!AP595 -> 0.06 | AQ76: =MainInputs!AQ595 -> 0.06 | AR76: =MainInputs!AR595 -> 0.06 | AS76: =MainInputs!AS595 -> 0.06 | AT76: =MainInputs!AT595 -> 0.06 | AU76: =MainInputs!AU595 -> 0.06 | AV76: =MainInputs!AV595 -> 0.06 | AW76: =MainInputs!AW595 -> 0.06 | AX76: =MainInputs!AX595 -> 0.06 | AY76: =MainInputs!AY595 -> 0.06
E78: Opening balance brought forward | G78: £m nominal | AP78: =MainInputs!$AP$576 -> 1756.930855 | AQ78: =AP86 -> 2160.513607 | AR78: =AQ86 -> 2795.952998 | AS78: =AR86 -> 3064.287267 | AT78: =AS86 -> 4023.594495 | AU78: =AT86 -> 5405.059191 | AV78: =AU86 -> 5080.755639 | AW78: 6503.803566 | AX78: 8829.816015 | AY78: 11649.61288
E79: Transfer | G79: £m nominal | AP79: =-NonCore!AP18 -> 0 | AQ79: =-NonCore!AQ18 -> 310.8945756 | AR79: =-NonCore!AR18 -> 0 | AS79: =-NonCore!AS18 -> 0 | AT79: =-NonCore!AT18 -> 0 | AU79: =-NonCore!AU18 -> 0 | AV79: =-NonCore!AV18 -> 0 | AW79: =-NonCore!AW18 -> 0 | AX79: =-NonCore!AX18 -> 0 | AY79: =-NonCore!AY18 -> 0
E80: Revisions | G80: £m nominal | AP80: =MainInputs!AP570 -> 0 | AQ80: =MainInputs!AQ570 -> 0 | AR80: =MainInputs!AR570 -> -421.3731862 | AS80: =MainInputs!AS570 -> -389.5321141 | AT80: =MainInputs!AT570 -> -706.4923899 | AU80: =MainInputs!AU570 -> 0 | AV80: =MainInputs!AV570 -> 0 | AW80: =MainInputs!AW570 -> 0 | AX80: =MainInputs!AX570 -> 0 | AY80: =MainInputs!AY570 -> 0
E81: Capex additions | G81: £m nominal | AP81: =AP40 * TOpf -> 541.4878763 | AQ81: 503.0099001 | AR81: 885.3002594 | AS81: 1605.664523 | AT81: 2432.960864 | AU81: 3676.36865 | AV81: 5779.235452 | AW81: 7126.778347 | AX81: 6304.799225 | AY81: 6668.525441
E82: Transfers out to First year | G82: £m nominal | AP82: =-AP81*AP37 -> 0 | AQ82: 0 | AR82: 0 | AS82: 0 | AT82: 0 | AU82: -3676.36865 | AV82: -5779.235452 | AW82: -7126.778347 | AX82: -6304.799225 | AY82: -6668.525441
E83: Transfers in from to First year | G83: £m nominal | AP83: =-AP91 -> 0 | AQ83: =-AQ91 -> 0 | AR83: 0 | AS83: 0 | AT83: 0 | AU83: 0 | AV83: 1838.184325 | AW83: 2889.617726 | AX83: 3563.389173 | AY83: 3152.399613
E84: Tax book value pre-depreciation | G84: £m nominal | AP84: =SUM(AP78:AP83) -> 2298.418731 | AQ84: =SUM(AQ78:AQ83) -> 2974.418083 | AR84: 3259.880071 | AS84: 4280.419675 | AT84: 5750.062969 | AU84: 5405.059191 | AV84: 6918.939964 | AW84: 9393.421292 | AX84: 12393.20519 | AY84: 14802.01249
E85: Special Rates capital allowance (reducing balance) | G85: £m nominal | AP85: =-AP84*AP76 -> -137.9051239 | AQ85: =-AQ84*AQ76 -> -178.465085 | AR85: -195.5928043 | AS85: -256.8251805 | AT85: -345.0037781 | AU85: =-AU84*AU76 -> -324.3035514 | AV85: -415.1363979 | AW85: -563.6052775 | AX85: -743.5923113 | AY85: -888.1207494
E86: Closing balance carried forward | G86: £m nominal | AP86: =SUM(AP84:AP85) -> 2160.513607 | AQ86: =SUM(AQ84:AQ85) -> 2795.952998 | AR86: =SUM(AR84:AR85) -> 3064.287267 | AS86: =SUM(AS84:AS85) -> 4023.594495 | AT86: =SUM(AT84:AT85) -> 5405.059191 | AU86: =SUM(AU84:AU85) -> 5080.755639 | AV86: 6503.803566 | AW86: 8829.816015 | AX86: 11649.61288 | AY86: 13913.89174
E88: First year Capital allowance rate | G88: % | AP88: =MainInputs!AP600 -> 0 | AQ88: =MainInputs!AQ600 -> 0 | AR88: =MainInputs!AR600 -> 0 | AS88: =MainInputs!AS600 -> 0 | AT88: =MainInputs!AT600 -> 0 | AU88: =MainInputs!AU600 -> 0.5 | AV88: =MainInputs!AV600 -> 0.5 | AW88: =MainInputs!AW600 -> 0.5 | AX88: =MainInputs!AX600 -> 0.5 | AY88: =MainInputs!AY600 -> 0.5
E90: Opening balance brought forward | G90: £m nominal | AP90: =AO96 -> 0 | AQ90: =AP96 -> 0 | AR90: 0 | AS90: 0 | AT90: 0 | AU90: 0 | AV90: 1838.184325 | AW90: 2889.617726 | AX90: 3563.389173 | AY90: 3152.399613
E91: Transfer | G91: £m nominal | AP91: =-AP90 -> 0 | AQ91: =-AQ90 -> 0 | AR91: 0 | AS91: 0 | AT91: 0 | AU91: 0 | AV91: -1838.184325 | AW91: -2889.617726 | AX91: -3563.389173 | AY91: -3152.399613
E92: Revisions | G92: £m nominal
E93: Capex additions | G93: £m nominal | AP93: =-AP82 -> 0 | AQ93: =-AQ82 -> 0 | AR93: 0 | AS93: 0 | AT93: 0 | AU93: 3676.36865 | AV93: 5779.235452 | AW93: 7126.778347 | AX93: 6304.799225 | AY93: 6668.525441
E94: Tax book value pre-depreciation | G94: £m nominal | AP94: =SUM(AP90:AP93) -> 0 | AQ94: =SUM(AQ90:AQ93) -> 0 | AR94: 0 | AS94: 0 | AT94: 0 | AU94: 3676.36865 | AV94: 5779.235452 | AW94: 7126.778347 | AX94: 6304.799225 | AY94: 6668.525441
E95: General pool capital allowance (reducing balance) | G95: £m nominal | AP95: =AP94*-AP88 -> 0 | AQ95: =AQ94*-AQ88 -> 0 | AR95: 0 | AS95: 0 | AT95: 0 | AU95: -1838.184325 | AV95: -2889.617726 | AW95: -3563.389173 | AX95: -3152.399613 | AY95: -3334.262721
E96: Closing balance carried forward | G96: £m nominal | AP96: =SUM(AP94:AP95) -> 0 | AQ96: 0 | AR96: 0 | AS96: 0 | AT96: 0 | AU96: 1838.184325 | AV96: 2889.617726 | AW96: 3563.389173 | AX96: 3152.399613 | AY96: 3334.262721
C98: Structures and Buildings pool
E100: Capital allowance rate | G100: % | AP100: =MainInputs!AP596 -> 0.03 | AQ100: =MainInputs!AQ596 -> 0.03 | AR100: =MainInputs!AR596 -> 0.03 | AS100: =MainInputs!AS596 -> 0.03 | AT100: =MainInputs!AT596 -> 0.03 | AU100: =MainInputs!AU596 -> 0.03 | AV100: =MainInputs!AV596 -> 0.03 | AW100: =MainInputs!AW596 -> 0.03 | AX100: =MainInputs!AX596 -> 0.03 | AY100: =MainInputs!AY596 -> 0.03
E102: Opening balance brought forward | G102: £m nominal | AP102: =MainInputs!$AP$577 -> 0 | AQ102: =AP107 -> 6.273574237 | AR102: =AQ107 -> 9.221730023 | AS102: =AR107 -> 18.87570418 | AT102: =AS107 -> 39.21664223 | AU102: =AT107 -> 48.75685746 | AV102: 90.00528735 | AW102: 123.2379145 | AX102: 199.0208414 | AY102: 263.1589413
E103: Revisions | G103: £m nominal
E104: Capex additions | G104: £m nominal | AP104: =AP41 * TOpf -> 6.273574237 | AQ104: 3.136363014 | AR104: 9.936272278 | AS104: 20.92132433 | AT104: 10.74824124 | AU104: 42.79436247 | AV104: 36.07535864 | AW104: 79.71885095 | AX104: 70.48974677 | AY104: 35.13147504
E105: Tax book value pre-depreciation | G105: £m nominal | AP105: =SUM(AP102:AP104) -> 6.273574237 | AQ105: =SUM(AQ102:AQ104) -> 9.40993725 | AR105: =SUM(AR102:AR104) -> 19.1580023 | AS105: =SUM(AS102:AS104) -> 39.79702852 | AT105: =SUM(AT102:AT104) -> 49.96488348 | AU105: =SUM(AU102:AU104) -> 91.55121992 | AV105: 126.080646 | AW105: 202.9567655 | AX105: 269.5105881 | AY105: 298.2904163
E106: Structures and Buildings capital allowance (straight line) | G106: £m nominal | AP106: =(-($AH$102+SUM($AG104:AO104))*AP100*MainInputs!AP$10)+(-SUM(OFFSET(AO104,,-MIN(YEAR(AO$4)-YEAR($AO$4),ROUNDUP(1/AP100-1,0))):AO104)/ROUND(1/AP100,0)*MainInputs!AP$11) -> 0 | AQ106: =(-($AH$102+SUM($AG104:AP104))*AQ100*MainInputs!AQ$10)+(-SUM(OFFSET(AP104,,-MIN(YEAR(AP$4)-YEAR($AO$4),ROUNDUP(1/AQ100-1,0))):AP104)/ROUND(1/AQ100,0)*MainInputs!AQ$11) -> -0.1882072271 | AR106: =(-($AH$102+SUM($AG104:AQ104))*AR100*MainInputs!AR$10)+(-SUM(OFFSET(AQ104,,-MIN(YEAR(AQ$4)-YEAR($AO$4),ROUNDUP(1/AR100-1,0))):AQ104)/ROUND(1/AR100,0)*MainInputs!AR$11) -> -0.2822981175 | AS106: =(-($AH$102+SUM($AG104:AR104))*AS100*MainInputs!AS$10)+(-SUM(OFFSET(AR104,,-MIN(YEAR(AR$4)-YEAR($AO$4),ROUNDUP(1/AS100-1,0))):AR104)/ROUND(1/AS100,0)*MainInputs!AS$11) -> -0.5803862858 | AT106: =(-($AH$102+SUM($AG104:AS104))*AT100*MainInputs!AT$10)+(-SUM(OFFSET(AS104,,-MIN(YEAR(AS$4)-YEAR($AO$4),ROUNDUP(1/AT100-1,0))):AS104)/ROUND(1/AT100,0)*MainInputs!AT$11) -> -1.208026016 | AU106: =(-($AH$102+SUM($AG104:AT104))*AU100*MainInputs!AU$10)+(-SUM(OFFSET(AT104,,-MIN(YEAR(AT$4)-YEAR($AO$4),ROUNDUP(1/AU100-1,0))):AT104)/ROUND(1/AU100,0)*MainInputs!AU$11) -> -1.545932579 | AV106: =(-($AH$102+SUM($AG104:AU104))*AV100*MainInputs!AV$10)+(-SUM(OFFSET(AU104,,-MIN(YEAR(AU$4)-YEAR($AO$4),ROUNDUP(1/AV100-1,0))):AU104)/ROUND(1/AV100,0)*MainInputs!AV$11) -> -2.842731442 | AW106: =(-($AH$102+SUM($AG104:AV104))*AW100*MainInputs!AW$10)+(-SUM(OFFSET(AV104,,-MIN(YEAR(AV$4)-YEAR($AO$4),ROUNDUP(1/AW100-1,0))):AV104)/ROUND(1/AW100,0)*MainInputs!AW$11) -> -3.935924128 | AX106: =(-($AH$102+SUM($AG104:AW104))*AX100*MainInputs!AX$10)+(-SUM(OFFSET(AW104,,-MIN(YEAR(AW$4)-YEAR($AO$4),ROUNDUP(1/AX100-1,0))):AW104)/ROUND(1/AX100,0)*MainInputs!AX$11) -> -6.351646884 | AY106: =(-($AH$102+SUM($AG104:AX104))*AY100*MainInputs!AY$10)+(-SUM(OFFSET(AX104,,-MIN(YEAR(AX$4)-YEAR($AO$4),ROUNDUP(1/AY100-1,0))):AX104)/ROUND(1/AY100,0)*MainInputs!AY$11) -> -8.487699816
E107: Closing balance carried forward | G107: £m nominal | AP107: =AP105 + AP106 -> 6.273574237 | AQ107: =AQ105 + AQ106 -> 9.221730023 | AR107: =AR105 + AR106 -> 18.87570418 | AS107: =AS105 + AS106 -> 39.21664223 | AT107: =AT105 + AT106 -> 48.75685746 | AU107: =AU105 + AU106 -> 90.00528735 | AV107: 123.2379145 | AW107: 199.0208414 | AX107: 263.1589413 | AY107: 289.8027165
C109: Deferred revenue expenditure
E111: Capital allowance rate | G111: % | AP111: =MainInputs!AP597 -> 0.03 | AQ111: =MainInputs!AQ597 -> 0.03 | AR111: =MainInputs!AR597 -> 0.03 | AS111: =MainInputs!AS597 -> 0.03 | AT111: =MainInputs!AT597 -> 0.03 | AU111: =MainInputs!AU597 -> 0.0222 | AV111: =MainInputs!AV597 -> 0.0222 | AW111: =MainInputs!AW597 -> 0.0222 | AX111: =MainInputs!AX597 -> 0.0222 | AY111: =MainInputs!AY597 -> 0.0222
E113: Opening balance brought forward | G113: £m nominal | AP113: =MainInputs!$AP$578 -> 375.9085965 | AQ113: =AP119 -> 369.8671586 | AR113: =AQ119 -> 359.7292433 | AS113: =AR119 -> 359.9461048 | AT113: =AS119 -> 377.9903037 | AU113: =AT119 -> 377.0367286 | AV113: 410.5065906 | AW113: 429.292799 | AX113: 522.3710616 | AY113: 595.737872
E114: Transfer | G114: £m nominal
E115: Revisions | G115: £m nominal
E116: Capex additions | G116: £m nominal | AO116: =MainInputs!$AO$579 -> 419.2137019 | AP116: =AP42 * TOpf -> 6.534973163 | AQ116: 2.634544931 | AR116: 13.0683581 | AS116: 31.2877463 | AT116: 13.22860461 | AU116: 44.26914931 | AV116: 30.5692546 | AW116: 105.5406255 | AX116: 88.17452065 | AY116: 40.53036844
E117: Tax book value pre-depreciation | G117: £m nominal | AP117: =SUM(AP113:AP116) -> 382.4435697 | AQ117: =SUM(AQ113:AQ116) -> 372.5017035 | AR117: =SUM(AR113:AR116) -> 372.7976014 | AS117: =SUM(AS113:AS116) -> 391.2338511 | AT117: =SUM(AT113:AT116) -> 391.2189084 | AU117: =SUM(AU113:AU116) -> 421.3058779 | AV117: 441.0758452 | AW117: 534.8334245 | AX117: 610.5455822 | AY117: 636.2682405
